Workbook

Sheet Instructions
B2: Early Years Benchmarking Tables - Main Spreadsheet
B4: This spreadsheet contains data for all local authorities on funded early education. The main spreadsheet contains information on funding, take up, quality and outcomes of early years education alongside contextual data on the number of under 5s and the deprivation rank for each local authority.
B6: The Child Development strand of the tool shows the percentage of children achieving a good level of development, how well children who are eligible for free school meals do in comparison to other children, and how well the lowest attaining children do in comparison to other children.
B7: The Take Up strand of the tool shows the number and percentage of children benefitting from some funded early education. This is shown for three and four year olds separately as well as in total. Also included is information on the qualifications of staff working in settings that provide funded early education.
B8: The information can be viewed regionally (for example, London, South West, North East) or by type of local authority (London, Unitary, Upper Tier or Metropolitan). Alternatively, you may choose your statistical neighbours or up to 10 local authorities of your choice by selecting the "Statistical neighbours" option.
B9: Information on the data sources and underlying calculations can be found in the technical annex.
B11: Please select data to view:

Sheet STATISTICAL NEIGHBOURS (hidden)
B2: This worksheet allows you to view data for your own LA along with your statistical neighbours, or with your own choice of other LAs.
B4: Choose LAs | G4: Other LAs
B6: 1. Please select your LA
B8: My LA
B12: 2. Then either select your statistical neighbours:
B17: Or make your own selection of LAs using the drop down boxes
B19: 3. When you have made your selection, press the "Create Table" button to view the benchmarking table
B25: Note: When statistical neighbours are selected, LAs are shown in order of closeness to your LA

Sheet Lookups (hidden)
B2: CHOICE
B3: STATISTICAL NEIGHBOURS
B4: LONDON | C4: Cell link | D4: 1
B5: METROPOLITAN AUTHORITIES
B6: UNITARY AUTHORITIES
B7: UPPER TIER AUTHORITIES
B8: East of England
B9: East Midlands
B10: North East
B11: North West
B12: South East
B13: South West
B14: West Midlands
B15: Yorkshire and the Humber
B16: All LAs

Sheet Contents (hidden)
B2: Contents
C5: Main Spreadsheet
D7: Early Years Table - Main benchmarking spreadsheet (including quality and context)
C10: Take Up
D12: 3YO Take up - Three year olds benefiting from funded early education
D14: 4YO Take up - Four year olds benefiting from funded early education
D16: 3+4YO Take up - Three and four year olds benefiting from funded early education
C19: Staff Qualifications
D21: Qualifications - Percentage of private, voluntary and independent providers with staff with QTS/EYPS who work directly with three and four year olds
C24: Child Development - Early Years Foundation Stage Profile
D26: EYFSP GLD - Percentage of children achieving a good level of development at age five
D28: EYFSP FSM - Percentage gap between pupils eligible for free school meals and the rest in achieving a good level of development at age five
D30: EYFSP 20% - Percentage gap between the lowest achieving 20% and the rest in achieving a good level of development at age five

Sheet Early Years Table (hidden)
C1: Early Years Benchmarking - Main Spreadsheet | O1: Return to contents
A2: All LAs | O2: Return to instructions
A4: To print use the buttons below. | C4: Funding | F4: Quality | G4: Qualifications | I4: Take UpA | J4: Child Development (EYFSP)14 | M4: Context
C5: Planned spend1 on 2 year olds - average rate per hour2,3 (2013-14) | D5: Allocated hourly rate for 2 year olds4 (2013-14) | E5: Planned spend1 on 3 and 4 year olds - average rate per hour5 (2013-14) | F5: % of childcare and early years settings6 rated good or outstanding by Ofsted7 (As at 31st October 2013) | G5: % of PVI8 providers with QTS9/EYPS10 graduates working directly with 3 and 4 year olds11 (2013) | H5: % of 3 and 4 year olds11 receiving funded early education at PVI8 providers with QTS9/EYPS10 graduates working directly with children (2013) | I5: % of 3 and 4 year olds11 receiving funded early education12,13 (2013) | J5: % of children achieving a good level of development15,16 (2013) | K5: % gap between pupils eligible for free school meals and the rest16,17 (2013) | L5: % gap between the lowest achieving 20% and the rest16,18 (2013) | M5: Number of 0-4 year olds19 (Mid-2012) | N5: Deprivation rank20,21 (2010) | O5: % of 3 and 4 year olds11 receiving funded early education12,13 in maintained22 settings (2013) | P5: % of 3 and 4 year olds11 receiving funded early education12,13 in PVI8 providers (2013)
A6: England - Average (mean) or Total | C6: =Data!C157 -> 5.27 | D6: =Data!AQ157 -> 5.09 | E6: =Data!D157 -> 4.21 | F6: =Data!E157 -> 0.77 | G6: =Data!AP157 -> 0.39 | H6: =Data!AS157 -> 0.44 | I6: =Data!AI157 -> 0.96 | J6: =Data!AK157 -> 0.52 | K6: =Data!AL157 -> 0.19 | L6: =Data!AM157 -> 0.366 | M6: =Data!F157 -> 3328750 | O6: =Data!AR157 -> 0.59 | P6: =Data!H157 -> 0.4
A7: England - Average (median) | C7: =Data!C158 -> 5 | D7: =Data!AQ158 -> 4.93 | E7: =Data!D158 -> 4.04 | F7: =Data!E158 -> 0.76 | G7: =Data!AP158 -> 0.395 | H7: =Data!AS158 -> 0.44 | I7: =Data!AI158 -> 0.97 | J7: =Data!AK158 -> 0.51 | K7: =Data!AL158 -> 0.195 | L7: =Data!AM158 -> 0.355 | M7: =Data!F158 -> 17500 | N7: =Data!G158 -> 76.5 | O7: =Data!AR158 -> 0.625 | P7: =Data!H158 -> 0.36
A8: England - Minimum | C8: =Data!C159 -> 4.5 | D8: =Data!AQ159 -> 4.85 | E8: =Data!D159 -> 2.99 | F8: =Data!E159 -> 0.59 | G8: =Data!AP159 -> 0 | H8: =Data!AS159 -> 0 | I8: =Data!AI159 -> 0.79 | J8: =Data!AK159 -> 0.28 | K8: =Data!AL159 -> 0.02 | L8: =Data!AM159 -> 0.105 | M8: =Data!F159 -> 100 | N8: =Data!G159 -> 1 | O8: =Data!AR159 -> 0.33 | P8: =Data!H159 -> 0.03
A9: England - Maximum | C9: =Data!C160 -> 9.99 | D9: =Data!AQ160 -> 7.08 | E9: =Data!D160 -> 6.81 | F9: =Data!E160 -> 1 | G9: =Data!AP160 -> 0.73 | H9: =Data!AS160 -> 0.81 | I9: =Data!AI160 -> 1.15 | J9: =Data!AK160 -> 1 | K9: =Data!AL160 -> 0.34 | L9: =Data!AM160 -> 0.446 | M9: =Data!F160 -> 90800 | N9: =Data!G160 -> 149 | O9: =Data!AR160 -> 0.97 | P9: =Data!H160 -> 0.66
A10: Selection - Average (median) | C10: =MEDIAN(C13:C164) -> 5 | D10: =MEDIAN(D13:D164) -> 4.93 | E10: 4.04 | F10: 0.76 | G10: =MEDIAN(G13:G164) -> 0.395 | H10: 0.44 | I10: 0.97 | J10: 0.51 | K10: 0.195 | L10: 0.355 | M10: 17500 | N10: 76.5 | O10: =MEDIAN(O13:O164) -> 0.625 | P10: 0.36
A11: Selection - Minimum | C11: =MIN(C13:C164) -> 4.5 | D11: =MIN(D13:D164) -> 4.85 | E11: 2.99 | F11: 0.59 | G11: =MIN(G13:G164) -> 0 | H11: 0 | I11: 0.79 | J11: 0.28 | K11: 0.02 | L11: 0.105 | M11: 100 | N11: 1 | O11: =MIN(O13:O164) -> 0.33 | P11: 0.03
A12: Selection - Maximum | C12: =MAX(C13:C164) -> 9.99 | D12: =MAX(D13:D164) -> 7.08 | E12: 6.81 | F12: 1 | G12: =MAX(G13:G164) -> 0.73 | H12: 0.81 | I12: 1.15 | J12: 1 | K12: 0.34 | L12: 0.446 | M12: 90800 | N12: 149 | O12: =MAX(O13:O164) -> 0.97 | P12: 0.66
A13: 301 | B13: =IF($A13="","",IF(ISBLANK($A13),"",INDEX('LEA Nos codes'!$A$3:$A$154,MATCH($A13,'LEA Nos codes'!$B$3:$B$154,0)))) -> Barking and Dagenham | C13: =IF($A13="","",IF(ISBLANK($A13),"",VLOOKUP($A13,Data!$A$4:$V$155,3,FALSE))) -> 5.2 | D13: =IF($A13="","",IF(ISBLANK($A13),"",VLOOKUP($A13,Data!$A$4:$AQ$155,43,FALSE))) -> 5.28 | E13: =IF($A13="","",IF(ISBLANK($A13),"",VLOOKUP($A13,Data!$A$4:$V$155,4,FALSE))) -> 3.87 | F13: =IF($A13="","",IF(ISBLANK($A13),"",VLOOKUP($A13,Data!$A$4:$V$155,5,FALSE))) -> 0.74 | G13: =IF($A13="","",IF(ISBLANK($A13),"",VLOOKUP($A13,Data!$A$4:$AP$155,42,FALSE))) -> 0.34 | H13: =IF($A13="","",IF(ISBLANK($A13),"",VLOOKUP($A13,Data!$A$4:$AS$155,45,FALSE))) -> 0.39 | I13: =IF($A13="","",IF(ISBLANK($A13),"",VLOOKUP($A13,Data!$A$4:$AI$155,35,FALSE))) -> 0.89 | J13: =IF($A13="","",IF(ISBLANK($A13),"",VLOOKUP($A13,Data!$A$4:$AM$155,37,FALSE))) -> 0.46 | K13: =IF($A13="","",IF(ISBLANK($A13),"",VLOOKUP($A13,Data!$A$4:$AM$155,38,FALSE))) -> 0.12 | L13: =IF($A13="","",IF(ISBLANK($A13),"",VLOOKUP($A13,Data!$A$4:$AM$155,39,FALSE))) -> 0.383 | M13: =IF($A13="","",IF(ISBLANK($A13),"",VLOOKUP($A13,Data!$A$4:$AI$155,6,FALSE))) -> 19200 | N13: =IF($A13="","",IF(ISBLANK($A13),"",VLOOKUP($A13,Data!$A$4:$AI$155,7,FALSE))) -> 20 | O13: =IF($A13="","",IF(ISBLANK($A13),"",VLOOKUP($A13,Data!$A$4:$AR$155,44,FALSE))) -> 0.77 | P13: =IF($A13="","",IF(ISBLANK($A13),"",VLOOKUP($A13,Data!$A$4:$AI$155,8,FALSE))) -> 0.22
A14: 302 | B14: =IF($A14="","",IF(ISBLANK($A14),"",INDEX('LEA Nos codes'!$A$3:$A$154,MATCH($A14,'LEA Nos codes'!$B$3:$B$154,0)))) -> Barnet | C14: =IF($A14="","",IF(ISBLANK($A14),"",VLOOKUP($A14,Data!$A$4:$V$155,3,FALSE))) -> 6 | D14: =IF($A14="","",IF(ISBLANK($A14),"",VLOOKUP($A14,Data!$A$4:$AQ$155,43,FALSE))) -> 5.53 | E14: =IF($A14="","",IF(ISBLANK($A14),"",VLOOKUP($A14,Data!$A$4:$V$155,4,FALSE))) -> 4.57 | F14: =IF($A14="","",IF(ISBLANK($A14),"",VLOOKUP($A14,Data!$A$4:$V$155,5,FALSE))) -> 0.75 | G14: =IF($A14="","",IF(ISBLANK($A14),"",VLOOKUP($A14,Data!$A$4:$AP$155,42,FALSE))) -> 0.49 | H14: =IF($A14="","",IF(ISBLANK($A14),"",VLOOKUP($A14,Data!$A$4:$AS$155,45,FALSE))) -> 0.49 | I14: =IF($A14="","",IF(ISBLANK($A14),"",VLOOKUP($A14,Data!$A$4:$AI$155,35,FALSE))) -> 0.84 | J14: =IF($A14="","",IF(ISBLANK($A14),"",VLOOKUP($A14,Data!$A$4:$AM$155,37,FALSE))) -> 0.6 | K14: =IF($A14="","",IF(ISBLANK($A14),"",VLOOKUP($A14,Data!$A$4:$AM$155,38,FALSE))) -> 0.16 | L14: =IF($A14="","",IF(ISBLANK($A14),"",VLOOKUP($A14,Data!$A$4:$AM$155,39,FALSE))) -> 0.32 | M14: =IF($A14="","",IF(ISBLANK($A14),"",VLOOKUP($A14,Data!$A$4:$AI$155,6,FALSE))) -> 27300 | N14: =IF($A14="","",IF(ISBLANK($A14),"",VLOOKUP($A14,Data!$A$4:$AI$155,7,FALSE))) -> 106 | O14: =IF($A14="","",IF(ISBLANK($A14),"",VLOOKUP($A14,Data!$A$4:$AR$155,44,FALSE))) -> 0.7 | P14: =IF($A14="","",IF(ISBLANK($A14),"",VLOOKUP($A14,Data!$A$4:$AI$155,8,FALSE))) -> 0.3
A15: 370 | B15: =IF($A15="","",IF(ISBLANK($A15),"",INDEX('LEA Nos codes'!$A$3:$A$154,MATCH($A15,'LEA Nos codes'!$B$3:$B$154,0)))) -> Barnsley | C15: =IF($A15="","",IF(ISBLANK($A15),"",VLOOKUP($A15,Data!$A$4:$V$155,3,FALSE))) -> 4.95 | D15: =IF($A15="","",IF(ISBLANK($A15),"",VLOOKUP($A15,Data!$A$4:$AQ$155,43,FALSE))) -> 4.85 | E15: =IF($A15="","",IF(ISBLANK($A15),"",VLOOKUP($A15,Data!$A$4:$V$155,4,FALSE))) -> 4.03 | F15: =IF($A15="","",IF(ISBLANK($A15),"",VLOOKUP($A15,Data!$A$4:$V$155,5,FALSE))) -> 0.79 | G15: =IF($A15="","",IF(ISBLANK($A15),"",VLOOKUP($A15,Data!$A$4:$AP$155,42,FALSE))) -> 0.47 | H15: =IF($A15="","",IF(ISBLANK($A15),"",VLOOKUP($A15,Data!$A$4:$AS$155,45,FALSE))) -> 0.46 | I15: =IF($A15="","",IF(ISBLANK($A15),"",VLOOKUP($A15,Data!$A$4:$AI$155,35,FALSE))) -> 0.97 | J15: =IF($A15="","",IF(ISBLANK($A15),"",VLOOKUP($A15,Data!$A$4:$AM$155,37,FALSE))) -> 0.5 | K15: =IF($A15="","",IF(ISBLANK($A15),"",VLOOKUP($A15,Data!$A$4:$AM$155,38,FALSE))) -> 0.23 | L15: =IF($A15="","",IF(ISBLANK($A15),"",VLOOKUP($A15,Data!$A$4:$AM$155,39,FALSE))) -> 0.378 | M15: =IF($A15="","",IF(ISBLANK($A15),"",VLOOKUP($A15,Data!$A$4:$AI$155,6,FALSE))) -> 14400 | N15: =IF($A15="","",IF(ISBLANK($A15),"",VLOOKUP($A15,Data!$A$4:$AI$155,7,FALSE))) -> 40 | O15: =IF($A15="","",IF(ISBLANK($A15),"",VLOOKUP($A15,Data!$A$4:$AR$155,44,FALSE))) -> 0.76 | P15: =IF($A15="","",IF(ISBLANK($A15),"",VLOOKUP($A15,Data!$A$4:$AI$155,8,FALSE))) -> 0.24
A16: 800 | B16: =IF($A16="","",IF(ISBLANK($A16),"",INDEX('LEA Nos codes'!$A$3:$A$154,MATCH($A16,'LEA Nos codes'!$B$3:$B$154,0)))) -> Bath & North East Somerset | C16: =IF($A16="","",IF(ISBLANK($A16),"",VLOOKUP($A16,Data!$A$4:$V$155,3,FALSE))) -> 5 | D16: =IF($A16="","",IF(ISBLANK($A16),"",VLOOKUP($A16,Data!$A$4:$AQ$155,43,FALSE))) -> 5.07 | E16: =IF($A16="","",IF(ISBLANK($A16),"",VLOOKUP($A16,Data!$A$4:$V$155,4,FALSE))) -> 3.72 | F16: =IF($A16="","",IF(ISBLANK($A16),"",VLOOKUP($A16,Data!$A$4:$V$155,5,FALSE))) -> 0.82 | G16: =IF($A16="","",IF(ISBLANK($A16),"",VLOOKUP($A16,Data!$A$4:$AP$155,42,FALSE))) -> 0.62 | H16: =IF($A16="","",IF(ISBLANK($A16),"",VLOOKUP($A16,Data!$A$4:$AS$155,45,FALSE))) -> 0.69 | I16: =IF($A16="","",IF(ISBLANK($A16),"",VLOOKUP($A16,Data!$A$4:$AI$155,35,FALSE))) -> 1.03 | J16: =IF($A16="","",IF(ISBLANK($A16),"",VLOOKUP($A16,Data!$A$4:$AM$155,37,FALSE))) -> 0.51 | K16: =IF($A16="","",IF(ISBLANK($A16),"",VLOOKUP($A16,Data!$A$4:$AM$155,38,FALSE))) -> 0.25 | L16: =IF($A16="","",IF(ISBLANK($A16),"",VLOOKUP($A16,Data!$A$4:$AM$155,39,FALSE))) -> 0.32 | M16: =IF($A16="","",IF(ISBLANK($A16),"",VLOOKUP($A16,Data!$A$4:$AI$155,6,FALSE))) -> 9300 | N16: =IF($A16="","",IF(ISBLANK($A16),"",VLOOKUP($A16,Data!$A$4:$AI$155,7,FALSE))) -> 135 | O16: =IF($A16="","",IF(ISBLANK($A16),"",VLOOKUP($A16,Data!$A$4:$AR$155,44,FALSE))) -> 0.42 | P16: =IF($A16="","",IF(ISBLANK($A16),"",VLOOKUP($A16,Data!$A$4:$AI$155,8,FALSE))) -> 0.58
A17: 822 | B17: =IF($A17="","",IF(ISBLANK($A17),"",INDEX('LEA Nos codes'!$A$3:$A$154,MATCH($A17,'LEA Nos codes'!$B$3:$B$154,0)))) -> Bedford Borough | C17: =IF($A17="","",IF(ISBLANK($A17),"",VLOOKUP($A17,Data!$A$4:$V$155,3,FALSE))) -> 5.03 | D17: =IF($A17="","",IF(ISBLANK($A17),"",VLOOKUP($A17,Data!$A$4:$AQ$155,43,FALSE))) -> 5.03 | E17: =IF($A17="","",IF(ISBLANK($A17),"",VLOOKUP($A17,Data!$A$4:$V$155,4,FALSE))) -> 4 | F17: =IF($A17="","",IF(ISBLANK($A17),"",VLOOKUP($A17,Data!$A$4:$V$155,5,FALSE))) -> 0.9 | G17: =IF($A17="","",IF(ISBLANK($A17),"",VLOOKUP($A17,Data!$A$4:$AP$155,42,FALSE))) -> 0.29 | H17: =IF($A17="","",IF(ISBLANK($A17),"",VLOOKUP($A17,Data!$A$4:$AS$155,45,FALSE))) -> 0.36 | I17: =IF($A17="","",IF(ISBLANK($A17),"",VLOOKUP($A17,Data!$A$4:$AI$155,35,FALSE))) -> 1.06 | J17: =IF($A17="","",IF(ISBLANK($A17),"",VLOOKUP($A17,Data!$A$4:$AM$155,37,FALSE))) -> 0.48 | K17: =IF($A17="","",IF(ISBLANK($A17),"",VLOOKUP($A17,Data!$A$4:$AM$155,38,FALSE))) -> 0.19 | L17: =IF($A17="","",IF(ISBLANK($A17),"",VLOOKUP($A17,Data!$A$4:$AM$155,39,FALSE))) -> 0.338 | M17: =IF($A17="","",IF(ISBLANK($A17),"",VLOOKUP($A17,Data!$A$4:$AI$155,6,FALSE))) -> 10500 | N17: =IF($A17="","",IF(ISBLANK($A17),"",VLOOKUP($A17,Data!$A$4:$AI$155,7,FALSE))) -> 130 | O17: =IF($A17="","",IF(ISBLANK($A17),"",VLOOKUP($A17,Data!$A$4:$AR$155,44,FALSE))) -> 0.55 | P17: =IF($A17="","",IF(ISBLANK($A17),"",VLOOKUP($A17,Data!$A$4:$AI$155,8,FALSE))) -> 0.45
A18: 303 | B18: =IF($A18="","",IF(ISBLANK($A18),"",INDEX('LEA Nos codes'!$A$3:$A$154,MATCH($A18,'LEA Nos codes'!$B$3:$B$154,0)))) -> Bexley | C18: =IF($A18="","",IF(ISBLANK($A18),"",VLOOKUP($A18,Data!$A$4:$V$155,3,FALSE))) -> 5.28 | D18: =IF($A18="","",IF(ISBLANK($A18),"",VLOOKUP($A18,Data!$A$4:$AQ$155,43,FALSE))) -> 5.28 | E18: =IF($A18="","",IF(ISBLANK($A18),"",VLOOKUP($A18,Data!$A$4:$V$155,4,FALSE))) -> 3.85 | F18: =IF($A18="","",IF(ISBLANK($A18),"",VLOOKUP($A18,Data!$A$4:$V$155,5,FALSE))) -> 0.78 | G18: =IF($A18="","",IF(ISBLANK($A18),"",VLOOKUP($A18,Data!$A$4:$AP$155,42,FALSE))) -> 0.4 | H18: =IF($A18="","",IF(ISBLANK($A18),"",VLOOKUP($A18,Data!$A$4:$AS$155,45,FALSE))) -> 0.4 | I18: =IF($A18="","",IF(ISBLANK($A18),"",VLOOKUP($A18,Data!$A$4:$AI$155,35,FALSE))) -> 0.98 | J18: =IF($A18="","",IF(ISBLANK($A18),"",VLOOKUP($A18,Data!$A$4:$AM$155,37,FALSE))) -> 0.64 | K18: =IF($A18="","",IF(ISBLANK($A18),"",VLOOKUP($A18,Data!$A$4:$AM$155,38,FALSE))) -> 0.2 | L18: =IF($A18="","",IF(ISBLANK($A18),"",VLOOKUP($A18,Data!$A$4:$AM$155,39,FALSE))) -> 0.276 | M18: =IF($A18="","",IF(ISBLANK($A18),"",VLOOKUP($A18,Data!$A$4:$AI$155,6,FALSE))) -> 15700 | N18: =IF($A18="","",IF(ISBLANK($A18),"",VLOOKUP($A18,Data!$A$4:$AI$155,7,FALSE))) -> 105 | O18: =IF($A18="","",IF(ISBLANK($A18),"",VLOOKUP($A18,Data!$A$4:$AR$155,44,FALSE))) -> 0.63 | P18: =IF($A18="","",IF(ISBLANK($A18),"",VLOOKUP($A18,Data!$A$4:$AI$155,8,FALSE))) -> 0.35
A19: 330 | B19: =IF($A19="","",IF(ISBLANK($A19),"",INDEX('LEA Nos codes'!$A$3:$A$154,MATCH($A19,'LEA Nos codes'!$B$3:$B$154,0)))) -> Birmingham | C19: =IF($A19="","",IF(ISBLANK($A19),"",VLOOKUP($A19,Data!$A$4:$V$155,3,FALSE))) -> . | D19: =IF($A19="","",IF(ISBLANK($A19),"",VLOOKUP($A19,Data!$A$4:$AQ$155,43,FALSE))) -> 4.89 | E19: =IF($A19="","",IF(ISBLANK($A19),"",VLOOKUP($A19,Data!$A$4:$V$155,4,FALSE))) -> 5.31 | F19: =IF($A19="","",IF(ISBLANK($A19),"",VLOOKUP($A19,Data!$A$4:$V$155,5,FALSE))) -> 0.72 | G19: =IF($A19="","",IF(ISBLANK($A19),"",VLOOKUP($A19,Data!$A$4:$AP$155,42,FALSE))) -> 0.3 | H19: =IF($A19="","",IF(ISBLANK($A19),"",VLOOKUP($A19,Data!$A$4:$AS$155,45,FALSE))) -> 0.39 | I19: =IF($A19="","",IF(ISBLANK($A19),"",VLOOKUP($A19,Data!$A$4:$AI$155,35,FALSE))) -> 0.92 | J19: =IF($A19="","",IF(ISBLANK($A19),"",VLOOKUP($A19,Data!$A$4:$AM$155,37,FALSE))) -> 0.5 | K19: =IF($A19="","",IF(ISBLANK($A19),"",VLOOKUP($A19,Data!$A$4:$AM$155,38,FALSE))) -> 0.15 | L19: =IF($A19="","",IF(ISBLANK($A19),"",VLOOKUP($A19,Data!$A$4:$AM$155,39,FALSE))) -> 0.406 | M19: =IF($A19="","",IF(ISBLANK($A19),"",VLOOKUP($A19,Data!$A$4:$AI$155,6,FALSE))) -> 83900 | N19: =IF($A19="","",IF(ISBLANK($A19),"",VLOOKUP($A19,Data!$A$4:$AI$155,7,FALSE))) -> 9 | O19: =IF($A19="","",IF(ISBLANK($A19),"",VLOOKUP($A19,Data!$A$4:$AR$155,44,FALSE))) -> 0.68 | P19: =IF($A19="","",IF(ISBLANK($A19),"",VLOOKUP($A19,Data!$A$4:$AI$155,8,FALSE))) -> 0.31
A20: 889 | B20: =IF($A20="","",IF(ISBLANK($A20),"",INDEX('LEA Nos codes'!$A$3:$A$154,MATCH($A20,'LEA Nos codes'!$B$3:$B$154,0)))) -> Blackburn with Darwen | C20: =IF($A20="","",IF(ISBLANK($A20),"",VLOOKUP($A20,Data!$A$4:$V$155,3,FALSE))) -> . | D20: =IF($A20="","",IF(ISBLANK($A20),"",VLOOKUP($A20,Data!$A$4:$AQ$155,43,FALSE))) -> 4.85 | E20: =IF($A20="","",IF(ISBLANK($A20),"",VLOOKUP($A20,Data!$A$4:$V$155,4,FALSE))) -> 4.03 | F20: =IF($A20="","",IF(ISBLANK($A20),"",VLOOKUP($A20,Data!$A$4:$V$155,5,FALSE))) -> 0.75 | G20: =IF($A20="","",IF(ISBLANK($A20),"",VLOOKUP($A20,Data!$A$4:$AP$155,42,FALSE))) -> 0.61 | H20: =IF($A20="","",IF(ISBLANK($A20),"",VLOOKUP($A20,Data!$A$4:$AS$155,45,FALSE))) -> 0.73 | I20: =IF($A20="","",IF(ISBLANK($A20),"",VLOOKUP($A20,Data!$A$4:$AI$155,35,FALSE))) -> 0.94 | J20: =IF($A20="","",IF(ISBLANK($A20),"",VLOOKUP($A20,Data!$A$4:$AM$155,37,FALSE))) -> 0.4 | K20: =IF($A20="","",IF(ISBLANK($A20),"",VLOOKUP($A20,Data!$A$4:$AM$155,38,FALSE))) -> 0.1 | L20: =IF($A20="","",IF(ISBLANK($A20),"",VLOOKUP($A20,Data!$A$4:$AM$155,39,FALSE))) -> 0.419 | M20: =IF($A20="","",IF(ISBLANK($A20),"",VLOOKUP($A20,Data!$A$4:$AI$155,6,FALSE))) -> 11300 | N20: =IF($A20="","",IF(ISBLANK($A20),"",VLOOKUP($A20,Data!$A$4:$AI$155,7,FALSE))) -> 16 | O20: =IF($A20="","",IF(ISBLANK($A20),"",VLOOKUP($A20,Data!$A$4:$AR$155,44,FALSE))) -> 0.58 | P20: =IF($A20="","",IF(ISBLANK($A20),"",VLOOKUP($A20,Data!$A$4:$AI$155,8,FALSE))) -> 0.42
A21: 890 | B21: =IF($A21="","",IF(ISBLANK($A21),"",INDEX('LEA Nos codes'!$A$3:$A$154,MATCH($A21,'LEA Nos codes'!$B$3:$B$154,0)))) -> Blackpool | C21: =IF($A21="","",IF(ISBLANK($A21),"",VLOOKUP($A21,Data!$A$4:$V$155,3,FALSE))) -> 4.85 | D21: =IF($A21="","",IF(ISBLANK($A21),"",VLOOKUP($A21,Data!$A$4:$AQ$155,43,FALSE))) -> 4.85 | E21: =IF($A21="","",IF(ISBLANK($A21),"",VLOOKUP($A21,Data!$A$4:$V$155,4,FALSE))) -> 3.63 | F21: =IF($A21="","",IF(ISBLANK($A21),"",VLOOKUP($A21,Data!$A$4:$V$155,5,FALSE))) -> 0.78 | G21: =IF($A21="","",IF(ISBLANK($A21),"",VLOOKUP($A21,Data!$A$4:$AP$155,42,FALSE))) -> 0.36 | H21: =IF($A21="","",IF(ISBLANK($A21),"",VLOOKUP($A21,Data!$A$4:$AS$155,45,FALSE))) -> 0.49 | I21: =IF($A21="","",IF(ISBLANK($A21),"",VLOOKUP($A21,Data!$A$4:$AI$155,35,FALSE))) -> 0.95 | J21: =IF($A21="","",IF(ISBLANK($A21),"",VLOOKUP($A21,Data!$A$4:$AM$155,37,FALSE))) -> 0.52 | K21: =IF($A21="","",IF(ISBLANK($A21),"",VLOOKUP($A21,Data!$A$4:$AM$155,38,FALSE))) -> 0.17 | L21: =IF($A21="","",IF(ISBLANK($A21),"",VLOOKUP($A21,Data!$A$4:$AM$155,39,FALSE))) -> 0.33 | M21: =IF($A21="","",IF(ISBLANK($A21),"",VLOOKUP($A21,Data!$A$4:$AI$155,6,FALSE))) -> 8500 | N21: =IF($A21="","",IF(ISBLANK($A21),"",VLOOKUP($A21,Data!$A$4:$AI$155,7,FALSE))) -> 6 | O21: =IF($A21="","",IF(ISBLANK($A21),"",VLOOKUP($A21,Data!$A$4:$AR$155,44,FALSE))) -> 0.57 | P21: =IF($A21="","",IF(ISBLANK($A21),"",VLOOKUP($A21,Data!$A$4:$AI$155,8,FALSE))) -> 0.42
A22: 350 | B22: =IF($A22="","",IF(ISBLANK($A22),"",INDEX('LEA Nos codes'!$A$3:$A$154,MATCH($A22,'LEA Nos codes'!$B$3:$B$154,0)))) -> Bolton | C22: =IF($A22="","",IF(ISBLANK($A22),"",VLOOKUP($A22,Data!$A$4:$V$155,3,FALSE))) -> 4.85 | D22: =IF($A22="","",IF(ISBLANK($A22),"",VLOOKUP($A22,Data!$A$4:$AQ$155,43,FALSE))) -> 4.95 | E22: =IF($A22="","",IF(ISBLANK($A22),"",VLOOKUP($A22,Data!$A$4:$V$155,4,FALSE))) -> 4.25 | F22: =IF($A22="","",IF(ISBLANK($A22),"",VLOOKUP($A22,Data!$A$4:$V$155,5,FALSE))) -> 0.77 | G22: =IF($A22="","",IF(ISBLANK($A22),"",VLOOKUP($A22,Data!$A$4:$AP$155,42,FALSE))) -> 0.37 | H22: =IF($A22="","",IF(ISBLANK($A22),"",VLOOKUP($A22,Data!$A$4:$AS$155,45,FALSE))) -> 0.47 | I22: =IF($A22="","",IF(ISBLANK($A22),"",VLOOKUP($A22,Data!$A$4:$AI$155,35,FALSE))) -> 1 | J22: =IF($A22="","",IF(ISBLANK($A22),"",VLOOKUP($A22,Data!$A$4:$AM$155,37,FALSE))) -> 0.48 | K22: =IF($A22="","",IF(ISBLANK($A22),"",VLOOKUP($A22,Data!$A$4:$AM$155,38,FALSE))) -> 0.19 | L22: =IF($A22="","",IF(ISBLANK($A22),"",VLOOKUP($A22,Data!$A$4:$AM$155,39,FALSE))) -> 0.411 | M22: =IF($A22="","",IF(ISBLANK($A22),"",VLOOKUP($A22,Data!$A$4:$AI$155,6,FALSE))) -> 19300 | N22: =IF($A22="","",IF(ISBLANK($A22),"",VLOOKUP($A22,Data!$A$4:$AI$155,7,FALSE))) -> 31 | O22: =IF($A22="","",IF(ISBLANK($A22),"",VLOOKUP($A22,Data!$A$4:$AR$155,44,FALSE))) -> 0.7 | P22: =IF($A22="","",IF(ISBLANK($A22),"",VLOOKUP($A22,Data!$A$4:$AI$155,8,FALSE))) -> 0.29
A23: 837 | B23: =IF($A23="","",IF(ISBLANK($A23),"",INDEX('LEA Nos codes'!$A$3:$A$154,MATCH($A23,'LEA Nos codes'!$B$3:$B$154,0)))) -> Bournemouth | C23: =IF($A23="","",IF(ISBLANK($A23),"",VLOOKUP($A23,Data!$A$4:$V$155,3,FALSE))) -> 4.85 | D23: =IF($A23="","",IF(ISBLANK($A23),"",VLOOKUP($A23,Data!$A$4:$AQ$155,43,FALSE))) -> 4.88 | E23: =IF($A23="","",IF(ISBLANK($A23),"",VLOOKUP($A23,Data!$A$4:$V$155,4,FALSE))) -> 4.05 | F23: =IF($A23="","",IF(ISBLANK($A23),"",VLOOKUP($A23,Data!$A$4:$V$155,5,FALSE))) -> 0.75 | G23: =IF($A23="","",IF(ISBLANK($A23),"",VLOOKUP($A23,Data!$A$4:$AP$155,42,FALSE))) -> 0.43 | H23: =IF($A23="","",IF(ISBLANK($A23),"",VLOOKUP($A23,Data!$A$4:$AS$155,45,FALSE))) -> 0.48 | I23: =IF($A23="","",IF(ISBLANK($A23),"",VLOOKUP($A23,Data!$A$4:$AI$155,35,FALSE))) -> 0.99 | J23: =IF($A23="","",IF(ISBLANK($A23),"",VLOOKUP($A23,Data!$A$4:$AM$155,37,FALSE))) -> 0.57 | K23: =IF($A23="","",IF(ISBLANK($A23),"",VLOOKUP($A23,Data!$A$4:$AM$155,38,FALSE))) -> 0.18 | L23: =IF($A23="","",IF(ISBLANK($A23),"",VLOOKUP($A23,Data!$A$4:$AM$155,39,FALSE))) -> 0.292 | M23: =IF($A23="","",IF(ISBLANK($A23),"",VLOOKUP($A23,Data!$A$4:$AI$155,6,FALSE))) -> 10900 | N23: =IF($A23="","",IF(ISBLANK($A23),"",VLOOKUP($A23,Data!$A$4:$AI$155,7,FALSE))) -> 72 | O23: =IF($A23="","",IF(ISBLANK($A23),"",VLOOKUP($A23,Data!$A$4:$AR$155,44,FALSE))) -> 0.36 | P23: =IF($A23="","",IF(ISBLANK($A23),"",VLOOKUP($A23,Data!$A$4:$AI$155,8,FALSE))) -> 0.64
A24: 867 | B24: =IF($A24="","",IF(ISBLANK($A24),"",INDEX('LEA Nos codes'!$A$3:$A$154,MATCH($A24,'LEA Nos codes'!$B$3:$B$154,0)))) -> Bracknell Forest | C24: =IF($A24="","",IF(ISBLANK($A24),"",VLOOKUP($A24,Data!$A$4:$V$155,3,FALSE))) -> 5.46 | D24: =IF($A24="","",IF(ISBLANK($A24),"",VLOOKUP($A24,Data!$A$4:$AQ$155,43,FALSE))) -> 5.49 | E24: =IF($A24="","",IF(ISBLANK($A24),"",VLOOKUP($A24,Data!$A$4:$V$155,4,FALSE))) -> 3.85 | F24: =IF($A24="","",IF(ISBLANK($A24),"",VLOOKUP($A24,Data!$A$4:$V$155,5,FALSE))) -> 0.87 | G24: =IF($A24="","",IF(ISBLANK($A24),"",VLOOKUP($A24,Data!$A$4:$AP$155,42,FALSE))) -> 0.27 | H24: =IF($A24="","",IF(ISBLANK($A24),"",VLOOKUP($A24,Data!$A$4:$AS$155,45,FALSE))) -> 0.29 | I24: =IF($A24="","",IF(ISBLANK($A24),"",VLOOKUP($A24,Data!$A$4:$AI$155,35,FALSE))) -> 0.91 | J24: =IF($A24="","",IF(ISBLANK($A24),"",VLOOKUP($A24,Data!$A$4:$AM$155,37,FALSE))) -> 0.58 | K24: =IF($A24="","",IF(ISBLANK($A24),"",VLOOKUP($A24,Data!$A$4:$AM$155,38,FALSE))) -> 0.26 | L24: =IF($A24="","",IF(ISBLANK($A24),"",VLOOKUP($A24,Data!$A$4:$AM$155,39,FALSE))) -> 0.273 | M24: =IF($A24="","",IF(ISBLANK($A24),"",VLOOKUP($A24,Data!$A$4:$AI$155,6,FALSE))) -> 8200 | N24: =IF($A24="","",IF(ISBLANK($A24),"",VLOOKUP($A24,Data!$A$4:$AI$155,7,FALSE))) -> 145 | O24: =IF($A24="","",IF(ISBLANK($A24),"",VLOOKUP($A24,Data!$A$4:$AR$155,44,FALSE))) -> 0.56 | P24: =IF($A24="","",IF(ISBLANK($A24),"",VLOOKUP($A24,Data!$A$4:$AI$155,8,FALSE))) -> 0.43
A25: 380 | B25: =IF($A25="","",IF(ISBLANK($A25),"",INDEX('LEA Nos codes'!$A$3:$A$154,MATCH($A25,'LEA Nos codes'!$B$3:$B$154,0)))) -> Bradford | C25: =IF($A25="","",IF(ISBLANK($A25),"",VLOOKUP($A25,Data!$A$4:$V$155,3,FALSE))) -> . | D25: =IF($A25="","",IF(ISBLANK($A25),"",VLOOKUP($A25,Data!$A$4:$AQ$155,43,FALSE))) -> 4.85 | E25: =IF($A25="","",IF(ISBLANK($A25),"",VLOOKUP($A25,Data!$A$4:$V$155,4,FALSE))) -> 5.18 | F25: =IF($A25="","",IF(ISBLANK($A25),"",VLOOKUP($A25,Data!$A$4:$V$155,5,FALSE))) -> 0.71 | G25: =IF($A25="","",IF(ISBLANK($A25),"",VLOOKUP($A25,Data!$A$4:$AP$155,42,FALSE))) -> 0.46 | H25: =IF($A25="","",IF(ISBLANK($A25),"",VLOOKUP($A25,Data!$A$4:$AS$155,45,FALSE))) -> 0.54 | I25: =IF($A25="","",IF(ISBLANK($A25),"",VLOOKUP($A25,Data!$A$4:$AI$155,35,FALSE))) -> 0.95 | J25: =IF($A25="","",IF(ISBLANK($A25),"",VLOOKUP($A25,Data!$A$4:$AM$155,37,FALSE))) -> 0.49 | K25: =IF($A25="","",IF(ISBLANK($A25),"",VLOOKUP($A25,Data!$A$4:$AM$155,38,FALSE))) -> 0.16 | L25: =IF($A25="","",IF(ISBLANK($A25),"",VLOOKUP($A25,Data!$A$4:$AM$155,39,FALSE))) -> 0.426 | M25: =IF($A25="","",IF(ISBLANK($A25),"",VLOOKUP($A25,Data!$A$4:$AI$155,6,FALSE))) -> 41400 | N25: =IF($A25="","",IF(ISBLANK($A25),"",VLOOKUP($A25,Data!$A$4:$AI$155,7,FALSE))) -> 24 | O25: =IF($A25="","",IF(ISBLANK($A25),"",VLOOKUP($A25,Data!$A$4:$AR$155,44,FALSE))) -> 0.77 | P25: =IF($A25="","",IF(ISBLANK($A25),"",VLOOKUP($A25,Data!$A$4:$AI$155,8,FALSE))) -> 0.22
A26: 304 | B26: =IF($A26="","",IF(ISBLANK($A26),"",INDEX('LEA Nos codes'!$A$3:$A$154,MATCH($A26,'LEA Nos codes'!$B$3:$B$154,0)))) -> Brent | C26: =IF($A26="","",IF(ISBLANK($A26),"",VLOOKUP($A26,Data!$A$4:$V$155,3,FALSE))) -> 6 | D26: =IF($A26="","",IF(ISBLANK($A26),"",VLOOKUP($A26,Data!$A$4:$AQ$155,43,FALSE))) -> 5.53 | E26: =IF($A26="","",IF(ISBLANK($A26),"",VLOOKUP($A26,Data!$A$4:$V$155,4,FALSE))) -> 4.51 | F26: =IF($A26="","",IF(ISBLANK($A26),"",VLOOKUP($A26,Data!$A$4:$V$155,5,FALSE))) -> 0.64 | G26: =IF($A26="","",IF(ISBLANK($A26),"",VLOOKUP($A26,Data!$A$4:$AP$155,42,FALSE))) -> 0.54 | H26: =IF($A26="","",IF(ISBLANK($A26),"",VLOOKUP($A26,Data!$A$4:$AS$155,45,FALSE))) -> 0.53 | I26: =IF($A26="","",IF(ISBLANK($A26),"",VLOOKUP($A26,Data!$A$4:$AI$155,35,FALSE))) -> 0.89 | J26: =IF($A26="","",IF(ISBLANK($A26),"",VLOOKUP($A26,Data!$A$4:$AM$155,37,FALSE))) -> 0.56 | K26: =IF($A26="","",IF(ISBLANK($A26),"",VLOOKUP($A26,Data!$A$4:$AM$155,38,FALSE))) -> 0.04 | L26: =IF($A26="","",IF(ISBLANK($A26),"",VLOOKUP($A26,Data!$A$4:$AM$155,39,FALSE))) -> 0.335 | M26: =IF($A26="","",IF(ISBLANK($A26),"",VLOOKUP($A26,Data!$A$4:$AI$155,6,FALSE))) -> 23200 | N26: =IF($A26="","",IF(ISBLANK($A26),"",VLOOKUP($A26,Data!$A$4:$AI$155,7,FALSE))) -> 30 | O26: =IF($A26="","",IF(ISBLANK($A26),"",VLOOKUP($A26,Data!$A$4:$AR$155,44,FALSE))) -> 0.66 | P26: =IF($A26="","",IF(ISBLANK($A26),"",VLOOKUP($A26,Data!$A$4:$AI$155,8,FALSE))) -> 0.32
A27: 846 | B27: =IF($A27="","",IF(ISBLANK($A27),"",INDEX('LEA Nos codes'!$A$3:$A$154,MATCH($A27,'LEA Nos codes'!$B$3:$B$154,0)))) -> Brighton and Hove | C27: =IF($A27="","",IF(ISBLANK($A27),"",VLOOKUP($A27,Data!$A$4:$V$155,3,FALSE))) -> 6.23 | D27: =IF($A27="","",IF(ISBLANK($A27),"",VLOOKUP($A27,Data!$A$4:$AQ$155,43,FALSE))) -> 4.85 | E27: =IF($A27="","",IF(ISBLANK($A27),"",VLOOKUP($A27,Data!$A$4:$V$155,4,FALSE))) -> 4.15 | F27: =IF($A27="","",IF(ISBLANK($A27),"",VLOOKUP($A27,Data!$A$4:$V$155,5,FALSE))) -> 0.87 | G27: =IF($A27="","",IF(ISBLANK($A27),"",VLOOKUP($A27,Data!$A$4:$AP$155,42,FALSE))) -> 0.59 | H27: =IF($A27="","",IF(ISBLANK($A27),"",VLOOKUP($A27,Data!$A$4:$AS$155,45,FALSE))) -> 0.65 | I27: =IF($A27="","",IF(ISBLANK($A27),"",VLOOKUP($A27,Data!$A$4:$AI$155,35,FALSE))) -> 1.03 | J27: =IF($A27="","",IF(ISBLANK($A27),"",VLOOKUP($A27,Data!$A$4:$AM$155,37,FALSE))) -> 0.45 | K27: =IF($A27="","",IF(ISBLANK($A27),"",VLOOKUP($A27,Data!$A$4:$AM$155,38,FALSE))) -> 0.22 | L27: =IF($A27="","",IF(ISBLANK($A27),"",VLOOKUP($A27,Data!$A$4:$AM$155,39,FALSE))) -> 0.326 | M27: =IF($A27="","",IF(ISBLANK($A27),"",VLOOKUP($A27,Data!$A$4:$AI$155,6,FALSE))) -> 15300 | N27: =IF($A27="","",IF(ISBLANK($A27),"",VLOOKUP($A27,Data!$A$4:$AI$155,7,FALSE))) -> 53 | O27: =IF($A27="","",IF(ISBLANK($A27),"",VLOOKUP($A27,Data!$A$4:$AR$155,44,FALSE))) -> 0.46 | P27: =IF($A27="","",IF(ISBLANK($A27),"",VLOOKUP($A27,Data!$A$4:$AI$155,8,FALSE))) -> 0.54
A28: 305 | B28: =IF($A28="","",IF(ISBLANK($A28),"",INDEX('LEA Nos codes'!$A$3:$A$154,MATCH($A28,'LEA Nos codes'!$B$3:$B$154,0)))) -> Bromley | C28: =IF($A28="","",IF(ISBLANK($A28),"",VLOOKUP($A28,Data!$A$4:$V$155,3,FALSE))) -> 6.38 | D28: =IF($A28="","",IF(ISBLANK($A28),"",VLOOKUP($A28,Data!$A$4:$AQ$155,43,FALSE))) -> 5.28 | E28: =IF($A28="","",IF(ISBLANK($A28),"",VLOOKUP($A28,Data!$A$4:$V$155,4,FALSE))) -> 4.03 | F28: =IF($A28="","",IF(ISBLANK($A28),"",VLOOKUP($A28,Data!$A$4:$V$155,5,FALSE))) -> 0.89 | G28: =IF($A28="","",IF(ISBLANK($A28),"",VLOOKUP($A28,Data!$A$4:$AP$155,42,FALSE))) -> 0.42 | H28: =IF($A28="","",IF(ISBLANK($A28),"",VLOOKUP($A28,Data!$A$4:$AS$155,45,FALSE))) -> 0.49 | I28: =IF($A28="","",IF(ISBLANK($A28),"",VLOOKUP($A28,Data!$A$4:$AI$155,35,FALSE))) -> 0.99 | J28: =IF($A28="","",IF(ISBLANK($A28),"",VLOOKUP($A28,Data!$A$4:$AM$155,37,FALSE))) -> 0.61 | K28: =IF($A28="","",IF(ISBLANK($A28),"",VLOOKUP($A28,Data!$A$4:$AM$155,38,FALSE))) -> 0.25 | L28: =IF($A28="","",IF(ISBLANK($A28),"",VLOOKUP($A28,Data!$A$4:$AM$155,39,FALSE))) -> 0.313 | M28: =IF($A28="","",IF(ISBLANK($A28),"",VLOOKUP($A28,Data!$A$4:$AI$155,6,FALSE))) -> 20800 | N28: =IF($A28="","",IF(ISBLANK($A28),"",VLOOKUP($A28,Data!$A$4:$AI$155,7,FALSE))) -> 123 | O28: =IF($A28="","",IF(ISBLANK($A28),"",VLOOKUP($A28,Data!$A$4:$AR$155,44,FALSE))) -> 0.39 | P28: =IF($A28="","",IF(ISBLANK($A28),"",VLOOKUP($A28,Data!$A$4:$AI$155,8,FALSE))) -> 0.61
A29: 825 | B29: =IF($A29="","",IF(ISBLANK($A29),"",INDEX('LEA Nos codes'!$A$3:$A$154,MATCH($A29,'LEA Nos codes'!$B$3:$B$154,0)))) -> Buckinghamshire | C29: =IF($A29="","",IF(ISBLANK($A29),"",VLOOKUP($A29,Data!$A$4:$V$155,3,FALSE))) -> 5.31 | D29: =IF($A29="","",IF(ISBLANK($A29),"",VLOOKUP($A29,Data!$A$4:$AQ$155,43,FALSE))) -> 5.33 | E29: =IF($A29="","",IF(ISBLANK($A29),"",VLOOKUP($A29,Data!$A$4:$V$155,4,FALSE))) -> 4.21 | F29: =IF($A29="","",IF(ISBLANK($A29),"",VLOOKUP($A29,Data!$A$4:$V$155,5,FALSE))) -> 0.81 | G29: =IF($A29="","",IF(ISBLANK($A29),"",VLOOKUP($A29,Data!$A$4:$AP$155,42,FALSE))) -> 0.4 | H29: =IF($A29="","",IF(ISBLANK($A29),"",VLOOKUP($A29,Data!$A$4:$AS$155,45,FALSE))) -> 0.41 | I29: =IF($A29="","",IF(ISBLANK($A29),"",VLOOKUP($A29,Data!$A$4:$AI$155,35,FALSE))) -> 0.96 | J29: =IF($A29="","",IF(ISBLANK($A29),"",VLOOKUP($A29,Data!$A$4:$AM$155,37,FALSE))) -> 0.55 | K29: =IF($A29="","",IF(ISBLANK($A29),"",VLOOKUP($A29,Data!$A$4:$AM$155,38,FALSE))) -> 0.25 | L29: =IF($A29="","",IF(ISBLANK($A29),"",VLOOKUP($A29,Data!$A$4:$AM$155,39,FALSE))) -> 0.326 | M29: =IF($A29="","",IF(ISBLANK($A29),"",VLOOKUP($A29,Data!$A$4:$AI$155,6,FALSE))) -> 32700 | N29: =IF($A29="","",IF(ISBLANK($A29),"",VLOOKUP($A29,Data!$A$4:$AI$155,7,FALSE))) -> 142 | O29: =IF($A29="","",IF(ISBLANK($A29),"",VLOOKUP($A29,Data!$A$4:$AR$155,44,FALSE))) -> 0.48 | P29: =IF($A29="","",IF(ISBLANK($A29),"",VLOOKUP($A29,Data!$A$4:$AI$155,8,FALSE))) -> 0.51
A30: 351 | B30: =IF($A30="","",IF(ISBLANK($A30),"",INDEX('LEA Nos codes'!$A$3:$A$154,MATCH($A30,'LEA Nos codes'!$B$3:$B$154,0)))) -> Bury | C30: =IF($A30="","",IF(ISBLANK($A30),"",VLOOKUP($A30,Data!$A$4:$V$155,3,FALSE))) -> 6.79 | D30: =IF($A30="","",IF(ISBLANK($A30),"",VLOOKUP($A30,Data!$A$4:$AQ$155,43,FALSE))) -> 4.95 | E30: =IF($A30="","",IF(ISBLANK($A30),"",VLOOKUP($A30,Data!$A$4:$V$155,4,FALSE))) -> 3.61 | F30: =IF($A30="","",IF(ISBLANK($A30),"",VLOOKUP($A30,Data!$A$4:$V$155,5,FALSE))) -> 0.61 | G30: =IF($A30="","",IF(ISBLANK($A30),"",VLOOKUP($A30,Data!$A$4:$AP$155,42,FALSE))) -> 0.46 | H30: =IF($A30="","",IF(ISBLANK($A30),"",VLOOKUP($A30,Data!$A$4:$AS$155,45,FALSE))) -> 0.52 | I30: =IF($A30="","",IF(ISBLANK($A30),"",VLOOKUP($A30,Data!$A$4:$AI$155,35,FALSE))) -> 0.96 | J30: =IF($A30="","",IF(ISBLANK($A30),"",VLOOKUP($A30,Data!$A$4:$AM$155,37,FALSE))) -> 0.51 | K30: =IF($A30="","",IF(ISBLANK($A30),"",VLOOKUP($A30,Data!$A$4:$AM$155,38,FALSE))) -> 0.24 | L30: =IF($A30="","",IF(ISBLANK($A30),"",VLOOKUP($A30,Data!$A$4:$AM$155,39,FALSE))) -> 0.387 | M30: =IF($A30="","",IF(ISBLANK($A30),"",VLOOKUP($A30,Data!$A$4:$AI$155,6,FALSE))) -> 12600 | N30: =IF($A30="","",IF(ISBLANK($A30),"",VLOOKUP($A30,Data!$A$4:$AI$155,7,FALSE))) -> 81 | O30: =IF($A30="","",IF(ISBLANK($A30),"",VLOOKUP($A30,Data!$A$4:$AR$155,44,FALSE))) -> 0.66 | P30: =IF($A30="","",IF(ISBLANK($A30),"",VLOOKUP($A30,Data!$A$4:$AI$155,8,FALSE))) -> 0.33
A31: 381 | B31: =IF($A31="","",IF(ISBLANK($A31),"",INDEX('LEA Nos codes'!$A$3:$A$154,MATCH($A31,'LEA Nos codes'!$B$3:$B$154,0)))) -> Calderdale | C31: =IF($A31="","",IF(ISBLANK($A31),"",VLOOKUP($A31,Data!$A$4:$V$155,3,FALSE))) -> 5.19 | D31: =IF($A31="","",IF(ISBLANK($A31),"",VLOOKUP($A31,Data!$A$4:$AQ$155,43,FALSE))) -> 4.85 | E31: =IF($A31="","",IF(ISBLANK($A31),"",VLOOKUP($A31,Data!$A$4:$V$155,4,FALSE))) -> 4.02 | F31: =IF($A31="","",IF(ISBLANK($A31),"",VLOOKUP($A31,Data!$A$4:$V$155,5,FALSE))) -> 0.69 | G31: =IF($A31="","",IF(ISBLANK($A31),"",VLOOKUP($A31,Data!$A$4:$AP$155,42,FALSE))) -> 0.01 | H31: =IF($A31="","",IF(ISBLANK($A31),"",VLOOKUP($A31,Data!$A$4:$AS$155,45,FALSE))) -> 0.01 | I31: =IF($A31="","",IF(ISBLANK($A31),"",VLOOKUP($A31,Data!$A$4:$AI$155,35,FALSE))) -> 1.03 | J31: =IF($A31="","",IF(ISBLANK($A31),"",VLOOKUP($A31,Data!$A$4:$AM$155,37,FALSE))) -> 0.45 | K31: =IF($A31="","",IF(ISBLANK($A31),"",VLOOKUP($A31,Data!$A$4:$AM$155,38,FALSE))) -> 0.2 | L31: =IF($A31="","",IF(ISBLANK($A31),"",VLOOKUP($A31,Data!$A$4:$AM$155,39,FALSE))) -> 0.368 | M31: =IF($A31="","",IF(ISBLANK($A31),"",VLOOKUP($A31,Data!$A$4:$AI$155,6,FALSE))) -> 13100 | N31: =IF($A31="","",IF(ISBLANK($A31),"",VLOOKUP($A31,Data!$A$4:$AI$155,7,FALSE))) -> 75 | O31: =IF($A31="","",IF(ISBLANK($A31),"",VLOOKUP($A31,Data!$A$4:$AR$155,44,FALSE))) -> 0.6 | P31: =IF($A31="","",IF(ISBLANK($A31),"",VLOOKUP($A31,Data!$A$4:$AI$155,8,FALSE))) -> 0.4
A32: 873 | B32: =IF($A32="","",IF(ISBLANK($A32),"",INDEX('LEA Nos codes'!$A$3:$A$154,MATCH($A32,'LEA Nos codes'!$B$3:$B$154,0)))) -> Cambridgeshire | C32: =IF($A32="","",IF(ISBLANK($A32),"",VLOOKUP($A32,Data!$A$4:$V$155,3,FALSE))) -> 5.36 | D32: =IF($A32="","",IF(ISBLANK($A32),"",VLOOKUP($A32,Data!$A$4:$AQ$155,43,FALSE))) -> 5.05 | E32: =IF($A32="","",IF(ISBLANK($A32),"",VLOOKUP($A32,Data!$A$4:$V$155,4,FALSE))) -> 4.25 | F32: =IF($A32="","",IF(ISBLANK($A32),"",VLOOKUP($A32,Data!$A$4:$V$155,5,FALSE))) -> 0.79 | G32: =IF($A32="","",IF(ISBLANK($A32),"",VLOOKUP($A32,Data!$A$4:$AP$155,42,FALSE))) -> 0.31 | H32: =IF($A32="","",IF(ISBLANK($A32),"",VLOOKUP($A32,Data!$A$4:$AS$155,45,FALSE))) -> 0.31 | I32: =IF($A32="","",IF(ISBLANK($A32),"",VLOOKUP($A32,Data!$A$4:$AI$155,35,FALSE))) -> 0.95 | J32: =IF($A32="","",IF(ISBLANK($A32),"",VLOOKUP($A32,Data!$A$4:$AM$155,37,FALSE))) -> 0.51 | K32: =IF($A32="","",IF(ISBLANK($A32),"",VLOOKUP($A32,Data!$A$4:$AM$155,38,FALSE))) -> 0.22 | L32: =IF($A32="","",IF(ISBLANK($A32),"",VLOOKUP($A32,Data!$A$4:$AM$155,39,FALSE))) -> 0.339 | M32: =IF($A32="","",IF(ISBLANK($A32),"",VLOOKUP($A32,Data!$A$4:$AI$155,6,FALSE))) -> 37800 | N32: =IF($A32="","",IF(ISBLANK($A32),"",VLOOKUP($A32,Data!$A$4:$AI$155,7,FALSE))) -> 132 | O32: =IF($A32="","",IF(ISBLANK($A32),"",VLOOKUP($A32,Data!$A$4:$AR$155,44,FALSE))) -> 0.45 | P32: =IF($A32="","",IF(ISBLANK($A32),"",VLOOKUP($A32,Data!$A$4:$AI$155,8,FALSE))) -> 0.55
A33: 202 | B33: =IF($A33="","",IF(ISBLANK($A33),"",INDEX('LEA Nos codes'!$A$3:$A$154,MATCH($A33,'LEA Nos codes'!$B$3:$B$154,0)))) -> Camden | C33: =IF($A33="","",IF(ISBLANK($A33),"",VLOOKUP($A33,Data!$A$4:$V$155,3,FALSE))) -> 9.1 | D33: =IF($A33="","",IF(ISBLANK($A33),"",VLOOKUP($A33,Data!$A$4:$AQ$155,43,FALSE))) -> 6.07 | E33: =IF($A33="","",IF(ISBLANK($A33),"",VLOOKUP($A33,Data!$A$4:$V$155,4,FALSE))) -> 6.27 | F33: =IF($A33="","",IF(ISBLANK($A33),"",VLOOKUP($A33,Data!$A$4:$V$155,5,FALSE))) -> 0.73 | G33: =IF($A33="","",IF(ISBLANK($A33),"",VLOOKUP($A33,Data!$A$4:$AP$155,42,FALSE))) -> 0.64 | H33: =IF($A33="","",IF(ISBLANK($A33),"",VLOOKUP($A33,Data!$A$4:$AS$155,45,FALSE))) -> 0.74 | I33: =IF($A33="","",IF(ISBLANK($A33),"",VLOOKUP($A33,Data!$A$4:$AI$155,35,FALSE))) -> 0.82 | J33: =IF($A33="","",IF(ISBLANK($A33),"",VLOOKUP($A33,Data!$A$4:$AM$155,37,FALSE))) -> 0.47 | K33: =IF($A33="","",IF(ISBLANK($A33),"",VLOOKUP($A33,Data!$A$4:$AM$155,38,FALSE))) -> 0.19 | L33: =IF($A33="","",IF(ISBLANK($A33),"",VLOOKUP($A33,Data!$A$4:$AM$155,39,FALSE))) -> 0.368 | M33: =IF($A33="","",IF(ISBLANK($A33),"",VLOOKUP($A33,Data!$A$4:$AI$155,6,FALSE))) -> 13800 | N33: =IF($A33="","",IF(ISBLANK($A33),"",VLOOKUP($A33,Data!$A$4:$AI$155,7,FALSE))) -> 59 | O33: =IF($A33="","",IF(ISBLANK($A33),"",VLOOKUP($A33,Data!$A$4:$AR$155,44,FALSE))) -> 0.55 | P33: =IF($A33="","",IF(ISBLANK($A33),"",VLOOKUP($A33,Data!$A$4:$AI$155,8,FALSE))) -> 0.44
A34: 823 | B34: =IF($A34="","",IF(ISBLANK($A34),"",INDEX('LEA Nos codes'!$A$3:$A$154,MATCH($A34,'LEA Nos codes'!$B$3:$B$154,0)))) -> Central Bedfordshire | C34: =IF($A34="","",IF(ISBLANK($A34),"",VLOOKUP($A34,Data!$A$4:$V$155,3,FALSE))) -> . | D34: =IF($A34="","",IF(ISBLANK($A34),"",VLOOKUP($A34,Data!$A$4:$AQ$155,43,FALSE))) -> 5.03 | E34: =IF($A34="","",IF(ISBLANK($A34),"",VLOOKUP($A34,Data!$A$4:$V$155,4,FALSE))) -> 4.04 | F34: =IF($A34="","",IF(ISBLANK($A34),"",VLOOKUP($A34,Data!$A$4:$V$155,5,FALSE))) -> 0.85 | G34: =IF($A34="","",IF(ISBLANK($A34),"",VLOOKUP($A34,Data!$A$4:$AP$155,42,FALSE))) -> 0.38 | H34: =IF($A34="","",IF(ISBLANK($A34),"",VLOOKUP($A34,Data!$A$4:$AS$155,45,FALSE))) -> 0.4 | I34: =IF($A34="","",IF(ISBLANK($A34),"",VLOOKUP($A34,Data!$A$4:$AI$155,35,FALSE))) -> 1.01 | J34: =IF($A34="","",IF(ISBLANK($A34),"",VLOOKUP($A34,Data!$A$4:$AM$155,37,FALSE))) -> 0.49 | K34: =IF($A34="","",IF(ISBLANK($A34),"",VLOOKUP($A34,Data!$A$4:$AM$155,38,FALSE))) -> 0.23 | L34: =IF($A34="","",IF(ISBLANK($A34),"",VLOOKUP($A34,Data!$A$4:$AM$155,39,FALSE))) -> 0.295 | M34: =IF($A34="","",IF(ISBLANK($A34),"",VLOOKUP($A34,Data!$A$4:$AI$155,6,FALSE))) -> 16600 | N34: =IF($A34="","",IF(ISBLANK($A34),"",VLOOKUP($A34,Data!$A$4:$AI$155,7,FALSE))) -> 130 | O34: =IF($A34="","",IF(ISBLANK($A34),"",VLOOKUP($A34,Data!$A$4:$AR$155,44,FALSE))) -> 0.58 | P34: =IF($A34="","",IF(ISBLANK($A34),"",VLOOKUP($A34,Data!$A$4:$AI$155,8,FALSE))) -> 0.42
A35: 895 | B35: =IF($A35="","",IF(ISBLANK($A35),"",INDEX('LEA Nos codes'!$A$3:$A$154,MATCH($A35,'LEA Nos codes'!$B$3:$B$154,0)))) -> Cheshire East | C35: =IF($A35="","",IF(ISBLANK($A35),"",VLOOKUP($A35,Data!$A$4:$V$155,3,FALSE))) -> 4.85 | D35: =IF($A35="","",IF(ISBLANK($A35),"",VLOOKUP($A35,Data!$A$4:$AQ$155,43,FALSE))) -> 4.93 | E35: =IF($A35="","",IF(ISBLANK($A35),"",VLOOKUP($A35,Data!$A$4:$V$155,4,FALSE))) -> 3.66 | F35: =IF($A35="","",IF(ISBLANK($A35),"",VLOOKUP($A35,Data!$A$4:$V$155,5,FALSE))) -> 0.76 | G35: =IF($A35="","",IF(ISBLANK($A35),"",VLOOKUP($A35,Data!$A$4:$AP$155,42,FALSE))) -> 0.54 | H35: =IF($A35="","",IF(ISBLANK($A35),"",VLOOKUP($A35,Data!$A$4:$AS$155,45,FALSE))) -> 0.56 | I35: =IF($A35="","",IF(ISBLANK($A35),"",VLOOKUP($A35,Data!$A$4:$AI$155,35,FALSE))) -> 1.04 | J35: =IF($A35="","",IF(ISBLANK($A35),"",VLOOKUP($A35,Data!$A$4:$AM$155,37,FALSE))) -> 0.56 | K35: =IF($A35="","",IF(ISBLANK($A35),"",VLOOKUP($A35,Data!$A$4:$AM$155,38,FALSE))) -> 0.23 | L35: =IF($A35="","",IF(ISBLANK($A35),"",VLOOKUP($A35,Data!$A$4:$AM$155,39,FALSE))) -> 0.35 | M35: =IF($A35="","",IF(ISBLANK($A35),"",VLOOKUP($A35,Data!$A$4:$AI$155,6,FALSE))) -> 20400 | N35: =IF($A35="","",IF(ISBLANK($A35),"",VLOOKUP($A35,Data!$A$4:$AI$155,7,FALSE))) -> 121 | O35: =IF($A35="","",IF(ISBLANK($A35),"",VLOOKUP($A35,Data!$A$4:$AR$155,44,FALSE))) -> 0.43 | P35: =IF($A35="","",IF(ISBLANK($A35),"",VLOOKUP($A35,Data!$A$4:$AI$155,8,FALSE))) -> 0.57
A36: 896 | B36: =IF($A36="","",IF(ISBLANK($A36),"",INDEX('LEA Nos codes'!$A$3:$A$154,MATCH($A36,'LEA Nos codes'!$B$3:$B$154,0)))) -> Cheshire West and Chester | C36: =IF($A36="","",IF(ISBLANK($A36),"",VLOOKUP($A36,Data!$A$4:$V$155,3,FALSE))) -> 4.85 | D36: =IF($A36="","",IF(ISBLANK($A36),"",VLOOKUP($A36,Data!$A$4:$AQ$155,43,FALSE))) -> 4.93 | E36: =IF($A36="","",IF(ISBLANK($A36),"",VLOOKUP($A36,Data!$A$4:$V$155,4,FALSE))) -> 3.83 | F36: =IF($A36="","",IF(ISBLANK($A36),"",VLOOKUP($A36,Data!$A$4:$V$155,5,FALSE))) -> 0.74 | G36: =IF($A36="","",IF(ISBLANK($A36),"",VLOOKUP($A36,Data!$A$4:$AP$155,42,FALSE))) -> 0.5 | H36: =IF($A36="","",IF(ISBLANK($A36),"",VLOOKUP($A36,Data!$A$4:$AS$155,45,FALSE))) -> 0.6 | I36: =IF($A36="","",IF(ISBLANK($A36),"",VLOOKUP($A36,Data!$A$4:$AI$155,35,FALSE))) -> 1.05 | J36: =IF($A36="","",IF(ISBLANK($A36),"",VLOOKUP($A36,Data!$A$4:$AM$155,37,FALSE))) -> 0.52 | K36: =IF($A36="","",IF(ISBLANK($A36),"",VLOOKUP($A36,Data!$A$4:$AM$155,38,FALSE))) -> 0.25 | L36: =IF($A36="","",IF(ISBLANK($A36),"",VLOOKUP($A36,Data!$A$4:$AM$155,39,FALSE))) -> 0.32 | M36: =IF($A36="","",IF(ISBLANK($A36),"",VLOOKUP($A36,Data!$A$4:$AI$155,6,FALSE))) -> 18300 | N36: =IF($A36="","",IF(ISBLANK($A36),"",VLOOKUP($A36,Data!$A$4:$AI$155,7,FALSE))) -> 121 | O36: =IF($A36="","",IF(ISBLANK($A36),"",VLOOKUP($A36,Data!$A$4:$AR$155,44,FALSE))) -> 0.48 | P36: =IF($A36="","",IF(ISBLANK($A36),"",VLOOKUP($A36,Data!$A$4:$AI$155,8,FALSE))) -> 0.51
A37: 801 | B37: =IF($A37="","",IF(ISBLANK($A37),"",INDEX('LEA Nos codes'!$A$3:$A$154,MATCH($A37,'LEA Nos codes'!$B$3:$B$154,0)))) -> City of Bristol | C37: =IF($A37="","",IF(ISBLANK($A37),"",VLOOKUP($A37,Data!$A$4:$V$155,3,FALSE))) -> 5.03 | D37: =IF($A37="","",IF(ISBLANK($A37),"",VLOOKUP($A37,Data!$A$4:$AQ$155,43,FALSE))) -> 5.07 | E37: =IF($A37="","",IF(ISBLANK($A37),"",VLOOKUP($A37,Data!$A$4:$V$155,4,FALSE))) -> 4.62 | F37: =IF($A37="","",IF(ISBLANK($A37),"",VLOOKUP($A37,Data!$A$4:$V$155,5,FALSE))) -> 0.68 | G37: =IF($A37="","",IF(ISBLANK($A37),"",VLOOKUP($A37,Data!$A$4:$AP$155,42,FALSE))) -> 0.73 | H37: =IF($A37="","",IF(ISBLANK($A37),"",VLOOKUP($A37,Data!$A$4:$AS$155,45,FALSE))) -> 0.78 | I37: =IF($A37="","",IF(ISBLANK($A37),"",VLOOKUP($A37,Data!$A$4:$AI$155,35,FALSE))) -> 0.92 | J37: =IF($A37="","",IF(ISBLANK($A37),"",VLOOKUP($A37,Data!$A$4:$AM$155,37,FALSE))) -> 0.5 | K37: =IF($A37="","",IF(ISBLANK($A37),"",VLOOKUP($A37,Data!$A$4:$AM$155,38,FALSE))) -> 0.21 | L37: =IF($A37="","",IF(ISBLANK($A37),"",VLOOKUP($A37,Data!$A$4:$AM$155,39,FALSE))) -> 0.386 | M37: =IF($A37="","",IF(ISBLANK($A37),"",VLOOKUP($A37,Data!$A$4:$AI$155,6,FALSE))) -> 30700 | N37: =IF($A37="","",IF(ISBLANK($A37),"",VLOOKUP($A37,Data!$A$4:$AI$155,7,FALSE))) -> 63 | O37: =IF($A37="","",IF(ISBLANK($A37),"",VLOOKUP($A37,Data!$A$4:$AR$155,44,FALSE))) -> 0.64 | P37: =IF($A37="","",IF(ISBLANK($A37),"",VLOOKUP($A37,Data!$A$4:$AI$155,8,FALSE))) -> 0.35
A38: 810 | B38: =IF($A38="","",IF(ISBLANK($A38),"",INDEX('LEA Nos codes'!$A$3:$A$154,MATCH($A38,'LEA Nos codes'!$B$3:$B$154,0)))) -> City of Kingston Upon Hull | C38: =IF($A38="","",IF(ISBLANK($A38),"",VLOOKUP($A38,Data!$A$4:$V$155,3,FALSE))) -> . | D38: =IF($A38="","",IF(ISBLANK($A38),"",VLOOKUP($A38,Data!$A$4:$AQ$155,43,FALSE))) -> 4.85 | E38: =IF($A38="","",IF(ISBLANK($A38),"",VLOOKUP($A38,Data!$A$4:$V$155,4,FALSE))) -> 3.66 | F38: =IF($A38="","",IF(ISBLANK($A38),"",VLOOKUP($A38,Data!$A$4:$V$155,5,FALSE))) -> 0.79 | G38: =IF($A38="","",IF(ISBLANK($A38),"",VLOOKUP($A38,Data!$A$4:$AP$155,42,FALSE))) -> 0.11 | H38: =IF($A38="","",IF(ISBLANK($A38),"",VLOOKUP($A38,Data!$A$4:$AS$155,45,FALSE))) -> 0.15 | I38: =IF($A38="","",IF(ISBLANK($A38),"",VLOOKUP($A38,Data!$A$4:$AI$155,35,FALSE))) -> 0.96 | J38: =IF($A38="","",IF(ISBLANK($A38),"",VLOOKUP($A38,Data!$A$4:$AM$155,37,FALSE))) -> 0.42 | K38: =IF($A38="","",IF(ISBLANK($A38),"",VLOOKUP($A38,Data!$A$4:$AM$155,38,FALSE))) -> 0.1 | L38: =IF($A38="","",IF(ISBLANK($A38),"",VLOOKUP($A38,Data!$A$4:$AM$155,39,FALSE))) -> 0.408 | M38: =IF($A38="","",IF(ISBLANK($A38),"",VLOOKUP($A38,Data!$A$4:$AI$155,6,FALSE))) -> 17800 | N38: =IF($A38="","",IF(ISBLANK($A38),"",VLOOKUP($A38,Data!$A$4:$AI$155,7,FALSE))) -> 10 | O38: =IF($A38="","",IF(ISBLANK($A38),"",VLOOKUP($A38,Data!$A$4:$AR$155,44,FALSE))) -> 0.75 | P38: =IF($A38="","",IF(ISBLANK($A38),"",VLOOKUP($A38,Data!$A$4:$AI$155,8,FALSE))) -> 0.25
A39: 201 | B39: =IF($A39="","",IF(ISBLANK($A39),"",INDEX('LEA Nos codes'!$A$3:$A$154,MATCH($A39,'LEA Nos codes'!$B$3:$B$154,0)))) -> City of London | C39: =IF($A39="","",IF(ISBLANK($A39),"",VLOOKUP($A39,Data!$A$4:$V$155,3,FALSE))) -> . | D39: =IF($A39="","",IF(ISBLANK($A39),"",VLOOKUP($A39,Data!$A$4:$AQ$155,43,FALSE))) -> 7.08 | E39: =IF($A39="","",IF(ISBLANK($A39),"",VLOOKUP($A39,Data!$A$4:$V$155,4,FALSE))) -> 5.78 | F39: =IF($A39="","",IF(ISBLANK($A39),"",VLOOKUP($A39,Data!$A$4:$V$155,5,FALSE))) -> 1 | G39: =IF($A39="","",IF(ISBLANK($A39),"",VLOOKUP($A39,Data!$A$4:$AP$155,42,FALSE))) -> 0 | H39: =IF($A39="","",IF(ISBLANK($A39),"",VLOOKUP($A39,Data!$A$4:$AS$155,45,FALSE))) -> 0 | I39: =IF($A39="","",IF(ISBLANK($A39),"",VLOOKUP($A39,Data!$A$4:$AI$155,35,FALSE))) -> 1.15 | J39: =IF($A39="","",IF(ISBLANK($A39),"",VLOOKUP($A39,Data!$A$4:$AM$155,37,FALSE))) -> 0.64 | K39: =IF($A39="","",IF(ISBLANK($A39),"",VLOOKUP($A39,Data!$A$4:$AM$155,38,FALSE))) -> 0.25 | L39: =IF($A39="","",IF(ISBLANK($A39),"",VLOOKUP($A39,Data!$A$4:$AM$155,39,FALSE))) -> 0.361 | M39: =IF($A39="","",IF(ISBLANK($A39),"",VLOOKUP($A39,Data!$A$4:$AI$155,6,FALSE))) -> 300 | N39: =IF($A39="","",IF(ISBLANK($A39),"",VLOOKUP($A39,Data!$A$4:$AI$155,7,FALSE))) -> 140 | O39: =IF($A39="","",IF(ISBLANK($A39),"",VLOOKUP($A39,Data!$A$4:$AR$155,44,FALSE))) -> 0.51 | P39: =IF($A39="","",IF(ISBLANK($A39),"",VLOOKUP($A39,Data!$A$4:$AI$155,8,FALSE))) -> 0.44
A40: 908 | B40: =IF($A40="","",IF(ISBLANK($A40),"",INDEX('LEA Nos codes'!$A$3:$A$154,MATCH($A40,'LEA Nos codes'!$B$3:$B$154,0)))) -> Cornwall | C40: =IF($A40="","",IF(ISBLANK($A40),"",VLOOKUP($A40,Data!$A$4:$V$155,3,FALSE))) -> 4.85 | D40: =IF($A40="","",IF(ISBLANK($A40),"",VLOOKUP($A40,Data!$A$4:$AQ$155,43,FALSE))) -> 4.85 | E40: =IF($A40="","",IF(ISBLANK($A40),"",VLOOKUP($A40,Data!$A$4:$V$155,4,FALSE))) -> 3.95 | F40: =IF($A40="","",IF(ISBLANK($A40),"",VLOOKUP($A40,Data!$A$4:$V$155,5,FALSE))) -> 0.86 | G40: =IF($A40="","",IF(ISBLANK($A40),"",VLOOKUP($A40,Data!$A$4:$AP$155,42,FALSE))) -> 0.49 | H40: =IF($A40="","",IF(ISBLANK($A40),"",VLOOKUP($A40,Data!$A$4:$AS$155,45,FALSE))) -> 0.53 | I40: =IF($A40="","",IF(ISBLANK($A40),"",VLOOKUP($A40,Data!$A$4:$AI$155,35,FALSE))) -> 1.01 | J40: =IF($A40="","",IF(ISBLANK($A40),"",VLOOKUP($A40,Data!$A$4:$AM$155,37,FALSE))) -> 0.49 | K40: =IF($A40="","",IF(ISBLANK($A40),"",VLOOKUP($A40,Data!$A$4:$AM$155,38,FALSE))) -> 0.19 | L40: =IF($A40="","",IF(ISBLANK($A40),"",VLOOKUP($A40,Data!$A$4:$AM$155,39,FALSE))) -> 0.346 | M40: =IF($A40="","",IF(ISBLANK($A40),"",VLOOKUP($A40,Data!$A$4:$AI$155,6,FALSE))) -> 28300 | N40: =IF($A40="","",IF(ISBLANK($A40),"",VLOOKUP($A40,Data!$A$4:$AI$155,7,FALSE))) -> 78 | O40: =IF($A40="","",IF(ISBLANK($A40),"",VLOOKUP($A40,Data!$A$4:$AR$155,44,FALSE))) -> 0.47 | P40: =IF($A40="","",IF(ISBLANK($A40),"",VLOOKUP($A40,Data!$A$4:$AI$155,8,FALSE))) -> 0.53
A41: 331 | B41: =IF($A41="","",IF(ISBLANK($A41),"",INDEX('LEA Nos codes'!$A$3:$A$154,MATCH($A41,'LEA Nos codes'!$B$3:$B$154,0)))) -> Coventry | C41: =IF($A41="","",IF(ISBLANK($A41),"",VLOOKUP($A41,Data!$A$4:$V$155,3,FALSE))) -> . | D41: =IF($A41="","",IF(ISBLANK($A41),"",VLOOKUP($A41,Data!$A$4:$AQ$155,43,FALSE))) -> 4.89 | E41: =IF($A41="","",IF(ISBLANK($A41),"",VLOOKUP($A41,Data!$A$4:$V$155,4,FALSE))) -> 3.55 | F41: =IF($A41="","",IF(ISBLANK($A41),"",VLOOKUP($A41,Data!$A$4:$V$155,5,FALSE))) -> 0.74 | G41: =IF($A41="","",IF(ISBLANK($A41),"",VLOOKUP($A41,Data!$A$4:$AP$155,42,FALSE))) -> 0.21 | H41: =IF($A41="","",IF(ISBLANK($A41),"",VLOOKUP($A41,Data!$A$4:$AS$155,45,FALSE))) -> 0.24 | I41: =IF($A41="","",IF(ISBLANK($A41),"",VLOOKUP($A41,Data!$A$4:$AI$155,35,FALSE))) -> 0.94 | J41: =IF($A41="","",IF(ISBLANK($A41),"",VLOOKUP($A41,Data!$A$4:$AM$155,37,FALSE))) -> 0.55 | K41: =IF($A41="","",IF(ISBLANK($A41),"",VLOOKUP($A41,Data!$A$4:$AM$155,38,FALSE))) -> 0.17 | L41: =IF($A41="","",IF(ISBLANK($A41),"",VLOOKUP($A41,Data!$A$4:$AM$155,39,FALSE))) -> 0.364 | M41: =IF($A41="","",IF(ISBLANK($A41),"",VLOOKUP($A41,Data!$A$4:$AI$155,6,FALSE))) -> 23200 | N41: =IF($A41="","",IF(ISBLANK($A41),"",VLOOKUP($A41,Data!$A$4:$AI$155,7,FALSE))) -> 42 | O41: =IF($A41="","",IF(ISBLANK($A41),"",VLOOKUP($A41,Data!$A$4:$AR$155,44,FALSE))) -> 0.66 | P41: =IF($A41="","",IF(ISBLANK($A41),"",VLOOKUP($A41,Data!$A$4:$AI$155,8,FALSE))) -> 0.33
A42: 306 | B42: =IF($A42="","",IF(ISBLANK($A42),"",INDEX('LEA Nos codes'!$A$3:$A$154,MATCH($A42,'LEA Nos codes'!$B$3:$B$154,0)))) -> Croydon | C42: =IF($A42="","",IF(ISBLANK($A42),"",VLOOKUP($A42,Data!$A$4:$V$155,3,FALSE))) -> 6 | D42: =IF($A42="","",IF(ISBLANK($A42),"",VLOOKUP($A42,Data!$A$4:$AQ$155,43,FALSE))) -> 5.28 | E42: =IF($A42="","",IF(ISBLANK($A42),"",VLOOKUP($A42,Data!$A$4:$V$155,4,FALSE))) -> 3.97 | F42: =IF($A42="","",IF(ISBLANK($A42),"",VLOOKUP($A42,Data!$A$4:$V$155,5,FALSE))) -> 0.79 | G42: =IF($A42="","",IF(ISBLANK($A42),"",VLOOKUP($A42,Data!$A$4:$AP$155,42,FALSE))) -> 0.33 | H42: =IF($A42="","",IF(ISBLANK($A42),"",VLOOKUP($A42,Data!$A$4:$AS$155,45,FALSE))) -> 0.36 | I42: =IF($A42="","",IF(ISBLANK($A42),"",VLOOKUP($A42,Data!$A$4:$AI$155,35,FALSE))) -> 0.88 | J42: =IF($A42="","",IF(ISBLANK($A42),"",VLOOKUP($A42,Data!$A$4:$AM$155,37,FALSE))) -> 0.46 | K42: =IF($A42="","",IF(ISBLANK($A42),"",VLOOKUP($A42,Data!$A$4:$AM$155,38,FALSE))) -> 0.15 | L42: =IF($A42="","",IF(ISBLANK($A42),"",VLOOKUP($A42,Data!$A$4:$AM$155,39,FALSE))) -> 0.391 | M42: =IF($A42="","",IF(ISBLANK($A42),"",VLOOKUP($A42,Data!$A$4:$AI$155,6,FALSE))) -> 28600 | N42: =IF($A42="","",IF(ISBLANK($A42),"",VLOOKUP($A42,Data!$A$4:$AI$155,7,FALSE))) -> 77 | O42: =IF($A42="","",IF(ISBLANK($A42),"",VLOOKUP($A42,Data!$A$4:$AR$155,44,FALSE))) -> 0.6 | P42: =IF($A42="","",IF(ISBLANK($A42),"",VLOOKUP($A42,Data!$A$4:$AI$155,8,FALSE))) -> 0.39
A43: 909 | B43: =IF($A43="","",IF(ISBLANK($A43),"",INDEX('LEA Nos codes'!$A$3:$A$154,MATCH($A43,'LEA Nos codes'!$B$3:$B$154,0)))) -> Cumbria | C43: =IF($A43="","",IF(ISBLANK($A43),"",VLOOKUP($A43,Data!$A$4:$V$155,3,FALSE))) -> 4.85 | D43: =IF($A43="","",IF(ISBLANK($A43),"",VLOOKUP($A43,Data!$A$4:$AQ$155,43,FALSE))) -> 4.85 | E43: =IF($A43="","",IF(ISBLANK($A43),"",VLOOKUP($A43,Data!$A$4:$V$155,4,FALSE))) -> 3.69 | F43: =IF($A43="","",IF(ISBLANK($A43),"",VLOOKUP($A43,Data!$A$4:$V$155,5,FALSE))) -> 0.86 | G43: =IF($A43="","",IF(ISBLANK($A43),"",VLOOKUP($A43,Data!$A$4:$AP$155,42,FALSE))) -> 0.41 | H43: =IF($A43="","",IF(ISBLANK($A43),"",VLOOKUP($A43,Data!$A$4:$AS$155,45,FALSE))) -> 0.47 | I43: =IF($A43="","",IF(ISBLANK($A43),"",VLOOKUP($A43,Data!$A$4:$AI$155,35,FALSE))) -> 1.03 | J43: =IF($A43="","",IF(ISBLANK($A43),"",VLOOKUP($A43,Data!$A$4:$AM$155,37,FALSE))) -> 0.5 | K43: =IF($A43="","",IF(ISBLANK($A43),"",VLOOKUP($A43,Data!$A$4:$AM$155,38,FALSE))) -> 0.23 | L43: =IF($A43="","",IF(ISBLANK($A43),"",VLOOKUP($A43,Data!$A$4:$AM$155,39,FALSE))) -> 0.356 | M43: =IF($A43="","",IF(ISBLANK($A43),"",VLOOKUP($A43,Data!$A$4:$AI$155,6,FALSE))) -> 25300 | N43: =IF($A43="","",IF(ISBLANK($A43),"",VLOOKUP($A43,Data!$A$4:$AI$155,7,FALSE))) -> 85 | O43: =IF($A43="","",IF(ISBLANK($A43),"",VLOOKUP($A43,Data!$A$4:$AR$155,44,FALSE))) -> 0.66 | P43: =IF($A43="","",IF(ISBLANK($A43),"",VLOOKUP($A43,Data!$A$4:$AI$155,8,FALSE))) -> 0.34
A44: 841 | B44: =IF($A44="","",IF(ISBLANK($A44),"",INDEX('LEA Nos codes'!$A$3:$A$154,MATCH($A44,'LEA Nos codes'!$B$3:$B$154,0)))) -> Darlington | C44: =IF($A44="","",IF(ISBLANK($A44),"",VLOOKUP($A44,Data!$A$4:$V$155,3,FALSE))) -> . | D44: =IF($A44="","",IF(ISBLANK($A44),"",VLOOKUP($A44,Data!$A$4:$AQ$155,43,FALSE))) -> 4.85 | E44: =IF($A44="","",IF(ISBLANK($A44),"",VLOOKUP($A44,Data!$A$4:$V$155,4,FALSE))) -> 3.82 | F44: =IF($A44="","",IF(ISBLANK($A44),"",VLOOKUP($A44,Data!$A$4:$V$155,5,FALSE))) -> 0.7 | G44: =IF($A44="","",IF(ISBLANK($A44),"",VLOOKUP($A44,Data!$A$4:$AP$155,42,FALSE))) -> 0.44 | H44: =IF($A44="","",IF(ISBLANK($A44),"",VLOOKUP($A44,Data!$A$4:$AS$155,45,FALSE))) -> 0.49 | I44: =IF($A44="","",IF(ISBLANK($A44),"",VLOOKUP($A44,Data!$A$4:$AI$155,35,FALSE))) -> 1 | J44: =IF($A44="","",IF(ISBLANK($A44),"",VLOOKUP($A44,Data!$A$4:$AM$155,37,FALSE))) -> 0.49 | K44: =IF($A44="","",IF(ISBLANK($A44),"",VLOOKUP($A44,Data!$A$4:$AM$155,38,FALSE))) -> 0.18 | L44: =IF($A44="","",IF(ISBLANK($A44),"",VLOOKUP($A44,Data!$A$4:$AM$155,39,FALSE))) -> 0.425 | M44: =IF($A44="","",IF(ISBLANK($A44),"",VLOOKUP($A44,Data!$A$4:$AI$155,6,FALSE))) -> 6600 | N44: =IF($A44="","",IF(ISBLANK($A44),"",VLOOKUP($A44,Data!$A$4:$AI$155,7,FALSE))) -> 60 | O44: =IF($A44="","",IF(ISBLANK($A44),"",VLOOKUP($A44,Data!$A$4:$AR$155,44,FALSE))) -> 0.68 | P44: =IF($A44="","",IF(ISBLANK($A44),"",VLOOKUP($A44,Data!$A$4:$AI$155,8,FALSE))) -> 0.32
A45: 831 | B45: =IF($A45="","",IF(ISBLANK($A45),"",INDEX('LEA Nos codes'!$A$3:$A$154,MATCH($A45,'LEA Nos codes'!$B$3:$B$154,0)))) -> Derby | C45: =IF($A45="","",IF(ISBLANK($A45),"",VLOOKUP($A45,Data!$A$4:$V$155,3,FALSE))) -> 4.85 | D45: =IF($A45="","",IF(ISBLANK($A45),"",VLOOKUP($A45,Data!$A$4:$AQ$155,43,FALSE))) -> 4.85 | E45: =IF($A45="","",IF(ISBLANK($A45),"",VLOOKUP($A45,Data!$A$4:$V$155,4,FALSE))) -> 4.48 | F45: =IF($A45="","",IF(ISBLANK($A45),"",VLOOKUP($A45,Data!$A$4:$V$155,5,FALSE))) -> 0.68 | G45: =IF($A45="","",IF(ISBLANK($A45),"",VLOOKUP($A45,Data!$A$4:$AP$155,42,FALSE))) -> 0.35 | H45: =IF($A45="","",IF(ISBLANK($A45),"",VLOOKUP($A45,Data!$A$4:$AS$155,45,FALSE))) -> 0.36 | I45: =IF($A45="","",IF(ISBLANK($A45),"",VLOOKUP($A45,Data!$A$4:$AI$155,35,FALSE))) -> 0.94 | J45: =IF($A45="","",IF(ISBLANK($A45),"",VLOOKUP($A45,Data!$A$4:$AM$155,37,FALSE))) -> 0.41 | K45: =IF($A45="","",IF(ISBLANK($A45),"",VLOOKUP($A45,Data!$A$4:$AM$155,38,FALSE))) -> 0.17 | L45: =IF($A45="","",IF(ISBLANK($A45),"",VLOOKUP($A45,Data!$A$4:$AM$155,39,FALSE))) -> 0.411 | M45: =IF($A45="","",IF(ISBLANK($A45),"",VLOOKUP($A45,Data!$A$4:$AI$155,6,FALSE))) -> 18100 | N45: =IF($A45="","",IF(ISBLANK($A45),"",VLOOKUP($A45,Data!$A$4:$AI$155,7,FALSE))) -> 67 | O45: =IF($A45="","",IF(ISBLANK($A45),"",VLOOKUP($A45,Data!$A$4:$AR$155,44,FALSE))) -> 0.71 | P45: =IF($A45="","",IF(ISBLANK($A45),"",VLOOKUP($A45,Data!$A$4:$AI$155,8,FALSE))) -> 0.28
A46: 830 | B46: =IF($A46="","",IF(ISBLANK($A46),"",INDEX('LEA Nos codes'!$A$3:$A$154,MATCH($A46,'LEA Nos codes'!$B$3:$B$154,0)))) -> Derbyshire | C46: =IF($A46="","",IF(ISBLANK($A46),"",VLOOKUP($A46,Data!$A$4:$V$155,3,FALSE))) -> 4.85 | D46: =IF($A46="","",IF(ISBLANK($A46),"",VLOOKUP($A46,Data!$A$4:$AQ$155,43,FALSE))) -> 4.85 | E46: =IF($A46="","",IF(ISBLANK($A46),"",VLOOKUP($A46,Data!$A$4:$V$155,4,FALSE))) -> 4.32 | F46: =IF($A46="","",IF(ISBLANK($A46),"",VLOOKUP($A46,Data!$A$4:$V$155,5,FALSE))) -> 0.78 | G46: =IF($A46="","",IF(ISBLANK($A46),"",VLOOKUP($A46,Data!$A$4:$AP$155,42,FALSE))) -> 0.32 | H46: =IF($A46="","",IF(ISBLANK($A46),"",VLOOKUP($A46,Data!$A$4:$AS$155,45,FALSE))) -> 0.36 | I46: =IF($A46="","",IF(ISBLANK($A46),"",VLOOKUP($A46,Data!$A$4:$AI$155,35,FALSE))) -> 0.99 | J46: =IF($A46="","",IF(ISBLANK($A46),"",VLOOKUP($A46,Data!$A$4:$AM$155,37,FALSE))) -> 0.5 | K46: =IF($A46="","",IF(ISBLANK($A46),"",VLOOKUP($A46,Data!$A$4:$AM$155,38,FALSE))) -> 0.21 | L46: =IF($A46="","",IF(ISBLANK($A46),"",VLOOKUP($A46,Data!$A$4:$AM$155,39,FALSE))) -> 0.374 | M46: =IF($A46="","",IF(ISBLANK($A46),"",VLOOKUP($A46,Data!$A$4:$AI$155,6,FALSE))) -> 42100 | N46: =IF($A46="","",IF(ISBLANK($A46),"",VLOOKUP($A46,Data!$A$4:$AI$155,7,FALSE))) -> 99 | O46: =IF($A46="","",IF(ISBLANK($A46),"",VLOOKUP($A46,Data!$A$4:$AR$155,44,FALSE))) -> 0.64 | P46: =IF($A46="","",IF(ISBLANK($A46),"",VLOOKUP($A46,Data!$A$4:$AI$155,8,FALSE))) -> 0.36
A47: 878 | B47: =IF($A47="","",IF(ISBLANK($A47),"",INDEX('LEA Nos codes'!$A$3:$A$154,MATCH($A47,'LEA Nos codes'!$B$3:$B$154,0)))) -> Devon | C47: =IF($A47="","",IF(ISBLANK($A47),"",VLOOKUP($A47,Data!$A$4:$V$155,3,FALSE))) -> 5.48 | D47: =IF($A47="","",IF(ISBLANK($A47),"",VLOOKUP($A47,Data!$A$4:$AQ$155,43,FALSE))) -> 4.85 | E47: =IF($A47="","",IF(ISBLANK($A47),"",VLOOKUP($A47,Data!$A$4:$V$155,4,FALSE))) -> 3.92 | F47: =IF($A47="","",IF(ISBLANK($A47),"",VLOOKUP($A47,Data!$A$4:$V$155,5,FALSE))) -> 0.84 | G47: =IF($A47="","",IF(ISBLANK($A47),"",VLOOKUP($A47,Data!$A$4:$AP$155,42,FALSE))) -> 0.39 | H47: =IF($A47="","",IF(ISBLANK($A47),"",VLOOKUP($A47,Data!$A$4:$AS$155,45,FALSE))) -> 0.46 | I47: =IF($A47="","",IF(ISBLANK($A47),"",VLOOKUP($A47,Data!$A$4:$AI$155,35,FALSE))) -> 1.02 | J47: =IF($A47="","",IF(ISBLANK($A47),"",VLOOKUP($A47,Data!$A$4:$AM$155,37,FALSE))) -> 0.64 | K47: =IF($A47="","",IF(ISBLANK($A47),"",VLOOKUP($A47,Data!$A$4:$AM$155,38,FALSE))) -> 0.19 | L47: =IF($A47="","",IF(ISBLANK($A47),"",VLOOKUP($A47,Data!$A$4:$AM$155,39,FALSE))) -> 0.26 | M47: =IF($A47="","",IF(ISBLANK($A47),"",VLOOKUP($A47,Data!$A$4:$AI$155,6,FALSE))) -> 38300 | N47: =IF($A47="","",IF(ISBLANK($A47),"",VLOOKUP($A47,Data!$A$4:$AI$155,7,FALSE))) -> 104 | O47: =IF($A47="","",IF(ISBLANK($A47),"",VLOOKUP($A47,Data!$A$4:$AR$155,44,FALSE))) -> 0.48 | P47: =IF($A47="","",IF(ISBLANK($A47),"",VLOOKUP($A47,Data!$A$4:$AI$155,8,FALSE))) -> 0.52
A48: 371 | B48: =IF($A48="","",IF(ISBLANK($A48),"",INDEX('LEA Nos codes'!$A$3:$A$154,MATCH($A48,'LEA Nos codes'!$B$3:$B$154,0)))) -> Doncaster | C48: =IF($A48="","",IF(ISBLANK($A48),"",VLOOKUP($A48,Data!$A$4:$V$155,3,FALSE))) -> 4.85 | D48: =IF($A48="","",IF(ISBLANK($A48),"",VLOOKUP($A48,Data!$A$4:$AQ$155,43,FALSE))) -> 4.85 | E48: =IF($A48="","",IF(ISBLANK($A48),"",VLOOKUP($A48,Data!$A$4:$V$155,4,FALSE))) -> 3.91 | F48: =IF($A48="","",IF(ISBLANK($A48),"",VLOOKUP($A48,Data!$A$4:$V$155,5,FALSE))) -> 0.69 | G48: =IF($A48="","",IF(ISBLANK($A48),"",VLOOKUP($A48,Data!$A$4:$AP$155,42,FALSE))) -> 0.36 | H48: =IF($A48="","",IF(ISBLANK($A48),"",VLOOKUP($A48,Data!$A$4:$AS$155,45,FALSE))) -> 0.46 | I48: =IF($A48="","",IF(ISBLANK($A48),"",VLOOKUP($A48,Data!$A$4:$AI$155,35,FALSE))) -> 0.93 | J48: =IF($A48="","",IF(ISBLANK($A48),"",VLOOKUP($A48,Data!$A$4:$AM$155,37,FALSE))) -> 0.43 | K48: =IF($A48="","",IF(ISBLANK($A48),"",VLOOKUP($A48,Data!$A$4:$AM$155,38,FALSE))) -> 0.19 | L48: =IF($A48="","",IF(ISBLANK($A48),"",VLOOKUP($A48,Data!$A$4:$AM$155,39,FALSE))) -> 0.374 | M48: =IF($A48="","",IF(ISBLANK($A48),"",VLOOKUP($A48,Data!$A$4:$AI$155,6,FALSE))) -> 19300 | N48: =IF($A48="","",IF(ISBLANK($A48),"",VLOOKUP($A48,Data!$A$4:$AI$155,7,FALSE))) -> 33 | O48: =IF($A48="","",IF(ISBLANK($A48),"",VLOOKUP($A48,Data!$A$4:$AR$155,44,FALSE))) -> 0.79 | P48: =IF($A48="","",IF(ISBLANK($A48),"",VLOOKUP($A48,Data!$A$4:$AI$155,8,FALSE))) -> 0.21
A49: 835 | B49: =IF($A49="","",IF(ISBLANK($A49),"",INDEX('LEA Nos codes'!$A$3:$A$154,MATCH($A49,'LEA Nos codes'!$B$3:$B$154,0)))) -> Dorset | C49: =IF($A49="","",IF(ISBLANK($A49),"",VLOOKUP($A49,Data!$A$4:$V$155,3,FALSE))) -> 6.79 | D49: =IF($A49="","",IF(ISBLANK($A49),"",VLOOKUP($A49,Data!$A$4:$AQ$155,43,FALSE))) -> 4.88 | E49: =IF($A49="","",IF(ISBLANK($A49),"",VLOOKUP($A49,Data!$A$4:$V$155,4,FALSE))) -> 3.7 | F49: =IF($A49="","",IF(ISBLANK($A49),"",VLOOKUP($A49,Data!$A$4:$V$155,5,FALSE))) -> 0.79 | G49: =IF($A49="","",IF(ISBLANK($A49),"",VLOOKUP($A49,Data!$A$4:$AP$155,42,FALSE))) -> 0.43 | H49: =IF($A49="","",IF(ISBLANK($A49),"",VLOOKUP($A49,Data!$A$4:$AS$155,45,FALSE))) -> 0.42 | I49: =IF($A49="","",IF(ISBLANK($A49),"",VLOOKUP($A49,Data!$A$4:$AI$155,35,FALSE))) -> 0.99 | J49: =IF($A49="","",IF(ISBLANK($A49),"",VLOOKUP($A49,Data!$A$4:$AM$155,37,FALSE))) -> 0.61 | K49: =IF($A49="","",IF(ISBLANK($A49),"",VLOOKUP($A49,Data!$A$4:$AM$155,38,FALSE))) -> 0.23 | L49: =IF($A49="","",IF(ISBLANK($A49),"",VLOOKUP($A49,Data!$A$4:$AM$155,39,FALSE))) -> 0.262 | M49: =IF($A49="","",IF(ISBLANK($A49),"",VLOOKUP($A49,Data!$A$4:$AI$155,6,FALSE))) -> 19500 | N49: =IF($A49="","",IF(ISBLANK($A49),"",VLOOKUP($A49,Data!$A$4:$AI$155,7,FALSE))) -> 125 | O49: =IF($A49="","",IF(ISBLANK($A49),"",VLOOKUP($A49,Data!$A$4:$AR$155,44,FALSE))) -> 0.36 | P49: =IF($A49="","",IF(ISBLANK($A49),"",VLOOKUP($A49,Data!$A$4:$AI$155,8,FALSE))) -> 0.63
A50: 332 | B50: =IF($A50="","",IF(ISBLANK($A50),"",INDEX('LEA Nos codes'!$A$3:$A$154,MATCH($A50,'LEA Nos codes'!$B$3:$B$154,0)))) -> Dudley | C50: =IF($A50="","",IF(ISBLANK($A50),"",VLOOKUP($A50,Data!$A$4:$V$155,3,FALSE))) -> 4.5 | D50: =IF($A50="","",IF(ISBLANK($A50),"",VLOOKUP($A50,Data!$A$4:$AQ$155,43,FALSE))) -> 4.89 | E50: =IF($A50="","",IF(ISBLANK($A50),"",VLOOKUP($A50,Data!$A$4:$V$155,4,FALSE))) -> 3.63 | F50: =IF($A50="","",IF(ISBLANK($A50),"",VLOOKUP($A50,Data!$A$4:$V$155,5,FALSE))) -> 0.85 | G50: =IF($A50="","",IF(ISBLANK($A50),"",VLOOKUP($A50,Data!$A$4:$AP$155,42,FALSE))) -> 0.32 | H50: =IF($A50="","",IF(ISBLANK($A50),"",VLOOKUP($A50,Data!$A$4:$AS$155,45,FALSE))) -> 0.3 | I50: =IF($A50="","",IF(ISBLANK($A50),"",VLOOKUP($A50,Data!$A$4:$AI$155,35,FALSE))) -> 0.96 | J50: =IF($A50="","",IF(ISBLANK($A50),"",VLOOKUP($A50,Data!$A$4:$AM$155,37,FALSE))) -> 0.51 | K50: =IF($A50="","",IF(ISBLANK($A50),"",VLOOKUP($A50,Data!$A$4:$AM$155,38,FALSE))) -> 0.22 | L50: =IF($A50="","",IF(ISBLANK($A50),"",VLOOKUP($A50,Data!$A$4:$AM$155,39,FALSE))) -> 0.399 | M50: =IF($A50="","",IF(ISBLANK($A50),"",VLOOKUP($A50,Data!$A$4:$AI$155,6,FALSE))) -> 19100 | N50: =IF($A50="","",IF(ISBLANK($A50),"",VLOOKUP($A50,Data!$A$4:$AI$155,7,FALSE))) -> 74 | O50: =IF($A50="","",IF(ISBLANK($A50),"",VLOOKUP($A50,Data!$A$4:$AR$155,44,FALSE))) -> 0.66 | P50: =IF($A50="","",IF(ISBLANK($A50),"",VLOOKUP($A50,Data!$A$4:$AI$155,8,FALSE))) -> 0.34
A51: 840 | B51: =IF($A51="","",IF(ISBLANK($A51),"",INDEX('LEA Nos codes'!$A$3:$A$154,MATCH($A51,'LEA Nos codes'!$B$3:$B$154,0)))) -> Durham | C51: =IF($A51="","",IF(ISBLANK($A51),"",VLOOKUP($A51,Data!$A$4:$V$155,3,FALSE))) -> 4.85 | D51: =IF($A51="","",IF(ISBLANK($A51),"",VLOOKUP($A51,Data!$A$4:$AQ$155,43,FALSE))) -> 4.85 | E51: =IF($A51="","",IF(ISBLANK($A51),"",VLOOKUP($A51,Data!$A$4:$V$155,4,FALSE))) -> 4.04 | F51: =IF($A51="","",IF(ISBLANK($A51),"",VLOOKUP($A51,Data!$A$4:$V$155,5,FALSE))) -> 0.73 | G51: =IF($A51="","",IF(ISBLANK($A51),"",VLOOKUP($A51,Data!$A$4:$AP$155,42,FALSE))) -> 0.39 | H51: =IF($A51="","",IF(ISBLANK($A51),"",VLOOKUP($A51,Data!$A$4:$AS$155,45,FALSE))) -> 0.35 | I51: =IF($A51="","",IF(ISBLANK($A51),"",VLOOKUP($A51,Data!$A$4:$AI$155,35,FALSE))) -> 0.95 | J51: =IF($A51="","",IF(ISBLANK($A51),"",VLOOKUP($A51,Data!$A$4:$AM$155,37,FALSE))) -> 0.42 | K51: =IF($A51="","",IF(ISBLANK($A51),"",VLOOKUP($A51,Data!$A$4:$AM$155,38,FALSE))) -> 0.21 | L51: =IF($A51="","",IF(ISBLANK($A51),"",VLOOKUP($A51,Data!$A$4:$AM$155,39,FALSE))) -> 0.428 | M51: =IF($A51="","",IF(ISBLANK($A51),"",VLOOKUP($A51,Data!$A$4:$AI$155,6,FALSE))) -> 28900 | N51: =IF($A51="","",IF(ISBLANK($A51),"",VLOOKUP($A51,Data!$A$4:$AI$155,7,FALSE))) -> 50 | O51: =IF($A51="","",IF(ISBLANK($A51),"",VLOOKUP($A51,Data!$A$4:$AR$155,44,FALSE))) -> 0.77 | P51: =IF($A51="","",IF(ISBLANK($A51),"",VLOOKUP($A51,Data!$A$4:$AI$155,8,FALSE))) -> 0.22
A52: 307 | B52: =IF($A52="","",IF(ISBLANK($A52),"",INDEX('LEA Nos codes'!$A$3:$A$154,MATCH($A52,'LEA Nos codes'!$B$3:$B$154,0)))) -> Ealing | C52: =IF($A52="","",IF(ISBLANK($A52),"",VLOOKUP($A52,Data!$A$4:$V$155,3,FALSE))) -> . | D52: =IF($A52="","",IF(ISBLANK($A52),"",VLOOKUP($A52,Data!$A$4:$AQ$155,43,FALSE))) -> 5.53 | E52: =IF($A52="","",IF(ISBLANK($A52),"",VLOOKUP($A52,Data!$A$4:$V$155,4,FALSE))) -> 4.31 | F52: =IF($A52="","",IF(ISBLANK($A52),"",VLOOKUP($A52,Data!$A$4:$V$155,5,FALSE))) -> 0.71 | G52: =IF($A52="","",IF(ISBLANK($A52),"",VLOOKUP($A52,Data!$A$4:$AP$155,42,FALSE))) -> 0.52 | H52: =IF($A52="","",IF(ISBLANK($A52),"",VLOOKUP($A52,Data!$A$4:$AS$155,45,FALSE))) -> 0.6 | I52: =IF($A52="","",IF(ISBLANK($A52),"",VLOOKUP($A52,Data!$A$4:$AI$155,35,FALSE))) -> 0.95 | J52: =IF($A52="","",IF(ISBLANK($A52),"",VLOOKUP($A52,Data!$A$4:$AM$155,37,FALSE))) -> 0.56 | K52: =IF($A52="","",IF(ISBLANK($A52),"",VLOOKUP($A52,Data!$A$4:$AM$155,38,FALSE))) -> 0.09 | L52: =IF($A52="","",IF(ISBLANK($A52),"",VLOOKUP($A52,Data!$A$4:$AM$155,39,FALSE))) -> 0.334 | M52: =IF($A52="","",IF(ISBLANK($A52),"",VLOOKUP($A52,Data!$A$4:$AI$155,6,FALSE))) -> 26200 | N52: =IF($A52="","",IF(ISBLANK($A52),"",VLOOKUP($A52,Data!$A$4:$AI$155,7,FALSE))) -> 64 | O52: =IF($A52="","",IF(ISBLANK($A52),"",VLOOKUP($A52,Data!$A$4:$AR$155,44,FALSE))) -> 0.74 | P52: =IF($A52="","",IF(ISBLANK($A52),"",VLOOKUP($A52,Data!$A$4:$AI$155,8,FALSE))) -> 0.24
A53: 811 | B53: =IF($A53="","",IF(ISBLANK($A53),"",INDEX('LEA Nos codes'!$A$3:$A$154,MATCH($A53,'LEA Nos codes'!$B$3:$B$154,0)))) -> East Riding of Yorkshire | C53: =IF($A53="","",IF(ISBLANK($A53),"",VLOOKUP($A53,Data!$A$4:$V$155,3,FALSE))) -> 5.21 | D53: =IF($A53="","",IF(ISBLANK($A53),"",VLOOKUP($A53,Data!$A$4:$AQ$155,43,FALSE))) -> 4.85 | E53: =IF($A53="","",IF(ISBLANK($A53),"",VLOOKUP($A53,Data!$A$4:$V$155,4,FALSE))) -> 3.91 | F53: =IF($A53="","",IF(ISBLANK($A53),"",VLOOKUP($A53,Data!$A$4:$V$155,5,FALSE))) -> 0.87 | G53: =IF($A53="","",IF(ISBLANK($A53),"",VLOOKUP($A53,Data!$A$4:$AP$155,42,FALSE))) -> 0.39 | H53: =IF($A53="","",IF(ISBLANK($A53),"",VLOOKUP($A53,Data!$A$4:$AS$155,45,FALSE))) -> 0.45 | I53: =IF($A53="","",IF(ISBLANK($A53),"",VLOOKUP($A53,Data!$A$4:$AI$155,35,FALSE))) -> 1.03 | J53: =IF($A53="","",IF(ISBLANK($A53),"",VLOOKUP($A53,Data!$A$4:$AM$155,37,FALSE))) -> 0.55 | K53: =IF($A53="","",IF(ISBLANK($A53),"",VLOOKUP($A53,Data!$A$4:$AM$155,38,FALSE))) -> 0.25 | L53: =IF($A53="","",IF(ISBLANK($A53),"",VLOOKUP($A53,Data!$A$4:$AM$155,39,FALSE))) -> 0.298 | M53: =IF($A53="","",IF(ISBLANK($A53),"",VLOOKUP($A53,Data!$A$4:$AI$155,6,FALSE))) -> 16600 | N53: =IF($A53="","",IF(ISBLANK($A53),"",VLOOKUP($A53,Data!$A$4:$AI$155,7,FALSE))) -> 122 | O53: =IF($A53="","",IF(ISBLANK($A53),"",VLOOKUP($A53,Data!$A$4:$AR$155,44,FALSE))) -> 0.59 | P53: =IF($A53="","",IF(ISBLANK($A53),"",VLOOKUP($A53,Data!$A$4:$AI$155,8,FALSE))) -> 0.41
A54: 845 | B54: =IF($A54="","",IF(ISBLANK($A54),"",INDEX('LEA Nos codes'!$A$3:$A$154,MATCH($A54,'LEA Nos codes'!$B$3:$B$154,0)))) -> East Sussex | C54: =IF($A54="","",IF(ISBLANK($A54),"",VLOOKUP($A54,Data!$A$4:$V$155,3,FALSE))) -> 5.21 | D54: =IF($A54="","",IF(ISBLANK($A54),"",VLOOKUP($A54,Data!$A$4:$AQ$155,43,FALSE))) -> 4.85 | E54: =IF($A54="","",IF(ISBLANK($A54),"",VLOOKUP($A54,Data!$A$4:$V$155,4,FALSE))) -> 3.66 | F54: =IF($A54="","",IF(ISBLANK($A54),"",VLOOKUP($A54,Data!$A$4:$V$155,5,FALSE))) -> 0.77 | G54: =IF($A54="","",IF(ISBLANK($A54),"",VLOOKUP($A54,Data!$A$4:$AP$155,42,FALSE))) -> 0.37 | H54: =IF($A54="","",IF(ISBLANK($A54),"",VLOOKUP($A54,Data!$A$4:$AS$155,45,FALSE))) -> 0.38 | I54: =IF($A54="","",IF(ISBLANK($A54),"",VLOOKUP($A54,Data!$A$4:$AI$155,35,FALSE))) -> 0.97 | J54: =IF($A54="","",IF(ISBLANK($A54),"",VLOOKUP($A54,Data!$A$4:$AM$155,37,FALSE))) -> 0.44 | K54: =IF($A54="","",IF(ISBLANK($A54),"",VLOOKUP($A54,Data!$A$4:$AM$155,38,FALSE))) -> 0.2 | L54: =IF($A54="","",IF(ISBLANK($A54),"",VLOOKUP($A54,Data!$A$4:$AM$155,39,FALSE))) -> 0.372 | M54: =IF($A54="","",IF(ISBLANK($A54),"",VLOOKUP($A54,Data!$A$4:$AI$155,6,FALSE))) -> 28100 | N54: =IF($A54="","",IF(ISBLANK($A54),"",VLOOKUP($A54,Data!$A$4:$AI$155,7,FALSE))) -> 90 | O54: =IF($A54="","",IF(ISBLANK($A54),"",VLOOKUP($A54,Data!$A$4:$AR$155,44,FALSE))) -> 0.39 | P54: =IF($A54="","",IF(ISBLANK($A54),"",VLOOKUP($A54,Data!$A$4:$AI$155,8,FALSE))) -> 0.61
A55: 308 | B55: =IF($A55="","",IF(ISBLANK($A55),"",INDEX('LEA Nos codes'!$A$3:$A$154,MATCH($A55,'LEA Nos codes'!$B$3:$B$154,0)))) -> Enfield | C55: =IF($A55="","",IF(ISBLANK($A55),"",VLOOKUP($A55,Data!$A$4:$V$155,3,FALSE))) -> 6 | D55: =IF($A55="","",IF(ISBLANK($A55),"",VLOOKUP($A55,Data!$A$4:$AQ$155,43,FALSE))) -> 5.28 | E55: =IF($A55="","",IF(ISBLANK($A55),"",VLOOKUP($A55,Data!$A$4:$V$155,4,FALSE))) -> 3.99 | F55: =IF($A55="","",IF(ISBLANK($A55),"",VLOOKUP($A55,Data!$A$4:$V$155,5,FALSE))) -> 0.71 | G55: =IF($A55="","",IF(ISBLANK($A55),"",VLOOKUP($A55,Data!$A$4:$AP$155,42,FALSE))) -> 0.49 | H55: =IF($A55="","",IF(ISBLANK($A55),"",VLOOKUP($A55,Data!$A$4:$AS$155,45,FALSE))) -> 0.47 | I55: =IF($A55="","",IF(ISBLANK($A55),"",VLOOKUP($A55,Data!$A$4:$AI$155,35,FALSE))) -> 0.87 | J55: =IF($A55="","",IF(ISBLANK($A55),"",VLOOKUP($A55,Data!$A$4:$AM$155,37,FALSE))) -> 0.49 | K55: =IF($A55="","",IF(ISBLANK($A55),"",VLOOKUP($A55,Data!$A$4:$AM$155,38,FALSE))) -> 0.11 | L55: =IF($A55="","",IF(ISBLANK($A55),"",VLOOKUP($A55,Data!$A$4:$AM$155,39,FALSE))) -> 0.398 | M55: =IF($A55="","",IF(ISBLANK($A55),"",VLOOKUP($A55,Data!$A$4:$AI$155,6,FALSE))) -> 25000 | N55: =IF($A55="","",IF(ISBLANK($A55),"",VLOOKUP($A55,Data!$A$4:$AI$155,7,FALSE))) -> 51 | O55: =IF($A55="","",IF(ISBLANK($A55),"",VLOOKUP($A55,Data!$A$4:$AR$155,44,FALSE))) -> 0.63 | P55: =IF($A55="","",IF(ISBLANK($A55),"",VLOOKUP($A55,Data!$A$4:$AI$155,8,FALSE))) -> 0.36
A56: 881 | B56: =IF($A56="","",IF(ISBLANK($A56),"",INDEX('LEA Nos codes'!$A$3:$A$154,MATCH($A56,'LEA Nos codes'!$B$3:$B$154,0)))) -> Essex | C56: =IF($A56="","",IF(ISBLANK($A56),"",VLOOKUP($A56,Data!$A$4:$V$155,3,FALSE))) -> 5 | D56: =IF($A56="","",IF(ISBLANK($A56),"",VLOOKUP($A56,Data!$A$4:$AQ$155,43,FALSE))) -> 5.02 | E56: =IF($A56="","",IF(ISBLANK($A56),"",VLOOKUP($A56,Data!$A$4:$V$155,4,FALSE))) -> 4.08 | F56: =IF($A56="","",IF(ISBLANK($A56),"",VLOOKUP($A56,Data!$A$4:$V$155,5,FALSE))) -> 0.8 | G56: =IF($A56="","",IF(ISBLANK($A56),"",VLOOKUP($A56,Data!$A$4:$AP$155,42,FALSE))) -> 0.29 | H56: =IF($A56="","",IF(ISBLANK($A56),"",VLOOKUP($A56,Data!$A$4:$AS$155,45,FALSE))) -> 0.36 | I56: =IF($A56="","",IF(ISBLANK($A56),"",VLOOKUP($A56,Data!$A$4:$AI$155,35,FALSE))) -> 0.98 | J56: =IF($A56="","",IF(ISBLANK($A56),"",VLOOKUP($A56,Data!$A$4:$AM$155,37,FALSE))) -> 0.53 | K56: =IF($A56="","",IF(ISBLANK($A56),"",VLOOKUP($A56,Data!$A$4:$AM$155,38,FALSE))) -> 0.21 | L56: =IF($A56="","",IF(ISBLANK($A56),"",VLOOKUP($A56,Data!$A$4:$AM$155,39,FALSE))) -> 0.332 | M56: =IF($A56="","",IF(ISBLANK($A56),"",VLOOKUP($A56,Data!$A$4:$AI$155,6,FALSE))) -> 83600 | N56: =IF($A56="","",IF(ISBLANK($A56),"",VLOOKUP($A56,Data!$A$4:$AI$155,7,FALSE))) -> 119 | O56: =IF($A56="","",IF(ISBLANK($A56),"",VLOOKUP($A56,Data!$A$4:$AR$155,44,FALSE))) -> 0.42 | P56: =IF($A56="","",IF(ISBLANK($A56),"",VLOOKUP($A56,Data!$A$4:$AI$155,8,FALSE))) -> 0.58
A57: 390 | B57: =IF($A57="","",IF(ISBLANK($A57),"",INDEX('LEA Nos codes'!$A$3:$A$154,MATCH($A57,'LEA Nos codes'!$B$3:$B$154,0)))) -> Gateshead | C57: =IF($A57="","",IF(ISBLANK($A57),"",VLOOKUP($A57,Data!$A$4:$V$155,3,FALSE))) -> 4.85 | D57: =IF($A57="","",IF(ISBLANK($A57),"",VLOOKUP($A57,Data!$A$4:$AQ$155,43,FALSE))) -> 4.85 | E57: =IF($A57="","",IF(ISBLANK($A57),"",VLOOKUP($A57,Data!$A$4:$V$155,4,FALSE))) -> 4.14 | F57: =IF($A57="","",IF(ISBLANK($A57),"",VLOOKUP($A57,Data!$A$4:$V$155,5,FALSE))) -> 0.79 | G57: =IF($A57="","",IF(ISBLANK($A57),"",VLOOKUP($A57,Data!$A$4:$AP$155,42,FALSE))) -> 0.52 | H57: =IF($A57="","",IF(ISBLANK($A57),"",VLOOKUP($A57,Data!$A$4:$AS$155,45,FALSE))) -> 0.56 | I57: =IF($A57="","",IF(ISBLANK($A57),"",VLOOKUP($A57,Data!$A$4:$AI$155,35,FALSE))) -> 0.96 | J57: =IF($A57="","",IF(ISBLANK($A57),"",VLOOKUP($A57,Data!$A$4:$AM$155,37,FALSE))) -> 0.34 | K57: =IF($A57="","",IF(ISBLANK($A57),"",VLOOKUP($A57,Data!$A$4:$AM$155,38,FALSE))) -> 0.19 | L57: =IF($A57="","",IF(ISBLANK($A57),"",VLOOKUP($A57,Data!$A$4:$AM$155,39,FALSE))) -> 0.34 | M57: =IF($A57="","",IF(ISBLANK($A57),"",VLOOKUP($A57,Data!$A$4:$AI$155,6,FALSE))) -> 11900 | N57: =IF($A57="","",IF(ISBLANK($A57),"",VLOOKUP($A57,Data!$A$4:$AI$155,7,FALSE))) -> 37 | O57: =IF($A57="","",IF(ISBLANK($A57),"",VLOOKUP($A57,Data!$A$4:$AR$155,44,FALSE))) -> 0.71 | P57: =IF($A57="","",IF(ISBLANK($A57),"",VLOOKUP($A57,Data!$A$4:$AI$155,8,FALSE))) -> 0.28
A58: 916 | B58: =IF($A58="","",IF(ISBLANK($A58),"",INDEX('LEA Nos codes'!$A$3:$A$154,MATCH($A58,'LEA Nos codes'!$B$3:$B$154,0)))) -> Gloucestershire | C58: =IF($A58="","",IF(ISBLANK($A58),"",VLOOKUP($A58,Data!$A$4:$V$155,3,FALSE))) -> 5.22 | D58: =IF($A58="","",IF(ISBLANK($A58),"",VLOOKUP($A58,Data!$A$4:$AQ$155,43,FALSE))) -> 4.93 | E58: =IF($A58="","",IF(ISBLANK($A58),"",VLOOKUP($A58,Data!$A$4:$V$155,4,FALSE))) -> 3.39 | F58: =IF($A58="","",IF(ISBLANK($A58),"",VLOOKUP($A58,Data!$A$4:$V$155,5,FALSE))) -> 0.78 | G58: =IF($A58="","",IF(ISBLANK($A58),"",VLOOKUP($A58,Data!$A$4:$AP$155,42,FALSE))) -> 0 | H58: =IF($A58="","",IF(ISBLANK($A58),"",VLOOKUP($A58,Data!$A$4:$AS$155,45,FALSE))) -> 0 | I58: =IF($A58="","",IF(ISBLANK($A58),"",VLOOKUP($A58,Data!$A$4:$AI$155,35,FALSE))) -> 0.99 | J58: =IF($A58="","",IF(ISBLANK($A58),"",VLOOKUP($A58,Data!$A$4:$AM$155,37,FALSE))) -> 0.52 | K58: =IF($A58="","",IF(ISBLANK($A58),"",VLOOKUP($A58,Data!$A$4:$AM$155,38,FALSE))) -> 0.21 | L58: =IF($A58="","",IF(ISBLANK($A58),"",VLOOKUP($A58,Data!$A$4:$AM$155,39,FALSE))) -> 0.337 | M58: =IF($A58="","",IF(ISBLANK($A58),"",VLOOKUP($A58,Data!$A$4:$AI$155,6,FALSE))) -> 34100 | N58: =IF($A58="","",IF(ISBLANK($A58),"",VLOOKUP($A58,Data!$A$4:$AI$155,7,FALSE))) -> 126 | O58: =IF($A58="","",IF(ISBLANK($A58),"",VLOOKUP($A58,Data!$A$4:$AR$155,44,FALSE))) -> 0.33 | P58: =IF($A58="","",IF(ISBLANK($A58),"",VLOOKUP($A58,Data!$A$4:$AI$155,8,FALSE))) -> 0.66
A59: 203 | B59: =IF($A59="","",IF(ISBLANK($A59),"",INDEX('LEA Nos codes'!$A$3:$A$154,MATCH($A59,'LEA Nos codes'!$B$3:$B$154,0)))) -> Greenwich | C59: =IF($A59="","",IF(ISBLANK($A59),"",VLOOKUP($A59,Data!$A$4:$V$155,3,FALSE))) -> 6 | D59: =IF($A59="","",IF(ISBLANK($A59),"",VLOOKUP($A59,Data!$A$4:$AQ$155,43,FALSE))) -> 6.07 | E59: =IF($A59="","",IF(ISBLANK($A59),"",VLOOKUP($A59,Data!$A$4:$V$155,4,FALSE))) -> 4.61 | F59: =IF($A59="","",IF(ISBLANK($A59),"",VLOOKUP($A59,Data!$A$4:$V$155,5,FALSE))) -> 0.77 | G59: =IF($A59="","",IF(ISBLANK($A59),"",VLOOKUP($A59,Data!$A$4:$AP$155,42,FALSE))) -> 0.41 | H59: =IF($A59="","",IF(ISBLANK($A59),"",VLOOKUP($A59,Data!$A$4:$AS$155,45,FALSE))) -> 0.43 | I59: =IF($A59="","",IF(ISBLANK($A59),"",VLOOKUP($A59,Data!$A$4:$AI$155,35,FALSE))) -> 0.89 | J59: =IF($A59="","",IF(ISBLANK($A59),"",VLOOKUP($A59,Data!$A$4:$AM$155,37,FALSE))) -> 0.69 | K59: =IF($A59="","",IF(ISBLANK($A59),"",VLOOKUP($A59,Data!$A$4:$AM$155,38,FALSE))) -> 0.12 | L59: =IF($A59="","",IF(ISBLANK($A59),"",VLOOKUP($A59,Data!$A$4:$AM$155,39,FALSE))) -> 0.293 | M59: =IF($A59="","",IF(ISBLANK($A59),"",VLOOKUP($A59,Data!$A$4:$AI$155,6,FALSE))) -> 21500 | N59: =IF($A59="","",IF(ISBLANK($A59),"",VLOOKUP($A59,Data!$A$4:$AI$155,7,FALSE))) -> 26 | O59: =IF($A59="","",IF(ISBLANK($A59),"",VLOOKUP($A59,Data!$A$4:$AR$155,44,FALSE))) -> 0.79 | P59: =IF($A59="","",IF(ISBLANK($A59),"",VLOOKUP($A59,Data!$A$4:$AI$155,8,FALSE))) -> 0.21
A60: 204 | B60: =IF($A60="","",IF(ISBLANK($A60),"",INDEX('LEA Nos codes'!$A$3:$A$154,MATCH($A60,'LEA Nos codes'!$B$3:$B$154,0)))) -> Hackney | C60: =IF($A60="","",IF(ISBLANK($A60),"",VLOOKUP($A60,Data!$A$4:$V$155,3,FALSE))) -> 6.08 | D60: =IF($A60="","",IF(ISBLANK($A60),"",VLOOKUP($A60,Data!$A$4:$AQ$155,43,FALSE))) -> 6.07 | E60: =IF($A60="","",IF(ISBLANK($A60),"",VLOOKUP($A60,Data!$A$4:$V$155,4,FALSE))) -> 5.43 | F60: =IF($A60="","",IF(ISBLANK($A60),"",VLOOKUP($A60,Data!$A$4:$V$155,5,FALSE))) -> 0.79 | G60: =IF($A60="","",IF(ISBLANK($A60),"",VLOOKUP($A60,Data!$A$4:$AP$155,42,FALSE))) -> 0.3 | H60: =IF($A60="","",IF(ISBLANK($A60),"",VLOOKUP($A60,Data!$A$4:$AS$155,45,FALSE))) -> 0.29 | I60: =IF($A60="","",IF(ISBLANK($A60),"",VLOOKUP($A60,Data!$A$4:$AI$155,35,FALSE))) -> 0.96 | J60: =IF($A60="","",IF(ISBLANK($A60),"",VLOOKUP($A60,Data!$A$4:$AM$155,37,FALSE))) -> 0.57 | K60: =IF($A60="","",IF(ISBLANK($A60),"",VLOOKUP($A60,Data!$A$4:$AM$155,38,FALSE))) -> 0.03 | L60: =IF($A60="","",IF(ISBLANK($A60),"",VLOOKUP($A60,Data!$A$4:$AM$155,39,FALSE))) -> 0.326 | M60: =IF($A60="","",IF(ISBLANK($A60),"",VLOOKUP($A60,Data!$A$4:$AI$155,6,FALSE))) -> 19600 | N60: =IF($A60="","",IF(ISBLANK($A60),"",VLOOKUP($A60,Data!$A$4:$AI$155,7,FALSE))) -> 2 | O60: =IF($A60="","",IF(ISBLANK($A60),"",VLOOKUP($A60,Data!$A$4:$AR$155,44,FALSE))) -> 0.61 | P60: =IF($A60="","",IF(ISBLANK($A60),"",VLOOKUP($A60,Data!$A$4:$AI$155,8,FALSE))) -> 0.39
A61: 876 | B61: =IF($A61="","",IF(ISBLANK($A61),"",INDEX('LEA Nos codes'!$A$3:$A$154,MATCH($A61,'LEA Nos codes'!$B$3:$B$154,0)))) -> Halton | C61: =IF($A61="","",IF(ISBLANK($A61),"",VLOOKUP($A61,Data!$A$4:$V$155,3,FALSE))) -> 4.95 | D61: =IF($A61="","",IF(ISBLANK($A61),"",VLOOKUP($A61,Data!$A$4:$AQ$155,43,FALSE))) -> 4.93 | E61: =IF($A61="","",IF(ISBLANK($A61),"",VLOOKUP($A61,Data!$A$4:$V$155,4,FALSE))) -> 3.69 | F61: =IF($A61="","",IF(ISBLANK($A61),"",VLOOKUP($A61,Data!$A$4:$V$155,5,FALSE))) -> 0.69 | G61: =IF($A61="","",IF(ISBLANK($A61),"",VLOOKUP($A61,Data!$A$4:$AP$155,42,FALSE))) -> 0.14 | H61: =IF($A61="","",IF(ISBLANK($A61),"",VLOOKUP($A61,Data!$A$4:$AS$155,45,FALSE))) -> 0.17 | I61: =IF($A61="","",IF(ISBLANK($A61),"",VLOOKUP($A61,Data!$A$4:$AI$155,35,FALSE))) -> 0.9 | J61: =IF($A61="","",IF(ISBLANK($A61),"",VLOOKUP($A61,Data!$A$4:$AM$155,37,FALSE))) -> 0.37 | K61: =IF($A61="","",IF(ISBLANK($A61),"",VLOOKUP($A61,Data!$A$4:$AM$155,38,FALSE))) -> 0.18 | L61: =IF($A61="","",IF(ISBLANK($A61),"",VLOOKUP($A61,Data!$A$4:$AM$155,39,FALSE))) -> 0.362 | M61: =IF($A61="","",IF(ISBLANK($A61),"",VLOOKUP($A61,Data!$A$4:$AI$155,6,FALSE))) -> 8300 | N61: =IF($A61="","",IF(ISBLANK($A61),"",VLOOKUP($A61,Data!$A$4:$AI$155,7,FALSE))) -> 25 | O61: =IF($A61="","",IF(ISBLANK($A61),"",VLOOKUP($A61,Data!$A$4:$AR$155,44,FALSE))) -> 0.53 | P61: =IF($A61="","",IF(ISBLANK($A61),"",VLOOKUP($A61,Data!$A$4:$AI$155,8,FALSE))) -> 0.43
A62: 205 | B62: =IF($A62="","",IF(ISBLANK($A62),"",INDEX('LEA Nos codes'!$A$3:$A$154,MATCH($A62,'LEA Nos codes'!$B$3:$B$154,0)))) -> Hammersmith and Fulham | C62: =IF($A62="","",IF(ISBLANK($A62),"",VLOOKUP($A62,Data!$A$4:$V$155,3,FALSE))) -> . | D62: =IF($A62="","",IF(ISBLANK($A62),"",VLOOKUP($A62,Data!$A$4:$AQ$155,43,FALSE))) -> 6.07 | E62: =IF($A62="","",IF(ISBLANK($A62),"",VLOOKUP($A62,Data!$A$4:$V$155,4,FALSE))) -> . | F62: =IF($A62="","",IF(ISBLANK($A62),"",VLOOKUP($A62,Data!$A$4:$V$155,5,FALSE))) -> 0.66 | G62: =IF($A62="","",IF(ISBLANK($A62),"",VLOOKUP($A62,Data!$A$4:$AP$155,42,FALSE))) -> 0.48 | H62: =IF($A62="","",IF(ISBLANK($A62),"",VLOOKUP($A62,Data!$A$4:$AS$155,45,FALSE))) -> 0.59 | I62: =IF($A62="","",IF(ISBLANK($A62),"",VLOOKUP($A62,Data!$A$4:$AI$155,35,FALSE))) -> 0.93 | J62: =IF($A62="","",IF(ISBLANK($A62),"",VLOOKUP($A62,Data!$A$4:$AM$155,37,FALSE))) -> 0.53 | K62: =IF($A62="","",IF(ISBLANK($A62),"",VLOOKUP($A62,Data!$A$4:$AM$155,38,FALSE))) -> 0.18 | L62: =IF($A62="","",IF(ISBLANK($A62),"",VLOOKUP($A62,Data!$A$4:$AM$155,39,FALSE))) -> 0.325 | M62: =IF($A62="","",IF(ISBLANK($A62),"",VLOOKUP($A62,Data!$A$4:$AI$155,6,FALSE))) -> 11900 | N62: =IF($A62="","",IF(ISBLANK($A62),"",VLOOKUP($A62,Data!$A$4:$AI$155,7,FALSE))) -> 46 | O62: =IF($A62="","",IF(ISBLANK($A62),"",VLOOKUP($A62,Data!$A$4:$AR$155,44,FALSE))) -> 0.6 | P62: =IF($A62="","",IF(ISBLANK($A62),"",VLOOKUP($A62,Data!$A$4:$AI$155,8,FALSE))) -> 0.39
A63: 850 | B63: =IF($A63="","",IF(ISBLANK($A63),"",INDEX('LEA Nos codes'!$A$3:$A$154,MATCH($A63,'LEA Nos codes'!$B$3:$B$154,0)))) -> Hampshire | C63: =IF($A63="","",IF(ISBLANK($A63),"",VLOOKUP($A63,Data!$A$4:$V$155,3,FALSE))) -> 5.56 | D63: =IF($A63="","",IF(ISBLANK($A63),"",VLOOKUP($A63,Data!$A$4:$AQ$155,43,FALSE))) -> 5.07 | E63: =IF($A63="","",IF(ISBLANK($A63),"",VLOOKUP($A63,Data!$A$4:$V$155,4,FALSE))) -> 4.44 | F63: =IF($A63="","",IF(ISBLANK($A63),"",VLOOKUP($A63,Data!$A$4:$V$155,5,FALSE))) -> 0.81 | G63: =IF($A63="","",IF(ISBLANK($A63),"",VLOOKUP($A63,Data!$A$4:$AP$155,42,FALSE))) -> 0.39 | H63: =IF($A63="","",IF(ISBLANK($A63),"",VLOOKUP($A63,Data!$A$4:$AS$155,45,FALSE))) -> 0.42 | I63: =IF($A63="","",IF(ISBLANK($A63),"",VLOOKUP($A63,Data!$A$4:$AI$155,35,FALSE))) -> 0.96 | J63: =IF($A63="","",IF(ISBLANK($A63),"",VLOOKUP($A63,Data!$A$4:$AM$155,37,FALSE))) -> 0.59 | K63: =IF($A63="","",IF(ISBLANK($A63),"",VLOOKUP($A63,Data!$A$4:$AM$155,38,FALSE))) -> 0.24 | L63: =IF($A63="","",IF(ISBLANK($A63),"",VLOOKUP($A63,Data!$A$4:$AM$155,39,FALSE))) -> 0.289 | M63: =IF($A63="","",IF(ISBLANK($A63),"",VLOOKUP($A63,Data!$A$4:$AI$155,6,FALSE))) -> 78700 | N63: =IF($A63="","",IF(ISBLANK($A63),"",VLOOKUP($A63,Data!$A$4:$AI$155,7,FALSE))) -> 139 | O63: =IF($A63="","",IF(ISBLANK($A63),"",VLOOKUP($A63,Data!$A$4:$AR$155,44,FALSE))) -> 0.35 | P63: =IF($A63="","",IF(ISBLANK($A63),"",VLOOKUP($A63,Data!$A$4:$AI$155,8,FALSE))) -> 0.64
A64: 309 | B64: =IF($A64="","",IF(ISBLANK($A64),"",INDEX('LEA Nos codes'!$A$3:$A$154,MATCH($A64,'LEA Nos codes'!$B$3:$B$154,0)))) -> Haringey | C64: =IF($A64="","",IF(ISBLANK($A64),"",VLOOKUP($A64,Data!$A$4:$V$155,3,FALSE))) -> 5.39 | D64: =IF($A64="","",IF(ISBLANK($A64),"",VLOOKUP($A64,Data!$A$4:$AQ$155,43,FALSE))) -> 5.28 | E64: =IF($A64="","",IF(ISBLANK($A64),"",VLOOKUP($A64,Data!$A$4:$V$155,4,FALSE))) -> 4.68 | F64: =IF($A64="","",IF(ISBLANK($A64),"",VLOOKUP($A64,Data!$A$4:$V$155,5,FALSE))) -> 0.62 | G64: =IF($A64="","",IF(ISBLANK($A64),"",VLOOKUP($A64,Data!$A$4:$AP$155,42,FALSE))) -> 0.48 | H64: =IF($A64="","",IF(ISBLANK($A64),"",VLOOKUP($A64,Data!$A$4:$AS$155,45,FALSE))) -> 0.43 | I64: =IF($A64="","",IF(ISBLANK($A64),"",VLOOKUP($A64,Data!$A$4:$AI$155,35,FALSE))) -> 0.9 | J64: =IF($A64="","",IF(ISBLANK($A64),"",VLOOKUP($A64,Data!$A$4:$AM$155,37,FALSE))) -> 0.5 | K64: =IF($A64="","",IF(ISBLANK($A64),"",VLOOKUP($A64,Data!$A$4:$AM$155,38,FALSE))) -> 0.13 | L64: =IF($A64="","",IF(ISBLANK($A64),"",VLOOKUP($A64,Data!$A$4:$AM$155,39,FALSE))) -> 0.366 | M64: =IF($A64="","",IF(ISBLANK($A64),"",VLOOKUP($A64,Data!$A$4:$AI$155,6,FALSE))) -> 18300 | N64: =IF($A64="","",IF(ISBLANK($A64),"",VLOOKUP($A64,Data!$A$4:$AI$155,7,FALSE))) -> 12 | O64: =IF($A64="","",IF(ISBLANK($A64),"",VLOOKUP($A64,Data!$A$4:$AR$155,44,FALSE))) -> 0.78 | P64: =IF($A64="","",IF(ISBLANK($A64),"",VLOOKUP($A64,Data!$A$4:$AI$155,8,FALSE))) -> 0.21
A65: 310 | B65: =IF($A65="","",IF(ISBLANK($A65),"",INDEX('LEA Nos codes'!$A$3:$A$154,MATCH($A65,'LEA Nos codes'!$B$3:$B$154,0)))) -> Harrow | C65: =IF($A65="","",IF(ISBLANK($A65),"",VLOOKUP($A65,Data!$A$4:$V$155,3,FALSE))) -> 5.53 | D65: =IF($A65="","",IF(ISBLANK($A65),"",VLOOKUP($A65,Data!$A$4:$AQ$155,43,FALSE))) -> 5.53 | E65: =IF($A65="","",IF(ISBLANK($A65),"",VLOOKUP($A65,Data!$A$4:$V$155,4,FALSE))) -> 4.14 | F65: =IF($A65="","",IF(ISBLANK($A65),"",VLOOKUP($A65,Data!$A$4:$V$155,5,FALSE))) -> 0.69 | G65: =IF($A65="","",IF(ISBLANK($A65),"",VLOOKUP($A65,Data!$A$4:$AP$155,42,FALSE))) -> 0.38 | H65: =IF($A65="","",IF(ISBLANK($A65),"",VLOOKUP($A65,Data!$A$4:$AS$155,45,FALSE))) -> 0.39 | I65: =IF($A65="","",IF(ISBLANK($A65),"",VLOOKUP($A65,Data!$A$4:$AI$155,35,FALSE))) -> 0.87 | J65: =IF($A65="","",IF(ISBLANK($A65),"",VLOOKUP($A65,Data!$A$4:$AM$155,37,FALSE))) -> 0.45 | K65: =IF($A65="","",IF(ISBLANK($A65),"",VLOOKUP($A65,Data!$A$4:$AM$155,38,FALSE))) -> 0.16 | L65: =IF($A65="","",IF(ISBLANK($A65),"",VLOOKUP($A65,Data!$A$4:$AM$155,39,FALSE))) -> 0.379 | M65: =IF($A65="","",IF(ISBLANK($A65),"",VLOOKUP($A65,Data!$A$4:$AI$155,6,FALSE))) -> 16600 | N65: =IF($A65="","",IF(ISBLANK($A65),"",VLOOKUP($A65,Data!$A$4:$AI$155,7,FALSE))) -> 117 | O65: =IF($A65="","",IF(ISBLANK($A65),"",VLOOKUP($A65,Data!$A$4:$AR$155,44,FALSE))) -> 0.56 | P65: =IF($A65="","",IF(ISBLANK($A65),"",VLOOKUP($A65,Data!$A$4:$AI$155,8,FALSE))) -> 0.43
A66: 805 | B66: =IF($A66="","",IF(ISBLANK($A66),"",INDEX('LEA Nos codes'!$A$3:$A$154,MATCH($A66,'LEA Nos codes'!$B$3:$B$154,0)))) -> Hartlepool | C66: =IF($A66="","",IF(ISBLANK($A66),"",VLOOKUP($A66,Data!$A$4:$V$155,3,FALSE))) -> 4.85 | D66: =IF($A66="","",IF(ISBLANK($A66),"",VLOOKUP($A66,Data!$A$4:$AQ$155,43,FALSE))) -> 4.85 | E66: =IF($A66="","",IF(ISBLANK($A66),"",VLOOKUP($A66,Data!$A$4:$V$155,4,FALSE))) -> 3.49 | F66: =IF($A66="","",IF(ISBLANK($A66),"",VLOOKUP($A66,Data!$A$4:$V$155,5,FALSE))) -> 0.77 | G66: =IF($A66="","",IF(ISBLANK($A66),"",VLOOKUP($A66,Data!$A$4:$AP$155,42,FALSE))) -> 0.17 | H66: =IF($A66="","",IF(ISBLANK($A66),"",VLOOKUP($A66,Data!$A$4:$AS$155,45,FALSE))) -> 0.1 | I66: =IF($A66="","",IF(ISBLANK($A66),"",VLOOKUP($A66,Data!$A$4:$AI$155,35,FALSE))) -> 1 | J66: =IF($A66="","",IF(ISBLANK($A66),"",VLOOKUP($A66,Data!$A$4:$AM$155,37,FALSE))) -> 0.48 | K66: =IF($A66="","",IF(ISBLANK($A66),"",VLOOKUP($A66,Data!$A$4:$AM$155,38,FALSE))) -> 0.26 | L66: =IF($A66="","",IF(ISBLANK($A66),"",VLOOKUP($A66,Data!$A$4:$AM$155,39,FALSE))) -> 0.399 | M66: =IF($A66="","",IF(ISBLANK($A66),"",VLOOKUP($A66,Data!$A$4:$AI$155,6,FALSE))) -> 5800 | N66: =IF($A66="","",IF(ISBLANK($A66),"",VLOOKUP($A66,Data!$A$4:$AI$155,7,FALSE))) -> 22 | O66: =IF($A66="","",IF(ISBLANK($A66),"",VLOOKUP($A66,Data!$A$4:$AR$155,44,FALSE))) -> 0.94 | P66: =IF($A66="","",IF(ISBLANK($A66),"",VLOOKUP($A66,Data!$A$4:$AI$155,8,FALSE))) -> 0.05
A67: 311 | B67: =IF($A67="","",IF(ISBLANK($A67),"",INDEX('LEA Nos codes'!$A$3:$A$154,MATCH($A67,'LEA Nos codes'!$B$3:$B$154,0)))) -> Havering | C67: =IF($A67="","",IF(ISBLANK($A67),"",VLOOKUP($A67,Data!$A$4:$V$155,3,FALSE))) -> . | D67: =IF($A67="","",IF(ISBLANK($A67),"",VLOOKUP($A67,Data!$A$4:$AQ$155,43,FALSE))) -> 5.28 | E67: =IF($A67="","",IF(ISBLANK($A67),"",VLOOKUP($A67,Data!$A$4:$V$155,4,FALSE))) -> 4.14 | F67: =IF($A67="","",IF(ISBLANK($A67),"",VLOOKUP($A67,Data!$A$4:$V$155,5,FALSE))) -> 0.72 | G67: =IF($A67="","",IF(ISBLANK($A67),"",VLOOKUP($A67,Data!$A$4:$AP$155,42,FALSE))) -> 0.38 | H67: =IF($A67="","",IF(ISBLANK($A67),"",VLOOKUP($A67,Data!$A$4:$AS$155,45,FALSE))) -> 0.36 | I67: =IF($A67="","",IF(ISBLANK($A67),"",VLOOKUP($A67,Data!$A$4:$AI$155,35,FALSE))) -> 1.01 | J67: =IF($A67="","",IF(ISBLANK($A67),"",VLOOKUP($A67,Data!$A$4:$AM$155,37,FALSE))) -> 0.59 | K67: =IF($A67="","",IF(ISBLANK($A67),"",VLOOKUP($A67,Data!$A$4:$AM$155,38,FALSE))) -> 0.23 | L67: =IF($A67="","",IF(ISBLANK($A67),"",VLOOKUP($A67,Data!$A$4:$AM$155,39,FALSE))) -> 0.273 | M67: =IF($A67="","",IF(ISBLANK($A67),"",VLOOKUP($A67,Data!$A$4:$AI$155,6,FALSE))) -> 14300 | N67: =IF($A67="","",IF(ISBLANK($A67),"",VLOOKUP($A67,Data!$A$4:$AI$155,7,FALSE))) -> 107 | O67: =IF($A67="","",IF(ISBLANK($A67),"",VLOOKUP($A67,Data!$A$4:$AR$155,44,FALSE))) -> 0.49 | P67: =IF($A67="","",IF(ISBLANK($A67),"",VLOOKUP($A67,Data!$A$4:$AI$155,8,FALSE))) -> 0.5
A68: 884 | B68: =IF($A68="","",IF(ISBLANK($A68),"",INDEX('LEA Nos codes'!$A$3:$A$154,MATCH($A68,'LEA Nos codes'!$B$3:$B$154,0)))) -> Herefordshire | C68: =IF($A68="","",IF(ISBLANK($A68),"",VLOOKUP($A68,Data!$A$4:$V$155,3,FALSE))) -> 4.85 | D68: =IF($A68="","",IF(ISBLANK($A68),"",VLOOKUP($A68,Data!$A$4:$AQ$155,43,FALSE))) -> 4.85 | E68: =IF($A68="","",IF(ISBLANK($A68),"",VLOOKUP($A68,Data!$A$4:$V$155,4,FALSE))) -> 3.48 | F68: =IF($A68="","",IF(ISBLANK($A68),"",VLOOKUP($A68,Data!$A$4:$V$155,5,FALSE))) -> 0.78 | G68: =IF($A68="","",IF(ISBLANK($A68),"",VLOOKUP($A68,Data!$A$4:$AP$155,42,FALSE))) -> 0.56 | H68: =IF($A68="","",IF(ISBLANK($A68),"",VLOOKUP($A68,Data!$A$4:$AS$155,45,FALSE))) -> 0.63 | I68: =IF($A68="","",IF(ISBLANK($A68),"",VLOOKUP($A68,Data!$A$4:$AI$155,35,FALSE))) -> 0.96 | J68: =IF($A68="","",IF(ISBLANK($A68),"",VLOOKUP($A68,Data!$A$4:$AM$155,37,FALSE))) -> 0.55 | K68: =IF($A68="","",IF(ISBLANK($A68),"",VLOOKUP($A68,Data!$A$4:$AM$155,38,FALSE))) -> 0.23 | L68: =IF($A68="","",IF(ISBLANK($A68),"",VLOOKUP($A68,Data!$A$4:$AM$155,39,FALSE))) -> 0.351 | M68: =IF($A68="","",IF(ISBLANK($A68),"",VLOOKUP($A68,Data!$A$4:$AI$155,6,FALSE))) -> 9800 | N68: =IF($A68="","",IF(ISBLANK($A68),"",VLOOKUP($A68,Data!$A$4:$AI$155,7,FALSE))) -> 100 | O68: =IF($A68="","",IF(ISBLANK($A68),"",VLOOKUP($A68,Data!$A$4:$AR$155,44,FALSE))) -> 0.44 | P68: =IF($A68="","",IF(ISBLANK($A68),"",VLOOKUP($A68,Data!$A$4:$AI$155,8,FALSE))) -> 0.55
A69: 919 | B69: =IF($A69="","",IF(ISBLANK($A69),"",INDEX('LEA Nos codes'!$A$3:$A$154,MATCH($A69,'LEA Nos codes'!$B$3:$B$154,0)))) -> Hertfordshire | C69: =IF($A69="","",IF(ISBLANK($A69),"",VLOOKUP($A69,Data!$A$4:$V$155,3,FALSE))) -> . | D69: =IF($A69="","",IF(ISBLANK($A69),"",VLOOKUP($A69,Data!$A$4:$AQ$155,43,FALSE))) -> 5.24 | E69: =IF($A69="","",IF(ISBLANK($A69),"",VLOOKUP($A69,Data!$A$4:$V$155,4,FALSE))) -> 4.72 | F69: =IF($A69="","",IF(ISBLANK($A69),"",VLOOKUP($A69,Data!$A$4:$V$155,5,FALSE))) -> 0.84 | G69: =IF($A69="","",IF(ISBLANK($A69),"",VLOOKUP($A69,Data!$A$4:$AP$155,42,FALSE))) -> 0.46 | H69: =IF($A69="","",IF(ISBLANK($A69),"",VLOOKUP($A69,Data!$A$4:$AS$155,45,FALSE))) -> 0.54 | I69: =IF($A69="","",IF(ISBLANK($A69),"",VLOOKUP($A69,Data!$A$4:$AI$155,35,FALSE))) -> 0.96 | J69: =IF($A69="","",IF(ISBLANK($A69),"",VLOOKUP($A69,Data!$A$4:$AM$155,37,FALSE))) -> 0.61 | K69: =IF($A69="","",IF(ISBLANK($A69),"",VLOOKUP($A69,Data!$A$4:$AM$155,38,FALSE))) -> 0.23 | L69: =IF($A69="","",IF(ISBLANK($A69),"",VLOOKUP($A69,Data!$A$4:$AM$155,39,FALSE))) -> 0.288 | M69: =IF($A69="","",IF(ISBLANK($A69),"",VLOOKUP($A69,Data!$A$4:$AI$155,6,FALSE))) -> 76600 | N69: =IF($A69="","",IF(ISBLANK($A69),"",VLOOKUP($A69,Data!$A$4:$AI$155,7,FALSE))) -> 138 | O69: =IF($A69="","",IF(ISBLANK($A69),"",VLOOKUP($A69,Data!$A$4:$AR$155,44,FALSE))) -> 0.69 | P69: =IF($A69="","",IF(ISBLANK($A69),"",VLOOKUP($A69,Data!$A$4:$AI$155,8,FALSE))) -> 0.31
A70: 312 | B70: =IF($A70="","",IF(ISBLANK($A70),"",INDEX('LEA Nos codes'!$A$3:$A$154,MATCH($A70,'LEA Nos codes'!$B$3:$B$154,0)))) -> Hillingdon | C70: =IF($A70="","",IF(ISBLANK($A70),"",VLOOKUP($A70,Data!$A$4:$V$155,3,FALSE))) -> 6 | D70: =IF($A70="","",IF(ISBLANK($A70),"",VLOOKUP($A70,Data!$A$4:$AQ$155,43,FALSE))) -> 5.53 | E70: =IF($A70="","",IF(ISBLANK($A70),"",VLOOKUP($A70,Data!$A$4:$V$155,4,FALSE))) -> 4.65 | F70: =IF($A70="","",IF(ISBLANK($A70),"",VLOOKUP($A70,Data!$A$4:$V$155,5,FALSE))) -> 0.69 | G70: =IF($A70="","",IF(ISBLANK($A70),"",VLOOKUP($A70,Data!$A$4:$AP$155,42,FALSE))) -> 0.4 | H70: =IF($A70="","",IF(ISBLANK($A70),"",VLOOKUP($A70,Data!$A$4:$AS$155,45,FALSE))) -> 0.47 | I70: =IF($A70="","",IF(ISBLANK($A70),"",VLOOKUP($A70,Data!$A$4:$AI$155,35,FALSE))) -> 0.98 | J70: =IF($A70="","",IF(ISBLANK($A70),"",VLOOKUP($A70,Data!$A$4:$AM$155,37,FALSE))) -> 0.41 | K70: =IF($A70="","",IF(ISBLANK($A70),"",VLOOKUP($A70,Data!$A$4:$AM$155,38,FALSE))) -> 0.16 | L70: =IF($A70="","",IF(ISBLANK($A70),"",VLOOKUP($A70,Data!$A$4:$AM$155,39,FALSE))) -> 0.366 | M70: =IF($A70="","",IF(ISBLANK($A70),"",VLOOKUP($A70,Data!$A$4:$AI$155,6,FALSE))) -> 21000 | N70: =IF($A70="","",IF(ISBLANK($A70),"",VLOOKUP($A70,Data!$A$4:$AI$155,7,FALSE))) -> 92 | O70: =IF($A70="","",IF(ISBLANK($A70),"",VLOOKUP($A70,Data!$A$4:$AR$155,44,FALSE))) -> 0.75 | P70: =IF($A70="","",IF(ISBLANK($A70),"",VLOOKUP($A70,Data!$A$4:$AI$155,8,FALSE))) -> 0.23
A71: 313 | B71: =IF($A71="","",IF(ISBLANK($A71),"",INDEX('LEA Nos codes'!$A$3:$A$154,MATCH($A71,'LEA Nos codes'!$B$3:$B$154,0)))) -> Hounslow | C71: =IF($A71="","",IF(ISBLANK($A71),"",VLOOKUP($A71,Data!$A$4:$V$155,3,FALSE))) -> . | D71: =IF($A71="","",IF(ISBLANK($A71),"",VLOOKUP($A71,Data!$A$4:$AQ$155,43,FALSE))) -> 5.53 | E71: =IF($A71="","",IF(ISBLANK($A71),"",VLOOKUP($A71,Data!$A$4:$V$155,4,FALSE))) -> 4.58 | F71: =IF($A71="","",IF(ISBLANK($A71),"",VLOOKUP($A71,Data!$A$4:$V$155,5,FALSE))) -> 0.72 | G71: =IF($A71="","",IF(ISBLANK($A71),"",VLOOKUP($A71,Data!$A$4:$AP$155,42,FALSE))) -> 0.45 | H71: =IF($A71="","",IF(ISBLANK($A71),"",VLOOKUP($A71,Data!$A$4:$AS$155,45,FALSE))) -> 0.51 | I71: =IF($A71="","",IF(ISBLANK($A71),"",VLOOKUP($A71,Data!$A$4:$AI$155,35,FALSE))) -> 0.87 | J71: =IF($A71="","",IF(ISBLANK($A71),"",VLOOKUP($A71,Data!$A$4:$AM$155,37,FALSE))) -> 0.4 | K71: =IF($A71="","",IF(ISBLANK($A71),"",VLOOKUP($A71,Data!$A$4:$AM$155,38,FALSE))) -> 0.14 | L71: =IF($A71="","",IF(ISBLANK($A71),"",VLOOKUP($A71,Data!$A$4:$AM$155,39,FALSE))) -> 0.372 | M71: =IF($A71="","",IF(ISBLANK($A71),"",VLOOKUP($A71,Data!$A$4:$AI$155,6,FALSE))) -> 20800 | N71: =IF($A71="","",IF(ISBLANK($A71),"",VLOOKUP($A71,Data!$A$4:$AI$155,7,FALSE))) -> 82 | O71: =IF($A71="","",IF(ISBLANK($A71),"",VLOOKUP($A71,Data!$A$4:$AR$155,44,FALSE))) -> 0.71 | P71: =IF($A71="","",IF(ISBLANK($A71),"",VLOOKUP($A71,Data!$A$4:$AI$155,8,FALSE))) -> 0.27
A72: 921 | B72: =IF($A72="","",IF(ISBLANK($A72),"",INDEX('LEA Nos codes'!$A$3:$A$154,MATCH($A72,'LEA Nos codes'!$B$3:$B$154,0)))) -> Isle of Wight | C72: =IF($A72="","",IF(ISBLANK($A72),"",VLOOKUP($A72,Data!$A$4:$V$155,3,FALSE))) -> 4.89 | D72: =IF($A72="","",IF(ISBLANK($A72),"",VLOOKUP($A72,Data!$A$4:$AQ$155,43,FALSE))) -> 5.07 | E72: =IF($A72="","",IF(ISBLANK($A72),"",VLOOKUP($A72,Data!$A$4:$V$155,4,FALSE))) -> 3.87 | F72: =IF($A72="","",IF(ISBLANK($A72),"",VLOOKUP($A72,Data!$A$4:$V$155,5,FALSE))) -> 0.82 | G72: =IF($A72="","",IF(ISBLANK($A72),"",VLOOKUP($A72,Data!$A$4:$AP$155,42,FALSE))) -> 0.24 | H72: =IF($A72="","",IF(ISBLANK($A72),"",VLOOKUP($A72,Data!$A$4:$AS$155,45,FALSE))) -> 0.31 | I72: =IF($A72="","",IF(ISBLANK($A72),"",VLOOKUP($A72,Data!$A$4:$AI$155,35,FALSE))) -> 0.97 | J72: =IF($A72="","",IF(ISBLANK($A72),"",VLOOKUP($A72,Data!$A$4:$AM$155,37,FALSE))) -> 0.45 | K72: =IF($A72="","",IF(ISBLANK($A72),"",VLOOKUP($A72,Data!$A$4:$AM$155,38,FALSE))) -> 0.14 | L72: =IF($A72="","",IF(ISBLANK($A72),"",VLOOKUP($A72,Data!$A$4:$AM$155,39,FALSE))) -> 0.392 | M72: =IF($A72="","",IF(ISBLANK($A72),"",VLOOKUP($A72,Data!$A$4:$AI$155,6,FALSE))) -> 6600 | N72: =IF($A72="","",IF(ISBLANK($A72),"",VLOOKUP($A72,Data!$A$4:$AI$155,7,FALSE))) -> 86 | O72: =IF($A72="","",IF(ISBLANK($A72),"",VLOOKUP($A72,Data!$A$4:$AR$155,44,FALSE))) -> 0.36 | P72: =IF($A72="","",IF(ISBLANK($A72),"",VLOOKUP($A72,Data!$A$4:$AI$155,8,FALSE))) -> 0.63
A73: 420 | B73: =IF($A73="","",IF(ISBLANK($A73),"",INDEX('LEA Nos codes'!$A$3:$A$154,MATCH($A73,'LEA Nos codes'!$B$3:$B$154,0)))) -> Isles of Scilly | C73: =IF($A73="","",IF(ISBLANK($A73),"",VLOOKUP($A73,Data!$A$4:$V$155,3,FALSE))) -> 5.09 | D73: =IF($A73="","",IF(ISBLANK($A73),"",VLOOKUP($A73,Data!$A$4:$AQ$155,43,FALSE))) -> 4.85 | E73: =IF($A73="","",IF(ISBLANK($A73),"",VLOOKUP($A73,Data!$A$4:$V$155,4,FALSE))) -> 4.7 | F73: =IF($A73="","",IF(ISBLANK($A73),"",VLOOKUP($A73,Data!$A$4:$V$155,5,FALSE))) -> 1 | G73: =IF($A73="","",IF(ISBLANK($A73),"",VLOOKUP($A73,Data!$A$4:$AP$155,42,FALSE))) -> 0 | H73: =IF($A73="","",IF(ISBLANK($A73),"",VLOOKUP($A73,Data!$A$4:$AS$155,45,FALSE))) -> 0 | I73: =IF($A73="","",IF(ISBLANK($A73),"",VLOOKUP($A73,Data!$A$4:$AI$155,35,FALSE))) -> 1 | J73: =IF($A73="","",IF(ISBLANK($A73),"",VLOOKUP($A73,Data!$A$4:$AM$155,37,FALSE))) -> 1 | K73: =IF($A73="","",IF(ISBLANK($A73),"",VLOOKUP($A73,Data!$A$4:$AM$155,38,FALSE))) -> ** | L73: =IF($A73="","",IF(ISBLANK($A73),"",VLOOKUP($A73,Data!$A$4:$AM$155,39,FALSE))) -> 0.105 | M73: =IF($A73="","",IF(ISBLANK($A73),"",VLOOKUP($A73,Data!$A$4:$AI$155,6,FALSE))) -> 100 | N73: =IF($A73="","",IF(ISBLANK($A73),"",VLOOKUP($A73,Data!$A$4:$AI$155,7,FALSE))) -> 78 | O73: =IF($A73="","",IF(ISBLANK($A73),"",VLOOKUP($A73,Data!$A$4:$AR$155,44,FALSE))) -> 0.78 | P73: =IF($A73="","",IF(ISBLANK($A73),"",VLOOKUP($A73,Data!$A$4:$AI$155,8,FALSE))) -> 0.2
A74: 206 | B74: =IF($A74="","",IF(ISBLANK($A74),"",INDEX('LEA Nos codes'!$A$3:$A$154,MATCH($A74,'LEA Nos codes'!$B$3:$B$154,0)))) -> Islington | C74: =IF($A74="","",IF(ISBLANK($A74),"",VLOOKUP($A74,Data!$A$4:$V$155,3,FALSE))) -> 9.99 | D74: =IF($A74="","",IF(ISBLANK($A74),"",VLOOKUP($A74,Data!$A$4:$AQ$155,43,FALSE))) -> 6.07 | E74: =IF($A74="","",IF(ISBLANK($A74),"",VLOOKUP($A74,Data!$A$4:$V$155,4,FALSE))) -> 4.62 | F74: =IF($A74="","",IF(ISBLANK($A74),"",VLOOKUP($A74,Data!$A$4:$V$155,5,FALSE))) -> 0.76 | G74: =IF($A74="","",IF(ISBLANK($A74),"",VLOOKUP($A74,Data!$A$4:$AP$155,42,FALSE))) -> 0.65 | H74: =IF($A74="","",IF(ISBLANK($A74),"",VLOOKUP($A74,Data!$A$4:$AS$155,45,FALSE))) -> 0.81 | I74: =IF($A74="","",IF(ISBLANK($A74),"",VLOOKUP($A74,Data!$A$4:$AI$155,35,FALSE))) -> 0.98 | J74: =IF($A74="","",IF(ISBLANK($A74),"",VLOOKUP($A74,Data!$A$4:$AM$155,37,FALSE))) -> 0.44 | K74: =IF($A74="","",IF(ISBLANK($A74),"",VLOOKUP($A74,Data!$A$4:$AM$155,38,FALSE))) -> 0.14 | L74: =IF($A74="","",IF(ISBLANK($A74),"",VLOOKUP($A74,Data!$A$4:$AM$155,39,FALSE))) -> 0.342 | M74: =IF($A74="","",IF(ISBLANK($A74),"",VLOOKUP($A74,Data!$A$4:$AI$155,6,FALSE))) -> 12700 | N74: =IF($A74="","",IF(ISBLANK($A74),"",VLOOKUP($A74,Data!$A$4:$AI$155,7,FALSE))) -> 13 | O74: =IF($A74="","",IF(ISBLANK($A74),"",VLOOKUP($A74,Data!$A$4:$AR$155,44,FALSE))) -> 0.71 | P74: =IF($A74="","",IF(ISBLANK($A74),"",VLOOKUP($A74,Data!$A$4:$AI$155,8,FALSE))) -> 0.28
A75: 207 | B75: =IF($A75="","",IF(ISBLANK($A75),"",INDEX('LEA Nos codes'!$A$3:$A$154,MATCH($A75,'LEA Nos codes'!$B$3:$B$154,0)))) -> Kensington and Chelsea | C75: =IF($A75="","",IF(ISBLANK($A75),"",VLOOKUP($A75,Data!$A$4:$V$155,3,FALSE))) -> . | D75: =IF($A75="","",IF(ISBLANK($A75),"",VLOOKUP($A75,Data!$A$4:$AQ$155,43,FALSE))) -> 6.07 | E75: =IF($A75="","",IF(ISBLANK($A75),"",VLOOKUP($A75,Data!$A$4:$V$155,4,FALSE))) -> 5.89 | F75: =IF($A75="","",IF(ISBLANK($A75),"",VLOOKUP($A75,Data!$A$4:$V$155,5,FALSE))) -> 0.77 | G75: =IF($A75="","",IF(ISBLANK($A75),"",VLOOKUP($A75,Data!$A$4:$AP$155,42,FALSE))) -> 0.65 | H75: =IF($A75="","",IF(ISBLANK($A75),"",VLOOKUP($A75,Data!$A$4:$AS$155,45,FALSE))) -> 0.81 | I75: =IF($A75="","",IF(ISBLANK($A75),"",VLOOKUP($A75,Data!$A$4:$AI$155,35,FALSE))) -> 0.79 | J75: =IF($A75="","",IF(ISBLANK($A75),"",VLOOKUP($A75,Data!$A$4:$AM$155,37,FALSE))) -> 0.48 | K75: =IF($A75="","",IF(ISBLANK($A75),"",VLOOKUP($A75,Data!$A$4:$AM$155,38,FALSE))) -> 0.12 | L75: =IF($A75="","",IF(ISBLANK($A75),"",VLOOKUP($A75,Data!$A$4:$AM$155,39,FALSE))) -> 0.369 | M75: =IF($A75="","",IF(ISBLANK($A75),"",VLOOKUP($A75,Data!$A$4:$AI$155,6,FALSE))) -> 9100 | N75: =IF($A75="","",IF(ISBLANK($A75),"",VLOOKUP($A75,Data!$A$4:$AI$155,7,FALSE))) -> 73 | O75: =IF($A75="","",IF(ISBLANK($A75),"",VLOOKUP($A75,Data!$A$4:$AR$155,44,FALSE))) -> 0.57 | P75: =IF($A75="","",IF(ISBLANK($A75),"",VLOOKUP($A75,Data!$A$4:$AI$155,8,FALSE))) -> 0.43
A76: 886 | B76: =IF($A76="","",IF(ISBLANK($A76),"",INDEX('LEA Nos codes'!$A$3:$A$154,MATCH($A76,'LEA Nos codes'!$B$3:$B$154,0)))) -> Kent | C76: =IF($A76="","",IF(ISBLANK($A76),"",VLOOKUP($A76,Data!$A$4:$V$155,3,FALSE))) -> 4.85 | D76: =IF($A76="","",IF(ISBLANK($A76),"",VLOOKUP($A76,Data!$A$4:$AQ$155,43,FALSE))) -> 4.93 | E76: =IF($A76="","",IF(ISBLANK($A76),"",VLOOKUP($A76,Data!$A$4:$V$155,4,FALSE))) -> 4.25 | F76: =IF($A76="","",IF(ISBLANK($A76),"",VLOOKUP($A76,Data!$A$4:$V$155,5,FALSE))) -> 0.83 | G76: =IF($A76="","",IF(ISBLANK($A76),"",VLOOKUP($A76,Data!$A$4:$AP$155,42,FALSE))) -> 0.39 | H76: =IF($A76="","",IF(ISBLANK($A76),"",VLOOKUP($A76,Data!$A$4:$AS$155,45,FALSE))) -> 0.43 | I76: =IF($A76="","",IF(ISBLANK($A76),"",VLOOKUP($A76,Data!$A$4:$AI$155,35,FALSE))) -> 0.96 | J76: =IF($A76="","",IF(ISBLANK($A76),"",VLOOKUP($A76,Data!$A$4:$AM$155,37,FALSE))) -> 0.63 | K76: =IF($A76="","",IF(ISBLANK($A76),"",VLOOKUP($A76,Data!$A$4:$AM$155,38,FALSE))) -> 0.19 | L76: =IF($A76="","",IF(ISBLANK($A76),"",VLOOKUP($A76,Data!$A$4:$AM$155,39,FALSE))) -> 0.252 | M76: =IF($A76="","",IF(ISBLANK($A76),"",VLOOKUP($A76,Data!$A$4:$AI$155,6,FALSE))) -> 90800 | N76: =IF($A76="","",IF(ISBLANK($A76),"",VLOOKUP($A76,Data!$A$4:$AI$155,7,FALSE))) -> 101 | O76: =IF($A76="","",IF(ISBLANK($A76),"",VLOOKUP($A76,Data!$A$4:$AR$155,44,FALSE))) -> 0.41 | P76: =IF($A76="","",IF(ISBLANK($A76),"",VLOOKUP($A76,Data!$A$4:$AI$155,8,FALSE))) -> 0.58
A77: 314 | B77: =IF($A77="","",IF(ISBLANK($A77),"",INDEX('LEA Nos codes'!$A$3:$A$154,MATCH($A77,'LEA Nos codes'!$B$3:$B$154,0)))) -> Kingston upon Thames | C77: =IF($A77="","",IF(ISBLANK($A77),"",VLOOKUP($A77,Data!$A$4:$V$155,3,FALSE))) -> 6.2 | D77: =IF($A77="","",IF(ISBLANK($A77),"",VLOOKUP($A77,Data!$A$4:$AQ$155,43,FALSE))) -> 5.53 | E77: =IF($A77="","",IF(ISBLANK($A77),"",VLOOKUP($A77,Data!$A$4:$V$155,4,FALSE))) -> 3.87 | F77: =IF($A77="","",IF(ISBLANK($A77),"",VLOOKUP($A77,Data!$A$4:$V$155,5,FALSE))) -> 0.84 | G77: =IF($A77="","",IF(ISBLANK($A77),"",VLOOKUP($A77,Data!$A$4:$AP$155,42,FALSE))) -> 0.51 | H77: =IF($A77="","",IF(ISBLANK($A77),"",VLOOKUP($A77,Data!$A$4:$AS$155,45,FALSE))) -> 0.58 | I77: =IF($A77="","",IF(ISBLANK($A77),"",VLOOKUP($A77,Data!$A$4:$AI$155,35,FALSE))) -> 0.94 | J77: =IF($A77="","",IF(ISBLANK($A77),"",VLOOKUP($A77,Data!$A$4:$AM$155,37,FALSE))) -> 0.57 | K77: =IF($A77="","",IF(ISBLANK($A77),"",VLOOKUP($A77,Data!$A$4:$AM$155,38,FALSE))) -> 0.22 | L77: =IF($A77="","",IF(ISBLANK($A77),"",VLOOKUP($A77,Data!$A$4:$AM$155,39,FALSE))) -> 0.283 | M77: =IF($A77="","",IF(ISBLANK($A77),"",VLOOKUP($A77,Data!$A$4:$AI$155,6,FALSE))) -> 11500 | N77: =IF($A77="","",IF(ISBLANK($A77),"",VLOOKUP($A77,Data!$A$4:$AI$155,7,FALSE))) -> 137 | O77: =IF($A77="","",IF(ISBLANK($A77),"",VLOOKUP($A77,Data!$A$4:$AR$155,44,FALSE))) -> 0.66 | P77: =IF($A77="","",IF(ISBLANK($A77),"",VLOOKUP($A77,Data!$A$4:$AI$155,8,FALSE))) -> 0.34
A78: 382 | B78: =IF($A78="","",IF(ISBLANK($A78),"",INDEX('LEA Nos codes'!$A$3:$A$154,MATCH($A78,'LEA Nos codes'!$B$3:$B$154,0)))) -> Kirklees | C78: =IF($A78="","",IF(ISBLANK($A78),"",VLOOKUP($A78,Data!$A$4:$V$155,3,FALSE))) -> 4.85 | D78: =IF($A78="","",IF(ISBLANK($A78),"",VLOOKUP($A78,Data!$A$4:$AQ$155,43,FALSE))) -> 4.85 | E78: =IF($A78="","",IF(ISBLANK($A78),"",VLOOKUP($A78,Data!$A$4:$V$155,4,FALSE))) -> 4.37 | F78: =IF($A78="","",IF(ISBLANK($A78),"",VLOOKUP($A78,Data!$A$4:$V$155,5,FALSE))) -> 0.73 | G78: =IF($A78="","",IF(ISBLANK($A78),"",VLOOKUP($A78,Data!$A$4:$AP$155,42,FALSE))) -> 0.32 | H78: =IF($A78="","",IF(ISBLANK($A78),"",VLOOKUP($A78,Data!$A$4:$AS$155,45,FALSE))) -> 0.38 | I78: =IF($A78="","",IF(ISBLANK($A78),"",VLOOKUP($A78,Data!$A$4:$AI$155,35,FALSE))) -> 0.97 | J78: =IF($A78="","",IF(ISBLANK($A78),"",VLOOKUP($A78,Data!$A$4:$AM$155,37,FALSE))) -> 0.53 | K78: =IF($A78="","",IF(ISBLANK($A78),"",VLOOKUP($A78,Data!$A$4:$AM$155,38,FALSE))) -> 0.23 | L78: =IF($A78="","",IF(ISBLANK($A78),"",VLOOKUP($A78,Data!$A$4:$AM$155,39,FALSE))) -> 0.35 | M78: =IF($A78="","",IF(ISBLANK($A78),"",VLOOKUP($A78,Data!$A$4:$AI$155,6,FALSE))) -> 28700 | N78: =IF($A78="","",IF(ISBLANK($A78),"",VLOOKUP($A78,Data!$A$4:$AI$155,7,FALSE))) -> 62 | O78: =IF($A78="","",IF(ISBLANK($A78),"",VLOOKUP($A78,Data!$A$4:$AR$155,44,FALSE))) -> 0.66 | P78: =IF($A78="","",IF(ISBLANK($A78),"",VLOOKUP($A78,Data!$A$4:$AI$155,8,FALSE))) -> 0.34
A79: 340 | B79: =IF($A79="","",IF(ISBLANK($A79),"",INDEX('LEA Nos codes'!$A$3:$A$154,MATCH($A79,'LEA Nos codes'!$B$3:$B$154,0)))) -> Knowsley | C79: =IF($A79="","",IF(ISBLANK($A79),"",VLOOKUP($A79,Data!$A$4:$V$155,3,FALSE))) -> 4.7 | D79: =IF($A79="","",IF(ISBLANK($A79),"",VLOOKUP($A79,Data!$A$4:$AQ$155,43,FALSE))) -> 4.87 | E79: =IF($A79="","",IF(ISBLANK($A79),"",VLOOKUP($A79,Data!$A$4:$V$155,4,FALSE))) -> 4.31 | F79: =IF($A79="","",IF(ISBLANK($A79),"",VLOOKUP($A79,Data!$A$4:$V$155,5,FALSE))) -> 0.77 | G79: =IF($A79="","",IF(ISBLANK($A79),"",VLOOKUP($A79,Data!$A$4:$AP$155,42,FALSE))) -> 0.59 | H79: =IF($A79="","",IF(ISBLANK($A79),"",VLOOKUP($A79,Data!$A$4:$AS$155,45,FALSE))) -> 0.72 | I79: =IF($A79="","",IF(ISBLANK($A79),"",VLOOKUP($A79,Data!$A$4:$AI$155,35,FALSE))) -> 0.99 | J79: =IF($A79="","",IF(ISBLANK($A79),"",VLOOKUP($A79,Data!$A$4:$AM$155,37,FALSE))) -> 0.55 | K79: =IF($A79="","",IF(ISBLANK($A79),"",VLOOKUP($A79,Data!$A$4:$AM$155,38,FALSE))) -> 0.17 | L79: =IF($A79="","",IF(ISBLANK($A79),"",VLOOKUP($A79,Data!$A$4:$AM$155,39,FALSE))) -> 0.319 | M79: =IF($A79="","",IF(ISBLANK($A79),"",VLOOKUP($A79,Data!$A$4:$AI$155,6,FALSE))) -> 9300 | N79: =IF($A79="","",IF(ISBLANK($A79),"",VLOOKUP($A79,Data!$A$4:$AI$155,7,FALSE))) -> 5 | O79: =IF($A79="","",IF(ISBLANK($A79),"",VLOOKUP($A79,Data!$A$4:$AR$155,44,FALSE))) -> 0.88 | P79: =IF($A79="","",IF(ISBLANK($A79),"",VLOOKUP($A79,Data!$A$4:$AI$155,8,FALSE))) -> 0.11
A80: 208 | B80: =IF($A80="","",IF(ISBLANK($A80),"",INDEX('LEA Nos codes'!$A$3:$A$154,MATCH($A80,'LEA Nos codes'!$B$3:$B$154,0)))) -> Lambeth | C80: =IF($A80="","",IF(ISBLANK($A80),"",VLOOKUP($A80,Data!$A$4:$V$155,3,FALSE))) -> . | D80: =IF($A80="","",IF(ISBLANK($A80),"",VLOOKUP($A80,Data!$A$4:$AQ$155,43,FALSE))) -> 6.07 | E80: =IF($A80="","",IF(ISBLANK($A80),"",VLOOKUP($A80,Data!$A$4:$V$155,4,FALSE))) -> 5.88 | F80: =IF($A80="","",IF(ISBLANK($A80),"",VLOOKUP($A80,Data!$A$4:$V$155,5,FALSE))) -> 0.7 | G80: =IF($A80="","",IF(ISBLANK($A80),"",VLOOKUP($A80,Data!$A$4:$AP$155,42,FALSE))) -> 0.52 | H80: =IF($A80="","",IF(ISBLANK($A80),"",VLOOKUP($A80,Data!$A$4:$AS$155,45,FALSE))) -> 0.54 | I80: =IF($A80="","",IF(ISBLANK($A80),"",VLOOKUP($A80,Data!$A$4:$AI$155,35,FALSE))) -> 0.91 | J80: =IF($A80="","",IF(ISBLANK($A80),"",VLOOKUP($A80,Data!$A$4:$AM$155,37,FALSE))) -> 0.46 | K80: =IF($A80="","",IF(ISBLANK($A80),"",VLOOKUP($A80,Data!$A$4:$AM$155,38,FALSE))) -> 0.14 | L80: =IF($A80="","",IF(ISBLANK($A80),"",VLOOKUP($A80,Data!$A$4:$AM$155,39,FALSE))) -> 0.396 | M80: =IF($A80="","",IF(ISBLANK($A80),"",VLOOKUP($A80,Data!$A$4:$AI$155,6,FALSE))) -> 21100 | N80: =IF($A80="","",IF(ISBLANK($A80),"",VLOOKUP($A80,Data!$A$4:$AI$155,7,FALSE))) -> 27 | O80: =IF($A80="","",IF(ISBLANK($A80),"",VLOOKUP($A80,Data!$A$4:$AR$155,44,FALSE))) -> 0.69 | P80: =IF($A80="","",IF(ISBLANK($A80),"",VLOOKUP($A80,Data!$A$4:$AI$155,8,FALSE))) -> 0.31
A81: 888 | B81: =IF($A81="","",IF(ISBLANK($A81),"",INDEX('LEA Nos codes'!$A$3:$A$154,MATCH($A81,'LEA Nos codes'!$B$3:$B$154,0)))) -> Lancashire | C81: =IF($A81="","",IF(ISBLANK($A81),"",VLOOKUP($A81,Data!$A$4:$V$155,3,FALSE))) -> 4.78 | D81: =IF($A81="","",IF(ISBLANK($A81),"",VLOOKUP($A81,Data!$A$4:$AQ$155,43,FALSE))) -> 4.85 | E81: =IF($A81="","",IF(ISBLANK($A81),"",VLOOKUP($A81,Data!$A$4:$V$155,4,FALSE))) -> 4.47 | F81: =IF($A81="","",IF(ISBLANK($A81),"",VLOOKUP($A81,Data!$A$4:$V$155,5,FALSE))) -> 0.76 | G81: =IF($A81="","",IF(ISBLANK($A81),"",VLOOKUP($A81,Data!$A$4:$AP$155,42,FALSE))) -> 0.53 | H81: =IF($A81="","",IF(ISBLANK($A81),"",VLOOKUP($A81,Data!$A$4:$AS$155,45,FALSE))) -> 0.56 | I81: =IF($A81="","",IF(ISBLANK($A81),"",VLOOKUP($A81,Data!$A$4:$AI$155,35,FALSE))) -> 0.98 | J81: =IF($A81="","",IF(ISBLANK($A81),"",VLOOKUP($A81,Data!$A$4:$AM$155,37,FALSE))) -> 0.59 | K81: =IF($A81="","",IF(ISBLANK($A81),"",VLOOKUP($A81,Data!$A$4:$AM$155,38,FALSE))) -> 0.24 | L81: =IF($A81="","",IF(ISBLANK($A81),"",VLOOKUP($A81,Data!$A$4:$AM$155,39,FALSE))) -> 0.336 | M81: =IF($A81="","",IF(ISBLANK($A81),"",VLOOKUP($A81,Data!$A$4:$AI$155,6,FALSE))) -> 69200 | N81: =IF($A81="","",IF(ISBLANK($A81),"",VLOOKUP($A81,Data!$A$4:$AI$155,7,FALSE))) -> 79 | O81: =IF($A81="","",IF(ISBLANK($A81),"",VLOOKUP($A81,Data!$A$4:$AR$155,44,FALSE))) -> 0.53 | P81: =IF($A81="","",IF(ISBLANK($A81),"",VLOOKUP($A81,Data!$A$4:$AI$155,8,FALSE))) -> 0.46
A82: 383 | B82: =IF($A82="","",IF(ISBLANK($A82),"",INDEX('LEA Nos codes'!$A$3:$A$154,MATCH($A82,'LEA Nos codes'!$B$3:$B$154,0)))) -> Leeds | C82: =IF($A82="","",IF(ISBLANK($A82),"",VLOOKUP($A82,Data!$A$4:$V$155,3,FALSE))) -> 4.85 | D82: =IF($A82="","",IF(ISBLANK($A82),"",VLOOKUP($A82,Data!$A$4:$AQ$155,43,FALSE))) -> 4.85 | E82: =IF($A82="","",IF(ISBLANK($A82),"",VLOOKUP($A82,Data!$A$4:$V$155,4,FALSE))) -> 4.15 | F82: =IF($A82="","",IF(ISBLANK($A82),"",VLOOKUP($A82,Data!$A$4:$V$155,5,FALSE))) -> 0.73 | G82: =IF($A82="","",IF(ISBLANK($A82),"",VLOOKUP($A82,Data!$A$4:$AP$155,42,FALSE))) -> 0.5 | H82: =IF($A82="","",IF(ISBLANK($A82),"",VLOOKUP($A82,Data!$A$4:$AS$155,45,FALSE))) -> 0.58 | I82: =IF($A82="","",IF(ISBLANK($A82),"",VLOOKUP($A82,Data!$A$4:$AI$155,35,FALSE))) -> 0.99 | J82: =IF($A82="","",IF(ISBLANK($A82),"",VLOOKUP($A82,Data!$A$4:$AM$155,37,FALSE))) -> 0.51 | K82: =IF($A82="","",IF(ISBLANK($A82),"",VLOOKUP($A82,Data!$A$4:$AM$155,38,FALSE))) -> 0.23 | L82: =IF($A82="","",IF(ISBLANK($A82),"",VLOOKUP($A82,Data!$A$4:$AM$155,39,FALSE))) -> 0.446 | M82: =IF($A82="","",IF(ISBLANK($A82),"",VLOOKUP($A82,Data!$A$4:$AI$155,6,FALSE))) -> 49500 | N82: =IF($A82="","",IF(ISBLANK($A82),"",VLOOKUP($A82,Data!$A$4:$AI$155,7,FALSE))) -> 55 | O82: =IF($A82="","",IF(ISBLANK($A82),"",VLOOKUP($A82,Data!$A$4:$AR$155,44,FALSE))) -> 0.7 | P82: =IF($A82="","",IF(ISBLANK($A82),"",VLOOKUP($A82,Data!$A$4:$AI$155,8,FALSE))) -> 0.29
A83: 856 | B83: =IF($A83="","",IF(ISBLANK($A83),"",INDEX('LEA Nos codes'!$A$3:$A$154,MATCH($A83,'LEA Nos codes'!$B$3:$B$154,0)))) -> Leicester | C83: =IF($A83="","",IF(ISBLANK($A83),"",VLOOKUP($A83,Data!$A$4:$V$155,3,FALSE))) -> 4.9 | D83: =IF($A83="","",IF(ISBLANK($A83),"",VLOOKUP($A83,Data!$A$4:$AQ$155,43,FALSE))) -> 4.85 | E83: =IF($A83="","",IF(ISBLANK($A83),"",VLOOKUP($A83,Data!$A$4:$V$155,4,FALSE))) -> 3.56 | F83: =IF($A83="","",IF(ISBLANK($A83),"",VLOOKUP($A83,Data!$A$4:$V$155,5,FALSE))) -> 0.63 | G83: =IF($A83="","",IF(ISBLANK($A83),"",VLOOKUP($A83,Data!$A$4:$AP$155,42,FALSE))) -> 0.32 | H83: =IF($A83="","",IF(ISBLANK($A83),"",VLOOKUP($A83,Data!$A$4:$AS$155,45,FALSE))) -> 0.4 | I83: =IF($A83="","",IF(ISBLANK($A83),"",VLOOKUP($A83,Data!$A$4:$AI$155,35,FALSE))) -> 0.93 | J83: =IF($A83="","",IF(ISBLANK($A83),"",VLOOKUP($A83,Data!$A$4:$AM$155,37,FALSE))) -> 0.28 | K83: =IF($A83="","",IF(ISBLANK($A83),"",VLOOKUP($A83,Data!$A$4:$AM$155,38,FALSE))) -> 0.09 | L83: =IF($A83="","",IF(ISBLANK($A83),"",VLOOKUP($A83,Data!$A$4:$AM$155,39,FALSE))) -> 0.37 | M83: =IF($A83="","",IF(ISBLANK($A83),"",VLOOKUP($A83,Data!$A$4:$AI$155,6,FALSE))) -> 25000 | N83: =IF($A83="","",IF(ISBLANK($A83),"",VLOOKUP($A83,Data!$A$4:$AI$155,7,FALSE))) -> 23 | O83: =IF($A83="","",IF(ISBLANK($A83),"",VLOOKUP($A83,Data!$A$4:$AR$155,44,FALSE))) -> 0.65 | P83: =IF($A83="","",IF(ISBLANK($A83),"",VLOOKUP($A83,Data!$A$4:$AI$155,8,FALSE))) -> 0.34
A84: 855 | B84: =IF($A84="","",IF(ISBLANK($A84),"",INDEX('LEA Nos codes'!$A$3:$A$154,MATCH($A84,'LEA Nos codes'!$B$3:$B$154,0)))) -> Leicestershire | C84: =IF($A84="","",IF(ISBLANK($A84),"",VLOOKUP($A84,Data!$A$4:$V$155,3,FALSE))) -> 4.85 | D84: =IF($A84="","",IF(ISBLANK($A84),"",VLOOKUP($A84,Data!$A$4:$AQ$155,43,FALSE))) -> 4.85 | E84: =IF($A84="","",IF(ISBLANK($A84),"",VLOOKUP($A84,Data!$A$4:$V$155,4,FALSE))) -> 3.56 | F84: =IF($A84="","",IF(ISBLANK($A84),"",VLOOKUP($A84,Data!$A$4:$V$155,5,FALSE))) -> 0.73 | G84: =IF($A84="","",IF(ISBLANK($A84),"",VLOOKUP($A84,Data!$A$4:$AP$155,42,FALSE))) -> 0.34 | H84: =IF($A84="","",IF(ISBLANK($A84),"",VLOOKUP($A84,Data!$A$4:$AS$155,45,FALSE))) -> 0.37 | I84: =IF($A84="","",IF(ISBLANK($A84),"",VLOOKUP($A84,Data!$A$4:$AI$155,35,FALSE))) -> 0.98 | J84: =IF($A84="","",IF(ISBLANK($A84),"",VLOOKUP($A84,Data!$A$4:$AM$155,37,FALSE))) -> 0.46 | K84: =IF($A84="","",IF(ISBLANK($A84),"",VLOOKUP($A84,Data!$A$4:$AM$155,38,FALSE))) -> 0.24 | L84: =IF($A84="","",IF(ISBLANK($A84),"",VLOOKUP($A84,Data!$A$4:$AM$155,39,FALSE))) -> 0.335 | M84: =IF($A84="","",IF(ISBLANK($A84),"",VLOOKUP($A84,Data!$A$4:$AI$155,6,FALSE))) -> 36500 | N84: =IF($A84="","",IF(ISBLANK($A84),"",VLOOKUP($A84,Data!$A$4:$AI$155,7,FALSE))) -> 136 | O84: =IF($A84="","",IF(ISBLANK($A84),"",VLOOKUP($A84,Data!$A$4:$AR$155,44,FALSE))) -> 0.35 | P84: =IF($A84="","",IF(ISBLANK($A84),"",VLOOKUP($A84,Data!$A$4:$AI$155,8,FALSE))) -> 0.65
A85: 209 | B85: =IF($A85="","",IF(ISBLANK($A85),"",INDEX('LEA Nos codes'!$A$3:$A$154,MATCH($A85,'LEA Nos codes'!$B$3:$B$154,0)))) -> Lewisham | C85: =IF($A85="","",IF(ISBLANK($A85),"",VLOOKUP($A85,Data!$A$4:$V$155,3,FALSE))) -> 6 | D85: =IF($A85="","",IF(ISBLANK($A85),"",VLOOKUP($A85,Data!$A$4:$AQ$155,43,FALSE))) -> 6.07 | E85: =IF($A85="","",IF(ISBLANK($A85),"",VLOOKUP($A85,Data!$A$4:$V$155,4,FALSE))) -> 5.41 | F85: =IF($A85="","",IF(ISBLANK($A85),"",VLOOKUP($A85,Data!$A$4:$V$155,5,FALSE))) -> 0.71 | G85: =IF($A85="","",IF(ISBLANK($A85),"",VLOOKUP($A85,Data!$A$4:$AP$155,42,FALSE))) -> 0.42 | H85: =IF($A85="","",IF(ISBLANK($A85),"",VLOOKUP($A85,Data!$A$4:$AS$155,45,FALSE))) -> 0.43 | I85: =IF($A85="","",IF(ISBLANK($A85),"",VLOOKUP($A85,Data!$A$4:$AI$155,35,FALSE))) -> 0.86 | J85: =IF($A85="","",IF(ISBLANK($A85),"",VLOOKUP($A85,Data!$A$4:$AM$155,37,FALSE))) -> 0.68 | K85: =IF($A85="","",IF(ISBLANK($A85),"",VLOOKUP($A85,Data!$A$4:$AM$155,38,FALSE))) -> 0.11 | L85: =IF($A85="","",IF(ISBLANK($A85),"",VLOOKUP($A85,Data!$A$4:$AM$155,39,FALSE))) -> 0.25 | M85: =IF($A85="","",IF(ISBLANK($A85),"",VLOOKUP($A85,Data!$A$4:$AI$155,6,FALSE))) -> 22500 | N85: =IF($A85="","",IF(ISBLANK($A85),"",VLOOKUP($A85,Data!$A$4:$AI$155,7,FALSE))) -> 29 | O85: =IF($A85="","",IF(ISBLANK($A85),"",VLOOKUP($A85,Data!$A$4:$AR$155,44,FALSE))) -> 0.71 | P85: =IF($A85="","",IF(ISBLANK($A85),"",VLOOKUP($A85,Data!$A$4:$AI$155,8,FALSE))) -> 0.26
A86: 925 | B86: =IF($A86="","",IF(ISBLANK($A86),"",INDEX('LEA Nos codes'!$A$3:$A$154,MATCH($A86,'LEA Nos codes'!$B$3:$B$154,0)))) -> Lincolnshire | C86: =IF($A86="","",IF(ISBLANK($A86),"",VLOOKUP($A86,Data!$A$4:$V$155,3,FALSE))) -> 6.61 | D86: =IF($A86="","",IF(ISBLANK($A86),"",VLOOKUP($A86,Data!$A$4:$AQ$155,43,FALSE))) -> 4.85 | E86: =IF($A86="","",IF(ISBLANK($A86),"",VLOOKUP($A86,Data!$A$4:$V$155,4,FALSE))) -> 3.81 | F86: =IF($A86="","",IF(ISBLANK($A86),"",VLOOKUP($A86,Data!$A$4:$V$155,5,FALSE))) -> 0.76 | G86: =IF($A86="","",IF(ISBLANK($A86),"",VLOOKUP($A86,Data!$A$4:$AP$155,42,FALSE))) -> 0.37 | H86: =IF($A86="","",IF(ISBLANK($A86),"",VLOOKUP($A86,Data!$A$4:$AS$155,45,FALSE))) -> 0.41 | I86: =IF($A86="","",IF(ISBLANK($A86),"",VLOOKUP($A86,Data!$A$4:$AI$155,35,FALSE))) -> 1.01 | J86: =IF($A86="","",IF(ISBLANK($A86),"",VLOOKUP($A86,Data!$A$4:$AM$155,37,FALSE))) -> 0.65 | K86: =IF($A86="","",IF(ISBLANK($A86),"",VLOOKUP($A86,Data!$A$4:$AM$155,38,FALSE))) -> 0.21 | L86: =IF($A86="","",IF(ISBLANK($A86),"",VLOOKUP($A86,Data!$A$4:$AM$155,39,FALSE))) -> 0.296 | M86: =IF($A86="","",IF(ISBLANK($A86),"",VLOOKUP($A86,Data!$A$4:$AI$155,6,FALSE))) -> 38800 | N86: =IF($A86="","",IF(ISBLANK($A86),"",VLOOKUP($A86,Data!$A$4:$AI$155,7,FALSE))) -> 95 | O86: =IF($A86="","",IF(ISBLANK($A86),"",VLOOKUP($A86,Data!$A$4:$AR$155,44,FALSE))) -> 0.47 | P86: =IF($A86="","",IF(ISBLANK($A86),"",VLOOKUP($A86,Data!$A$4:$AI$155,8,FALSE))) -> 0.51
A87: 341 | B87: =IF($A87="","",IF(ISBLANK($A87),"",INDEX('LEA Nos codes'!$A$3:$A$154,MATCH($A87,'LEA Nos codes'!$B$3:$B$154,0)))) -> Liverpool | C87: =IF($A87="","",IF(ISBLANK($A87),"",VLOOKUP($A87,Data!$A$4:$V$155,3,FALSE))) -> 4.9 | D87: =IF($A87="","",IF(ISBLANK($A87),"",VLOOKUP($A87,Data!$A$4:$AQ$155,43,FALSE))) -> 4.87 | E87: =IF($A87="","",IF(ISBLANK($A87),"",VLOOKUP($A87,Data!$A$4:$V$155,4,FALSE))) -> 5.03 | F87: =IF($A87="","",IF(ISBLANK($A87),"",VLOOKUP($A87,Data!$A$4:$V$155,5,FALSE))) -> 0.74 | G87: =IF($A87="","",IF(ISBLANK($A87),"",VLOOKUP($A87,Data!$A$4:$AP$155,42,FALSE))) -> 0.44 | H87: =IF($A87="","",IF(ISBLANK($A87),"",VLOOKUP($A87,Data!$A$4:$AS$155,45,FALSE))) -> 0.53 | I87: =IF($A87="","",IF(ISBLANK($A87),"",VLOOKUP($A87,Data!$A$4:$AI$155,35,FALSE))) -> 0.98 | J87: =IF($A87="","",IF(ISBLANK($A87),"",VLOOKUP($A87,Data!$A$4:$AM$155,37,FALSE))) -> 0.51 | K87: =IF($A87="","",IF(ISBLANK($A87),"",VLOOKUP($A87,Data!$A$4:$AM$155,38,FALSE))) -> 0.2 | L87: =IF($A87="","",IF(ISBLANK($A87),"",VLOOKUP($A87,Data!$A$4:$AM$155,39,FALSE))) -> 0.349 | M87: =IF($A87="","",IF(ISBLANK($A87),"",VLOOKUP($A87,Data!$A$4:$AI$155,6,FALSE))) -> 27200 | N87: =IF($A87="","",IF(ISBLANK($A87),"",VLOOKUP($A87,Data!$A$4:$AI$155,7,FALSE))) -> 1 | O87: =IF($A87="","",IF(ISBLANK($A87),"",VLOOKUP($A87,Data!$A$4:$AR$155,44,FALSE))) -> 0.75 | P87: =IF($A87="","",IF(ISBLANK($A87),"",VLOOKUP($A87,Data!$A$4:$AI$155,8,FALSE))) -> 0.25
A88: 821 | B88: =IF($A88="","",IF(ISBLANK($A88),"",INDEX('LEA Nos codes'!$A$3:$A$154,MATCH($A88,'LEA Nos codes'!$B$3:$B$154,0)))) -> Luton | C88: =IF($A88="","",IF(ISBLANK($A88),"",VLOOKUP($A88,Data!$A$4:$V$155,3,FALSE))) -> 5.09 | D88: =IF($A88="","",IF(ISBLANK($A88),"",VLOOKUP($A88,Data!$A$4:$AQ$155,43,FALSE))) -> 5.03 | E88: =IF($A88="","",IF(ISBLANK($A88),"",VLOOKUP($A88,Data!$A$4:$V$155,4,FALSE))) -> 4.76 | F88: =IF($A88="","",IF(ISBLANK($A88),"",VLOOKUP($A88,Data!$A$4:$V$155,5,FALSE))) -> 0.79 | G88: =IF($A88="","",IF(ISBLANK($A88),"",VLOOKUP($A88,Data!$A$4:$AP$155,42,FALSE))) -> 0.3 | H88: =IF($A88="","",IF(ISBLANK($A88),"",VLOOKUP($A88,Data!$A$4:$AS$155,45,FALSE))) -> 0.35 | I88: =IF($A88="","",IF(ISBLANK($A88),"",VLOOKUP($A88,Data!$A$4:$AI$155,35,FALSE))) -> 0.96 | J88: =IF($A88="","",IF(ISBLANK($A88),"",VLOOKUP($A88,Data!$A$4:$AM$155,37,FALSE))) -> 0.47 | K88: =IF($A88="","",IF(ISBLANK($A88),"",VLOOKUP($A88,Data!$A$4:$AM$155,38,FALSE))) -> 0.09 | L88: =IF($A88="","",IF(ISBLANK($A88),"",VLOOKUP($A88,Data!$A$4:$AM$155,39,FALSE))) -> 0.389 | M88: =IF($A88="","",IF(ISBLANK($A88),"",VLOOKUP($A88,Data!$A$4:$AI$155,6,FALSE))) -> 17000 | N88: =IF($A88="","",IF(ISBLANK($A88),"",VLOOKUP($A88,Data!$A$4:$AI$155,7,FALSE))) -> 56 | O88: =IF($A88="","",IF(ISBLANK($A88),"",VLOOKUP($A88,Data!$A$4:$AR$155,44,FALSE))) -> 0.53 | P88: =IF($A88="","",IF(ISBLANK($A88),"",VLOOKUP($A88,Data!$A$4:$AI$155,8,FALSE))) -> 0.46
A89: 352 | B89: =IF($A89="","",IF(ISBLANK($A89),"",INDEX('LEA Nos codes'!$A$3:$A$154,MATCH($A89,'LEA Nos codes'!$B$3:$B$154,0)))) -> Manchester | C89: =IF($A89="","",IF(ISBLANK($A89),"",VLOOKUP($A89,Data!$A$4:$V$155,3,FALSE))) -> 4.85 | D89: =IF($A89="","",IF(ISBLANK($A89),"",VLOOKUP($A89,Data!$A$4:$AQ$155,43,FALSE))) -> 4.95 | E89: =IF($A89="","",IF(ISBLANK($A89),"",VLOOKUP($A89,Data!$A$4:$V$155,4,FALSE))) -> 5.68 | F89: =IF($A89="","",IF(ISBLANK($A89),"",VLOOKUP($A89,Data!$A$4:$V$155,5,FALSE))) -> 0.59 | G89: =IF($A89="","",IF(ISBLANK($A89),"",VLOOKUP($A89,Data!$A$4:$AP$155,42,FALSE))) -> 0.34 | H89: =IF($A89="","",IF(ISBLANK($A89),"",VLOOKUP($A89,Data!$A$4:$AS$155,45,FALSE))) -> 0.39 | I89: =IF($A89="","",IF(ISBLANK($A89),"",VLOOKUP($A89,Data!$A$4:$AI$155,35,FALSE))) -> 0.92 | J89: =IF($A89="","",IF(ISBLANK($A89),"",VLOOKUP($A89,Data!$A$4:$AM$155,37,FALSE))) -> 0.47 | K89: =IF($A89="","",IF(ISBLANK($A89),"",VLOOKUP($A89,Data!$A$4:$AM$155,38,FALSE))) -> 0.11 | L89: =IF($A89="","",IF(ISBLANK($A89),"",VLOOKUP($A89,Data!$A$4:$AM$155,39,FALSE))) -> 0.411 | M89: =IF($A89="","",IF(ISBLANK($A89),"",VLOOKUP($A89,Data!$A$4:$AI$155,6,FALSE))) -> 37500 | N89: =IF($A89="","",IF(ISBLANK($A89),"",VLOOKUP($A89,Data!$A$4:$AI$155,7,FALSE))) -> 4 | O89: =IF($A89="","",IF(ISBLANK($A89),"",VLOOKUP($A89,Data!$A$4:$AR$155,44,FALSE))) -> 0.8 | P89: =IF($A89="","",IF(ISBLANK($A89),"",VLOOKUP($A89,Data!$A$4:$AI$155,8,FALSE))) -> 0.19
A90: 887 | B90: =IF($A90="","",IF(ISBLANK($A90),"",INDEX('LEA Nos codes'!$A$3:$A$154,MATCH($A90,'LEA Nos codes'!$B$3:$B$154,0)))) -> Medway | C90: =IF($A90="","",IF(ISBLANK($A90),"",VLOOKUP($A90,Data!$A$4:$V$155,3,FALSE))) -> 4.8 | D90: =IF($A90="","",IF(ISBLANK($A90),"",VLOOKUP($A90,Data!$A$4:$AQ$155,43,FALSE))) -> 4.88 | E90: =IF($A90="","",IF(ISBLANK($A90),"",VLOOKUP($A90,Data!$A$4:$V$155,4,FALSE))) -> 3.91 | F90: =IF($A90="","",IF(ISBLANK($A90),"",VLOOKUP($A90,Data!$A$4:$V$155,5,FALSE))) -> 0.69 | G90: =IF($A90="","",IF(ISBLANK($A90),"",VLOOKUP($A90,Data!$A$4:$AP$155,42,FALSE))) -> 0.29 | H90: =IF($A90="","",IF(ISBLANK($A90),"",VLOOKUP($A90,Data!$A$4:$AS$155,45,FALSE))) -> 0.37 | I90: =IF($A90="","",IF(ISBLANK($A90),"",VLOOKUP($A90,Data!$A$4:$AI$155,35,FALSE))) -> 0.97 | J90: =IF($A90="","",IF(ISBLANK($A90),"",VLOOKUP($A90,Data!$A$4:$AM$155,37,FALSE))) -> 0.57 | K90: =IF($A90="","",IF(ISBLANK($A90),"",VLOOKUP($A90,Data!$A$4:$AM$155,38,FALSE))) -> 0.19 | L90: =IF($A90="","",IF(ISBLANK($A90),"",VLOOKUP($A90,Data!$A$4:$AM$155,39,FALSE))) -> 0.337 | M90: =IF($A90="","",IF(ISBLANK($A90),"",VLOOKUP($A90,Data!$A$4:$AI$155,6,FALSE))) -> 17800 | N90: =IF($A90="","",IF(ISBLANK($A90),"",VLOOKUP($A90,Data!$A$4:$AI$155,7,FALSE))) -> 88 | O90: =IF($A90="","",IF(ISBLANK($A90),"",VLOOKUP($A90,Data!$A$4:$AR$155,44,FALSE))) -> 0.54 | P90: =IF($A90="","",IF(ISBLANK($A90),"",VLOOKUP($A90,Data!$A$4:$AI$155,8,FALSE))) -> 0.45
A91: 315 | B91: =IF($A91="","",IF(ISBLANK($A91),"",INDEX('LEA Nos codes'!$A$3:$A$154,MATCH($A91,'LEA Nos codes'!$B$3:$B$154,0)))) -> Merton | C91: =IF($A91="","",IF(ISBLANK($A91),"",VLOOKUP($A91,Data!$A$4:$V$155,3,FALSE))) -> 5.71 | D91: =IF($A91="","",IF(ISBLANK($A91),"",VLOOKUP($A91,Data!$A$4:$AQ$155,43,FALSE))) -> 5.53 | E91: =IF($A91="","",IF(ISBLANK($A91),"",VLOOKUP($A91,Data!$A$4:$V$155,4,FALSE))) -> 4.6 | F91: =IF($A91="","",IF(ISBLANK($A91),"",VLOOKUP($A91,Data!$A$4:$V$155,5,FALSE))) -> 0.77 | G91: =IF($A91="","",IF(ISBLANK($A91),"",VLOOKUP($A91,Data!$A$4:$AP$155,42,FALSE))) -> 0.45 | H91: =IF($A91="","",IF(ISBLANK($A91),"",VLOOKUP($A91,Data!$A$4:$AS$155,45,FALSE))) -> 0.56 | I91: =IF($A91="","",IF(ISBLANK($A91),"",VLOOKUP($A91,Data!$A$4:$AI$155,35,FALSE))) -> 0.99 | J91: =IF($A91="","",IF(ISBLANK($A91),"",VLOOKUP($A91,Data!$A$4:$AM$155,37,FALSE))) -> 0.46 | K91: =IF($A91="","",IF(ISBLANK($A91),"",VLOOKUP($A91,Data!$A$4:$AM$155,38,FALSE))) -> 0.15 | L91: =IF($A91="","",IF(ISBLANK($A91),"",VLOOKUP($A91,Data!$A$4:$AM$155,39,FALSE))) -> 0.389 | M91: =IF($A91="","",IF(ISBLANK($A91),"",VLOOKUP($A91,Data!$A$4:$AI$155,6,FALSE))) -> 15500 | N91: =IF($A91="","",IF(ISBLANK($A91),"",VLOOKUP($A91,Data!$A$4:$AI$155,7,FALSE))) -> 127 | O91: =IF($A91="","",IF(ISBLANK($A91),"",VLOOKUP($A91,Data!$A$4:$AR$155,44,FALSE))) -> 0.8 | P91: =IF($A91="","",IF(ISBLANK($A91),"",VLOOKUP($A91,Data!$A$4:$AI$155,8,FALSE))) -> 0.19
A92: 806 | B92: =IF($A92="","",IF(ISBLANK($A92),"",INDEX('LEA Nos codes'!$A$3:$A$154,MATCH($A92,'LEA Nos codes'!$B$3:$B$154,0)))) -> Middlesbrough | C92: =IF($A92="","",IF(ISBLANK($A92),"",VLOOKUP($A92,Data!$A$4:$V$155,3,FALSE))) -> . | D92: =IF($A92="","",IF(ISBLANK($A92),"",VLOOKUP($A92,Data!$A$4:$AQ$155,43,FALSE))) -> 4.85 | E92: =IF($A92="","",IF(ISBLANK($A92),"",VLOOKUP($A92,Data!$A$4:$V$155,4,FALSE))) -> 3.63 | F92: =IF($A92="","",IF(ISBLANK($A92),"",VLOOKUP($A92,Data!$A$4:$V$155,5,FALSE))) -> 0.76 | G92: =IF($A92="","",IF(ISBLANK($A92),"",VLOOKUP($A92,Data!$A$4:$AP$155,42,FALSE))) -> 0.5 | H92: =IF($A92="","",IF(ISBLANK($A92),"",VLOOKUP($A92,Data!$A$4:$AS$155,45,FALSE))) -> 0.63 | I92: =IF($A92="","",IF(ISBLANK($A92),"",VLOOKUP($A92,Data!$A$4:$AI$155,35,FALSE))) -> 1.01 | J92: =IF($A92="","",IF(ISBLANK($A92),"",VLOOKUP($A92,Data!$A$4:$AM$155,37,FALSE))) -> 0.38 | K92: =IF($A92="","",IF(ISBLANK($A92),"",VLOOKUP($A92,Data!$A$4:$AM$155,38,FALSE))) -> 0.16 | L92: =IF($A92="","",IF(ISBLANK($A92),"",VLOOKUP($A92,Data!$A$4:$AM$155,39,FALSE))) -> 0.437 | M92: =IF($A92="","",IF(ISBLANK($A92),"",VLOOKUP($A92,Data!$A$4:$AI$155,6,FALSE))) -> 9700 | N92: =IF($A92="","",IF(ISBLANK($A92),"",VLOOKUP($A92,Data!$A$4:$AI$155,7,FALSE))) -> 8 | O92: =IF($A92="","",IF(ISBLANK($A92),"",VLOOKUP($A92,Data!$A$4:$AR$155,44,FALSE))) -> 0.92 | P92: =IF($A92="","",IF(ISBLANK($A92),"",VLOOKUP($A92,Data!$A$4:$AI$155,8,FALSE))) -> 0.07
A93: 826 | B93: =IF($A93="","",IF(ISBLANK($A93),"",INDEX('LEA Nos codes'!$A$3:$A$154,MATCH($A93,'LEA Nos codes'!$B$3:$B$154,0)))) -> Milton Keynes | C93: =IF($A93="","",IF(ISBLANK($A93),"",VLOOKUP($A93,Data!$A$4:$V$155,3,FALSE))) -> 5.09 | D93: =IF($A93="","",IF(ISBLANK($A93),"",VLOOKUP($A93,Data!$A$4:$AQ$155,43,FALSE))) -> 5.34 | E93: =IF($A93="","",IF(ISBLANK($A93),"",VLOOKUP($A93,Data!$A$4:$V$155,4,FALSE))) -> 4.1 | F93: =IF($A93="","",IF(ISBLANK($A93),"",VLOOKUP($A93,Data!$A$4:$V$155,5,FALSE))) -> 0.77 | G93: =IF($A93="","",IF(ISBLANK($A93),"",VLOOKUP($A93,Data!$A$4:$AP$155,42,FALSE))) -> 0.22 | H93: =IF($A93="","",IF(ISBLANK($A93),"",VLOOKUP($A93,Data!$A$4:$AS$155,45,FALSE))) -> 0.25 | I93: =IF($A93="","",IF(ISBLANK($A93),"",VLOOKUP($A93,Data!$A$4:$AI$155,35,FALSE))) -> 0.92 | J93: =IF($A93="","",IF(ISBLANK($A93),"",VLOOKUP($A93,Data!$A$4:$AM$155,37,FALSE))) -> 0.49 | K93: =IF($A93="","",IF(ISBLANK($A93),"",VLOOKUP($A93,Data!$A$4:$AM$155,38,FALSE))) -> 0.2 | L93: =IF($A93="","",IF(ISBLANK($A93),"",VLOOKUP($A93,Data!$A$4:$AM$155,39,FALSE))) -> 0.362 | M93: =IF($A93="","",IF(ISBLANK($A93),"",VLOOKUP($A93,Data!$A$4:$AI$155,6,FALSE))) -> 20300 | N93: =IF($A93="","",IF(ISBLANK($A93),"",VLOOKUP($A93,Data!$A$4:$AI$155,7,FALSE))) -> 116 | O93: =IF($A93="","",IF(ISBLANK($A93),"",VLOOKUP($A93,Data!$A$4:$AR$155,44,FALSE))) -> 0.5 | P93: =IF($A93="","",IF(ISBLANK($A93),"",VLOOKUP($A93,Data!$A$4:$AI$155,8,FALSE))) -> 0.5
A94: 391 | B94: =IF($A94="","",IF(ISBLANK($A94),"",INDEX('LEA Nos codes'!$A$3:$A$154,MATCH($A94,'LEA Nos codes'!$B$3:$B$154,0)))) -> Newcastle upon Tyne | C94: =IF($A94="","",IF(ISBLANK($A94),"",VLOOKUP($A94,Data!$A$4:$V$155,3,FALSE))) -> 4.85 | D94: =IF($A94="","",IF(ISBLANK($A94),"",VLOOKUP($A94,Data!$A$4:$AQ$155,43,FALSE))) -> 4.85 | E94: =IF($A94="","",IF(ISBLANK($A94),"",VLOOKUP($A94,Data!$A$4:$V$155,4,FALSE))) -> 4.57 | F94: =IF($A94="","",IF(ISBLANK($A94),"",VLOOKUP($A94,Data!$A$4:$V$155,5,FALSE))) -> 0.82 | G94: =IF($A94="","",IF(ISBLANK($A94),"",VLOOKUP($A94,Data!$A$4:$AP$155,42,FALSE))) -> 0.38 | H94: =IF($A94="","",IF(ISBLANK($A94),"",VLOOKUP($A94,Data!$A$4:$AS$155,45,FALSE))) -> 0.49 | I94: =IF($A94="","",IF(ISBLANK($A94),"",VLOOKUP($A94,Data!$A$4:$AI$155,35,FALSE))) -> 0.95 | J94: =IF($A94="","",IF(ISBLANK($A94),"",VLOOKUP($A94,Data!$A$4:$AM$155,37,FALSE))) -> 0.44 | K94: =IF($A94="","",IF(ISBLANK($A94),"",VLOOKUP($A94,Data!$A$4:$AM$155,38,FALSE))) -> 0.21 | L94: =IF($A94="","",IF(ISBLANK($A94),"",VLOOKUP($A94,Data!$A$4:$AM$155,39,FALSE))) -> 0.371 | M94: =IF($A94="","",IF(ISBLANK($A94),"",VLOOKUP($A94,Data!$A$4:$AI$155,6,FALSE))) -> 16900 | N94: =IF($A94="","",IF(ISBLANK($A94),"",VLOOKUP($A94,Data!$A$4:$AI$155,7,FALSE))) -> 34 | O94: =IF($A94="","",IF(ISBLANK($A94),"",VLOOKUP($A94,Data!$A$4:$AR$155,44,FALSE))) -> 0.7 | P94: =IF($A94="","",IF(ISBLANK($A94),"",VLOOKUP($A94,Data!$A$4:$AI$155,8,FALSE))) -> 0.28
A95: 316 | B95: =IF($A95="","",IF(ISBLANK($A95),"",INDEX('LEA Nos codes'!$A$3:$A$154,MATCH($A95,'LEA Nos codes'!$B$3:$B$154,0)))) -> Newham | C95: =IF($A95="","",IF(ISBLANK($A95),"",VLOOKUP($A95,Data!$A$4:$V$155,3,FALSE))) -> 5.28 | D95: =IF($A95="","",IF(ISBLANK($A95),"",VLOOKUP($A95,Data!$A$4:$AQ$155,43,FALSE))) -> 5.28 | E95: =IF($A95="","",IF(ISBLANK($A95),"",VLOOKUP($A95,Data!$A$4:$V$155,4,FALSE))) -> 4.51 | F95: =IF($A95="","",IF(ISBLANK($A95),"",VLOOKUP($A95,Data!$A$4:$V$155,5,FALSE))) -> 0.6 | G95: =IF($A95="","",IF(ISBLANK($A95),"",VLOOKUP($A95,Data!$A$4:$AP$155,42,FALSE))) -> 0.29 | H95: =IF($A95="","",IF(ISBLANK($A95),"",VLOOKUP($A95,Data!$A$4:$AS$155,45,FALSE))) -> 0.23 | I95: =IF($A95="","",IF(ISBLANK($A95),"",VLOOKUP($A95,Data!$A$4:$AI$155,35,FALSE))) -> 1 | J95: =IF($A95="","",IF(ISBLANK($A95),"",VLOOKUP($A95,Data!$A$4:$AM$155,37,FALSE))) -> 0.55 | K95: =IF($A95="","",IF(ISBLANK($A95),"",VLOOKUP($A95,Data!$A$4:$AM$155,38,FALSE))) -> 0.02 | L95: =IF($A95="","",IF(ISBLANK($A95),"",VLOOKUP($A95,Data!$A$4:$AM$155,39,FALSE))) -> 0.371 | M95: =IF($A95="","",IF(ISBLANK($A95),"",VLOOKUP($A95,Data!$A$4:$AI$155,6,FALSE))) -> 26700 | N95: =IF($A95="","",IF(ISBLANK($A95),"",VLOOKUP($A95,Data!$A$4:$AI$155,7,FALSE))) -> 3 | O95: =IF($A95="","",IF(ISBLANK($A95),"",VLOOKUP($A95,Data!$A$4:$AR$155,44,FALSE))) -> 0.83 | P95: =IF($A95="","",IF(ISBLANK($A95),"",VLOOKUP($A95,Data!$A$4:$AI$155,8,FALSE))) -> 0.16
A96: 926 | B96: =IF($A96="","",IF(ISBLANK($A96),"",INDEX('LEA Nos codes'!$A$3:$A$154,MATCH($A96,'LEA Nos codes'!$B$3:$B$154,0)))) -> Norfolk | C96: =IF($A96="","",IF(ISBLANK($A96),"",VLOOKUP($A96,Data!$A$4:$V$155,3,FALSE))) -> . | D96: =IF($A96="","",IF(ISBLANK($A96),"",VLOOKUP($A96,Data!$A$4:$AQ$155,43,FALSE))) -> 4.85 | E96: =IF($A96="","",IF(ISBLANK($A96),"",VLOOKUP($A96,Data!$A$4:$V$155,4,FALSE))) -> 3.63 | F96: =IF($A96="","",IF(ISBLANK($A96),"",VLOOKUP($A96,Data!$A$4:$V$155,5,FALSE))) -> 0.78 | G96: =IF($A96="","",IF(ISBLANK($A96),"",VLOOKUP($A96,Data!$A$4:$AP$155,42,FALSE))) -> 0.31 | H96: =IF($A96="","",IF(ISBLANK($A96),"",VLOOKUP($A96,Data!$A$4:$AS$155,45,FALSE))) -> 0.35 | I96: =IF($A96="","",IF(ISBLANK($A96),"",VLOOKUP($A96,Data!$A$4:$AI$155,35,FALSE))) -> 0.97 | J96: =IF($A96="","",IF(ISBLANK($A96),"",VLOOKUP($A96,Data!$A$4:$AM$155,37,FALSE))) -> 0.46 | K96: =IF($A96="","",IF(ISBLANK($A96),"",VLOOKUP($A96,Data!$A$4:$AM$155,38,FALSE))) -> 0.17 | L96: =IF($A96="","",IF(ISBLANK($A96),"",VLOOKUP($A96,Data!$A$4:$AM$155,39,FALSE))) -> 0.364 | M96: =IF($A96="","",IF(ISBLANK($A96),"",VLOOKUP($A96,Data!$A$4:$AI$155,6,FALSE))) -> 47600 | N96: =IF($A96="","",IF(ISBLANK($A96),"",VLOOKUP($A96,Data!$A$4:$AI$155,7,FALSE))) -> 97 | O96: =IF($A96="","",IF(ISBLANK($A96),"",VLOOKUP($A96,Data!$A$4:$AR$155,44,FALSE))) -> 0.51 | P96: =IF($A96="","",IF(ISBLANK($A96),"",VLOOKUP($A96,Data!$A$4:$AI$155,8,FALSE))) -> 0.48
A97: 812 | B97: =IF($A97="","",IF(ISBLANK($A97),"",INDEX('LEA Nos codes'!$A$3:$A$154,MATCH($A97,'LEA Nos codes'!$B$3:$B$154,0)))) -> North East Lincolnshire | C97: =IF($A97="","",IF(ISBLANK($A97),"",VLOOKUP($A97,Data!$A$4:$V$155,3,FALSE))) -> 4.89 | D97: =IF($A97="","",IF(ISBLANK($A97),"",VLOOKUP($A97,Data!$A$4:$AQ$155,43,FALSE))) -> 4.85 | E97: =IF($A97="","",IF(ISBLANK($A97),"",VLOOKUP($A97,Data!$A$4:$V$155,4,FALSE))) -> 3.21 | F97: =IF($A97="","",IF(ISBLANK($A97),"",VLOOKUP($A97,Data!$A$4:$V$155,5,FALSE))) -> 0.7 | G97: =IF($A97="","",IF(ISBLANK($A97),"",VLOOKUP($A97,Data!$A$4:$AP$155,42,FALSE))) -> 0.44 | H97: =IF($A97="","",IF(ISBLANK($A97),"",VLOOKUP($A97,Data!$A$4:$AS$155,45,FALSE))) -> 0.43 | I97: =IF($A97="","",IF(ISBLANK($A97),"",VLOOKUP($A97,Data!$A$4:$AI$155,35,FALSE))) -> 0.97 | J97: =IF($A97="","",IF(ISBLANK($A97),"",VLOOKUP($A97,Data!$A$4:$AM$155,37,FALSE))) -> 0.51 | K97: =IF($A97="","",IF(ISBLANK($A97),"",VLOOKUP($A97,Data!$A$4:$AM$155,38,FALSE))) -> 0.12 | L97: =IF($A97="","",IF(ISBLANK($A97),"",VLOOKUP($A97,Data!$A$4:$AM$155,39,FALSE))) -> 0.349 | M97: =IF($A97="","",IF(ISBLANK($A97),"",VLOOKUP($A97,Data!$A$4:$AI$155,6,FALSE))) -> 10100 | N97: =IF($A97="","",IF(ISBLANK($A97),"",VLOOKUP($A97,Data!$A$4:$AI$155,7,FALSE))) -> 39 | O97: =IF($A97="","",IF(ISBLANK($A97),"",VLOOKUP($A97,Data!$A$4:$AR$155,44,FALSE))) -> 0.69 | P97: =IF($A97="","",IF(ISBLANK($A97),"",VLOOKUP($A97,Data!$A$4:$AI$155,8,FALSE))) -> 0.31
A98: 813 | B98: =IF($A98="","",IF(ISBLANK($A98),"",INDEX('LEA Nos codes'!$A$3:$A$154,MATCH($A98,'LEA Nos codes'!$B$3:$B$154,0)))) -> North Lincolnshire | C98: =IF($A98="","",IF(ISBLANK($A98),"",VLOOKUP($A98,Data!$A$4:$V$155,3,FALSE))) -> 4.85 | D98: =IF($A98="","",IF(ISBLANK($A98),"",VLOOKUP($A98,Data!$A$4:$AQ$155,43,FALSE))) -> 4.85 | E98: =IF($A98="","",IF(ISBLANK($A98),"",VLOOKUP($A98,Data!$A$4:$V$155,4,FALSE))) -> 4.53 | F98: =IF($A98="","",IF(ISBLANK($A98),"",VLOOKUP($A98,Data!$A$4:$V$155,5,FALSE))) -> 0.66 | G98: =IF($A98="","",IF(ISBLANK($A98),"",VLOOKUP($A98,Data!$A$4:$AP$155,42,FALSE))) -> 0.26 | H98: =IF($A98="","",IF(ISBLANK($A98),"",VLOOKUP($A98,Data!$A$4:$AS$155,45,FALSE))) -> 0.3 | I98: =IF($A98="","",IF(ISBLANK($A98),"",VLOOKUP($A98,Data!$A$4:$AI$155,35,FALSE))) -> 0.9 | J98: =IF($A98="","",IF(ISBLANK($A98),"",VLOOKUP($A98,Data!$A$4:$AM$155,37,FALSE))) -> 0.53 | K98: =IF($A98="","",IF(ISBLANK($A98),"",VLOOKUP($A98,Data!$A$4:$AM$155,38,FALSE))) -> 0.22 | L98: =IF($A98="","",IF(ISBLANK($A98),"",VLOOKUP($A98,Data!$A$4:$AM$155,39,FALSE))) -> 0.355 | M98: =IF($A98="","",IF(ISBLANK($A98),"",VLOOKUP($A98,Data!$A$4:$AI$155,6,FALSE))) -> 10200 | N98: =IF($A98="","",IF(ISBLANK($A98),"",VLOOKUP($A98,Data!$A$4:$AI$155,7,FALSE))) -> 83 | O98: =IF($A98="","",IF(ISBLANK($A98),"",VLOOKUP($A98,Data!$A$4:$AR$155,44,FALSE))) -> 0.65 | P98: =IF($A98="","",IF(ISBLANK($A98),"",VLOOKUP($A98,Data!$A$4:$AI$155,8,FALSE))) -> 0.34
A99: 802 | B99: =IF($A99="","",IF(ISBLANK($A99),"",INDEX('LEA Nos codes'!$A$3:$A$154,MATCH($A99,'LEA Nos codes'!$B$3:$B$154,0)))) -> North Somerset | C99: =IF($A99="","",IF(ISBLANK($A99),"",VLOOKUP($A99,Data!$A$4:$V$155,3,FALSE))) -> 5.56 | D99: =IF($A99="","",IF(ISBLANK($A99),"",VLOOKUP($A99,Data!$A$4:$AQ$155,43,FALSE))) -> 5.07 | E99: =IF($A99="","",IF(ISBLANK($A99),"",VLOOKUP($A99,Data!$A$4:$V$155,4,FALSE))) -> 3.99 | F99: =IF($A99="","",IF(ISBLANK($A99),"",VLOOKUP($A99,Data!$A$4:$V$155,5,FALSE))) -> 0.77 | G99: =IF($A99="","",IF(ISBLANK($A99),"",VLOOKUP($A99,Data!$A$4:$AP$155,42,FALSE))) -> 0.5 | H99: =IF($A99="","",IF(ISBLANK($A99),"",VLOOKUP($A99,Data!$A$4:$AS$155,45,FALSE))) -> 0.5 | I99: =IF($A99="","",IF(ISBLANK($A99),"",VLOOKUP($A99,Data!$A$4:$AI$155,35,FALSE))) -> 0.98 | J99: =IF($A99="","",IF(ISBLANK($A99),"",VLOOKUP($A99,Data!$A$4:$AM$155,37,FALSE))) -> 0.64 | K99: =IF($A99="","",IF(ISBLANK($A99),"",VLOOKUP($A99,Data!$A$4:$AM$155,38,FALSE))) -> 0.28 | L99: =IF($A99="","",IF(ISBLANK($A99),"",VLOOKUP($A99,Data!$A$4:$AM$155,39,FALSE))) -> 0.23 | M99: =IF($A99="","",IF(ISBLANK($A99),"",VLOOKUP($A99,Data!$A$4:$AI$155,6,FALSE))) -> 12000 | N99: =IF($A99="","",IF(ISBLANK($A99),"",VLOOKUP($A99,Data!$A$4:$AI$155,7,FALSE))) -> 120 | O99: =IF($A99="","",IF(ISBLANK($A99),"",VLOOKUP($A99,Data!$A$4:$AR$155,44,FALSE))) -> 0.42 | P99: =IF($A99="","",IF(ISBLANK($A99),"",VLOOKUP($A99,Data!$A$4:$AI$155,8,FALSE))) -> 0.58
A100: 392 | B100: =IF($A100="","",IF(ISBLANK($A100),"",INDEX('LEA Nos codes'!$A$3:$A$154,MATCH($A100,'LEA Nos codes'!$B$3:$B$154,0)))) -> North Tyneside | C100: =IF($A100="","",IF(ISBLANK($A100),"",VLOOKUP($A100,Data!$A$4:$V$155,3,FALSE))) -> . | D100: =IF($A100="","",IF(ISBLANK($A100),"",VLOOKUP($A100,Data!$A$4:$AQ$155,43,FALSE))) -> 4.85 | E100: =IF($A100="","",IF(ISBLANK($A100),"",VLOOKUP($A100,Data!$A$4:$V$155,4,FALSE))) -> 3.55 | F100: =IF($A100="","",IF(ISBLANK($A100),"",VLOOKUP($A100,Data!$A$4:$V$155,5,FALSE))) -> 0.86 | G100: =IF($A100="","",IF(ISBLANK($A100),"",VLOOKUP($A100,Data!$A$4:$AP$155,42,FALSE))) -> 0.46 | H100: =IF($A100="","",IF(ISBLANK($A100),"",VLOOKUP($A100,Data!$A$4:$AS$155,45,FALSE))) -> 0.5 | I100: =IF($A100="","",IF(ISBLANK($A100),"",VLOOKUP($A100,Data!$A$4:$AI$155,35,FALSE))) -> 1 | J100: =IF($A100="","",IF(ISBLANK($A100),"",VLOOKUP($A100,Data!$A$4:$AM$155,37,FALSE))) -> 0.48 | K100: =IF($A100="","",IF(ISBLANK($A100),"",VLOOKUP($A100,Data!$A$4:$AM$155,38,FALSE))) -> 0.22 | L100: =IF($A100="","",IF(ISBLANK($A100),"",VLOOKUP($A100,Data!$A$4:$AM$155,39,FALSE))) -> 0.365 | M100: =IF($A100="","",IF(ISBLANK($A100),"",VLOOKUP($A100,Data!$A$4:$AI$155,6,FALSE))) -> 11800 | N100: =IF($A100="","",IF(ISBLANK($A100),"",VLOOKUP($A100,Data!$A$4:$AI$155,7,FALSE))) -> 80 | O100: =IF($A100="","",IF(ISBLANK($A100),"",VLOOKUP($A100,Data!$A$4:$AR$155,44,FALSE))) -> 0.84 | P100: =IF($A100="","",IF(ISBLANK($A100),"",VLOOKUP($A100,Data!$A$4:$AI$155,8,FALSE))) -> 0.14
A101: 815 | B101: =IF($A101="","",IF(ISBLANK($A101),"",INDEX('LEA Nos codes'!$A$3:$A$154,MATCH($A101,'LEA Nos codes'!$B$3:$B$154,0)))) -> North Yorkshire | C101: =IF($A101="","",IF(ISBLANK($A101),"",VLOOKUP($A101,Data!$A$4:$V$155,3,FALSE))) -> 5.14 | D101: =IF($A101="","",IF(ISBLANK($A101),"",VLOOKUP($A101,Data!$A$4:$AQ$155,43,FALSE))) -> 4.85 | E101: =IF($A101="","",IF(ISBLANK($A101),"",VLOOKUP($A101,Data!$A$4:$V$155,4,FALSE))) -> 4.16 | F101: =IF($A101="","",IF(ISBLANK($A101),"",VLOOKUP($A101,Data!$A$4:$V$155,5,FALSE))) -> 0.85 | G101: =IF($A101="","",IF(ISBLANK($A101),"",VLOOKUP($A101,Data!$A$4:$AP$155,42,FALSE))) -> 0.42 | H101: =IF($A101="","",IF(ISBLANK($A101),"",VLOOKUP($A101,Data!$A$4:$AS$155,45,FALSE))) -> 0.44 | I101: =IF($A101="","",IF(ISBLANK($A101),"",VLOOKUP($A101,Data!$A$4:$AI$155,35,FALSE))) -> 1 | J101: =IF($A101="","",IF(ISBLANK($A101),"",VLOOKUP($A101,Data!$A$4:$AM$155,37,FALSE))) -> 0.44 | K101: =IF($A101="","",IF(ISBLANK($A101),"",VLOOKUP($A101,Data!$A$4:$AM$155,38,FALSE))) -> 0.22 | L101: =IF($A101="","",IF(ISBLANK($A101),"",VLOOKUP($A101,Data!$A$4:$AM$155,39,FALSE))) -> 0.333 | M101: =IF($A101="","",IF(ISBLANK($A101),"",VLOOKUP($A101,Data!$A$4:$AI$155,6,FALSE))) -> 31200 | N101: =IF($A101="","",IF(ISBLANK($A101),"",VLOOKUP($A101,Data!$A$4:$AI$155,7,FALSE))) -> 129 | O101: =IF($A101="","",IF(ISBLANK($A101),"",VLOOKUP($A101,Data!$A$4:$AR$155,44,FALSE))) -> 0.54 | P101: =IF($A101="","",IF(ISBLANK($A101),"",VLOOKUP($A101,Data!$A$4:$AI$155,8,FALSE))) -> 0.45
A102: 928 | B102: =IF($A102="","",IF(ISBLANK($A102),"",INDEX('LEA Nos codes'!$A$3:$A$154,MATCH($A102,'LEA Nos codes'!$B$3:$B$154,0)))) -> Northamptonshire | C102: =IF($A102="","",IF(ISBLANK($A102),"",VLOOKUP($A102,Data!$A$4:$V$155,3,FALSE))) -> 4.74 | D102: =IF($A102="","",IF(ISBLANK($A102),"",VLOOKUP($A102,Data!$A$4:$AQ$155,43,FALSE))) -> 4.9 | E102: =IF($A102="","",IF(ISBLANK($A102),"",VLOOKUP($A102,Data!$A$4:$V$155,4,FALSE))) -> 4.1 | F102: =IF($A102="","",IF(ISBLANK($A102),"",VLOOKUP($A102,Data!$A$4:$V$155,5,FALSE))) -> 0.76 | G102: =IF($A102="","",IF(ISBLANK($A102),"",VLOOKUP($A102,Data!$A$4:$AP$155,42,FALSE))) -> 0.38 | H102: =IF($A102="","",IF(ISBLANK($A102),"",VLOOKUP($A102,Data!$A$4:$AS$155,45,FALSE))) -> 0.42 | I102: =IF($A102="","",IF(ISBLANK($A102),"",VLOOKUP($A102,Data!$A$4:$AI$155,35,FALSE))) -> 0.97 | J102: =IF($A102="","",IF(ISBLANK($A102),"",VLOOKUP($A102,Data!$A$4:$AM$155,37,FALSE))) -> 0.5 | K102: =IF($A102="","",IF(ISBLANK($A102),"",VLOOKUP($A102,Data!$A$4:$AM$155,38,FALSE))) -> 0.19 | L102: =IF($A102="","",IF(ISBLANK($A102),"",VLOOKUP($A102,Data!$A$4:$AM$155,39,FALSE))) -> 0.351 | M102: =IF($A102="","",IF(ISBLANK($A102),"",VLOOKUP($A102,Data!$A$4:$AI$155,6,FALSE))) -> 47100 | N102: =IF($A102="","",IF(ISBLANK($A102),"",VLOOKUP($A102,Data!$A$4:$AI$155,7,FALSE))) -> 102 | O102: =IF($A102="","",IF(ISBLANK($A102),"",VLOOKUP($A102,Data!$A$4:$AR$155,44,FALSE))) -> 0.51 | P102: =IF($A102="","",IF(ISBLANK($A102),"",VLOOKUP($A102,Data!$A$4:$AI$155,8,FALSE))) -> 0.48
A103: 929 | B103: =IF($A103="","",IF(ISBLANK($A103),"",INDEX('LEA Nos codes'!$A$3:$A$154,MATCH($A103,'LEA Nos codes'!$B$3:$B$154,0)))) -> Northumberland | C103: =IF($A103="","",IF(ISBLANK($A103),"",VLOOKUP($A103,Data!$A$4:$V$155,3,FALSE))) -> 5.2 | D103: =IF($A103="","",IF(ISBLANK($A103),"",VLOOKUP($A103,Data!$A$4:$AQ$155,43,FALSE))) -> 4.85 | E103: =IF($A103="","",IF(ISBLANK($A103),"",VLOOKUP($A103,Data!$A$4:$V$155,4,FALSE))) -> 3.83 | F103: =IF($A103="","",IF(ISBLANK($A103),"",VLOOKUP($A103,Data!$A$4:$V$155,5,FALSE))) -> 0.75 | G103: =IF($A103="","",IF(ISBLANK($A103),"",VLOOKUP($A103,Data!$A$4:$AP$155,42,FALSE))) -> 0.48 | H103: =IF($A103="","",IF(ISBLANK($A103),"",VLOOKUP($A103,Data!$A$4:$AS$155,45,FALSE))) -> 0.55 | I103: =IF($A103="","",IF(ISBLANK($A103),"",VLOOKUP($A103,Data!$A$4:$AI$155,35,FALSE))) -> 1 | J103: =IF($A103="","",IF(ISBLANK($A103),"",VLOOKUP($A103,Data!$A$4:$AM$155,37,FALSE))) -> 0.49 | K103: =IF($A103="","",IF(ISBLANK($A103),"",VLOOKUP($A103,Data!$A$4:$AM$155,38,FALSE))) -> 0.24 | L103: =IF($A103="","",IF(ISBLANK($A103),"",VLOOKUP($A103,Data!$A$4:$AM$155,39,FALSE))) -> 0.355 | M103: =IF($A103="","",IF(ISBLANK($A103),"",VLOOKUP($A103,Data!$A$4:$AI$155,6,FALSE))) -> 16200 | N103: =IF($A103="","",IF(ISBLANK($A103),"",VLOOKUP($A103,Data!$A$4:$AI$155,7,FALSE))) -> 91 | O103: =IF($A103="","",IF(ISBLANK($A103),"",VLOOKUP($A103,Data!$A$4:$AR$155,44,FALSE))) -> 0.67 | P103: =IF($A103="","",IF(ISBLANK($A103),"",VLOOKUP($A103,Data!$A$4:$AI$155,8,FALSE))) -> 0.24
A104: 892 | B104: =IF($A104="","",IF(ISBLANK($A104),"",INDEX('LEA Nos codes'!$A$3:$A$154,MATCH($A104,'LEA Nos codes'!$B$3:$B$154,0)))) -> Nottingham | C104: =IF($A104="","",IF(ISBLANK($A104),"",VLOOKUP($A104,Data!$A$4:$V$155,3,FALSE))) -> 5 | D104: =IF($A104="","",IF(ISBLANK($A104),"",VLOOKUP($A104,Data!$A$4:$AQ$155,43,FALSE))) -> 4.88 | E104: =IF($A104="","",IF(ISBLANK($A104),"",VLOOKUP($A104,Data!$A$4:$V$155,4,FALSE))) -> 4.13 | F104: =IF($A104="","",IF(ISBLANK($A104),"",VLOOKUP($A104,Data!$A$4:$V$155,5,FALSE))) -> 0.63 | G104: =IF($A104="","",IF(ISBLANK($A104),"",VLOOKUP($A104,Data!$A$4:$AP$155,42,FALSE))) -> 0.38 | H104: =IF($A104="","",IF(ISBLANK($A104),"",VLOOKUP($A104,Data!$A$4:$AS$155,45,FALSE))) -> 0.4 | I104: =IF($A104="","",IF(ISBLANK($A104),"",VLOOKUP($A104,Data!$A$4:$AI$155,35,FALSE))) -> 0.96 | J104: =IF($A104="","",IF(ISBLANK($A104),"",VLOOKUP($A104,Data!$A$4:$AM$155,37,FALSE))) -> 0.4 | K104: =IF($A104="","",IF(ISBLANK($A104),"",VLOOKUP($A104,Data!$A$4:$AM$155,38,FALSE))) -> 0.18 | L104: =IF($A104="","",IF(ISBLANK($A104),"",VLOOKUP($A104,Data!$A$4:$AM$155,39,FALSE))) -> 0.387 | M104: =IF($A104="","",IF(ISBLANK($A104),"",VLOOKUP($A104,Data!$A$4:$AI$155,6,FALSE))) -> 20400 | N104: =IF($A104="","",IF(ISBLANK($A104),"",VLOOKUP($A104,Data!$A$4:$AI$155,7,FALSE))) -> 18 | O104: =IF($A104="","",IF(ISBLANK($A104),"",VLOOKUP($A104,Data!$A$4:$AR$155,44,FALSE))) -> 0.77 | P104: =IF($A104="","",IF(ISBLANK($A104),"",VLOOKUP($A104,Data!$A$4:$AI$155,8,FALSE))) -> 0.2
A105: 891 | B105: =IF($A105="","",IF(ISBLANK($A105),"",INDEX('LEA Nos codes'!$A$3:$A$154,MATCH($A105,'LEA Nos codes'!$B$3:$B$154,0)))) -> Nottinghamshire | C105: =IF($A105="","",IF(ISBLANK($A105),"",VLOOKUP($A105,Data!$A$4:$V$155,3,FALSE))) -> . | D105: =IF($A105="","",IF(ISBLANK($A105),"",VLOOKUP($A105,Data!$A$4:$AQ$155,43,FALSE))) -> 4.88 | E105: =IF($A105="","",IF(ISBLANK($A105),"",VLOOKUP($A105,Data!$A$4:$V$155,4,FALSE))) -> 3.77 | F105: =IF($A105="","",IF(ISBLANK($A105),"",VLOOKUP($A105,Data!$A$4:$V$155,5,FALSE))) -> 0.72 | G105: =IF($A105="","",IF(ISBLANK($A105),"",VLOOKUP($A105,Data!$A$4:$AP$155,42,FALSE))) -> 0.36 | H105: =IF($A105="","",IF(ISBLANK($A105),"",VLOOKUP($A105,Data!$A$4:$AS$155,45,FALSE))) -> 0.4 | I105: =IF($A105="","",IF(ISBLANK($A105),"",VLOOKUP($A105,Data!$A$4:$AI$155,35,FALSE))) -> 0.98 | J105: =IF($A105="","",IF(ISBLANK($A105),"",VLOOKUP($A105,Data!$A$4:$AM$155,37,FALSE))) -> 0.57 | K105: =IF($A105="","",IF(ISBLANK($A105),"",VLOOKUP($A105,Data!$A$4:$AM$155,38,FALSE))) -> 0.23 | L105: =IF($A105="","",IF(ISBLANK($A105),"",VLOOKUP($A105,Data!$A$4:$AM$155,39,FALSE))) -> 0.351 | M105: =IF($A105="","",IF(ISBLANK($A105),"",VLOOKUP($A105,Data!$A$4:$AI$155,6,FALSE))) -> 46100 | N105: =IF($A105="","",IF(ISBLANK($A105),"",VLOOKUP($A105,Data!$A$4:$AI$155,7,FALSE))) -> 93 | O105: =IF($A105="","",IF(ISBLANK($A105),"",VLOOKUP($A105,Data!$A$4:$AR$155,44,FALSE))) -> 0.69 | P105: =IF($A105="","",IF(ISBLANK($A105),"",VLOOKUP($A105,Data!$A$4:$AI$155,8,FALSE))) -> 0.3
A106: 353 | B106: =IF($A106="","",IF(ISBLANK($A106),"",INDEX('LEA Nos codes'!$A$3:$A$154,MATCH($A106,'LEA Nos codes'!$B$3:$B$154,0)))) -> Oldham | C106: =IF($A106="","",IF(ISBLANK($A106),"",VLOOKUP($A106,Data!$A$4:$V$155,3,FALSE))) -> 4.85 | D106: =IF($A106="","",IF(ISBLANK($A106),"",VLOOKUP($A106,Data!$A$4:$AQ$155,43,FALSE))) -> 4.95 | E106: =IF($A106="","",IF(ISBLANK($A106),"",VLOOKUP($A106,Data!$A$4:$V$155,4,FALSE))) -> 4.02 | F106: =IF($A106="","",IF(ISBLANK($A106),"",VLOOKUP($A106,Data!$A$4:$V$155,5,FALSE))) -> 0.68 | G106: =IF($A106="","",IF(ISBLANK($A106),"",VLOOKUP($A106,Data!$A$4:$AP$155,42,FALSE))) -> 0.27 | H106: =IF($A106="","",IF(ISBLANK($A106),"",VLOOKUP($A106,Data!$A$4:$AS$155,45,FALSE))) -> 0.31 | I106: =IF($A106="","",IF(ISBLANK($A106),"",VLOOKUP($A106,Data!$A$4:$AI$155,35,FALSE))) -> 0.97 | J106: =IF($A106="","",IF(ISBLANK($A106),"",VLOOKUP($A106,Data!$A$4:$AM$155,37,FALSE))) -> 0.41 | K106: =IF($A106="","",IF(ISBLANK($A106),"",VLOOKUP($A106,Data!$A$4:$AM$155,38,FALSE))) -> 0.18 | L106: =IF($A106="","",IF(ISBLANK($A106),"",VLOOKUP($A106,Data!$A$4:$AM$155,39,FALSE))) -> 0.429 | M106: =IF($A106="","",IF(ISBLANK($A106),"",VLOOKUP($A106,Data!$A$4:$AI$155,6,FALSE))) -> 16500 | N106: =IF($A106="","",IF(ISBLANK($A106),"",VLOOKUP($A106,Data!$A$4:$AI$155,7,FALSE))) -> 32 | O106: =IF($A106="","",IF(ISBLANK($A106),"",VLOOKUP($A106,Data!$A$4:$AR$155,44,FALSE))) -> 0.73 | P106: =IF($A106="","",IF(ISBLANK($A106),"",VLOOKUP($A106,Data!$A$4:$AI$155,8,FALSE))) -> 0.27
A107: 931 | B107: =IF($A107="","",IF(ISBLANK($A107),"",INDEX('LEA Nos codes'!$A$3:$A$154,MATCH($A107,'LEA Nos codes'!$B$3:$B$154,0)))) -> Oxfordshire | C107: =IF($A107="","",IF(ISBLANK($A107),"",VLOOKUP($A107,Data!$A$4:$V$155,3,FALSE))) -> 5.11 | D107: =IF($A107="","",IF(ISBLANK($A107),"",VLOOKUP($A107,Data!$A$4:$AQ$155,43,FALSE))) -> 5.15 | E107: =IF($A107="","",IF(ISBLANK($A107),"",VLOOKUP($A107,Data!$A$4:$V$155,4,FALSE))) -> 4.03 | F107: =IF($A107="","",IF(ISBLANK($A107),"",VLOOKUP($A107,Data!$A$4:$V$155,5,FALSE))) -> 0.76 | G107: =IF($A107="","",IF(ISBLANK($A107),"",VLOOKUP($A107,Data!$A$4:$AP$155,42,FALSE))) -> 0.41 | H107: =IF($A107="","",IF(ISBLANK($A107),"",VLOOKUP($A107,Data!$A$4:$AS$155,45,FALSE))) -> 0.45 | I107: =IF($A107="","",IF(ISBLANK($A107),"",VLOOKUP($A107,Data!$A$4:$AI$155,35,FALSE))) -> 0.96 | J107: =IF($A107="","",IF(ISBLANK($A107),"",VLOOKUP($A107,Data!$A$4:$AM$155,37,FALSE))) -> 0.48 | K107: =IF($A107="","",IF(ISBLANK($A107),"",VLOOKUP($A107,Data!$A$4:$AM$155,38,FALSE))) -> 0.24 | L107: =IF($A107="","",IF(ISBLANK($A107),"",VLOOKUP($A107,Data!$A$4:$AM$155,39,FALSE))) -> 0.33 | M107: =IF($A107="","",IF(ISBLANK($A107),"",VLOOKUP($A107,Data!$A$4:$AI$155,6,FALSE))) -> 41700 | N107: =IF($A107="","",IF(ISBLANK($A107),"",VLOOKUP($A107,Data!$A$4:$AI$155,7,FALSE))) -> 133 | O107: =IF($A107="","",IF(ISBLANK($A107),"",VLOOKUP($A107,Data!$A$4:$AR$155,44,FALSE))) -> 0.53 | P107: =IF($A107="","",IF(ISBLANK($A107),"",VLOOKUP($A107,Data!$A$4:$AI$155,8,FALSE))) -> 0.46
A108: 874 | B108: =IF($A108="","",IF(ISBLANK($A108),"",INDEX('LEA Nos codes'!$A$3:$A$154,MATCH($A108,'LEA Nos codes'!$B$3:$B$154,0)))) -> Peterborough | C108: =IF($A108="","",IF(ISBLANK($A108),"",VLOOKUP($A108,Data!$A$4:$V$155,3,FALSE))) -> 5.05 | D108: =IF($A108="","",IF(ISBLANK($A108),"",VLOOKUP($A108,Data!$A$4:$AQ$155,43,FALSE))) -> 5.05 | E108: =IF($A108="","",IF(ISBLANK($A108),"",VLOOKUP($A108,Data!$A$4:$V$155,4,FALSE))) -> 4.33 | F108: =IF($A108="","",IF(ISBLANK($A108),"",VLOOKUP($A108,Data!$A$4:$V$155,5,FALSE))) -> 0.73 | G108: =IF($A108="","",IF(ISBLANK($A108),"",VLOOKUP($A108,Data!$A$4:$AP$155,42,FALSE))) -> 0.24 | H108: =IF($A108="","",IF(ISBLANK($A108),"",VLOOKUP($A108,Data!$A$4:$AS$155,45,FALSE))) -> 0.24 | I108: =IF($A108="","",IF(ISBLANK($A108),"",VLOOKUP($A108,Data!$A$4:$AI$155,35,FALSE))) -> 1 | J108: =IF($A108="","",IF(ISBLANK($A108),"",VLOOKUP($A108,Data!$A$4:$AM$155,37,FALSE))) -> 0.47 | K108: =IF($A108="","",IF(ISBLANK($A108),"",VLOOKUP($A108,Data!$A$4:$AM$155,38,FALSE))) -> 0.16 | L108: =IF($A108="","",IF(ISBLANK($A108),"",VLOOKUP($A108,Data!$A$4:$AM$155,39,FALSE))) -> 0.427 | M108: =IF($A108="","",IF(ISBLANK($A108),"",VLOOKUP($A108,Data!$A$4:$AI$155,6,FALSE))) -> 14700 | N108: =IF($A108="","",IF(ISBLANK($A108),"",VLOOKUP($A108,Data!$A$4:$AI$155,7,FALSE))) -> 57 | O108: =IF($A108="","",IF(ISBLANK($A108),"",VLOOKUP($A108,Data!$A$4:$AR$155,44,FALSE))) -> 0.4 | P108: =IF($A108="","",IF(ISBLANK($A108),"",VLOOKUP($A108,Data!$A$4:$AI$155,8,FALSE))) -> 0.59
A109: 879 | B109: =IF($A109="","",IF(ISBLANK($A109),"",INDEX('LEA Nos codes'!$A$3:$A$154,MATCH($A109,'LEA Nos codes'!$B$3:$B$154,0)))) -> Plymouth | C109: =IF($A109="","",IF(ISBLANK($A109),"",VLOOKUP($A109,Data!$A$4:$V$155,3,FALSE))) -> 5.09 | D109: =IF($A109="","",IF(ISBLANK($A109),"",VLOOKUP($A109,Data!$A$4:$AQ$155,43,FALSE))) -> 4.85 | E109: =IF($A109="","",IF(ISBLANK($A109),"",VLOOKUP($A109,Data!$A$4:$V$155,4,FALSE))) -> 4.33 | F109: =IF($A109="","",IF(ISBLANK($A109),"",VLOOKUP($A109,Data!$A$4:$V$155,5,FALSE))) -> 0.82 | G109: =IF($A109="","",IF(ISBLANK($A109),"",VLOOKUP($A109,Data!$A$4:$AP$155,42,FALSE))) -> 0.61 | H109: =IF($A109="","",IF(ISBLANK($A109),"",VLOOKUP($A109,Data!$A$4:$AS$155,45,FALSE))) -> 0.72 | I109: =IF($A109="","",IF(ISBLANK($A109),"",VLOOKUP($A109,Data!$A$4:$AI$155,35,FALSE))) -> 0.99 | J109: =IF($A109="","",IF(ISBLANK($A109),"",VLOOKUP($A109,Data!$A$4:$AM$155,37,FALSE))) -> 0.57 | K109: =IF($A109="","",IF(ISBLANK($A109),"",VLOOKUP($A109,Data!$A$4:$AM$155,38,FALSE))) -> 0.19 | L109: =IF($A109="","",IF(ISBLANK($A109),"",VLOOKUP($A109,Data!$A$4:$AM$155,39,FALSE))) -> 0.331 | M109: =IF($A109="","",IF(ISBLANK($A109),"",VLOOKUP($A109,Data!$A$4:$AI$155,6,FALSE))) -> 15700 | N109: =IF($A109="","",IF(ISBLANK($A109),"",VLOOKUP($A109,Data!$A$4:$AI$155,7,FALSE))) -> 58 | O109: =IF($A109="","",IF(ISBLANK($A109),"",VLOOKUP($A109,Data!$A$4:$AR$155,44,FALSE))) -> 0.48 | P109: =IF($A109="","",IF(ISBLANK($A109),"",VLOOKUP($A109,Data!$A$4:$AI$155,8,FALSE))) -> 0.51
A110: 836 | B110: =IF($A110="","",IF(ISBLANK($A110),"",INDEX('LEA Nos codes'!$A$3:$A$154,MATCH($A110,'LEA Nos codes'!$B$3:$B$154,0)))) -> Poole | C110: =IF($A110="","",IF(ISBLANK($A110),"",VLOOKUP($A110,Data!$A$4:$V$155,3,FALSE))) -> 4.88 | D110: =IF($A110="","",IF(ISBLANK($A110),"",VLOOKUP($A110,Data!$A$4:$AQ$155,43,FALSE))) -> 4.88 | E110: =IF($A110="","",IF(ISBLANK($A110),"",VLOOKUP($A110,Data!$A$4:$V$155,4,FALSE))) -> 3.8 | F110: =IF($A110="","",IF(ISBLANK($A110),"",VLOOKUP($A110,Data!$A$4:$V$155,5,FALSE))) -> 0.81 | G110: =IF($A110="","",IF(ISBLANK($A110),"",VLOOKUP($A110,Data!$A$4:$AP$155,42,FALSE))) -> 0.48 | H110: =IF($A110="","",IF(ISBLANK($A110),"",VLOOKUP($A110,Data!$A$4:$AS$155,45,FALSE))) -> 0.52 | I110: =IF($A110="","",IF(ISBLANK($A110),"",VLOOKUP($A110,Data!$A$4:$AI$155,35,FALSE))) -> 0.9 | J110: =IF($A110="","",IF(ISBLANK($A110),"",VLOOKUP($A110,Data!$A$4:$AM$155,37,FALSE))) -> 0.48 | K110: =IF($A110="","",IF(ISBLANK($A110),"",VLOOKUP($A110,Data!$A$4:$AM$155,38,FALSE))) -> 0.21 | L110: =IF($A110="","",IF(ISBLANK($A110),"",VLOOKUP($A110,Data!$A$4:$AM$155,39,FALSE))) -> 0.307 | M110: =IF($A110="","",IF(ISBLANK($A110),"",VLOOKUP($A110,Data!$A$4:$AI$155,6,FALSE))) -> 8700 | N110: =IF($A110="","",IF(ISBLANK($A110),"",VLOOKUP($A110,Data!$A$4:$AI$155,7,FALSE))) -> 114 | O110: =IF($A110="","",IF(ISBLANK($A110),"",VLOOKUP($A110,Data!$A$4:$AR$155,44,FALSE))) -> 0.4 | P110: =IF($A110="","",IF(ISBLANK($A110),"",VLOOKUP($A110,Data!$A$4:$AI$155,8,FALSE))) -> 0.6
A111: 851 | B111: =IF($A111="","",IF(ISBLANK($A111),"",INDEX('LEA Nos codes'!$A$3:$A$154,MATCH($A111,'LEA Nos codes'!$B$3:$B$154,0)))) -> Portsmouth | C111: =IF($A111="","",IF(ISBLANK($A111),"",VLOOKUP($A111,Data!$A$4:$V$155,3,FALSE))) -> 4.85 | D111: =IF($A111="","",IF(ISBLANK($A111),"",VLOOKUP($A111,Data!$A$4:$AQ$155,43,FALSE))) -> 5.07 | E111: =IF($A111="","",IF(ISBLANK($A111),"",VLOOKUP($A111,Data!$A$4:$V$155,4,FALSE))) -> 4.21 | F111: =IF($A111="","",IF(ISBLANK($A111),"",VLOOKUP($A111,Data!$A$4:$V$155,5,FALSE))) -> 0.75 | G111: =IF($A111="","",IF(ISBLANK($A111),"",VLOOKUP($A111,Data!$A$4:$AP$155,42,FALSE))) -> 0.28 | H111: =IF($A111="","",IF(ISBLANK($A111),"",VLOOKUP($A111,Data!$A$4:$AS$155,45,FALSE))) -> 0.31 | I111: =IF($A111="","",IF(ISBLANK($A111),"",VLOOKUP($A111,Data!$A$4:$AI$155,35,FALSE))) -> 0.94 | J111: =IF($A111="","",IF(ISBLANK($A111),"",VLOOKUP($A111,Data!$A$4:$AM$155,37,FALSE))) -> 0.55 | K111: =IF($A111="","",IF(ISBLANK($A111),"",VLOOKUP($A111,Data!$A$4:$AM$155,38,FALSE))) -> 0.11 | L111: =IF($A111="","",IF(ISBLANK($A111),"",VLOOKUP($A111,Data!$A$4:$AM$155,39,FALSE))) -> 0.301 | M111: =IF($A111="","",IF(ISBLANK($A111),"",VLOOKUP($A111,Data!$A$4:$AI$155,6,FALSE))) -> 13600 | N111: =IF($A111="","",IF(ISBLANK($A111),"",VLOOKUP($A111,Data!$A$4:$AI$155,7,FALSE))) -> 61 | O111: =IF($A111="","",IF(ISBLANK($A111),"",VLOOKUP($A111,Data!$A$4:$AR$155,44,FALSE))) -> 0.44 | P111: =IF($A111="","",IF(ISBLANK($A111),"",VLOOKUP($A111,Data!$A$4:$AI$155,8,FALSE))) -> 0.54
A112: 870 | B112: =IF($A112="","",IF(ISBLANK($A112),"",INDEX('LEA Nos codes'!$A$3:$A$154,MATCH($A112,'LEA Nos codes'!$B$3:$B$154,0)))) -> Reading | C112: =IF($A112="","",IF(ISBLANK($A112),"",VLOOKUP($A112,Data!$A$4:$V$155,3,FALSE))) -> 5 | D112: =IF($A112="","",IF(ISBLANK($A112),"",VLOOKUP($A112,Data!$A$4:$AQ$155,43,FALSE))) -> 5.36 | E112: =IF($A112="","",IF(ISBLANK($A112),"",VLOOKUP($A112,Data!$A$4:$V$155,4,FALSE))) -> 4.36 | F112: =IF($A112="","",IF(ISBLANK($A112),"",VLOOKUP($A112,Data!$A$4:$V$155,5,FALSE))) -> 0.86 | G112: =IF($A112="","",IF(ISBLANK($A112),"",VLOOKUP($A112,Data!$A$4:$AP$155,42,FALSE))) -> 0.51 | H112: =IF($A112="","",IF(ISBLANK($A112),"",VLOOKUP($A112,Data!$A$4:$AS$155,45,FALSE))) -> 0.47 | I112: =IF($A112="","",IF(ISBLANK($A112),"",VLOOKUP($A112,Data!$A$4:$AI$155,35,FALSE))) -> 0.92 | J112: =IF($A112="","",IF(ISBLANK($A112),"",VLOOKUP($A112,Data!$A$4:$AM$155,37,FALSE))) -> 0.51 | K112: =IF($A112="","",IF(ISBLANK($A112),"",VLOOKUP($A112,Data!$A$4:$AM$155,38,FALSE))) -> 0.13 | L112: =IF($A112="","",IF(ISBLANK($A112),"",VLOOKUP($A112,Data!$A$4:$AM$155,39,FALSE))) -> 0.333 | M112: =IF($A112="","",IF(ISBLANK($A112),"",VLOOKUP($A112,Data!$A$4:$AI$155,6,FALSE))) -> 12300 | N112: =IF($A112="","",IF(ISBLANK($A112),"",VLOOKUP($A112,Data!$A$4:$AI$155,7,FALSE))) -> 87 | O112: =IF($A112="","",IF(ISBLANK($A112),"",VLOOKUP($A112,Data!$A$4:$AR$155,44,FALSE))) -> 0.66 | P112: =IF($A112="","",IF(ISBLANK($A112),"",VLOOKUP($A112,Data!$A$4:$AI$155,8,FALSE))) -> 0.34
A113: 317 | B113: =IF($A113="","",IF(ISBLANK($A113),"",INDEX('LEA Nos codes'!$A$3:$A$154,MATCH($A113,'LEA Nos codes'!$B$3:$B$154,0)))) -> Redbridge | C113: =IF($A113="","",IF(ISBLANK($A113),"",VLOOKUP($A113,Data!$A$4:$V$155,3,FALSE))) -> 6 | D113: =IF($A113="","",IF(ISBLANK($A113),"",VLOOKUP($A113,Data!$A$4:$AQ$155,43,FALSE))) -> 5.28 | E113: =IF($A113="","",IF(ISBLANK($A113),"",VLOOKUP($A113,Data!$A$4:$V$155,4,FALSE))) -> 3.76 | F113: =IF($A113="","",IF(ISBLANK($A113),"",VLOOKUP($A113,Data!$A$4:$V$155,5,FALSE))) -> 0.8 | G113: =IF($A113="","",IF(ISBLANK($A113),"",VLOOKUP($A113,Data!$A$4:$AP$155,42,FALSE))) -> 0.35 | H113: =IF($A113="","",IF(ISBLANK($A113),"",VLOOKUP($A113,Data!$A$4:$AS$155,45,FALSE))) -> 0.39 | I113: =IF($A113="","",IF(ISBLANK($A113),"",VLOOKUP($A113,Data!$A$4:$AI$155,35,FALSE))) -> 0.94 | J113: =IF($A113="","",IF(ISBLANK($A113),"",VLOOKUP($A113,Data!$A$4:$AM$155,37,FALSE))) -> 0.6 | K113: =IF($A113="","",IF(ISBLANK($A113),"",VLOOKUP($A113,Data!$A$4:$AM$155,38,FALSE))) -> 0.14 | L113: =IF($A113="","",IF(ISBLANK($A113),"",VLOOKUP($A113,Data!$A$4:$AM$155,39,FALSE))) -> 0.32 | M113: =IF($A113="","",IF(ISBLANK($A113),"",VLOOKUP($A113,Data!$A$4:$AI$155,6,FALSE))) -> 22200 | N113: =IF($A113="","",IF(ISBLANK($A113),"",VLOOKUP($A113,Data!$A$4:$AI$155,7,FALSE))) -> 89 | O113: =IF($A113="","",IF(ISBLANK($A113),"",VLOOKUP($A113,Data!$A$4:$AR$155,44,FALSE))) -> 0.63 | P113: =IF($A113="","",IF(ISBLANK($A113),"",VLOOKUP($A113,Data!$A$4:$AI$155,8,FALSE))) -> 0.35
A114: 807 | B114: =IF($A114="","",IF(ISBLANK($A114),"",INDEX('LEA Nos codes'!$A$3:$A$154,MATCH($A114,'LEA Nos codes'!$B$3:$B$154,0)))) -> Redcar and Cleveland | C114: =IF($A114="","",IF(ISBLANK($A114),"",VLOOKUP($A114,Data!$A$4:$V$155,3,FALSE))) -> 9.68 | D114: =IF($A114="","",IF(ISBLANK($A114),"",VLOOKUP($A114,Data!$A$4:$AQ$155,43,FALSE))) -> 4.85 | E114: =IF($A114="","",IF(ISBLANK($A114),"",VLOOKUP($A114,Data!$A$4:$V$155,4,FALSE))) -> 3.71 | F114: =IF($A114="","",IF(ISBLANK($A114),"",VLOOKUP($A114,Data!$A$4:$V$155,5,FALSE))) -> 0.64 | G114: =IF($A114="","",IF(ISBLANK($A114),"",VLOOKUP($A114,Data!$A$4:$AP$155,42,FALSE))) -> 0.33 | H114: =IF($A114="","",IF(ISBLANK($A114),"",VLOOKUP($A114,Data!$A$4:$AS$155,45,FALSE))) -> 0.31 | I114: =IF($A114="","",IF(ISBLANK($A114),"",VLOOKUP($A114,Data!$A$4:$AI$155,35,FALSE))) -> 1.04 | J114: =IF($A114="","",IF(ISBLANK($A114),"",VLOOKUP($A114,Data!$A$4:$AM$155,37,FALSE))) -> 0.51 | K114: =IF($A114="","",IF(ISBLANK($A114),"",VLOOKUP($A114,Data!$A$4:$AM$155,38,FALSE))) -> 0.24 | L114: =IF($A114="","",IF(ISBLANK($A114),"",VLOOKUP($A114,Data!$A$4:$AM$155,39,FALSE))) -> 0.399 | M114: =IF($A114="","",IF(ISBLANK($A114),"",VLOOKUP($A114,Data!$A$4:$AI$155,6,FALSE))) -> 7700 | N114: =IF($A114="","",IF(ISBLANK($A114),"",VLOOKUP($A114,Data!$A$4:$AI$155,7,FALSE))) -> 41 | O114: =IF($A114="","",IF(ISBLANK($A114),"",VLOOKUP($A114,Data!$A$4:$AR$155,44,FALSE))) -> 0.97 | P114: =IF($A114="","",IF(ISBLANK($A114),"",VLOOKUP($A114,Data!$A$4:$AI$155,8,FALSE))) -> 0.03
A115: 318 | B115: =IF($A115="","",IF(ISBLANK($A115),"",INDEX('LEA Nos codes'!$A$3:$A$154,MATCH($A115,'LEA Nos codes'!$B$3:$B$154,0)))) -> Richmond upon Thames | C115: =IF($A115="","",IF(ISBLANK($A115),"",VLOOKUP($A115,Data!$A$4:$V$155,3,FALSE))) -> 6.1 | D115: =IF($A115="","",IF(ISBLANK($A115),"",VLOOKUP($A115,Data!$A$4:$AQ$155,43,FALSE))) -> 5.53 | E115: =IF($A115="","",IF(ISBLANK($A115),"",VLOOKUP($A115,Data!$A$4:$V$155,4,FALSE))) -> 3.68 | F115: =IF($A115="","",IF(ISBLANK($A115),"",VLOOKUP($A115,Data!$A$4:$V$155,5,FALSE))) -> 0.84 | G115: =IF($A115="","",IF(ISBLANK($A115),"",VLOOKUP($A115,Data!$A$4:$AP$155,42,FALSE))) -> 0.67 | H115: =IF($A115="","",IF(ISBLANK($A115),"",VLOOKUP($A115,Data!$A$4:$AS$155,45,FALSE))) -> 0.72 | I115: =IF($A115="","",IF(ISBLANK($A115),"",VLOOKUP($A115,Data!$A$4:$AI$155,35,FALSE))) -> 0.97 | J115: =IF($A115="","",IF(ISBLANK($A115),"",VLOOKUP($A115,Data!$A$4:$AM$155,37,FALSE))) -> 0.43 | K115: =IF($A115="","",IF(ISBLANK($A115),"",VLOOKUP($A115,Data!$A$4:$AM$155,38,FALSE))) -> 0.24 | L115: =IF($A115="","",IF(ISBLANK($A115),"",VLOOKUP($A115,Data!$A$4:$AM$155,39,FALSE))) -> 0.296 | M115: =IF($A115="","",IF(ISBLANK($A115),"",VLOOKUP($A115,Data!$A$4:$AI$155,6,FALSE))) -> 14500 | N115: =IF($A115="","",IF(ISBLANK($A115),"",VLOOKUP($A115,Data!$A$4:$AI$155,7,FALSE))) -> 143 | O115: =IF($A115="","",IF(ISBLANK($A115),"",VLOOKUP($A115,Data!$A$4:$AR$155,44,FALSE))) -> 0.48 | P115: =IF($A115="","",IF(ISBLANK($A115),"",VLOOKUP($A115,Data!$A$4:$AI$155,8,FALSE))) -> 0.52
A116: 354 | B116: =IF($A116="","",IF(ISBLANK($A116),"",INDEX('LEA Nos codes'!$A$3:$A$154,MATCH($A116,'LEA Nos codes'!$B$3:$B$154,0)))) -> Rochdale | C116: =IF($A116="","",IF(ISBLANK($A116),"",VLOOKUP($A116,Data!$A$4:$V$155,3,FALSE))) -> 4.95 | D116: =IF($A116="","",IF(ISBLANK($A116),"",VLOOKUP($A116,Data!$A$4:$AQ$155,43,FALSE))) -> 4.95 | E116: =IF($A116="","",IF(ISBLANK($A116),"",VLOOKUP($A116,Data!$A$4:$V$155,4,FALSE))) -> 4.19 | F116: =IF($A116="","",IF(ISBLANK($A116),"",VLOOKUP($A116,Data!$A$4:$V$155,5,FALSE))) -> 0.72 | G116: =IF($A116="","",IF(ISBLANK($A116),"",VLOOKUP($A116,Data!$A$4:$AP$155,42,FALSE))) -> 0.27 | H116: =IF($A116="","",IF(ISBLANK($A116),"",VLOOKUP($A116,Data!$A$4:$AS$155,45,FALSE))) -> 0.28 | I116: =IF($A116="","",IF(ISBLANK($A116),"",VLOOKUP($A116,Data!$A$4:$AI$155,35,FALSE))) -> 0.96 | J116: =IF($A116="","",IF(ISBLANK($A116),"",VLOOKUP($A116,Data!$A$4:$AM$155,37,FALSE))) -> 0.42 | K116: =IF($A116="","",IF(ISBLANK($A116),"",VLOOKUP($A116,Data!$A$4:$AM$155,38,FALSE))) -> 0.18 | L116: =IF($A116="","",IF(ISBLANK($A116),"",VLOOKUP($A116,Data!$A$4:$AM$155,39,FALSE))) -> 0.41 | M116: =IF($A116="","",IF(ISBLANK($A116),"",VLOOKUP($A116,Data!$A$4:$AI$155,6,FALSE))) -> 15000 | N116: =IF($A116="","",IF(ISBLANK($A116),"",VLOOKUP($A116,Data!$A$4:$AI$155,7,FALSE))) -> 21 | O116: =IF($A116="","",IF(ISBLANK($A116),"",VLOOKUP($A116,Data!$A$4:$AR$155,44,FALSE))) -> 0.66 | P116: =IF($A116="","",IF(ISBLANK($A116),"",VLOOKUP($A116,Data!$A$4:$AI$155,8,FALSE))) -> 0.34
A117: 372 | B117: =IF($A117="","",IF(ISBLANK($A117),"",INDEX('LEA Nos codes'!$A$3:$A$154,MATCH($A117,'LEA Nos codes'!$B$3:$B$154,0)))) -> Rotherham | C117: =IF($A117="","",IF(ISBLANK($A117),"",VLOOKUP($A117,Data!$A$4:$V$155,3,FALSE))) -> 4.85 | D117: =IF($A117="","",IF(ISBLANK($A117),"",VLOOKUP($A117,Data!$A$4:$AQ$155,43,FALSE))) -> 4.85 | E117: =IF($A117="","",IF(ISBLANK($A117),"",VLOOKUP($A117,Data!$A$4:$V$155,4,FALSE))) -> 4.16 | F117: =IF($A117="","",IF(ISBLANK($A117),"",VLOOKUP($A117,Data!$A$4:$V$155,5,FALSE))) -> 0.73 | G117: =IF($A117="","",IF(ISBLANK($A117),"",VLOOKUP($A117,Data!$A$4:$AP$155,42,FALSE))) -> 0.38 | H117: =IF($A117="","",IF(ISBLANK($A117),"",VLOOKUP($A117,Data!$A$4:$AS$155,45,FALSE))) -> 0.41 | I117: =IF($A117="","",IF(ISBLANK($A117),"",VLOOKUP($A117,Data!$A$4:$AI$155,35,FALSE))) -> 0.97 | J117: =IF($A117="","",IF(ISBLANK($A117),"",VLOOKUP($A117,Data!$A$4:$AM$155,37,FALSE))) -> 0.56 | K117: =IF($A117="","",IF(ISBLANK($A117),"",VLOOKUP($A117,Data!$A$4:$AM$155,38,FALSE))) -> 0.2 | L117: =IF($A117="","",IF(ISBLANK($A117),"",VLOOKUP($A117,Data!$A$4:$AM$155,39,FALSE))) -> 0.357 | M117: =IF($A117="","",IF(ISBLANK($A117),"",VLOOKUP($A117,Data!$A$4:$AI$155,6,FALSE))) -> 16000 | N117: =IF($A117="","",IF(ISBLANK($A117),"",VLOOKUP($A117,Data!$A$4:$AI$155,7,FALSE))) -> 45 | O117: =IF($A117="","",IF(ISBLANK($A117),"",VLOOKUP($A117,Data!$A$4:$AR$155,44,FALSE))) -> 0.74 | P117: =IF($A117="","",IF(ISBLANK($A117),"",VLOOKUP($A117,Data!$A$4:$AI$155,8,FALSE))) -> 0.25
A118: 857 | B118: =IF($A118="","",IF(ISBLANK($A118),"",INDEX('LEA Nos codes'!$A$3:$A$154,MATCH($A118,'LEA Nos codes'!$B$3:$B$154,0)))) -> Rutland | C118: =IF($A118="","",IF(ISBLANK($A118),"",VLOOKUP($A118,Data!$A$4:$V$155,3,FALSE))) -> 4.85 | D118: =IF($A118="","",IF(ISBLANK($A118),"",VLOOKUP($A118,Data!$A$4:$AQ$155,43,FALSE))) -> 4.85 | E118: =IF($A118="","",IF(ISBLANK($A118),"",VLOOKUP($A118,Data!$A$4:$V$155,4,FALSE))) -> 4.01 | F118: =IF($A118="","",IF(ISBLANK($A118),"",VLOOKUP($A118,Data!$A$4:$V$155,5,FALSE))) -> 0.78 | G118: =IF($A118="","",IF(ISBLANK($A118),"",VLOOKUP($A118,Data!$A$4:$AP$155,42,FALSE))) -> 0.17 | H118: =IF($A118="","",IF(ISBLANK($A118),"",VLOOKUP($A118,Data!$A$4:$AS$155,45,FALSE))) -> 0.17 | I118: =IF($A118="","",IF(ISBLANK($A118),"",VLOOKUP($A118,Data!$A$4:$AI$155,35,FALSE))) -> 1.07 | J118: =IF($A118="","",IF(ISBLANK($A118),"",VLOOKUP($A118,Data!$A$4:$AM$155,37,FALSE))) -> 0.57 | K118: =IF($A118="","",IF(ISBLANK($A118),"",VLOOKUP($A118,Data!$A$4:$AM$155,38,FALSE))) -> 0.34 | L118: =IF($A118="","",IF(ISBLANK($A118),"",VLOOKUP($A118,Data!$A$4:$AM$155,39,FALSE))) -> 0.241 | M118: =IF($A118="","",IF(ISBLANK($A118),"",VLOOKUP($A118,Data!$A$4:$AI$155,6,FALSE))) -> 1700 | N118: =IF($A118="","",IF(ISBLANK($A118),"",VLOOKUP($A118,Data!$A$4:$AI$155,7,FALSE))) -> 148 | O118: =IF($A118="","",IF(ISBLANK($A118),"",VLOOKUP($A118,Data!$A$4:$AR$155,44,FALSE))) -> 0.41 | P118: =IF($A118="","",IF(ISBLANK($A118),"",VLOOKUP($A118,Data!$A$4:$AI$155,8,FALSE))) -> 0.59
A119: 355 | B119: =IF($A119="","",IF(ISBLANK($A119),"",INDEX('LEA Nos codes'!$A$3:$A$154,MATCH($A119,'LEA Nos codes'!$B$3:$B$154,0)))) -> Salford | C119: =IF($A119="","",IF(ISBLANK($A119),"",VLOOKUP($A119,Data!$A$4:$V$155,3,FALSE))) -> 4.85 | D119: =IF($A119="","",IF(ISBLANK($A119),"",VLOOKUP($A119,Data!$A$4:$AQ$155,43,FALSE))) -> 4.95 | E119: =IF($A119="","",IF(ISBLANK($A119),"",VLOOKUP($A119,Data!$A$4:$V$155,4,FALSE))) -> 4.88 | F119: =IF($A119="","",IF(ISBLANK($A119),"",VLOOKUP($A119,Data!$A$4:$V$155,5,FALSE))) -> 0.65 | G119: =IF($A119="","",IF(ISBLANK($A119),"",VLOOKUP($A119,Data!$A$4:$AP$155,42,FALSE))) -> 0.35 | H119: =IF($A119="","",IF(ISBLANK($A119),"",VLOOKUP($A119,Data!$A$4:$AS$155,45,FALSE))) -> 0.53 | I119: =IF($A119="","",IF(ISBLANK($A119),"",VLOOKUP($A119,Data!$A$4:$AI$155,35,FALSE))) -> 1 | J119: =IF($A119="","",IF(ISBLANK($A119),"",VLOOKUP($A119,Data!$A$4:$AM$155,37,FALSE))) -> 0.53 | K119: =IF($A119="","",IF(ISBLANK($A119),"",VLOOKUP($A119,Data!$A$4:$AM$155,38,FALSE))) -> 0.16 | L119: =IF($A119="","",IF(ISBLANK($A119),"",VLOOKUP($A119,Data!$A$4:$AM$155,39,FALSE))) -> 0.352 | M119: =IF($A119="","",IF(ISBLANK($A119),"",VLOOKUP($A119,Data!$A$4:$AI$155,6,FALSE))) -> 16800 | N119: =IF($A119="","",IF(ISBLANK($A119),"",VLOOKUP($A119,Data!$A$4:$AI$155,7,FALSE))) -> 17 | O119: =IF($A119="","",IF(ISBLANK($A119),"",VLOOKUP($A119,Data!$A$4:$AR$155,44,FALSE))) -> 0.72 | P119: =IF($A119="","",IF(ISBLANK($A119),"",VLOOKUP($A119,Data!$A$4:$AI$155,8,FALSE))) -> 0.27
A120: 333 | B120: =IF($A120="","",IF(ISBLANK($A120),"",INDEX('LEA Nos codes'!$A$3:$A$154,MATCH($A120,'LEA Nos codes'!$B$3:$B$154,0)))) -> Sandwell | C120: =IF($A120="","",IF(ISBLANK($A120),"",VLOOKUP($A120,Data!$A$4:$V$155,3,FALSE))) -> 4.85 | D120: =IF($A120="","",IF(ISBLANK($A120),"",VLOOKUP($A120,Data!$A$4:$AQ$155,43,FALSE))) -> 4.89 | E120: =IF($A120="","",IF(ISBLANK($A120),"",VLOOKUP($A120,Data!$A$4:$V$155,4,FALSE))) -> 3.57 | F120: =IF($A120="","",IF(ISBLANK($A120),"",VLOOKUP($A120,Data!$A$4:$V$155,5,FALSE))) -> 0.68 | G120: =IF($A120="","",IF(ISBLANK($A120),"",VLOOKUP($A120,Data!$A$4:$AP$155,42,FALSE))) -> 0.22 | H120: =IF($A120="","",IF(ISBLANK($A120),"",VLOOKUP($A120,Data!$A$4:$AS$155,45,FALSE))) -> 0.25 | I120: =IF($A120="","",IF(ISBLANK($A120),"",VLOOKUP($A120,Data!$A$4:$AI$155,35,FALSE))) -> 0.94 | J120: =IF($A120="","",IF(ISBLANK($A120),"",VLOOKUP($A120,Data!$A$4:$AM$155,37,FALSE))) -> 0.46 | K120: =IF($A120="","",IF(ISBLANK($A120),"",VLOOKUP($A120,Data!$A$4:$AM$155,38,FALSE))) -> 0.14 | L120: =IF($A120="","",IF(ISBLANK($A120),"",VLOOKUP($A120,Data!$A$4:$AM$155,39,FALSE))) -> 0.397 | M120: =IF($A120="","",IF(ISBLANK($A120),"",VLOOKUP($A120,Data!$A$4:$AI$155,6,FALSE))) -> 23600 | N120: =IF($A120="","",IF(ISBLANK($A120),"",VLOOKUP($A120,Data!$A$4:$AI$155,7,FALSE))) -> 11 | O120: =IF($A120="","",IF(ISBLANK($A120),"",VLOOKUP($A120,Data!$A$4:$AR$155,44,FALSE))) -> 0.82 | P120: =IF($A120="","",IF(ISBLANK($A120),"",VLOOKUP($A120,Data!$A$4:$AI$155,8,FALSE))) -> 0.18
A121: 343 | B121: =IF($A121="","",IF(ISBLANK($A121),"",INDEX('LEA Nos codes'!$A$3:$A$154,MATCH($A121,'LEA Nos codes'!$B$3:$B$154,0)))) -> Sefton | C121: =IF($A121="","",IF(ISBLANK($A121),"",VLOOKUP($A121,Data!$A$4:$V$155,3,FALSE))) -> 4.55 | D121: =IF($A121="","",IF(ISBLANK($A121),"",VLOOKUP($A121,Data!$A$4:$AQ$155,43,FALSE))) -> 4.87 | E121: =IF($A121="","",IF(ISBLANK($A121),"",VLOOKUP($A121,Data!$A$4:$V$155,4,FALSE))) -> 4.1 | F121: =IF($A121="","",IF(ISBLANK($A121),"",VLOOKUP($A121,Data!$A$4:$V$155,5,FALSE))) -> 0.8 | G121: =IF($A121="","",IF(ISBLANK($A121),"",VLOOKUP($A121,Data!$A$4:$AP$155,42,FALSE))) -> 0.42 | H121: =IF($A121="","",IF(ISBLANK($A121),"",VLOOKUP($A121,Data!$A$4:$AS$155,45,FALSE))) -> 0.46 | I121: =IF($A121="","",IF(ISBLANK($A121),"",VLOOKUP($A121,Data!$A$4:$AI$155,35,FALSE))) -> 1 | J121: =IF($A121="","",IF(ISBLANK($A121),"",VLOOKUP($A121,Data!$A$4:$AM$155,37,FALSE))) -> 0.51 | K121: =IF($A121="","",IF(ISBLANK($A121),"",VLOOKUP($A121,Data!$A$4:$AM$155,38,FALSE))) -> 0.24 | L121: =IF($A121="","",IF(ISBLANK($A121),"",VLOOKUP($A121,Data!$A$4:$AM$155,39,FALSE))) -> 0.317 | M121: =IF($A121="","",IF(ISBLANK($A121),"",VLOOKUP($A121,Data!$A$4:$AI$155,6,FALSE))) -> 14700 | N121: =IF($A121="","",IF(ISBLANK($A121),"",VLOOKUP($A121,Data!$A$4:$AI$155,7,FALSE))) -> 68 | O121: =IF($A121="","",IF(ISBLANK($A121),"",VLOOKUP($A121,Data!$A$4:$AR$155,44,FALSE))) -> 0.71 | P121: =IF($A121="","",IF(ISBLANK($A121),"",VLOOKUP($A121,Data!$A$4:$AI$155,8,FALSE))) -> 0.28
A122: 373 | B122: =IF($A122="","",IF(ISBLANK($A122),"",INDEX('LEA Nos codes'!$A$3:$A$154,MATCH($A122,'LEA Nos codes'!$B$3:$B$154,0)))) -> Sheffield | C122: =IF($A122="","",IF(ISBLANK($A122),"",VLOOKUP($A122,Data!$A$4:$V$155,3,FALSE))) -> 5.05 | D122: =IF($A122="","",IF(ISBLANK($A122),"",VLOOKUP($A122,Data!$A$4:$AQ$155,43,FALSE))) -> 4.85 | E122: =IF($A122="","",IF(ISBLANK($A122),"",VLOOKUP($A122,Data!$A$4:$V$155,4,FALSE))) -> 3.95 | F122: =IF($A122="","",IF(ISBLANK($A122),"",VLOOKUP($A122,Data!$A$4:$V$155,5,FALSE))) -> 0.7 | G122: =IF($A122="","",IF(ISBLANK($A122),"",VLOOKUP($A122,Data!$A$4:$AP$155,42,FALSE))) -> 0.46 | H122: =IF($A122="","",IF(ISBLANK($A122),"",VLOOKUP($A122,Data!$A$4:$AS$155,45,FALSE))) -> 0.52 | I122: =IF($A122="","",IF(ISBLANK($A122),"",VLOOKUP($A122,Data!$A$4:$AI$155,35,FALSE))) -> 0.93 | J122: =IF($A122="","",IF(ISBLANK($A122),"",VLOOKUP($A122,Data!$A$4:$AM$155,37,FALSE))) -> 0.51 | K122: =IF($A122="","",IF(ISBLANK($A122),"",VLOOKUP($A122,Data!$A$4:$AM$155,38,FALSE))) -> 0.18 | L122: =IF($A122="","",IF(ISBLANK($A122),"",VLOOKUP($A122,Data!$A$4:$AM$155,39,FALSE))) -> 0.413 | M122: =IF($A122="","",IF(ISBLANK($A122),"",VLOOKUP($A122,Data!$A$4:$AI$155,6,FALSE))) -> 34300 | N122: =IF($A122="","",IF(ISBLANK($A122),"",VLOOKUP($A122,Data!$A$4:$AI$155,7,FALSE))) -> 47 | O122: =IF($A122="","",IF(ISBLANK($A122),"",VLOOKUP($A122,Data!$A$4:$AR$155,44,FALSE))) -> 0.64 | P122: =IF($A122="","",IF(ISBLANK($A122),"",VLOOKUP($A122,Data!$A$4:$AI$155,8,FALSE))) -> 0.35
A123: 893 | B123: =IF($A123="","",IF(ISBLANK($A123),"",INDEX('LEA Nos codes'!$A$3:$A$154,MATCH($A123,'LEA Nos codes'!$B$3:$B$154,0)))) -> Shropshire | C123: =IF($A123="","",IF(ISBLANK($A123),"",VLOOKUP($A123,Data!$A$4:$V$155,3,FALSE))) -> 4.96 | D123: =IF($A123="","",IF(ISBLANK($A123),"",VLOOKUP($A123,Data!$A$4:$AQ$155,43,FALSE))) -> 4.85 | E123: =IF($A123="","",IF(ISBLANK($A123),"",VLOOKUP($A123,Data!$A$4:$V$155,4,FALSE))) -> 3.48 | F123: =IF($A123="","",IF(ISBLANK($A123),"",VLOOKUP($A123,Data!$A$4:$V$155,5,FALSE))) -> 0.82 | G123: =IF($A123="","",IF(ISBLANK($A123),"",VLOOKUP($A123,Data!$A$4:$AP$155,42,FALSE))) -> 0.21 | H123: =IF($A123="","",IF(ISBLANK($A123),"",VLOOKUP($A123,Data!$A$4:$AS$155,45,FALSE))) -> 0.22 | I123: =IF($A123="","",IF(ISBLANK($A123),"",VLOOKUP($A123,Data!$A$4:$AI$155,35,FALSE))) -> 0.98 | J123: =IF($A123="","",IF(ISBLANK($A123),"",VLOOKUP($A123,Data!$A$4:$AM$155,37,FALSE))) -> 0.52 | K123: =IF($A123="","",IF(ISBLANK($A123),"",VLOOKUP($A123,Data!$A$4:$AM$155,38,FALSE))) -> 0.19 | L123: =IF($A123="","",IF(ISBLANK($A123),"",VLOOKUP($A123,Data!$A$4:$AM$155,39,FALSE))) -> 0.303 | M123: =IF($A123="","",IF(ISBLANK($A123),"",VLOOKUP($A123,Data!$A$4:$AI$155,6,FALSE))) -> 15700 | N123: =IF($A123="","",IF(ISBLANK($A123),"",VLOOKUP($A123,Data!$A$4:$AI$155,7,FALSE))) -> 113 | O123: =IF($A123="","",IF(ISBLANK($A123),"",VLOOKUP($A123,Data!$A$4:$AR$155,44,FALSE))) -> 0.51 | P123: =IF($A123="","",IF(ISBLANK($A123),"",VLOOKUP($A123,Data!$A$4:$AI$155,8,FALSE))) -> 0.47
A124: 871 | B124: =IF($A124="","",IF(ISBLANK($A124),"",INDEX('LEA Nos codes'!$A$3:$A$154,MATCH($A124,'LEA Nos codes'!$B$3:$B$154,0)))) -> Slough | C124: =IF($A124="","",IF(ISBLANK($A124),"",VLOOKUP($A124,Data!$A$4:$V$155,3,FALSE))) -> . | D124: =IF($A124="","",IF(ISBLANK($A124),"",VLOOKUP($A124,Data!$A$4:$AQ$155,43,FALSE))) -> 5.49 | E124: =IF($A124="","",IF(ISBLANK($A124),"",VLOOKUP($A124,Data!$A$4:$V$155,4,FALSE))) -> 5.12 | F124: =IF($A124="","",IF(ISBLANK($A124),"",VLOOKUP($A124,Data!$A$4:$V$155,5,FALSE))) -> 0.7 | G124: =IF($A124="","",IF(ISBLANK($A124),"",VLOOKUP($A124,Data!$A$4:$AP$155,42,FALSE))) -> 0.43 | H124: =IF($A124="","",IF(ISBLANK($A124),"",VLOOKUP($A124,Data!$A$4:$AS$155,45,FALSE))) -> 0.54 | I124: =IF($A124="","",IF(ISBLANK($A124),"",VLOOKUP($A124,Data!$A$4:$AI$155,35,FALSE))) -> 0.92 | J124: =IF($A124="","",IF(ISBLANK($A124),"",VLOOKUP($A124,Data!$A$4:$AM$155,37,FALSE))) -> 0.5 | K124: =IF($A124="","",IF(ISBLANK($A124),"",VLOOKUP($A124,Data!$A$4:$AM$155,38,FALSE))) -> 0.14 | L124: =IF($A124="","",IF(ISBLANK($A124),"",VLOOKUP($A124,Data!$A$4:$AM$155,39,FALSE))) -> 0.371 | M124: =IF($A124="","",IF(ISBLANK($A124),"",VLOOKUP($A124,Data!$A$4:$AI$155,6,FALSE))) -> 13100 | N124: =IF($A124="","",IF(ISBLANK($A124),"",VLOOKUP($A124,Data!$A$4:$AI$155,7,FALSE))) -> 69 | O124: =IF($A124="","",IF(ISBLANK($A124),"",VLOOKUP($A124,Data!$A$4:$AR$155,44,FALSE))) -> 0.8 | P124: =IF($A124="","",IF(ISBLANK($A124),"",VLOOKUP($A124,Data!$A$4:$AI$155,8,FALSE))) -> 0.2
A125: 334 | B125: =IF($A125="","",IF(ISBLANK($A125),"",INDEX('LEA Nos codes'!$A$3:$A$154,MATCH($A125,'LEA Nos codes'!$B$3:$B$154,0)))) -> Solihull | C125: =IF($A125="","",IF(ISBLANK($A125),"",VLOOKUP($A125,Data!$A$4:$V$155,3,FALSE))) -> 5 | D125: =IF($A125="","",IF(ISBLANK($A125),"",VLOOKUP($A125,Data!$A$4:$AQ$155,43,FALSE))) -> 4.89 | E125: =IF($A125="","",IF(ISBLANK($A125),"",VLOOKUP($A125,Data!$A$4:$V$155,4,FALSE))) -> 2.99 | F125: =IF($A125="","",IF(ISBLANK($A125),"",VLOOKUP($A125,Data!$A$4:$V$155,5,FALSE))) -> 0.76 | G125: =IF($A125="","",IF(ISBLANK($A125),"",VLOOKUP($A125,Data!$A$4:$AP$155,42,FALSE))) -> 0.35 | H125: =IF($A125="","",IF(ISBLANK($A125),"",VLOOKUP($A125,Data!$A$4:$AS$155,45,FALSE))) -> 0.44 | I125: =IF($A125="","",IF(ISBLANK($A125),"",VLOOKUP($A125,Data!$A$4:$AI$155,35,FALSE))) -> 1.1 | J125: =IF($A125="","",IF(ISBLANK($A125),"",VLOOKUP($A125,Data!$A$4:$AM$155,37,FALSE))) -> 0.56 | K125: =IF($A125="","",IF(ISBLANK($A125),"",VLOOKUP($A125,Data!$A$4:$AM$155,38,FALSE))) -> 0.29 | L125: =IF($A125="","",IF(ISBLANK($A125),"",VLOOKUP($A125,Data!$A$4:$AM$155,39,FALSE))) -> 0.389 | M125: =IF($A125="","",IF(ISBLANK($A125),"",VLOOKUP($A125,Data!$A$4:$AI$155,6,FALSE))) -> 11900 | N125: =IF($A125="","",IF(ISBLANK($A125),"",VLOOKUP($A125,Data!$A$4:$AI$155,7,FALSE))) -> 111 | O125: =IF($A125="","",IF(ISBLANK($A125),"",VLOOKUP($A125,Data!$A$4:$AR$155,44,FALSE))) -> 0.76 | P125: =IF($A125="","",IF(ISBLANK($A125),"",VLOOKUP($A125,Data!$A$4:$AI$155,8,FALSE))) -> 0.24
A126: 933 | B126: =IF($A126="","",IF(ISBLANK($A126),"",INDEX('LEA Nos codes'!$A$3:$A$154,MATCH($A126,'LEA Nos codes'!$B$3:$B$154,0)))) -> Somerset | C126: =IF($A126="","",IF(ISBLANK($A126),"",VLOOKUP($A126,Data!$A$4:$V$155,3,FALSE))) -> 4.85 | D126: =IF($A126="","",IF(ISBLANK($A126),"",VLOOKUP($A126,Data!$A$4:$AQ$155,43,FALSE))) -> 4.85 | E126: =IF($A126="","",IF(ISBLANK($A126),"",VLOOKUP($A126,Data!$A$4:$V$155,4,FALSE))) -> 4 | F126: =IF($A126="","",IF(ISBLANK($A126),"",VLOOKUP($A126,Data!$A$4:$V$155,5,FALSE))) -> 0.79 | G126: =IF($A126="","",IF(ISBLANK($A126),"",VLOOKUP($A126,Data!$A$4:$AP$155,42,FALSE))) -> 0.43 | H126: =IF($A126="","",IF(ISBLANK($A126),"",VLOOKUP($A126,Data!$A$4:$AS$155,45,FALSE))) -> 0.5 | I126: =IF($A126="","",IF(ISBLANK($A126),"",VLOOKUP($A126,Data!$A$4:$AI$155,35,FALSE))) -> 0.98 | J126: =IF($A126="","",IF(ISBLANK($A126),"",VLOOKUP($A126,Data!$A$4:$AM$155,37,FALSE))) -> 0.53 | K126: =IF($A126="","",IF(ISBLANK($A126),"",VLOOKUP($A126,Data!$A$4:$AM$155,38,FALSE))) -> 0.26 | L126: =IF($A126="","",IF(ISBLANK($A126),"",VLOOKUP($A126,Data!$A$4:$AM$155,39,FALSE))) -> 0.336 | M126: =IF($A126="","",IF(ISBLANK($A126),"",VLOOKUP($A126,Data!$A$4:$AI$155,6,FALSE))) -> 29400 | N126: =IF($A126="","",IF(ISBLANK($A126),"",VLOOKUP($A126,Data!$A$4:$AI$155,7,FALSE))) -> 108 | O126: =IF($A126="","",IF(ISBLANK($A126),"",VLOOKUP($A126,Data!$A$4:$AR$155,44,FALSE))) -> 0.39 | P126: =IF($A126="","",IF(ISBLANK($A126),"",VLOOKUP($A126,Data!$A$4:$AI$155,8,FALSE))) -> 0.6
A127: 803 | B127: =IF($A127="","",IF(ISBLANK($A127),"",INDEX('LEA Nos codes'!$A$3:$A$154,MATCH($A127,'LEA Nos codes'!$B$3:$B$154,0)))) -> South Gloucestershire | C127: =IF($A127="","",IF(ISBLANK($A127),"",VLOOKUP($A127,Data!$A$4:$V$155,3,FALSE))) -> 6.17 | D127: =IF($A127="","",IF(ISBLANK($A127),"",VLOOKUP($A127,Data!$A$4:$AQ$155,43,FALSE))) -> 5.07 | E127: =IF($A127="","",IF(ISBLANK($A127),"",VLOOKUP($A127,Data!$A$4:$V$155,4,FALSE))) -> 3.55 | F127: =IF($A127="","",IF(ISBLANK($A127),"",VLOOKUP($A127,Data!$A$4:$V$155,5,FALSE))) -> 0.74 | G127: =IF($A127="","",IF(ISBLANK($A127),"",VLOOKUP($A127,Data!$A$4:$AP$155,42,FALSE))) -> 0.48 | H127: =IF($A127="","",IF(ISBLANK($A127),"",VLOOKUP($A127,Data!$A$4:$AS$155,45,FALSE))) -> 0.51 | I127: =IF($A127="","",IF(ISBLANK($A127),"",VLOOKUP($A127,Data!$A$4:$AI$155,35,FALSE))) -> 0.99 | J127: =IF($A127="","",IF(ISBLANK($A127),"",VLOOKUP($A127,Data!$A$4:$AM$155,37,FALSE))) -> 0.67 | K127: =IF($A127="","",IF(ISBLANK($A127),"",VLOOKUP($A127,Data!$A$4:$AM$155,38,FALSE))) -> 0.22 | L127: =IF($A127="","",IF(ISBLANK($A127),"",VLOOKUP($A127,Data!$A$4:$AM$155,39,FALSE))) -> 0.275 | M127: =IF($A127="","",IF(ISBLANK($A127),"",VLOOKUP($A127,Data!$A$4:$AI$155,6,FALSE))) -> 16200 | N127: =IF($A127="","",IF(ISBLANK($A127),"",VLOOKUP($A127,Data!$A$4:$AI$155,7,FALSE))) -> 141 | O127: =IF($A127="","",IF(ISBLANK($A127),"",VLOOKUP($A127,Data!$A$4:$AR$155,44,FALSE))) -> 0.35 | P127: =IF($A127="","",IF(ISBLANK($A127),"",VLOOKUP($A127,Data!$A$4:$AI$155,8,FALSE))) -> 0.64
A128: 393 | B128: =IF($A128="","",IF(ISBLANK($A128),"",INDEX('LEA Nos codes'!$A$3:$A$154,MATCH($A128,'LEA Nos codes'!$B$3:$B$154,0)))) -> South Tyneside | C128: =IF($A128="","",IF(ISBLANK($A128),"",VLOOKUP($A128,Data!$A$4:$V$155,3,FALSE))) -> 5.51 | D128: =IF($A128="","",IF(ISBLANK($A128),"",VLOOKUP($A128,Data!$A$4:$AQ$155,43,FALSE))) -> 4.85 | E128: =IF($A128="","",IF(ISBLANK($A128),"",VLOOKUP($A128,Data!$A$4:$V$155,4,FALSE))) -> 3.94 | F128: =IF($A128="","",IF(ISBLANK($A128),"",VLOOKUP($A128,Data!$A$4:$V$155,5,FALSE))) -> 0.63 | G128: =IF($A128="","",IF(ISBLANK($A128),"",VLOOKUP($A128,Data!$A$4:$AP$155,42,FALSE))) -> 0.5 | H128: =IF($A128="","",IF(ISBLANK($A128),"",VLOOKUP($A128,Data!$A$4:$AS$155,45,FALSE))) -> 0.45 | I128: =IF($A128="","",IF(ISBLANK($A128),"",VLOOKUP($A128,Data!$A$4:$AI$155,35,FALSE))) -> 0.93 | J128: =IF($A128="","",IF(ISBLANK($A128),"",VLOOKUP($A128,Data!$A$4:$AM$155,37,FALSE))) -> 0.5 | K128: =IF($A128="","",IF(ISBLANK($A128),"",VLOOKUP($A128,Data!$A$4:$AM$155,38,FALSE))) -> 0.23 | L128: =IF($A128="","",IF(ISBLANK($A128),"",VLOOKUP($A128,Data!$A$4:$AM$155,39,FALSE))) -> 0.364 | M128: =IF($A128="","",IF(ISBLANK($A128),"",VLOOKUP($A128,Data!$A$4:$AI$155,6,FALSE))) -> 8300 | N128: =IF($A128="","",IF(ISBLANK($A128),"",VLOOKUP($A128,Data!$A$4:$AI$155,7,FALSE))) -> 44 | O128: =IF($A128="","",IF(ISBLANK($A128),"",VLOOKUP($A128,Data!$A$4:$AR$155,44,FALSE))) -> 0.89 | P128: =IF($A128="","",IF(ISBLANK($A128),"",VLOOKUP($A128,Data!$A$4:$AI$155,8,FALSE))) -> 0.11
A129: 852 | B129: =IF($A129="","",IF(ISBLANK($A129),"",INDEX('LEA Nos codes'!$A$3:$A$154,MATCH($A129,'LEA Nos codes'!$B$3:$B$154,0)))) -> Southampton | C129: =IF($A129="","",IF(ISBLANK($A129),"",VLOOKUP($A129,Data!$A$4:$V$155,3,FALSE))) -> 4.85 | D129: =IF($A129="","",IF(ISBLANK($A129),"",VLOOKUP($A129,Data!$A$4:$AQ$155,43,FALSE))) -> 5.07 | E129: =IF($A129="","",IF(ISBLANK($A129),"",VLOOKUP($A129,Data!$A$4:$V$155,4,FALSE))) -> 4.47 | F129: =IF($A129="","",IF(ISBLANK($A129),"",VLOOKUP($A129,Data!$A$4:$V$155,5,FALSE))) -> 0.77 | G129: =IF($A129="","",IF(ISBLANK($A129),"",VLOOKUP($A129,Data!$A$4:$AP$155,42,FALSE))) -> 0.4 | H129: =IF($A129="","",IF(ISBLANK($A129),"",VLOOKUP($A129,Data!$A$4:$AS$155,45,FALSE))) -> 0.43 | I129: =IF($A129="","",IF(ISBLANK($A129),"",VLOOKUP($A129,Data!$A$4:$AI$155,35,FALSE))) -> 0.96 | J129: =IF($A129="","",IF(ISBLANK($A129),"",VLOOKUP($A129,Data!$A$4:$AM$155,37,FALSE))) -> 0.51 | K129: =IF($A129="","",IF(ISBLANK($A129),"",VLOOKUP($A129,Data!$A$4:$AM$155,38,FALSE))) -> 0.17 | L129: =IF($A129="","",IF(ISBLANK($A129),"",VLOOKUP($A129,Data!$A$4:$AM$155,39,FALSE))) -> 0.359 | M129: =IF($A129="","",IF(ISBLANK($A129),"",VLOOKUP($A129,Data!$A$4:$AI$155,6,FALSE))) -> 15900 | N129: =IF($A129="","",IF(ISBLANK($A129),"",VLOOKUP($A129,Data!$A$4:$AI$155,7,FALSE))) -> 65 | O129: =IF($A129="","",IF(ISBLANK($A129),"",VLOOKUP($A129,Data!$A$4:$AR$155,44,FALSE))) -> 0.45 | P129: =IF($A129="","",IF(ISBLANK($A129),"",VLOOKUP($A129,Data!$A$4:$AI$155,8,FALSE))) -> 0.55
A130: 882 | B130: =IF($A130="","",IF(ISBLANK($A130),"",INDEX('LEA Nos codes'!$A$3:$A$154,MATCH($A130,'LEA Nos codes'!$B$3:$B$154,0)))) -> Southend-on-Sea | C130: =IF($A130="","",IF(ISBLANK($A130),"",VLOOKUP($A130,Data!$A$4:$V$155,3,FALSE))) -> 5.1 | D130: =IF($A130="","",IF(ISBLANK($A130),"",VLOOKUP($A130,Data!$A$4:$AQ$155,43,FALSE))) -> 4.89 | E130: =IF($A130="","",IF(ISBLANK($A130),"",VLOOKUP($A130,Data!$A$4:$V$155,4,FALSE))) -> 4.3 | F130: =IF($A130="","",IF(ISBLANK($A130),"",VLOOKUP($A130,Data!$A$4:$V$155,5,FALSE))) -> 0.85 | G130: =IF($A130="","",IF(ISBLANK($A130),"",VLOOKUP($A130,Data!$A$4:$AP$155,42,FALSE))) -> 0.37 | H130: =IF($A130="","",IF(ISBLANK($A130),"",VLOOKUP($A130,Data!$A$4:$AS$155,45,FALSE))) -> 0.3 | I130: =IF($A130="","",IF(ISBLANK($A130),"",VLOOKUP($A130,Data!$A$4:$AI$155,35,FALSE))) -> 0.95 | J130: =IF($A130="","",IF(ISBLANK($A130),"",VLOOKUP($A130,Data!$A$4:$AM$155,37,FALSE))) -> 0.45 | K130: =IF($A130="","",IF(ISBLANK($A130),"",VLOOKUP($A130,Data!$A$4:$AM$155,38,FALSE))) -> 0.24 | L130: =IF($A130="","",IF(ISBLANK($A130),"",VLOOKUP($A130,Data!$A$4:$AM$155,39,FALSE))) -> 0.373 | M130: =IF($A130="","",IF(ISBLANK($A130),"",VLOOKUP($A130,Data!$A$4:$AI$155,6,FALSE))) -> 11400 | N130: =IF($A130="","",IF(ISBLANK($A130),"",VLOOKUP($A130,Data!$A$4:$AI$155,7,FALSE))) -> 76 | O130: =IF($A130="","",IF(ISBLANK($A130),"",VLOOKUP($A130,Data!$A$4:$AR$155,44,FALSE))) -> 0.51 | P130: =IF($A130="","",IF(ISBLANK($A130),"",VLOOKUP($A130,Data!$A$4:$AI$155,8,FALSE))) -> 0.48
A131: 210 | B131: =IF($A131="","",IF(ISBLANK($A131),"",INDEX('LEA Nos codes'!$A$3:$A$154,MATCH($A131,'LEA Nos codes'!$B$3:$B$154,0)))) -> Southwark | C131: =IF($A131="","",IF(ISBLANK($A131),"",VLOOKUP($A131,Data!$A$4:$V$155,3,FALSE))) -> 8.36 | D131: =IF($A131="","",IF(ISBLANK($A131),"",VLOOKUP($A131,Data!$A$4:$AQ$155,43,FALSE))) -> 6.07 | E131: =IF($A131="","",IF(ISBLANK($A131),"",VLOOKUP($A131,Data!$A$4:$V$155,4,FALSE))) -> 5.8 | F131: =IF($A131="","",IF(ISBLANK($A131),"",VLOOKUP($A131,Data!$A$4:$V$155,5,FALSE))) -> 0.72 | G131: =IF($A131="","",IF(ISBLANK($A131),"",VLOOKUP($A131,Data!$A$4:$AP$155,42,FALSE))) -> 0.56 | H131: =IF($A131="","",IF(ISBLANK($A131),"",VLOOKUP($A131,Data!$A$4:$AS$155,45,FALSE))) -> 0.59 | I131: =IF($A131="","",IF(ISBLANK($A131),"",VLOOKUP($A131,Data!$A$4:$AI$155,35,FALSE))) -> 0.88 | J131: =IF($A131="","",IF(ISBLANK($A131),"",VLOOKUP($A131,Data!$A$4:$AM$155,37,FALSE))) -> 0.6 | K131: =IF($A131="","",IF(ISBLANK($A131),"",VLOOKUP($A131,Data!$A$4:$AM$155,38,FALSE))) -> 0.1 | L131: =IF($A131="","",IF(ISBLANK($A131),"",VLOOKUP($A131,Data!$A$4:$AM$155,39,FALSE))) -> 0.332 | M131: =IF($A131="","",IF(ISBLANK($A131),"",VLOOKUP($A131,Data!$A$4:$AI$155,6,FALSE))) -> 21500 | N131: =IF($A131="","",IF(ISBLANK($A131),"",VLOOKUP($A131,Data!$A$4:$AI$155,7,FALSE))) -> 35 | O131: =IF($A131="","",IF(ISBLANK($A131),"",VLOOKUP($A131,Data!$A$4:$AR$155,44,FALSE))) -> 0.76 | P131: =IF($A131="","",IF(ISBLANK($A131),"",VLOOKUP($A131,Data!$A$4:$AI$155,8,FALSE))) -> 0.22
A132: 342 | B132: =IF($A132="","",IF(ISBLANK($A132),"",INDEX('LEA Nos codes'!$A$3:$A$154,MATCH($A132,'LEA Nos codes'!$B$3:$B$154,0)))) -> St. Helens | C132: =IF($A132="","",IF(ISBLANK($A132),"",VLOOKUP($A132,Data!$A$4:$V$155,3,FALSE))) -> 4.85 | D132: =IF($A132="","",IF(ISBLANK($A132),"",VLOOKUP($A132,Data!$A$4:$AQ$155,43,FALSE))) -> 4.87 | E132: =IF($A132="","",IF(ISBLANK($A132),"",VLOOKUP($A132,Data!$A$4:$V$155,4,FALSE))) -> 3.24 | F132: =IF($A132="","",IF(ISBLANK($A132),"",VLOOKUP($A132,Data!$A$4:$V$155,5,FALSE))) -> 0.8 | G132: =IF($A132="","",IF(ISBLANK($A132),"",VLOOKUP($A132,Data!$A$4:$AP$155,42,FALSE))) -> 0.37 | H132: =IF($A132="","",IF(ISBLANK($A132),"",VLOOKUP($A132,Data!$A$4:$AS$155,45,FALSE))) -> 0.43 | I132: =IF($A132="","",IF(ISBLANK($A132),"",VLOOKUP($A132,Data!$A$4:$AI$155,35,FALSE))) -> 0.96 | J132: =IF($A132="","",IF(ISBLANK($A132),"",VLOOKUP($A132,Data!$A$4:$AM$155,37,FALSE))) -> 0.57 | K132: =IF($A132="","",IF(ISBLANK($A132),"",VLOOKUP($A132,Data!$A$4:$AM$155,38,FALSE))) -> 0.19 | L132: =IF($A132="","",IF(ISBLANK($A132),"",VLOOKUP($A132,Data!$A$4:$AM$155,39,FALSE))) -> 0.386 | M132: =IF($A132="","",IF(ISBLANK($A132),"",VLOOKUP($A132,Data!$A$4:$AI$155,6,FALSE))) -> 10600 | N132: =IF($A132="","",IF(ISBLANK($A132),"",VLOOKUP($A132,Data!$A$4:$AI$155,7,FALSE))) -> 43 | O132: =IF($A132="","",IF(ISBLANK($A132),"",VLOOKUP($A132,Data!$A$4:$AR$155,44,FALSE))) -> 0.68 | P132: =IF($A132="","",IF(ISBLANK($A132),"",VLOOKUP($A132,Data!$A$4:$AI$155,8,FALSE))) -> 0.32
A133: 860 | B133: =IF($A133="","",IF(ISBLANK($A133),"",INDEX('LEA Nos codes'!$A$3:$A$154,MATCH($A133,'LEA Nos codes'!$B$3:$B$154,0)))) -> Staffordshire | C133: =IF($A133="","",IF(ISBLANK($A133),"",VLOOKUP($A133,Data!$A$4:$V$155,3,FALSE))) -> 4.85 | D133: =IF($A133="","",IF(ISBLANK($A133),"",VLOOKUP($A133,Data!$A$4:$AQ$155,43,FALSE))) -> 4.85 | E133: =IF($A133="","",IF(ISBLANK($A133),"",VLOOKUP($A133,Data!$A$4:$V$155,4,FALSE))) -> 3.34 | F133: =IF($A133="","",IF(ISBLANK($A133),"",VLOOKUP($A133,Data!$A$4:$V$155,5,FALSE))) -> 0.84 | G133: =IF($A133="","",IF(ISBLANK($A133),"",VLOOKUP($A133,Data!$A$4:$AP$155,42,FALSE))) -> 0.38 | H133: =IF($A133="","",IF(ISBLANK($A133),"",VLOOKUP($A133,Data!$A$4:$AS$155,45,FALSE))) -> 0.37 | I133: =IF($A133="","",IF(ISBLANK($A133),"",VLOOKUP($A133,Data!$A$4:$AI$155,35,FALSE))) -> 0.97 | J133: =IF($A133="","",IF(ISBLANK($A133),"",VLOOKUP($A133,Data!$A$4:$AM$155,37,FALSE))) -> 0.54 | K133: =IF($A133="","",IF(ISBLANK($A133),"",VLOOKUP($A133,Data!$A$4:$AM$155,38,FALSE))) -> 0.21 | L133: =IF($A133="","",IF(ISBLANK($A133),"",VLOOKUP($A133,Data!$A$4:$AM$155,39,FALSE))) -> 0.357 | M133: =IF($A133="","",IF(ISBLANK($A133),"",VLOOKUP($A133,Data!$A$4:$AI$155,6,FALSE))) -> 46200 | N133: =IF($A133="","",IF(ISBLANK($A133),"",VLOOKUP($A133,Data!$A$4:$AI$155,7,FALSE))) -> 112 | O133: =IF($A133="","",IF(ISBLANK($A133),"",VLOOKUP($A133,Data!$A$4:$AR$155,44,FALSE))) -> 0.56 | P133: =IF($A133="","",IF(ISBLANK($A133),"",VLOOKUP($A133,Data!$A$4:$AI$155,8,FALSE))) -> 0.44
A134: 356 | B134: =IF($A134="","",IF(ISBLANK($A134),"",INDEX('LEA Nos codes'!$A$3:$A$154,MATCH($A134,'LEA Nos codes'!$B$3:$B$154,0)))) -> Stockport | C134: =IF($A134="","",IF(ISBLANK($A134),"",VLOOKUP($A134,Data!$A$4:$V$155,3,FALSE))) -> . | D134: =IF($A134="","",IF(ISBLANK($A134),"",VLOOKUP($A134,Data!$A$4:$AQ$155,43,FALSE))) -> 4.95 | E134: =IF($A134="","",IF(ISBLANK($A134),"",VLOOKUP($A134,Data!$A$4:$V$155,4,FALSE))) -> 4.61 | F134: =IF($A134="","",IF(ISBLANK($A134),"",VLOOKUP($A134,Data!$A$4:$V$155,5,FALSE))) -> 0.75 | G134: =IF($A134="","",IF(ISBLANK($A134),"",VLOOKUP($A134,Data!$A$4:$AP$155,42,FALSE))) -> 0.48 | H134: =IF($A134="","",IF(ISBLANK($A134),"",VLOOKUP($A134,Data!$A$4:$AS$155,45,FALSE))) -> 0.56 | I134: =IF($A134="","",IF(ISBLANK($A134),"",VLOOKUP($A134,Data!$A$4:$AI$155,35,FALSE))) -> 0.99 | J134: =IF($A134="","",IF(ISBLANK($A134),"",VLOOKUP($A134,Data!$A$4:$AM$155,37,FALSE))) -> 0.54 | K134: =IF($A134="","",IF(ISBLANK($A134),"",VLOOKUP($A134,Data!$A$4:$AM$155,38,FALSE))) -> 0.24 | L134: =IF($A134="","",IF(ISBLANK($A134),"",VLOOKUP($A134,Data!$A$4:$AM$155,39,FALSE))) -> 0.343 | M134: =IF($A134="","",IF(ISBLANK($A134),"",VLOOKUP($A134,Data!$A$4:$AI$155,6,FALSE))) -> 17500 | N134: =IF($A134="","",IF(ISBLANK($A134),"",VLOOKUP($A134,Data!$A$4:$AI$155,7,FALSE))) -> 96 | O134: =IF($A134="","",IF(ISBLANK($A134),"",VLOOKUP($A134,Data!$A$4:$AR$155,44,FALSE))) -> 0.68 | P134: =IF($A134="","",IF(ISBLANK($A134),"",VLOOKUP($A134,Data!$A$4:$AI$155,8,FALSE))) -> 0.32
A135: 808 | B135: =IF($A135="","",IF(ISBLANK($A135),"",INDEX('LEA Nos codes'!$A$3:$A$154,MATCH($A135,'LEA Nos codes'!$B$3:$B$154,0)))) -> Stockton-on-Tees | C135: =IF($A135="","",IF(ISBLANK($A135),"",VLOOKUP($A135,Data!$A$4:$V$155,3,FALSE))) -> . | D135: =IF($A135="","",IF(ISBLANK($A135),"",VLOOKUP($A135,Data!$A$4:$AQ$155,43,FALSE))) -> 4.85 | E135: =IF($A135="","",IF(ISBLANK($A135),"",VLOOKUP($A135,Data!$A$4:$V$155,4,FALSE))) -> 3.88 | F135: =IF($A135="","",IF(ISBLANK($A135),"",VLOOKUP($A135,Data!$A$4:$V$155,5,FALSE))) -> 0.73 | G135: =IF($A135="","",IF(ISBLANK($A135),"",VLOOKUP($A135,Data!$A$4:$AP$155,42,FALSE))) -> 0.32 | H135: =IF($A135="","",IF(ISBLANK($A135),"",VLOOKUP($A135,Data!$A$4:$AS$155,45,FALSE))) -> 0.49 | I135: =IF($A135="","",IF(ISBLANK($A135),"",VLOOKUP($A135,Data!$A$4:$AI$155,35,FALSE))) -> 0.98 | J135: =IF($A135="","",IF(ISBLANK($A135),"",VLOOKUP($A135,Data!$A$4:$AM$155,37,FALSE))) -> 0.41 | K135: =IF($A135="","",IF(ISBLANK($A135),"",VLOOKUP($A135,Data!$A$4:$AM$155,38,FALSE))) -> 0.24 | L135: =IF($A135="","",IF(ISBLANK($A135),"",VLOOKUP($A135,Data!$A$4:$AM$155,39,FALSE))) -> 0.413 | M135: =IF($A135="","",IF(ISBLANK($A135),"",VLOOKUP($A135,Data!$A$4:$AI$155,6,FALSE))) -> 12500 | N135: =IF($A135="","",IF(ISBLANK($A135),"",VLOOKUP($A135,Data!$A$4:$AI$155,7,FALSE))) -> 71 | O135: =IF($A135="","",IF(ISBLANK($A135),"",VLOOKUP($A135,Data!$A$4:$AR$155,44,FALSE))) -> 0.9 | P135: =IF($A135="","",IF(ISBLANK($A135),"",VLOOKUP($A135,Data!$A$4:$AI$155,8,FALSE))) -> 0.09
A136: 861 | B136: =IF($A136="","",IF(ISBLANK($A136),"",INDEX('LEA Nos codes'!$A$3:$A$154,MATCH($A136,'LEA Nos codes'!$B$3:$B$154,0)))) -> Stoke-on-Trent | C136: =IF($A136="","",IF(ISBLANK($A136),"",VLOOKUP($A136,Data!$A$4:$V$155,3,FALSE))) -> . | D136: =IF($A136="","",IF(ISBLANK($A136),"",VLOOKUP($A136,Data!$A$4:$AQ$155,43,FALSE))) -> 4.85 | E136: =IF($A136="","",IF(ISBLANK($A136),"",VLOOKUP($A136,Data!$A$4:$V$155,4,FALSE))) -> 4.68 | F136: =IF($A136="","",IF(ISBLANK($A136),"",VLOOKUP($A136,Data!$A$4:$V$155,5,FALSE))) -> 0.83 | G136: =IF($A136="","",IF(ISBLANK($A136),"",VLOOKUP($A136,Data!$A$4:$AP$155,42,FALSE))) -> 0.18 | H136: =IF($A136="","",IF(ISBLANK($A136),"",VLOOKUP($A136,Data!$A$4:$AS$155,45,FALSE))) -> 0.2 | I136: =IF($A136="","",IF(ISBLANK($A136),"",VLOOKUP($A136,Data!$A$4:$AI$155,35,FALSE))) -> 0.94 | J136: =IF($A136="","",IF(ISBLANK($A136),"",VLOOKUP($A136,Data!$A$4:$AM$155,37,FALSE))) -> 0.52 | K136: =IF($A136="","",IF(ISBLANK($A136),"",VLOOKUP($A136,Data!$A$4:$AM$155,38,FALSE))) -> 0.15 | L136: =IF($A136="","",IF(ISBLANK($A136),"",VLOOKUP($A136,Data!$A$4:$AM$155,39,FALSE))) -> 0.415 | M136: =IF($A136="","",IF(ISBLANK($A136),"",VLOOKUP($A136,Data!$A$4:$AI$155,6,FALSE))) -> 17500 | N136: =IF($A136="","",IF(ISBLANK($A136),"",VLOOKUP($A136,Data!$A$4:$AI$155,7,FALSE))) -> 15 | O136: =IF($A136="","",IF(ISBLANK($A136),"",VLOOKUP($A136,Data!$A$4:$AR$155,44,FALSE))) -> 0.81 | P136: =IF($A136="","",IF(ISBLANK($A136),"",VLOOKUP($A136,Data!$A$4:$AI$155,8,FALSE))) -> 0.18
A137: 935 | B137: =IF($A137="","",IF(ISBLANK($A137),"",INDEX('LEA Nos codes'!$A$3:$A$154,MATCH($A137,'LEA Nos codes'!$B$3:$B$154,0)))) -> Suffolk | C137: =IF($A137="","",IF(ISBLANK($A137),"",VLOOKUP($A137,Data!$A$4:$V$155,3,FALSE))) -> . | D137: =IF($A137="","",IF(ISBLANK($A137),"",VLOOKUP($A137,Data!$A$4:$AQ$155,43,FALSE))) -> 4.85 | E137: =IF($A137="","",IF(ISBLANK($A137),"",VLOOKUP($A137,Data!$A$4:$V$155,4,FALSE))) -> 3.74 | F137: =IF($A137="","",IF(ISBLANK($A137),"",VLOOKUP($A137,Data!$A$4:$V$155,5,FALSE))) -> 0.84 | G137: =IF($A137="","",IF(ISBLANK($A137),"",VLOOKUP($A137,Data!$A$4:$AP$155,42,FALSE))) -> 0.38 | H137: =IF($A137="","",IF(ISBLANK($A137),"",VLOOKUP($A137,Data!$A$4:$AS$155,45,FALSE))) -> 0.43 | I137: =IF($A137="","",IF(ISBLANK($A137),"",VLOOKUP($A137,Data!$A$4:$AI$155,35,FALSE))) -> 0.94 | J137: =IF($A137="","",IF(ISBLANK($A137),"",VLOOKUP($A137,Data!$A$4:$AM$155,37,FALSE))) -> 0.49 | K137: =IF($A137="","",IF(ISBLANK($A137),"",VLOOKUP($A137,Data!$A$4:$AM$155,38,FALSE))) -> 0.19 | L137: =IF($A137="","",IF(ISBLANK($A137),"",VLOOKUP($A137,Data!$A$4:$AM$155,39,FALSE))) -> 0.356 | M137: =IF($A137="","",IF(ISBLANK($A137),"",VLOOKUP($A137,Data!$A$4:$AI$155,6,FALSE))) -> 42700 | N137: =IF($A137="","",IF(ISBLANK($A137),"",VLOOKUP($A137,Data!$A$4:$AI$155,7,FALSE))) -> 115 | O137: =IF($A137="","",IF(ISBLANK($A137),"",VLOOKUP($A137,Data!$A$4:$AR$155,44,FALSE))) -> 0.53 | P137: =IF($A137="","",IF(ISBLANK($A137),"",VLOOKUP($A137,Data!$A$4:$AI$155,8,FALSE))) -> 0.46
A138: 394 | B138: =IF($A138="","",IF(ISBLANK($A138),"",INDEX('LEA Nos codes'!$A$3:$A$154,MATCH($A138,'LEA Nos codes'!$B$3:$B$154,0)))) -> Sunderland | C138: =IF($A138="","",IF(ISBLANK($A138),"",VLOOKUP($A138,Data!$A$4:$V$155,3,FALSE))) -> 4.84 | D138: =IF($A138="","",IF(ISBLANK($A138),"",VLOOKUP($A138,Data!$A$4:$AQ$155,43,FALSE))) -> 4.85 | E138: =IF($A138="","",IF(ISBLANK($A138),"",VLOOKUP($A138,Data!$A$4:$V$155,4,FALSE))) -> 4.67 | F138: =IF($A138="","",IF(ISBLANK($A138),"",VLOOKUP($A138,Data!$A$4:$V$155,5,FALSE))) -> 0.78 | G138: =IF($A138="","",IF(ISBLANK($A138),"",VLOOKUP($A138,Data!$A$4:$AP$155,42,FALSE))) -> 0.71 | H138: =IF($A138="","",IF(ISBLANK($A138),"",VLOOKUP($A138,Data!$A$4:$AS$155,45,FALSE))) -> 0.81 | I138: =IF($A138="","",IF(ISBLANK($A138),"",VLOOKUP($A138,Data!$A$4:$AI$155,35,FALSE))) -> 1.02 | J138: =IF($A138="","",IF(ISBLANK($A138),"",VLOOKUP($A138,Data!$A$4:$AM$155,37,FALSE))) -> 0.53 | K138: =IF($A138="","",IF(ISBLANK($A138),"",VLOOKUP($A138,Data!$A$4:$AM$155,38,FALSE))) -> 0.26 | L138: =IF($A138="","",IF(ISBLANK($A138),"",VLOOKUP($A138,Data!$A$4:$AM$155,39,FALSE))) -> 0.394 | M138: =IF($A138="","",IF(ISBLANK($A138),"",VLOOKUP($A138,Data!$A$4:$AI$155,6,FALSE))) -> 15700 | N138: =IF($A138="","",IF(ISBLANK($A138),"",VLOOKUP($A138,Data!$A$4:$AI$155,7,FALSE))) -> 38 | O138: =IF($A138="","",IF(ISBLANK($A138),"",VLOOKUP($A138,Data!$A$4:$AR$155,44,FALSE))) -> 0.87 | P138: =IF($A138="","",IF(ISBLANK($A138),"",VLOOKUP($A138,Data!$A$4:$AI$155,8,FALSE))) -> 0.11
A139: 936 | B139: =IF($A139="","",IF(ISBLANK($A139),"",INDEX('LEA Nos codes'!$A$3:$A$154,MATCH($A139,'LEA Nos codes'!$B$3:$B$154,0)))) -> Surrey | C139: =IF($A139="","",IF(ISBLANK($A139),"",VLOOKUP($A139,Data!$A$4:$V$155,3,FALSE))) -> 6 | D139: =IF($A139="","",IF(ISBLANK($A139),"",VLOOKUP($A139,Data!$A$4:$AQ$155,43,FALSE))) -> 5.49 | E139: =IF($A139="","",IF(ISBLANK($A139),"",VLOOKUP($A139,Data!$A$4:$V$155,4,FALSE))) -> 4.26 | F139: =IF($A139="","",IF(ISBLANK($A139),"",VLOOKUP($A139,Data!$A$4:$V$155,5,FALSE))) -> 0.84 | G139: =IF($A139="","",IF(ISBLANK($A139),"",VLOOKUP($A139,Data!$A$4:$AP$155,42,FALSE))) -> 0.44 | H139: =IF($A139="","",IF(ISBLANK($A139),"",VLOOKUP($A139,Data!$A$4:$AS$155,45,FALSE))) -> 0.5 | I139: =IF($A139="","",IF(ISBLANK($A139),"",VLOOKUP($A139,Data!$A$4:$AI$155,35,FALSE))) -> 0.95 | J139: =IF($A139="","",IF(ISBLANK($A139),"",VLOOKUP($A139,Data!$A$4:$AM$155,37,FALSE))) -> 0.52 | K139: =IF($A139="","",IF(ISBLANK($A139),"",VLOOKUP($A139,Data!$A$4:$AM$155,38,FALSE))) -> 0.26 | L139: =IF($A139="","",IF(ISBLANK($A139),"",VLOOKUP($A139,Data!$A$4:$AM$155,39,FALSE))) -> 0.312 | M139: =IF($A139="","",IF(ISBLANK($A139),"",VLOOKUP($A139,Data!$A$4:$AI$155,6,FALSE))) -> 73200 | N139: =IF($A139="","",IF(ISBLANK($A139),"",VLOOKUP($A139,Data!$A$4:$AI$155,7,FALSE))) -> 147 | O139: =IF($A139="","",IF(ISBLANK($A139),"",VLOOKUP($A139,Data!$A$4:$AR$155,44,FALSE))) -> 0.43 | P139: =IF($A139="","",IF(ISBLANK($A139),"",VLOOKUP($A139,Data!$A$4:$AI$155,8,FALSE))) -> 0.57
A140: 319 | B140: =IF($A140="","",IF(ISBLANK($A140),"",INDEX('LEA Nos codes'!$A$3:$A$154,MATCH($A140,'LEA Nos codes'!$B$3:$B$154,0)))) -> Sutton | C140: =IF($A140="","",IF(ISBLANK($A140),"",VLOOKUP($A140,Data!$A$4:$V$155,3,FALSE))) -> 5.34 | D140: =IF($A140="","",IF(ISBLANK($A140),"",VLOOKUP($A140,Data!$A$4:$AQ$155,43,FALSE))) -> 5.53 | E140: =IF($A140="","",IF(ISBLANK($A140),"",VLOOKUP($A140,Data!$A$4:$V$155,4,FALSE))) -> 4.34 | F140: =IF($A140="","",IF(ISBLANK($A140),"",VLOOKUP($A140,Data!$A$4:$V$155,5,FALSE))) -> 0.83 | G140: =IF($A140="","",IF(ISBLANK($A140),"",VLOOKUP($A140,Data!$A$4:$AP$155,42,FALSE))) -> 0.27 | H140: =IF($A140="","",IF(ISBLANK($A140),"",VLOOKUP($A140,Data!$A$4:$AS$155,45,FALSE))) -> 0.29 | I140: =IF($A140="","",IF(ISBLANK($A140),"",VLOOKUP($A140,Data!$A$4:$AI$155,35,FALSE))) -> 0.92 | J140: =IF($A140="","",IF(ISBLANK($A140),"",VLOOKUP($A140,Data!$A$4:$AM$155,37,FALSE))) -> 0.41 | K140: =IF($A140="","",IF(ISBLANK($A140),"",VLOOKUP($A140,Data!$A$4:$AM$155,38,FALSE))) -> 0.17 | L140: =IF($A140="","",IF(ISBLANK($A140),"",VLOOKUP($A140,Data!$A$4:$AM$155,39,FALSE))) -> 0.346 | M140: =IF($A140="","",IF(ISBLANK($A140),"",VLOOKUP($A140,Data!$A$4:$AI$155,6,FALSE))) -> 13400 | N140: =IF($A140="","",IF(ISBLANK($A140),"",VLOOKUP($A140,Data!$A$4:$AI$155,7,FALSE))) -> 118 | O140: =IF($A140="","",IF(ISBLANK($A140),"",VLOOKUP($A140,Data!$A$4:$AR$155,44,FALSE))) -> 0.68 | P140: =IF($A140="","",IF(ISBLANK($A140),"",VLOOKUP($A140,Data!$A$4:$AI$155,8,FALSE))) -> 0.32
A141: 866 | B141: =IF($A141="","",IF(ISBLANK($A141),"",INDEX('LEA Nos codes'!$A$3:$A$154,MATCH($A141,'LEA Nos codes'!$B$3:$B$154,0)))) -> Swindon | C141: =IF($A141="","",IF(ISBLANK($A141),"",VLOOKUP($A141,Data!$A$4:$V$155,3,FALSE))) -> 4.95 | D141: =IF($A141="","",IF(ISBLANK($A141),"",VLOOKUP($A141,Data!$A$4:$AQ$155,43,FALSE))) -> 4.97 | E141: =IF($A141="","",IF(ISBLANK($A141),"",VLOOKUP($A141,Data!$A$4:$V$155,4,FALSE))) -> 3.85 | F141: =IF($A141="","",IF(ISBLANK($A141),"",VLOOKUP($A141,Data!$A$4:$V$155,5,FALSE))) -> 0.72 | G141: =IF($A141="","",IF(ISBLANK($A141),"",VLOOKUP($A141,Data!$A$4:$AP$155,42,FALSE))) -> 0.28 | H141: =IF($A141="","",IF(ISBLANK($A141),"",VLOOKUP($A141,Data!$A$4:$AS$155,45,FALSE))) -> 0.29 | I141: =IF($A141="","",IF(ISBLANK($A141),"",VLOOKUP($A141,Data!$A$4:$AI$155,35,FALSE))) -> 0.96 | J141: =IF($A141="","",IF(ISBLANK($A141),"",VLOOKUP($A141,Data!$A$4:$AM$155,37,FALSE))) -> 0.55 | K141: =IF($A141="","",IF(ISBLANK($A141),"",VLOOKUP($A141,Data!$A$4:$AM$155,38,FALSE))) -> 0.21 | L141: =IF($A141="","",IF(ISBLANK($A141),"",VLOOKUP($A141,Data!$A$4:$AM$155,39,FALSE))) -> 0.304 | M141: =IF($A141="","",IF(ISBLANK($A141),"",VLOOKUP($A141,Data!$A$4:$AI$155,6,FALSE))) -> 14700 | N141: =IF($A141="","",IF(ISBLANK($A141),"",VLOOKUP($A141,Data!$A$4:$AI$155,7,FALSE))) -> 109 | O141: =IF($A141="","",IF(ISBLANK($A141),"",VLOOKUP($A141,Data!$A$4:$AR$155,44,FALSE))) -> 0.46 | P141: =IF($A141="","",IF(ISBLANK($A141),"",VLOOKUP($A141,Data!$A$4:$AI$155,8,FALSE))) -> 0.51
A142: 357 | B142: =IF($A142="","",IF(ISBLANK($A142),"",INDEX('LEA Nos codes'!$A$3:$A$154,MATCH($A142,'LEA Nos codes'!$B$3:$B$154,0)))) -> Tameside | C142: =IF($A142="","",IF(ISBLANK($A142),"",VLOOKUP($A142,Data!$A$4:$V$155,3,FALSE))) -> 4.85 | D142: =IF($A142="","",IF(ISBLANK($A142),"",VLOOKUP($A142,Data!$A$4:$AQ$155,43,FALSE))) -> 4.95 | E142: =IF($A142="","",IF(ISBLANK($A142),"",VLOOKUP($A142,Data!$A$4:$V$155,4,FALSE))) -> 3.31 | F142: =IF($A142="","",IF(ISBLANK($A142),"",VLOOKUP($A142,Data!$A$4:$V$155,5,FALSE))) -> 0.65 | G142: =IF($A142="","",IF(ISBLANK($A142),"",VLOOKUP($A142,Data!$A$4:$AP$155,42,FALSE))) -> 0.39 | H142: =IF($A142="","",IF(ISBLANK($A142),"",VLOOKUP($A142,Data!$A$4:$AS$155,45,FALSE))) -> 0.43 | I142: =IF($A142="","",IF(ISBLANK($A142),"",VLOOKUP($A142,Data!$A$4:$AI$155,35,FALSE))) -> 0.97 | J142: =IF($A142="","",IF(ISBLANK($A142),"",VLOOKUP($A142,Data!$A$4:$AM$155,37,FALSE))) -> 0.42 | K142: =IF($A142="","",IF(ISBLANK($A142),"",VLOOKUP($A142,Data!$A$4:$AM$155,38,FALSE))) -> 0.18 | L142: =IF($A142="","",IF(ISBLANK($A142),"",VLOOKUP($A142,Data!$A$4:$AM$155,39,FALSE))) -> 0.357 | M142: =IF($A142="","",IF(ISBLANK($A142),"",VLOOKUP($A142,Data!$A$4:$AI$155,6,FALSE))) -> 14800 | N142: =IF($A142="","",IF(ISBLANK($A142),"",VLOOKUP($A142,Data!$A$4:$AI$155,7,FALSE))) -> 36 | O142: =IF($A142="","",IF(ISBLANK($A142),"",VLOOKUP($A142,Data!$A$4:$AR$155,44,FALSE))) -> 0.72 | P142: =IF($A142="","",IF(ISBLANK($A142),"",VLOOKUP($A142,Data!$A$4:$AI$155,8,FALSE))) -> 0.27
A143: 894 | B143: =IF($A143="","",IF(ISBLANK($A143),"",INDEX('LEA Nos codes'!$A$3:$A$154,MATCH($A143,'LEA Nos codes'!$B$3:$B$154,0)))) -> Telford & Wrekin | C143: =IF($A143="","",IF(ISBLANK($A143),"",VLOOKUP($A143,Data!$A$4:$V$155,3,FALSE))) -> 4.85 | D143: =IF($A143="","",IF(ISBLANK($A143),"",VLOOKUP($A143,Data!$A$4:$AQ$155,43,FALSE))) -> 4.85 | E143: =IF($A143="","",IF(ISBLANK($A143),"",VLOOKUP($A143,Data!$A$4:$V$155,4,FALSE))) -> 4.06 | F143: =IF($A143="","",IF(ISBLANK($A143),"",VLOOKUP($A143,Data!$A$4:$V$155,5,FALSE))) -> 0.79 | G143: =IF($A143="","",IF(ISBLANK($A143),"",VLOOKUP($A143,Data!$A$4:$AP$155,42,FALSE))) -> 0.38 | H143: =IF($A143="","",IF(ISBLANK($A143),"",VLOOKUP($A143,Data!$A$4:$AS$155,45,FALSE))) -> 0.41 | I143: =IF($A143="","",IF(ISBLANK($A143),"",VLOOKUP($A143,Data!$A$4:$AI$155,35,FALSE))) -> 0.96 | J143: =IF($A143="","",IF(ISBLANK($A143),"",VLOOKUP($A143,Data!$A$4:$AM$155,37,FALSE))) -> 0.45 | K143: =IF($A143="","",IF(ISBLANK($A143),"",VLOOKUP($A143,Data!$A$4:$AM$155,38,FALSE))) -> 0.18 | L143: =IF($A143="","",IF(ISBLANK($A143),"",VLOOKUP($A143,Data!$A$4:$AM$155,39,FALSE))) -> 0.373 | M143: =IF($A143="","",IF(ISBLANK($A143),"",VLOOKUP($A143,Data!$A$4:$AI$155,6,FALSE))) -> 11500 | N143: =IF($A143="","",IF(ISBLANK($A143),"",VLOOKUP($A143,Data!$A$4:$AI$155,7,FALSE))) -> 70 | O143: =IF($A143="","",IF(ISBLANK($A143),"",VLOOKUP($A143,Data!$A$4:$AR$155,44,FALSE))) -> 0.6 | P143: =IF($A143="","",IF(ISBLANK($A143),"",VLOOKUP($A143,Data!$A$4:$AI$155,8,FALSE))) -> 0.38
A144: 883 | B144: =IF($A144="","",IF(ISBLANK($A144),"",INDEX('LEA Nos codes'!$A$3:$A$154,MATCH($A144,'LEA Nos codes'!$B$3:$B$154,0)))) -> Thurrock | C144: =IF($A144="","",IF(ISBLANK($A144),"",VLOOKUP($A144,Data!$A$4:$V$155,3,FALSE))) -> 4.85 | D144: =IF($A144="","",IF(ISBLANK($A144),"",VLOOKUP($A144,Data!$A$4:$AQ$155,43,FALSE))) -> 5.28 | E144: =IF($A144="","",IF(ISBLANK($A144),"",VLOOKUP($A144,Data!$A$4:$V$155,4,FALSE))) -> 3.86 | F144: =IF($A144="","",IF(ISBLANK($A144),"",VLOOKUP($A144,Data!$A$4:$V$155,5,FALSE))) -> 0.7 | G144: =IF($A144="","",IF(ISBLANK($A144),"",VLOOKUP($A144,Data!$A$4:$AP$155,42,FALSE))) -> 0.17 | H144: =IF($A144="","",IF(ISBLANK($A144),"",VLOOKUP($A144,Data!$A$4:$AS$155,45,FALSE))) -> 0.18 | I144: =IF($A144="","",IF(ISBLANK($A144),"",VLOOKUP($A144,Data!$A$4:$AI$155,35,FALSE))) -> 0.92 | J144: =IF($A144="","",IF(ISBLANK($A144),"",VLOOKUP($A144,Data!$A$4:$AM$155,37,FALSE))) -> 0.53 | K144: =IF($A144="","",IF(ISBLANK($A144),"",VLOOKUP($A144,Data!$A$4:$AM$155,38,FALSE))) -> 0.14 | L144: =IF($A144="","",IF(ISBLANK($A144),"",VLOOKUP($A144,Data!$A$4:$AM$155,39,FALSE))) -> 0.32 | M144: =IF($A144="","",IF(ISBLANK($A144),"",VLOOKUP($A144,Data!$A$4:$AI$155,6,FALSE))) -> 12200 | N144: =IF($A144="","",IF(ISBLANK($A144),"",VLOOKUP($A144,Data!$A$4:$AI$155,7,FALSE))) -> 94 | O144: =IF($A144="","",IF(ISBLANK($A144),"",VLOOKUP($A144,Data!$A$4:$AR$155,44,FALSE))) -> 0.61 | P144: =IF($A144="","",IF(ISBLANK($A144),"",VLOOKUP($A144,Data!$A$4:$AI$155,8,FALSE))) -> 0.39
A145: 880 | B145: =IF($A145="","",IF(ISBLANK($A145),"",INDEX('LEA Nos codes'!$A$3:$A$154,MATCH($A145,'LEA Nos codes'!$B$3:$B$154,0)))) -> Torbay | C145: =IF($A145="","",IF(ISBLANK($A145),"",VLOOKUP($A145,Data!$A$4:$V$155,3,FALSE))) -> . | D145: =IF($A145="","",IF(ISBLANK($A145),"",VLOOKUP($A145,Data!$A$4:$AQ$155,43,FALSE))) -> 4.85 | E145: =IF($A145="","",IF(ISBLANK($A145),"",VLOOKUP($A145,Data!$A$4:$V$155,4,FALSE))) -> 3.99 | F145: =IF($A145="","",IF(ISBLANK($A145),"",VLOOKUP($A145,Data!$A$4:$V$155,5,FALSE))) -> 0.92 | G145: =IF($A145="","",IF(ISBLANK($A145),"",VLOOKUP($A145,Data!$A$4:$AP$155,42,FALSE))) -> 0.41 | H145: =IF($A145="","",IF(ISBLANK($A145),"",VLOOKUP($A145,Data!$A$4:$AS$155,45,FALSE))) -> 0.47 | I145: =IF($A145="","",IF(ISBLANK($A145),"",VLOOKUP($A145,Data!$A$4:$AI$155,35,FALSE))) -> 1.05 | J145: =IF($A145="","",IF(ISBLANK($A145),"",VLOOKUP($A145,Data!$A$4:$AM$155,37,FALSE))) -> 0.51 | K145: =IF($A145="","",IF(ISBLANK($A145),"",VLOOKUP($A145,Data!$A$4:$AM$155,38,FALSE))) -> X | L145: =IF($A145="","",IF(ISBLANK($A145),"",VLOOKUP($A145,Data!$A$4:$AM$155,39,FALSE))) -> 0.376 | M145: =IF($A145="","",IF(ISBLANK($A145),"",VLOOKUP($A145,Data!$A$4:$AI$155,6,FALSE))) -> 6900 | N145: =IF($A145="","",IF(ISBLANK($A145),"",VLOOKUP($A145,Data!$A$4:$AI$155,7,FALSE))) -> 49 | O145: =IF($A145="","",IF(ISBLANK($A145),"",VLOOKUP($A145,Data!$A$4:$AR$155,44,FALSE))) -> 0.61 | P145: =IF($A145="","",IF(ISBLANK($A145),"",VLOOKUP($A145,Data!$A$4:$AI$155,8,FALSE))) -> 0.38
A146: 211 | B146: =IF($A146="","",IF(ISBLANK($A146),"",INDEX('LEA Nos codes'!$A$3:$A$154,MATCH($A146,'LEA Nos codes'!$B$3:$B$154,0)))) -> Tower Hamlets | C146: =IF($A146="","",IF(ISBLANK($A146),"",VLOOKUP($A146,Data!$A$4:$V$155,3,FALSE))) -> 6 | D146: =IF($A146="","",IF(ISBLANK($A146),"",VLOOKUP($A146,Data!$A$4:$AQ$155,43,FALSE))) -> 6.07 | E146: =IF($A146="","",IF(ISBLANK($A146),"",VLOOKUP($A146,Data!$A$4:$V$155,4,FALSE))) -> 5.47 | F146: =IF($A146="","",IF(ISBLANK($A146),"",VLOOKUP($A146,Data!$A$4:$V$155,5,FALSE))) -> 0.72 | G146: =IF($A146="","",IF(ISBLANK($A146),"",VLOOKUP($A146,Data!$A$4:$AP$155,42,FALSE))) -> 0.28 | H146: =IF($A146="","",IF(ISBLANK($A146),"",VLOOKUP($A146,Data!$A$4:$AS$155,45,FALSE))) -> 0.43 | I146: =IF($A146="","",IF(ISBLANK($A146),"",VLOOKUP($A146,Data!$A$4:$AI$155,35,FALSE))) -> 0.93 | J146: =IF($A146="","",IF(ISBLANK($A146),"",VLOOKUP($A146,Data!$A$4:$AM$155,37,FALSE))) -> 0.46 | K146: =IF($A146="","",IF(ISBLANK($A146),"",VLOOKUP($A146,Data!$A$4:$AM$155,38,FALSE))) -> 0.05 | L146: =IF($A146="","",IF(ISBLANK($A146),"",VLOOKUP($A146,Data!$A$4:$AM$155,39,FALSE))) -> 0.377 | M146: =IF($A146="","",IF(ISBLANK($A146),"",VLOOKUP($A146,Data!$A$4:$AI$155,6,FALSE))) -> 19900 | N146: =IF($A146="","",IF(ISBLANK($A146),"",VLOOKUP($A146,Data!$A$4:$AI$155,7,FALSE))) -> 7 | O146: =IF($A146="","",IF(ISBLANK($A146),"",VLOOKUP($A146,Data!$A$4:$AR$155,44,FALSE))) -> 0.82 | P146: =IF($A146="","",IF(ISBLANK($A146),"",VLOOKUP($A146,Data!$A$4:$AI$155,8,FALSE))) -> 0.18
A147: 358 | B147: =IF($A147="","",IF(ISBLANK($A147),"",INDEX('LEA Nos codes'!$A$3:$A$154,MATCH($A147,'LEA Nos codes'!$B$3:$B$154,0)))) -> Trafford | C147: =IF($A147="","",IF(ISBLANK($A147),"",VLOOKUP($A147,Data!$A$4:$V$155,3,FALSE))) -> . | D147: =IF($A147="","",IF(ISBLANK($A147),"",VLOOKUP($A147,Data!$A$4:$AQ$155,43,FALSE))) -> 4.95 | E147: =IF($A147="","",IF(ISBLANK($A147),"",VLOOKUP($A147,Data!$A$4:$V$155,4,FALSE))) -> 3.55 | F147: =IF($A147="","",IF(ISBLANK($A147),"",VLOOKUP($A147,Data!$A$4:$V$155,5,FALSE))) -> 0.79 | G147: =IF($A147="","",IF(ISBLANK($A147),"",VLOOKUP($A147,Data!$A$4:$AP$155,42,FALSE))) -> 0.49 | H147: =IF($A147="","",IF(ISBLANK($A147),"",VLOOKUP($A147,Data!$A$4:$AS$155,45,FALSE))) -> 0.59 | I147: =IF($A147="","",IF(ISBLANK($A147),"",VLOOKUP($A147,Data!$A$4:$AI$155,35,FALSE))) -> 0.97 | J147: =IF($A147="","",IF(ISBLANK($A147),"",VLOOKUP($A147,Data!$A$4:$AM$155,37,FALSE))) -> 0.61 | K147: =IF($A147="","",IF(ISBLANK($A147),"",VLOOKUP($A147,Data!$A$4:$AM$155,38,FALSE))) -> 0.25 | L147: =IF($A147="","",IF(ISBLANK($A147),"",VLOOKUP($A147,Data!$A$4:$AM$155,39,FALSE))) -> 0.302 | M147: =IF($A147="","",IF(ISBLANK($A147),"",VLOOKUP($A147,Data!$A$4:$AI$155,6,FALSE))) -> 15100 | N147: =IF($A147="","",IF(ISBLANK($A147),"",VLOOKUP($A147,Data!$A$4:$AI$155,7,FALSE))) -> 103 | O147: =IF($A147="","",IF(ISBLANK($A147),"",VLOOKUP($A147,Data!$A$4:$AR$155,44,FALSE))) -> 0.7 | P147: =IF($A147="","",IF(ISBLANK($A147),"",VLOOKUP($A147,Data!$A$4:$AI$155,8,FALSE))) -> 0.29
A148: 384 | B148: =IF($A148="","",IF(ISBLANK($A148),"",INDEX('LEA Nos codes'!$A$3:$A$154,MATCH($A148,'LEA Nos codes'!$B$3:$B$154,0)))) -> Wakefield | C148: =IF($A148="","",IF(ISBLANK($A148),"",VLOOKUP($A148,Data!$A$4:$V$155,3,FALSE))) -> 4.85 | D148: =IF($A148="","",IF(ISBLANK($A148),"",VLOOKUP($A148,Data!$A$4:$AQ$155,43,FALSE))) -> 4.85 | E148: =IF($A148="","",IF(ISBLANK($A148),"",VLOOKUP($A148,Data!$A$4:$V$155,4,FALSE))) -> 4.08 | F148: =IF($A148="","",IF(ISBLANK($A148),"",VLOOKUP($A148,Data!$A$4:$V$155,5,FALSE))) -> 0.68 | G148: =IF($A148="","",IF(ISBLANK($A148),"",VLOOKUP($A148,Data!$A$4:$AP$155,42,FALSE))) -> 0.44 | H148: =IF($A148="","",IF(ISBLANK($A148),"",VLOOKUP($A148,Data!$A$4:$AS$155,45,FALSE))) -> 0.51 | I148: =IF($A148="","",IF(ISBLANK($A148),"",VLOOKUP($A148,Data!$A$4:$AI$155,35,FALSE))) -> 1.01 | J148: =IF($A148="","",IF(ISBLANK($A148),"",VLOOKUP($A148,Data!$A$4:$AM$155,37,FALSE))) -> 0.57 | K148: =IF($A148="","",IF(ISBLANK($A148),"",VLOOKUP($A148,Data!$A$4:$AM$155,38,FALSE))) -> 0.22 | L148: =IF($A148="","",IF(ISBLANK($A148),"",VLOOKUP($A148,Data!$A$4:$AM$155,39,FALSE))) -> 0.383 | M148: =IF($A148="","",IF(ISBLANK($A148),"",VLOOKUP($A148,Data!$A$4:$AI$155,6,FALSE))) -> 20000 | N148: =IF($A148="","",IF(ISBLANK($A148),"",VLOOKUP($A148,Data!$A$4:$AI$155,7,FALSE))) -> 54 | O148: =IF($A148="","",IF(ISBLANK($A148),"",VLOOKUP($A148,Data!$A$4:$AR$155,44,FALSE))) -> 0.85 | P148: =IF($A148="","",IF(ISBLANK($A148),"",VLOOKUP($A148,Data!$A$4:$AI$155,8,FALSE))) -> 0.15
A149: 335 | B149: =IF($A149="","",IF(ISBLANK($A149),"",INDEX('LEA Nos codes'!$A$3:$A$154,MATCH($A149,'LEA Nos codes'!$B$3:$B$154,0)))) -> Walsall | C149: =IF($A149="","",IF(ISBLANK($A149),"",VLOOKUP($A149,Data!$A$4:$V$155,3,FALSE))) -> . | D149: =IF($A149="","",IF(ISBLANK($A149),"",VLOOKUP($A149,Data!$A$4:$AQ$155,43,FALSE))) -> 4.89 | E149: =IF($A149="","",IF(ISBLANK($A149),"",VLOOKUP($A149,Data!$A$4:$V$155,4,FALSE))) -> 4.06 | F149: =IF($A149="","",IF(ISBLANK($A149),"",VLOOKUP($A149,Data!$A$4:$V$155,5,FALSE))) -> 0.81 | G149: =IF($A149="","",IF(ISBLANK($A149),"",VLOOKUP($A149,Data!$A$4:$AP$155,42,FALSE))) -> 0.42 | H149: =IF($A149="","",IF(ISBLANK($A149),"",VLOOKUP($A149,Data!$A$4:$AS$155,45,FALSE))) -> 0.56 | I149: =IF($A149="","",IF(ISBLANK($A149),"",VLOOKUP($A149,Data!$A$4:$AI$155,35,FALSE))) -> 0.96 | J149: =IF($A149="","",IF(ISBLANK($A149),"",VLOOKUP($A149,Data!$A$4:$AM$155,37,FALSE))) -> 0.46 | K149: =IF($A149="","",IF(ISBLANK($A149),"",VLOOKUP($A149,Data!$A$4:$AM$155,38,FALSE))) -> 0.19 | L149: =IF($A149="","",IF(ISBLANK($A149),"",VLOOKUP($A149,Data!$A$4:$AM$155,39,FALSE))) -> 0.408 | M149: =IF($A149="","",IF(ISBLANK($A149),"",VLOOKUP($A149,Data!$A$4:$AI$155,6,FALSE))) -> 18600 | N149: =IF($A149="","",IF(ISBLANK($A149),"",VLOOKUP($A149,Data!$A$4:$AI$155,7,FALSE))) -> 28 | O149: =IF($A149="","",IF(ISBLANK($A149),"",VLOOKUP($A149,Data!$A$4:$AR$155,44,FALSE))) -> 0.85 | P149: =IF($A149="","",IF(ISBLANK($A149),"",VLOOKUP($A149,Data!$A$4:$AI$155,8,FALSE))) -> 0.14
A150: 320 | B150: =IF($A150="","",IF(ISBLANK($A150),"",INDEX('LEA Nos codes'!$A$3:$A$154,MATCH($A150,'LEA Nos codes'!$B$3:$B$154,0)))) -> Waltham Forest | C150: =IF($A150="","",IF(ISBLANK($A150),"",VLOOKUP($A150,Data!$A$4:$V$155,3,FALSE))) -> 6 | D150: =IF($A150="","",IF(ISBLANK($A150),"",VLOOKUP($A150,Data!$A$4:$AQ$155,43,FALSE))) -> 5.28 | E150: =IF($A150="","",IF(ISBLANK($A150),"",VLOOKUP($A150,Data!$A$4:$V$155,4,FALSE))) -> 4.45 | F150: =IF($A150="","",IF(ISBLANK($A150),"",VLOOKUP($A150,Data!$A$4:$V$155,5,FALSE))) -> 0.69 | G150: =IF($A150="","",IF(ISBLANK($A150),"",VLOOKUP($A150,Data!$A$4:$AP$155,42,FALSE))) -> 0.45 | H150: =IF($A150="","",IF(ISBLANK($A150),"",VLOOKUP($A150,Data!$A$4:$AS$155,45,FALSE))) -> 0.48 | I150: =IF($A150="","",IF(ISBLANK($A150),"",VLOOKUP($A150,Data!$A$4:$AI$155,35,FALSE))) -> 0.91 | J150: =IF($A150="","",IF(ISBLANK($A150),"",VLOOKUP($A150,Data!$A$4:$AM$155,37,FALSE))) -> 0.56 | K150: =IF($A150="","",IF(ISBLANK($A150),"",VLOOKUP($A150,Data!$A$4:$AM$155,38,FALSE))) -> 0.05 | L150: =IF($A150="","",IF(ISBLANK($A150),"",VLOOKUP($A150,Data!$A$4:$AM$155,39,FALSE))) -> 0.363 | M150: =IF($A150="","",IF(ISBLANK($A150),"",VLOOKUP($A150,Data!$A$4:$AI$155,6,FALSE))) -> 21500 | N150: =IF($A150="","",IF(ISBLANK($A150),"",VLOOKUP($A150,Data!$A$4:$AI$155,7,FALSE))) -> 14 | O150: =IF($A150="","",IF(ISBLANK($A150),"",VLOOKUP($A150,Data!$A$4:$AR$155,44,FALSE))) -> 0.72 | P150: =IF($A150="","",IF(ISBLANK($A150),"",VLOOKUP($A150,Data!$A$4:$AI$155,8,FALSE))) -> 0.24
A151: 212 | B151: =IF($A151="","",IF(ISBLANK($A151),"",INDEX('LEA Nos codes'!$A$3:$A$154,MATCH($A151,'LEA Nos codes'!$B$3:$B$154,0)))) -> Wandsworth | C151: =IF($A151="","",IF(ISBLANK($A151),"",VLOOKUP($A151,Data!$A$4:$V$155,3,FALSE))) -> . | D151: =IF($A151="","",IF(ISBLANK($A151),"",VLOOKUP($A151,Data!$A$4:$AQ$155,43,FALSE))) -> 6.07 | E151: =IF($A151="","",IF(ISBLANK($A151),"",VLOOKUP($A151,Data!$A$4:$V$155,4,FALSE))) -> 5.52 | F151: =IF($A151="","",IF(ISBLANK($A151),"",VLOOKUP($A151,Data!$A$4:$V$155,5,FALSE))) -> 0.75 | G151: =IF($A151="","",IF(ISBLANK($A151),"",VLOOKUP($A151,Data!$A$4:$AP$155,42,FALSE))) -> 0.62 | H151: =IF($A151="","",IF(ISBLANK($A151),"",VLOOKUP($A151,Data!$A$4:$AS$155,45,FALSE))) -> 0.78 | I151: =IF($A151="","",IF(ISBLANK($A151),"",VLOOKUP($A151,Data!$A$4:$AI$155,35,FALSE))) -> 0.93 | J151: =IF($A151="","",IF(ISBLANK($A151),"",VLOOKUP($A151,Data!$A$4:$AM$155,37,FALSE))) -> 0.54 | K151: =IF($A151="","",IF(ISBLANK($A151),"",VLOOKUP($A151,Data!$A$4:$AM$155,38,FALSE))) -> 0.18 | L151: =IF($A151="","",IF(ISBLANK($A151),"",VLOOKUP($A151,Data!$A$4:$AM$155,39,FALSE))) -> 0.336 | M151: =IF($A151="","",IF(ISBLANK($A151),"",VLOOKUP($A151,Data!$A$4:$AI$155,6,FALSE))) -> 22200 | N151: =IF($A151="","",IF(ISBLANK($A151),"",VLOOKUP($A151,Data!$A$4:$AI$155,7,FALSE))) -> 84 | O151: =IF($A151="","",IF(ISBLANK($A151),"",VLOOKUP($A151,Data!$A$4:$AR$155,44,FALSE))) -> 0.58 | P151: =IF($A151="","",IF(ISBLANK($A151),"",VLOOKUP($A151,Data!$A$4:$AI$155,8,FALSE))) -> 0.41
A152: 877 | B152: =IF($A152="","",IF(ISBLANK($A152),"",INDEX('LEA Nos codes'!$A$3:$A$154,MATCH($A152,'LEA Nos codes'!$B$3:$B$154,0)))) -> Warrington | C152: =IF($A152="","",IF(ISBLANK($A152),"",VLOOKUP($A152,Data!$A$4:$V$155,3,FALSE))) -> . | D152: =IF($A152="","",IF(ISBLANK($A152),"",VLOOKUP($A152,Data!$A$4:$AQ$155,43,FALSE))) -> 4.93 | E152: =IF($A152="","",IF(ISBLANK($A152),"",VLOOKUP($A152,Data!$A$4:$V$155,4,FALSE))) -> 3.85 | F152: =IF($A152="","",IF(ISBLANK($A152),"",VLOOKUP($A152,Data!$A$4:$V$155,5,FALSE))) -> 0.73 | G152: =IF($A152="","",IF(ISBLANK($A152),"",VLOOKUP($A152,Data!$A$4:$AP$155,42,FALSE))) -> 0.38 | H152: =IF($A152="","",IF(ISBLANK($A152),"",VLOOKUP($A152,Data!$A$4:$AS$155,45,FALSE))) -> 0.41 | I152: =IF($A152="","",IF(ISBLANK($A152),"",VLOOKUP($A152,Data!$A$4:$AI$155,35,FALSE))) -> 1 | J152: =IF($A152="","",IF(ISBLANK($A152),"",VLOOKUP($A152,Data!$A$4:$AM$155,37,FALSE))) -> 0.45 | K152: =IF($A152="","",IF(ISBLANK($A152),"",VLOOKUP($A152,Data!$A$4:$AM$155,38,FALSE))) -> 0.32 | L152: =IF($A152="","",IF(ISBLANK($A152),"",VLOOKUP($A152,Data!$A$4:$AM$155,39,FALSE))) -> 0.375 | M152: =IF($A152="","",IF(ISBLANK($A152),"",VLOOKUP($A152,Data!$A$4:$AI$155,6,FALSE))) -> 12500 | N152: =IF($A152="","",IF(ISBLANK($A152),"",VLOOKUP($A152,Data!$A$4:$AI$155,7,FALSE))) -> 98 | O152: =IF($A152="","",IF(ISBLANK($A152),"",VLOOKUP($A152,Data!$A$4:$AR$155,44,FALSE))) -> 0.57 | P152: =IF($A152="","",IF(ISBLANK($A152),"",VLOOKUP($A152,Data!$A$4:$AI$155,8,FALSE))) -> 0.43
A153: 937 | B153: =IF($A153="","",IF(ISBLANK($A153),"",INDEX('LEA Nos codes'!$A$3:$A$154,MATCH($A153,'LEA Nos codes'!$B$3:$B$154,0)))) -> Warwickshire | C153: =IF($A153="","",IF(ISBLANK($A153),"",VLOOKUP($A153,Data!$A$4:$V$155,3,FALSE))) -> 4.95 | D153: =IF($A153="","",IF(ISBLANK($A153),"",VLOOKUP($A153,Data!$A$4:$AQ$155,43,FALSE))) -> 4.94 | E153: =IF($A153="","",IF(ISBLANK($A153),"",VLOOKUP($A153,Data!$A$4:$V$155,4,FALSE))) -> 3.99 | F153: =IF($A153="","",IF(ISBLANK($A153),"",VLOOKUP($A153,Data!$A$4:$V$155,5,FALSE))) -> 0.79 | G153: =IF($A153="","",IF(ISBLANK($A153),"",VLOOKUP($A153,Data!$A$4:$AP$155,42,FALSE))) -> 0.39 | H153: =IF($A153="","",IF(ISBLANK($A153),"",VLOOKUP($A153,Data!$A$4:$AS$155,45,FALSE))) -> 0.42 | I153: =IF($A153="","",IF(ISBLANK($A153),"",VLOOKUP($A153,Data!$A$4:$AI$155,35,FALSE))) -> 0.98 | J153: =IF($A153="","",IF(ISBLANK($A153),"",VLOOKUP($A153,Data!$A$4:$AM$155,37,FALSE))) -> 0.45 | K153: =IF($A153="","",IF(ISBLANK($A153),"",VLOOKUP($A153,Data!$A$4:$AM$155,38,FALSE))) -> 0.21 | L153: =IF($A153="","",IF(ISBLANK($A153),"",VLOOKUP($A153,Data!$A$4:$AM$155,39,FALSE))) -> 0.381 | M153: =IF($A153="","",IF(ISBLANK($A153),"",VLOOKUP($A153,Data!$A$4:$AI$155,6,FALSE))) -> 31500 | N153: =IF($A153="","",IF(ISBLANK($A153),"",VLOOKUP($A153,Data!$A$4:$AI$155,7,FALSE))) -> 124 | O153: =IF($A153="","",IF(ISBLANK($A153),"",VLOOKUP($A153,Data!$A$4:$AR$155,44,FALSE))) -> 0.49 | P153: =IF($A153="","",IF(ISBLANK($A153),"",VLOOKUP($A153,Data!$A$4:$AI$155,8,FALSE))) -> 0.5
A154: 869 | B154: =IF($A154="","",IF(ISBLANK($A154),"",INDEX('LEA Nos codes'!$A$3:$A$154,MATCH($A154,'LEA Nos codes'!$B$3:$B$154,0)))) -> West Berkshire | C154: =IF($A154="","",IF(ISBLANK($A154),"",VLOOKUP($A154,Data!$A$4:$V$155,3,FALSE))) -> 5.26 | D154: =IF($A154="","",IF(ISBLANK($A154),"",VLOOKUP($A154,Data!$A$4:$AQ$155,43,FALSE))) -> 5.36 | E154: =IF($A154="","",IF(ISBLANK($A154),"",VLOOKUP($A154,Data!$A$4:$V$155,4,FALSE))) -> 4.5 | F154: =IF($A154="","",IF(ISBLANK($A154),"",VLOOKUP($A154,Data!$A$4:$V$155,5,FALSE))) -> 0.85 | G154: =IF($A154="","",IF(ISBLANK($A154),"",VLOOKUP($A154,Data!$A$4:$AP$155,42,FALSE))) -> 0.36 | H154: =IF($A154="","",IF(ISBLANK($A154),"",VLOOKUP($A154,Data!$A$4:$AS$155,45,FALSE))) -> 0.38 | I154: =IF($A154="","",IF(ISBLANK($A154),"",VLOOKUP($A154,Data!$A$4:$AI$155,35,FALSE))) -> 0.96 | J154: =IF($A154="","",IF(ISBLANK($A154),"",VLOOKUP($A154,Data!$A$4:$AM$155,37,FALSE))) -> 0.61 | K154: =IF($A154="","",IF(ISBLANK($A154),"",VLOOKUP($A154,Data!$A$4:$AM$155,38,FALSE))) -> 0.22 | L154: =IF($A154="","",IF(ISBLANK($A154),"",VLOOKUP($A154,Data!$A$4:$AM$155,39,FALSE))) -> 0.265 | M154: =IF($A154="","",IF(ISBLANK($A154),"",VLOOKUP($A154,Data!$A$4:$AI$155,6,FALSE))) -> 10100 | N154: =IF($A154="","",IF(ISBLANK($A154),"",VLOOKUP($A154,Data!$A$4:$AI$155,7,FALSE))) -> 144 | O154: =IF($A154="","",IF(ISBLANK($A154),"",VLOOKUP($A154,Data!$A$4:$AR$155,44,FALSE))) -> 0.52 | P154: =IF($A154="","",IF(ISBLANK($A154),"",VLOOKUP($A154,Data!$A$4:$AI$155,8,FALSE))) -> 0.48
A155: 938 | B155: =IF($A155="","",IF(ISBLANK($A155),"",INDEX('LEA Nos codes'!$A$3:$A$154,MATCH($A155,'LEA Nos codes'!$B$3:$B$154,0)))) -> West Sussex | C155: =IF($A155="","",IF(ISBLANK($A155),"",VLOOKUP($A155,Data!$A$4:$V$155,3,FALSE))) -> 4.85 | D155: =IF($A155="","",IF(ISBLANK($A155),"",VLOOKUP($A155,Data!$A$4:$AQ$155,43,FALSE))) -> 4.95 | E155: =IF($A155="","",IF(ISBLANK($A155),"",VLOOKUP($A155,Data!$A$4:$V$155,4,FALSE))) -> 4.05 | F155: =IF($A155="","",IF(ISBLANK($A155),"",VLOOKUP($A155,Data!$A$4:$V$155,5,FALSE))) -> 0.82 | G155: =IF($A155="","",IF(ISBLANK($A155),"",VLOOKUP($A155,Data!$A$4:$AP$155,42,FALSE))) -> 0.42 | H155: =IF($A155="","",IF(ISBLANK($A155),"",VLOOKUP($A155,Data!$A$4:$AS$155,45,FALSE))) -> 0.46 | I155: =IF($A155="","",IF(ISBLANK($A155),"",VLOOKUP($A155,Data!$A$4:$AI$155,35,FALSE))) -> 0.97 | J155: =IF($A155="","",IF(ISBLANK($A155),"",VLOOKUP($A155,Data!$A$4:$AM$155,37,FALSE))) -> 0.52 | K155: =IF($A155="","",IF(ISBLANK($A155),"",VLOOKUP($A155,Data!$A$4:$AM$155,38,FALSE))) -> 0.21 | L155: =IF($A155="","",IF(ISBLANK($A155),"",VLOOKUP($A155,Data!$A$4:$AM$155,39,FALSE))) -> 0.304 | M155: =IF($A155="","",IF(ISBLANK($A155),"",VLOOKUP($A155,Data!$A$4:$AI$155,6,FALSE))) -> 47700 | N155: =IF($A155="","",IF(ISBLANK($A155),"",VLOOKUP($A155,Data!$A$4:$AI$155,7,FALSE))) -> 128 | O155: =IF($A155="","",IF(ISBLANK($A155),"",VLOOKUP($A155,Data!$A$4:$AR$155,44,FALSE))) -> 0.39 | P155: =IF($A155="","",IF(ISBLANK($A155),"",VLOOKUP($A155,Data!$A$4:$AI$155,8,FALSE))) -> 0.61
A156: 213 | B156: =IF($A156="","",IF(ISBLANK($A156),"",INDEX('LEA Nos codes'!$A$3:$A$154,MATCH($A156,'LEA Nos codes'!$B$3:$B$154,0)))) -> Westminster | C156: =IF($A156="","",IF(ISBLANK($A156),"",VLOOKUP($A156,Data!$A$4:$V$155,3,FALSE))) -> . | D156: =IF($A156="","",IF(ISBLANK($A156),"",VLOOKUP($A156,Data!$A$4:$AQ$155,43,FALSE))) -> 6.07 | E156: =IF($A156="","",IF(ISBLANK($A156),"",VLOOKUP($A156,Data!$A$4:$V$155,4,FALSE))) -> 6.81 | F156: =IF($A156="","",IF(ISBLANK($A156),"",VLOOKUP($A156,Data!$A$4:$V$155,5,FALSE))) -> 0.74 | G156: =IF($A156="","",IF(ISBLANK($A156),"",VLOOKUP($A156,Data!$A$4:$AP$155,42,FALSE))) -> 0.35 | H156: =IF($A156="","",IF(ISBLANK($A156),"",VLOOKUP($A156,Data!$A$4:$AS$155,45,FALSE))) -> 0.39 | I156: =IF($A156="","",IF(ISBLANK($A156),"",VLOOKUP($A156,Data!$A$4:$AI$155,35,FALSE))) -> 0.79 | J156: =IF($A156="","",IF(ISBLANK($A156),"",VLOOKUP($A156,Data!$A$4:$AM$155,37,FALSE))) -> 0.5 | K156: =IF($A156="","",IF(ISBLANK($A156),"",VLOOKUP($A156,Data!$A$4:$AM$155,38,FALSE))) -> 0.12 | L156: =IF($A156="","",IF(ISBLANK($A156),"",VLOOKUP($A156,Data!$A$4:$AM$155,39,FALSE))) -> 0.387 | M156: =IF($A156="","",IF(ISBLANK($A156),"",VLOOKUP($A156,Data!$A$4:$AI$155,6,FALSE))) -> 13400 | N156: =IF($A156="","",IF(ISBLANK($A156),"",VLOOKUP($A156,Data!$A$4:$AI$155,7,FALSE))) -> 66 | O156: =IF($A156="","",IF(ISBLANK($A156),"",VLOOKUP($A156,Data!$A$4:$AR$155,44,FALSE))) -> 0.62 | P156: =IF($A156="","",IF(ISBLANK($A156),"",VLOOKUP($A156,Data!$A$4:$AI$155,8,FALSE))) -> 0.35
A157: 359 | B157: =IF($A157="","",IF(ISBLANK($A157),"",INDEX('LEA Nos codes'!$A$3:$A$154,MATCH($A157,'LEA Nos codes'!$B$3:$B$154,0)))) -> Wigan | C157: =IF($A157="","",IF(ISBLANK($A157),"",VLOOKUP($A157,Data!$A$4:$V$155,3,FALSE))) -> 4.9 | D157: =IF($A157="","",IF(ISBLANK($A157),"",VLOOKUP($A157,Data!$A$4:$AQ$155,43,FALSE))) -> 4.95 | E157: =IF($A157="","",IF(ISBLANK($A157),"",VLOOKUP($A157,Data!$A$4:$V$155,4,FALSE))) -> 3.69 | F157: =IF($A157="","",IF(ISBLANK($A157),"",VLOOKUP($A157,Data!$A$4:$V$155,5,FALSE))) -> 0.75 | G157: =IF($A157="","",IF(ISBLANK($A157),"",VLOOKUP($A157,Data!$A$4:$AP$155,42,FALSE))) -> 0.05 | H157: =IF($A157="","",IF(ISBLANK($A157),"",VLOOKUP($A157,Data!$A$4:$AS$155,45,FALSE))) -> 0.04 | I157: =IF($A157="","",IF(ISBLANK($A157),"",VLOOKUP($A157,Data!$A$4:$AI$155,35,FALSE))) -> 0.92 | J157: =IF($A157="","",IF(ISBLANK($A157),"",VLOOKUP($A157,Data!$A$4:$AM$155,37,FALSE))) -> 0.38 | K157: =IF($A157="","",IF(ISBLANK($A157),"",VLOOKUP($A157,Data!$A$4:$AM$155,38,FALSE))) -> 0.23 | L157: =IF($A157="","",IF(ISBLANK($A157),"",VLOOKUP($A157,Data!$A$4:$AM$155,39,FALSE))) -> 0.413 | M157: =IF($A157="","",IF(ISBLANK($A157),"",VLOOKUP($A157,Data!$A$4:$AI$155,6,FALSE))) -> 19600 | N157: =IF($A157="","",IF(ISBLANK($A157),"",VLOOKUP($A157,Data!$A$4:$AI$155,7,FALSE))) -> 52 | O157: =IF($A157="","",IF(ISBLANK($A157),"",VLOOKUP($A157,Data!$A$4:$AR$155,44,FALSE))) -> 0.6 | P157: =IF($A157="","",IF(ISBLANK($A157),"",VLOOKUP($A157,Data!$A$4:$AI$155,8,FALSE))) -> 0.39
A158: 865 | B158: =IF($A158="","",IF(ISBLANK($A158),"",INDEX('LEA Nos codes'!$A$3:$A$154,MATCH($A158,'LEA Nos codes'!$B$3:$B$154,0)))) -> Wiltshire | C158: =IF($A158="","",IF(ISBLANK($A158),"",VLOOKUP($A158,Data!$A$4:$V$155,3,FALSE))) -> 5.67 | D158: =IF($A158="","",IF(ISBLANK($A158),"",VLOOKUP($A158,Data!$A$4:$AQ$155,43,FALSE))) -> 4.97 | E158: =IF($A158="","",IF(ISBLANK($A158),"",VLOOKUP($A158,Data!$A$4:$V$155,4,FALSE))) -> 3.88 | F158: =IF($A158="","",IF(ISBLANK($A158),"",VLOOKUP($A158,Data!$A$4:$V$155,5,FALSE))) -> 0.75 | G158: =IF($A158="","",IF(ISBLANK($A158),"",VLOOKUP($A158,Data!$A$4:$AP$155,42,FALSE))) -> 0.48 | H158: =IF($A158="","",IF(ISBLANK($A158),"",VLOOKUP($A158,Data!$A$4:$AS$155,45,FALSE))) -> 0.49 | I158: =IF($A158="","",IF(ISBLANK($A158),"",VLOOKUP($A158,Data!$A$4:$AI$155,35,FALSE))) -> 0.93 | J158: =IF($A158="","",IF(ISBLANK($A158),"",VLOOKUP($A158,Data!$A$4:$AM$155,37,FALSE))) -> 0.52 | K158: =IF($A158="","",IF(ISBLANK($A158),"",VLOOKUP($A158,Data!$A$4:$AM$155,38,FALSE))) -> 0.25 | L158: =IF($A158="","",IF(ISBLANK($A158),"",VLOOKUP($A158,Data!$A$4:$AM$155,39,FALSE))) -> 0.317 | M158: =IF($A158="","",IF(ISBLANK($A158),"",VLOOKUP($A158,Data!$A$4:$AI$155,6,FALSE))) -> 28800 | N158: =IF($A158="","",IF(ISBLANK($A158),"",VLOOKUP($A158,Data!$A$4:$AI$155,7,FALSE))) -> 134 | O158: =IF($A158="","",IF(ISBLANK($A158),"",VLOOKUP($A158,Data!$A$4:$AR$155,44,FALSE))) -> 0.36 | P158: =IF($A158="","",IF(ISBLANK($A158),"",VLOOKUP($A158,Data!$A$4:$AI$155,8,FALSE))) -> 0.64
A159: 868 | B159: =IF($A159="","",IF(ISBLANK($A159),"",INDEX('LEA Nos codes'!$A$3:$A$154,MATCH($A159,'LEA Nos codes'!$B$3:$B$154,0)))) -> Windsor and Maidenhead | C159: =IF($A159="","",IF(ISBLANK($A159),"",VLOOKUP($A159,Data!$A$4:$V$155,3,FALSE))) -> 5 | D159: =IF($A159="","",IF(ISBLANK($A159),"",VLOOKUP($A159,Data!$A$4:$AQ$155,43,FALSE))) -> 5.49 | E159: =IF($A159="","",IF(ISBLANK($A159),"",VLOOKUP($A159,Data!$A$4:$V$155,4,FALSE))) -> 4.36 | F159: =IF($A159="","",IF(ISBLANK($A159),"",VLOOKUP($A159,Data!$A$4:$V$155,5,FALSE))) -> 0.82 | G159: =IF($A159="","",IF(ISBLANK($A159),"",VLOOKUP($A159,Data!$A$4:$AP$155,42,FALSE))) -> 0.45 | H159: =IF($A159="","",IF(ISBLANK($A159),"",VLOOKUP($A159,Data!$A$4:$AS$155,45,FALSE))) -> 0.5 | I159: =IF($A159="","",IF(ISBLANK($A159),"",VLOOKUP($A159,Data!$A$4:$AI$155,35,FALSE))) -> 1 | J159: =IF($A159="","",IF(ISBLANK($A159),"",VLOOKUP($A159,Data!$A$4:$AM$155,37,FALSE))) -> 0.55 | K159: =IF($A159="","",IF(ISBLANK($A159),"",VLOOKUP($A159,Data!$A$4:$AM$155,38,FALSE))) -> 0.22 | L159: =IF($A159="","",IF(ISBLANK($A159),"",VLOOKUP($A159,Data!$A$4:$AM$155,39,FALSE))) -> 0.269 | M159: =IF($A159="","",IF(ISBLANK($A159),"",VLOOKUP($A159,Data!$A$4:$AI$155,6,FALSE))) -> 9400 | N159: =IF($A159="","",IF(ISBLANK($A159),"",VLOOKUP($A159,Data!$A$4:$AI$155,7,FALSE))) -> 146 | O159: =IF($A159="","",IF(ISBLANK($A159),"",VLOOKUP($A159,Data!$A$4:$AR$155,44,FALSE))) -> 0.48 | P159: =IF($A159="","",IF(ISBLANK($A159),"",VLOOKUP($A159,Data!$A$4:$AI$155,8,FALSE))) -> 0.51
A160: 344 | B160: =IF($A160="","",IF(ISBLANK($A160),"",INDEX('LEA Nos codes'!$A$3:$A$154,MATCH($A160,'LEA Nos codes'!$B$3:$B$154,0)))) -> Wirral | C160: =IF($A160="","",IF(ISBLANK($A160),"",VLOOKUP($A160,Data!$A$4:$V$155,3,FALSE))) -> 4.85 | D160: =IF($A160="","",IF(ISBLANK($A160),"",VLOOKUP($A160,Data!$A$4:$AQ$155,43,FALSE))) -> 4.87 | E160: =IF($A160="","",IF(ISBLANK($A160),"",VLOOKUP($A160,Data!$A$4:$V$155,4,FALSE))) -> 3.79 | F160: =IF($A160="","",IF(ISBLANK($A160),"",VLOOKUP($A160,Data!$A$4:$V$155,5,FALSE))) -> 0.72 | G160: =IF($A160="","",IF(ISBLANK($A160),"",VLOOKUP($A160,Data!$A$4:$AP$155,42,FALSE))) -> 0.53 | H160: =IF($A160="","",IF(ISBLANK($A160),"",VLOOKUP($A160,Data!$A$4:$AS$155,45,FALSE))) -> 0.56 | I160: =IF($A160="","",IF(ISBLANK($A160),"",VLOOKUP($A160,Data!$A$4:$AI$155,35,FALSE))) -> 1 | J160: =IF($A160="","",IF(ISBLANK($A160),"",VLOOKUP($A160,Data!$A$4:$AM$155,37,FALSE))) -> 0.47 | K160: =IF($A160="","",IF(ISBLANK($A160),"",VLOOKUP($A160,Data!$A$4:$AM$155,38,FALSE))) -> 0.25 | L160: =IF($A160="","",IF(ISBLANK($A160),"",VLOOKUP($A160,Data!$A$4:$AM$155,39,FALSE))) -> 0.395 | M160: =IF($A160="","",IF(ISBLANK($A160),"",VLOOKUP($A160,Data!$A$4:$AI$155,6,FALSE))) -> 18900 | N160: =IF($A160="","",IF(ISBLANK($A160),"",VLOOKUP($A160,Data!$A$4:$AI$155,7,FALSE))) -> 48 | O160: =IF($A160="","",IF(ISBLANK($A160),"",VLOOKUP($A160,Data!$A$4:$AR$155,44,FALSE))) -> 0.56 | P160: =IF($A160="","",IF(ISBLANK($A160),"",VLOOKUP($A160,Data!$A$4:$AI$155,8,FALSE))) -> 0.43
A161: 872 | B161: =IF($A161="","",IF(ISBLANK($A161),"",INDEX('LEA Nos codes'!$A$3:$A$154,MATCH($A161,'LEA Nos codes'!$B$3:$B$154,0)))) -> Wokingham | C161: =IF($A161="","",IF(ISBLANK($A161),"",VLOOKUP($A161,Data!$A$4:$V$155,3,FALSE))) -> 5 | D161: =IF($A161="","",IF(ISBLANK($A161),"",VLOOKUP($A161,Data!$A$4:$AQ$155,43,FALSE))) -> 5.36 | E161: =IF($A161="","",IF(ISBLANK($A161),"",VLOOKUP($A161,Data!$A$4:$V$155,4,FALSE))) -> 3.74 | F161: =IF($A161="","",IF(ISBLANK($A161),"",VLOOKUP($A161,Data!$A$4:$V$155,5,FALSE))) -> 0.88 | G161: =IF($A161="","",IF(ISBLANK($A161),"",VLOOKUP($A161,Data!$A$4:$AP$155,42,FALSE))) -> 0.57 | H161: =IF($A161="","",IF(ISBLANK($A161),"",VLOOKUP($A161,Data!$A$4:$AS$155,45,FALSE))) -> 0.68 | I161: =IF($A161="","",IF(ISBLANK($A161),"",VLOOKUP($A161,Data!$A$4:$AI$155,35,FALSE))) -> 1 | J161: =IF($A161="","",IF(ISBLANK($A161),"",VLOOKUP($A161,Data!$A$4:$AM$155,37,FALSE))) -> 0.47 | K161: =IF($A161="","",IF(ISBLANK($A161),"",VLOOKUP($A161,Data!$A$4:$AM$155,38,FALSE))) -> 0.23 | L161: =IF($A161="","",IF(ISBLANK($A161),"",VLOOKUP($A161,Data!$A$4:$AM$155,39,FALSE))) -> 0.272 | M161: =IF($A161="","",IF(ISBLANK($A161),"",VLOOKUP($A161,Data!$A$4:$AI$155,6,FALSE))) -> 10300 | N161: =IF($A161="","",IF(ISBLANK($A161),"",VLOOKUP($A161,Data!$A$4:$AI$155,7,FALSE))) -> 149 | O161: =IF($A161="","",IF(ISBLANK($A161),"",VLOOKUP($A161,Data!$A$4:$AR$155,44,FALSE))) -> 0.5 | P161: =IF($A161="","",IF(ISBLANK($A161),"",VLOOKUP($A161,Data!$A$4:$AI$155,8,FALSE))) -> 0.5
A162: 336 | B162: =IF($A162="","",IF(ISBLANK($A162),"",INDEX('LEA Nos codes'!$A$3:$A$154,MATCH($A162,'LEA Nos codes'!$B$3:$B$154,0)))) -> Wolverhampton | C162: =IF($A162="","",IF(ISBLANK($A162),"",VLOOKUP($A162,Data!$A$4:$V$155,3,FALSE))) -> . | D162: =IF($A162="","",IF(ISBLANK($A162),"",VLOOKUP($A162,Data!$A$4:$AQ$155,43,FALSE))) -> 4.89 | E162: =IF($A162="","",IF(ISBLANK($A162),"",VLOOKUP($A162,Data!$A$4:$V$155,4,FALSE))) -> 4.95 | F162: =IF($A162="","",IF(ISBLANK($A162),"",VLOOKUP($A162,Data!$A$4:$V$155,5,FALSE))) -> 0.69 | G162: =IF($A162="","",IF(ISBLANK($A162),"",VLOOKUP($A162,Data!$A$4:$AP$155,42,FALSE))) -> 0.44 | H162: =IF($A162="","",IF(ISBLANK($A162),"",VLOOKUP($A162,Data!$A$4:$AS$155,45,FALSE))) -> 0.45 | I162: =IF($A162="","",IF(ISBLANK($A162),"",VLOOKUP($A162,Data!$A$4:$AI$155,35,FALSE))) -> 0.9 | J162: =IF($A162="","",IF(ISBLANK($A162),"",VLOOKUP($A162,Data!$A$4:$AM$155,37,FALSE))) -> 0.44 | K162: =IF($A162="","",IF(ISBLANK($A162),"",VLOOKUP($A162,Data!$A$4:$AM$155,38,FALSE))) -> 0.13 | L162: =IF($A162="","",IF(ISBLANK($A162),"",VLOOKUP($A162,Data!$A$4:$AM$155,39,FALSE))) -> 0.408 | M162: =IF($A162="","",IF(ISBLANK($A162),"",VLOOKUP($A162,Data!$A$4:$AI$155,6,FALSE))) -> 17400 | N162: =IF($A162="","",IF(ISBLANK($A162),"",VLOOKUP($A162,Data!$A$4:$AI$155,7,FALSE))) -> 19 | O162: =IF($A162="","",IF(ISBLANK($A162),"",VLOOKUP($A162,Data!$A$4:$AR$155,44,FALSE))) -> 0.89 | P162: =IF($A162="","",IF(ISBLANK($A162),"",VLOOKUP($A162,Data!$A$4:$AI$155,8,FALSE))) -> 0.1
A163: 885 | B163: =IF($A163="","",IF(ISBLANK($A163),"",INDEX('LEA Nos codes'!$A$3:$A$154,MATCH($A163,'LEA Nos codes'!$B$3:$B$154,0)))) -> Worcestershire | C163: =IF($A163="","",IF(ISBLANK($A163),"",VLOOKUP($A163,Data!$A$4:$V$155,3,FALSE))) -> . | D163: =IF($A163="","",IF(ISBLANK($A163),"",VLOOKUP($A163,Data!$A$4:$AQ$155,43,FALSE))) -> 4.85 | E163: =IF($A163="","",IF(ISBLANK($A163),"",VLOOKUP($A163,Data!$A$4:$V$155,4,FALSE))) -> 3.43 | F163: =IF($A163="","",IF(ISBLANK($A163),"",VLOOKUP($A163,Data!$A$4:$V$155,5,FALSE))) -> 0.85 | G163: =IF($A163="","",IF(ISBLANK($A163),"",VLOOKUP($A163,Data!$A$4:$AP$155,42,FALSE))) -> 0.46 | H163: =IF($A163="","",IF(ISBLANK($A163),"",VLOOKUP($A163,Data!$A$4:$AS$155,45,FALSE))) -> 0.54 | I163: =IF($A163="","",IF(ISBLANK($A163),"",VLOOKUP($A163,Data!$A$4:$AI$155,35,FALSE))) -> 1.02 | J163: =IF($A163="","",IF(ISBLANK($A163),"",VLOOKUP($A163,Data!$A$4:$AM$155,37,FALSE))) -> 0.49 | K163: =IF($A163="","",IF(ISBLANK($A163),"",VLOOKUP($A163,Data!$A$4:$AM$155,38,FALSE))) -> 0.26 | L163: =IF($A163="","",IF(ISBLANK($A163),"",VLOOKUP($A163,Data!$A$4:$AM$155,39,FALSE))) -> 0.349 | M163: =IF($A163="","",IF(ISBLANK($A163),"",VLOOKUP($A163,Data!$A$4:$AI$155,6,FALSE))) -> 31500 | N163: =IF($A163="","",IF(ISBLANK($A163),"",VLOOKUP($A163,Data!$A$4:$AI$155,7,FALSE))) -> 110 | O163: =IF($A163="","",IF(ISBLANK($A163),"",VLOOKUP($A163,Data!$A$4:$AR$155,44,FALSE))) -> 0.46 | P163: =IF($A163="","",IF(ISBLANK($A163),"",VLOOKUP($A163,Data!$A$4:$AI$155,8,FALSE))) -> 0.53
A164: 816 | B164: =IF($A164="","",IF(ISBLANK($A164),"",INDEX('LEA Nos codes'!$A$3:$A$154,MATCH($A164,'LEA Nos codes'!$B$3:$B$154,0)))) -> York | C164: =IF($A164="","",IF(ISBLANK($A164),"",VLOOKUP($A164,Data!$A$4:$V$155,3,FALSE))) -> . | D164: =IF($A164="","",IF(ISBLANK($A164),"",VLOOKUP($A164,Data!$A$4:$AQ$155,43,FALSE))) -> 4.85 | E164: =IF($A164="","",IF(ISBLANK($A164),"",VLOOKUP($A164,Data!$A$4:$V$155,4,FALSE))) -> 3.6 | F164: =IF($A164="","",IF(ISBLANK($A164),"",VLOOKUP($A164,Data!$A$4:$V$155,5,FALSE))) -> 0.83 | G164: =IF($A164="","",IF(ISBLANK($A164),"",VLOOKUP($A164,Data!$A$4:$AP$155,42,FALSE))) -> 0.4 | H164: =IF($A164="","",IF(ISBLANK($A164),"",VLOOKUP($A164,Data!$A$4:$AS$155,45,FALSE))) -> 0.44 | I164: =IF($A164="","",IF(ISBLANK($A164),"",VLOOKUP($A164,Data!$A$4:$AI$155,35,FALSE))) -> 1.03 | J164: =IF($A164="","",IF(ISBLANK($A164),"",VLOOKUP($A164,Data!$A$4:$AM$155,37,FALSE))) -> 0.56 | K164: =IF($A164="","",IF(ISBLANK($A164),"",VLOOKUP($A164,Data!$A$4:$AM$155,38,FALSE))) -> 0.29 | L164: =IF($A164="","",IF(ISBLANK($A164),"",VLOOKUP($A164,Data!$A$4:$AM$155,39,FALSE))) -> 0.313 | M164: =IF($A164="","",IF(ISBLANK($A164),"",VLOOKUP($A164,Data!$A$4:$AI$155,6,FALSE))) -> 10700 | N164: =IF($A164="","",IF(ISBLANK($A164),"",VLOOKUP($A164,Data!$A$4:$AI$155,7,FALSE))) -> 131 | O164: =IF($A164="","",IF(ISBLANK($A164),"",VLOOKUP($A164,Data!$A$4:$AR$155,44,FALSE))) -> 0.53 | P164: =IF($A164="","",IF(ISBLANK($A164),"",VLOOKUP($A164,Data!$A$4:$AI$155,8,FALSE))) -> 0.46
A167: A. Note: Some caution should be exercised when comparing take-up rates at local authority level.
A168: Please see technical notes for further information on population estimates and rates which exceed 100%
A170: 1. Funding information is as reported by local authorities in the section 251 budget statements 2013-14
A171: 2. Some local authorities have included planned spend on two year olds within central spending and therefore specific figures for two year olds are not available
A172: 3. The average hourly two-year-old rates for Wigan and Shropshire are different to those in their original s251 returns. They have confirmed since the return was submitted that the correct rates are £4.90 per hour and £4.96 per hour respectively. The England average rate has been recalculated accordingly
A173: 4. The Department for Education provides LAs with an average funding rate of £5.09 per hour for statutory two-year-old entitlement places. This is adjusted for local area cost, within a range of £4.85-£7.08 per hour. In addition, trajectory building and capital funding has been provided to support roll-out of the new two-year-old programme.
A174: Further information about two year old allocations for 2013-14 is here:
A175: http://webarchive.nationalarchives.gov.uk/20130903192841/http://www.education.gov.uk/childrenandyoungpeople/earlylearningandchildcare/delivery/free entitlement to early education/b0070114/eefortwoyearolds/la-funding-allocations
A176: and for 2014-15 is here:
A177: https://www.gov.uk/government/publications/la-allocations-for-early-learning-for-2-year-olds-2014-to-2015
A178: https://www.gov.uk/government/publications/funding-for-learning-for-2-year-olds-letter-from-elizabeth-truss
A179: 5. Hammersmith and Fulham's return shows an average rate of £604.77. This has been removed as an extreme outlier.
A180: 6. A small proportion of early years registered providers are inspected as part of a school inspection and are not included in these figures.
A181: 7. Based on inspections carried out since the introduction of the Early Years Foundation Stage in September 2008.
A182: 8. Private, Voluntary and Independent.
A183: 9. Qualified teacher status (QTS) is the accreditation that enables you to teach in state-maintained and special schools in England and Wales.
A184: 10. Early Years Professional Status (EYPS) is a professional accreditation endorsed by the government for graduate practitioners who have demonstrated a set of professional standards.
A185: 11. Count of children aged three or four at 31st December in the previous calendar year.
A186: 12. All children are eligible for a funded part-time place from 1 September, 1 January or 1 April following their third birthday for up to two years before they reach compulsory school age.
A187: A funded place currently consists of a minimum of 15 hours of early education per week for 38 weeks of the year.
A188: 13. Any child attending more than one provider will have only been counted once.
A189: 14. Early Years Foundation Stage Profile - outcomes at age five.
A190: 15. Percentage of children achieving a good level of development – those children achieving at least the expected level within the three prime areas of learning: communication and language, physical development and personal, social and emotional development
A191: and the early learning goals within the literacy and mathematics areas of learning.
A192: 16. Only includes pupils with a valid result for every achievement scale.
A193: 17. The percentage gap between those eligible for Free School Meals and the rest (including unclassified) in achieving a good level of development.
A194: 18. The percentage gap in achieving a good level of development between the lowest 20 per cent of achieving children in a local authority (mean score), and the score of the median
A195: child in the same authority expressed as a percentage of the same median score.
A196: 19. Population estimates for UK, England, Wales, Scotland and Northern Ireland, Mid-2012.
A197: 20. English Indices of Deprivation 2010 (where 1 is the most deprived).
A198: 21. Figures for Isles of Scilly and Cornwall, Cheshire East and Cheshire West and Chester, Bedford Borough and Central Bedfordshire have been set to the rank of the old counties from which they were formed: Cornwall and Isles of Scilly, Cheshire and Bedfordshire.
A199: 22. Maintained settings refers to maintained nursery and state-funded primary schools. It does not include secondary schools or special schools.
A200: . Not applicable
A201: .. Not available
A202: x Value suppressed to protect confidentiality
A203: Figures are rounded to the level of the source data on which they are based
A205: Sources
... 21 more rows

Sheet Early Years Table (hidden)
C1: Early Years Benchmarking - Main Spreadsheet | O1: Return to contents
A2: All LAs | O2: Return to instructions
A4: To print use the buttons below. | C4: Funding | F4: Quality | G4: Qualifications | I4: Take UpA | J4: Child Development (EYFSP)14 | M4: Context
C5: Planned spend1 on 2 year olds - average rate per hour2,3 (2013-14) | D5: Allocated hourly rate for 2 year olds4 (2013-14) | E5: Planned spend1 on 3 and 4 year olds - average rate per hour5 (2013-14) | F5: % of childcare and early years settings6 rated good or outstanding by Ofsted7 (As at 31st October 2013) | G5: % of PVI8 providers with QTS9/EYPS10 graduates working directly with 3 and 4 year olds11 (2013) | H5: % of 3 and 4 year olds11 receiving funded early education at PVI8 providers with QTS9/EYPS10 graduates working directly with children (2013) | I5: % of 3 and 4 year olds11 receiving funded early education12,13 (2013) | J5: % of children achieving a good level of development15,16 (2013) | K5: % gap between pupils eligible for free school meals and the rest16,17 (2013) | L5: % gap between the lowest achieving 20% and the rest16,18 (2013) | M5: Number of 0-4 year olds19 (Mid-2012) | N5: Deprivation rank20,21 (2010) | O5: % of 3 and 4 year olds11 receiving funded early education12,13 in maintained22 settings (2013) | P5: % of 3 and 4 year olds11 receiving funded early education12,13 in PVI8 providers (2013)
A6: England - Average (mean) or Total | C6: 5.27 | D6: 5.09 | E6: 4.21 | F6: 0.77 | G6: 0.39 | H6: 0.44 | I6: 0.96 | J6: 0.52 | K6: 0.19 | L6: 0.366 | M6: 3328750 | O6: 0.59 | P6: 0.4
A7: England - Average (median) | C7: 5 | D7: 4.93 | E7: 4.04 | F7: 0.76 | G7: 0.395 | H7: 0.44 | I7: 0.97 | J7: 0.51 | K7: 0.195 | L7: 0.355 | M7: 17500 | N7: 76.5 | O7: 0.625 | P7: 0.36
A8: England - Minimum | C8: 4.5 | D8: 4.85 | E8: 2.99 | F8: 0.59 | G8: 0 | H8: 0 | I8: 0.79 | J8: 0.28 | K8: 0.02 | L8: 0.105 | M8: 100 | N8: 1 | O8: 0.33 | P8: 0.03
A9: England - Maximum | C9: 9.99 | D9: 7.08 | E9: 6.81 | F9: 1 | G9: 0.73 | H9: 0.81 | I9: 1.15 | J9: 1 | K9: 0.34 | L9: 0.446 | M9: 90800 | N9: 149 | O9: 0.97 | P9: 0.66
A10: Selection - Average (median) | C10: 5 | D10: 4.93 | E10: 4.04 | F10: 0.76 | G10: 0.395 | H10: 0.44 | I10: 0.97 | J10: 0.51 | K10: 0.195 | L10: 0.355 | M10: 17500 | N10: 76.5 | O10: 0.625 | P10: 0.36
A11: Selection - Minimum | C11: 4.5 | D11: 4.85 | E11: 2.99 | F11: 0.59 | G11: 0 | H11: 0 | I11: 0.79 | J11: 0.28 | K11: 0.02 | L11: 0.105 | M11: 100 | N11: 1 | O11: 0.33 | P11: 0.03
A12: Selection - Maximum | C12: 9.99 | D12: 7.08 | E12: 6.81 | F12: 1 | G12: 0.73 | H12: 0.81 | I12: 1.15 | J12: 1 | K12: 0.34 | L12: 0.446 | M12: 90800 | N12: 149 | O12: 0.97 | P12: 0.66
A13: 301 | B13: Barking and Dagenham | C13: 5.2 | D13: 5.28 | E13: 3.87 | F13: 0.74 | G13: 0.34 | H13: 0.39 | I13: 0.89 | J13: 0.46 | K13: 0.12 | L13: 0.383 | M13: 19200 | N13: 20 | O13: 0.77 | P13: 0.22
A14: 302 | B14: Barnet | C14: 6 | D14: 5.53 | E14: 4.57 | F14: 0.75 | G14: 0.49 | H14: 0.49 | I14: 0.84 | J14: 0.6 | K14: 0.16 | L14: 0.32 | M14: 27300 | N14: 106 | O14: 0.7 | P14: 0.3
A15: 370 | B15: Barnsley | C15: 4.95 | D15: 4.85 | E15: 4.03 | F15: 0.79 | G15: 0.47 | H15: 0.46 | I15: 0.97 | J15: 0.5 | K15: 0.23 | L15: 0.378 | M15: 14400 | N15: 40 | O15: 0.76 | P15: 0.24
A16: 800 | B16: Bath & North East Somerset | C16: 5 | D16: 5.07 | E16: 3.72 | F16: 0.82 | G16: 0.62 | H16: 0.69 | I16: 1.03 | J16: 0.51 | K16: 0.25 | L16: 0.32 | M16: 9300 | N16: 135 | O16: 0.42 | P16: 0.58
A17: 822 | B17: Bedford Borough | C17: 5.03 | D17: 5.03 | E17: 4 | F17: 0.9 | G17: 0.29 | H17: 0.36 | I17: 1.06 | J17: 0.48 | K17: 0.19 | L17: 0.338 | M17: 10500 | N17: 130 | O17: 0.55 | P17: 0.45
A18: 303 | B18: Bexley | C18: 5.28 | D18: 5.28 | E18: 3.85 | F18: 0.78 | G18: 0.4 | H18: 0.4 | I18: 0.98 | J18: 0.64 | K18: 0.2 | L18: 0.276 | M18: 15700 | N18: 105 | O18: 0.63 | P18: 0.35
A19: 330 | B19: Birmingham | C19: . | D19: 4.89 | E19: 5.31 | F19: 0.72 | G19: 0.3 | H19: 0.39 | I19: 0.92 | J19: 0.5 | K19: 0.15 | L19: 0.406 | M19: 83900 | N19: 9 | O19: 0.68 | P19: 0.31
A20: 889 | B20: Blackburn with Darwen | C20: . | D20: 4.85 | E20: 4.03 | F20: 0.75 | G20: 0.61 | H20: 0.73 | I20: 0.94 | J20: 0.4 | K20: 0.1 | L20: 0.419 | M20: 11300 | N20: 16 | O20: 0.58 | P20: 0.42
A21: 890 | B21: Blackpool | C21: 4.85 | D21: 4.85 | E21: 3.63 | F21: 0.78 | G21: 0.36 | H21: 0.49 | I21: 0.95 | J21: 0.52 | K21: 0.17 | L21: 0.33 | M21: 8500 | N21: 6 | O21: 0.57 | P21: 0.42
A22: 350 | B22: Bolton | C22: 4.85 | D22: 4.95 | E22: 4.25 | F22: 0.77 | G22: 0.37 | H22: 0.47 | I22: 1 | J22: 0.48 | K22: 0.19 | L22: 0.411 | M22: 19300 | N22: 31 | O22: 0.7 | P22: 0.29
A23: 837 | B23: Bournemouth | C23: 4.85 | D23: 4.88 | E23: 4.05 | F23: 0.75 | G23: 0.43 | H23: 0.48 | I23: 0.99 | J23: 0.57 | K23: 0.18 | L23: 0.292 | M23: 10900 | N23: 72 | O23: 0.36 | P23: 0.64
A24: 867 | B24: Bracknell Forest | C24: 5.46 | D24: 5.49 | E24: 3.85 | F24: 0.87 | G24: 0.27 | H24: 0.29 | I24: 0.91 | J24: 0.58 | K24: 0.26 | L24: 0.273 | M24: 8200 | N24: 145 | O24: 0.56 | P24: 0.43
A25: 380 | B25: Bradford | C25: . | D25: 4.85 | E25: 5.18 | F25: 0.71 | G25: 0.46 | H25: 0.54 | I25: 0.95 | J25: 0.49 | K25: 0.16 | L25: 0.426 | M25: 41400 | N25: 24 | O25: 0.77 | P25: 0.22
A26: 304 | B26: Brent | C26: 6 | D26: 5.53 | E26: 4.51 | F26: 0.64 | G26: 0.54 | H26: 0.53 | I26: 0.89 | J26: 0.56 | K26: 0.04 | L26: 0.335 | M26: 23200 | N26: 30 | O26: 0.66 | P26: 0.32
A27: 846 | B27: Brighton and Hove | C27: 6.23 | D27: 4.85 | E27: 4.15 | F27: 0.87 | G27: 0.59 | H27: 0.65 | I27: 1.03 | J27: 0.45 | K27: 0.22 | L27: 0.326 | M27: 15300 | N27: 53 | O27: 0.46 | P27: 0.54
A28: 305 | B28: Bromley | C28: 6.38 | D28: 5.28 | E28: 4.03 | F28: 0.89 | G28: 0.42 | H28: 0.49 | I28: 0.99 | J28: 0.61 | K28: 0.25 | L28: 0.313 | M28: 20800 | N28: 123 | O28: 0.39 | P28: 0.61
A29: 825 | B29: Buckinghamshire | C29: 5.31 | D29: 5.33 | E29: 4.21 | F29: 0.81 | G29: 0.4 | H29: 0.41 | I29: 0.96 | J29: 0.55 | K29: 0.25 | L29: 0.326 | M29: 32700 | N29: 142 | O29: 0.48 | P29: 0.51
A30: 351 | B30: Bury | C30: 6.79 | D30: 4.95 | E30: 3.61 | F30: 0.61 | G30: 0.46 | H30: 0.52 | I30: 0.96 | J30: 0.51 | K30: 0.24 | L30: 0.387 | M30: 12600 | N30: 81 | O30: 0.66 | P30: 0.33
A31: 381 | B31: Calderdale | C31: 5.19 | D31: 4.85 | E31: 4.02 | F31: 0.69 | G31: 0.01 | H31: 0.01 | I31: 1.03 | J31: 0.45 | K31: 0.2 | L31: 0.368 | M31: 13100 | N31: 75 | O31: 0.6 | P31: 0.4
A32: 873 | B32: Cambridgeshire | C32: 5.36 | D32: 5.05 | E32: 4.25 | F32: 0.79 | G32: 0.31 | H32: 0.31 | I32: 0.95 | J32: 0.51 | K32: 0.22 | L32: 0.339 | M32: 37800 | N32: 132 | O32: 0.45 | P32: 0.55
A33: 202 | B33: Camden | C33: 9.1 | D33: 6.07 | E33: 6.27 | F33: 0.73 | G33: 0.64 | H33: 0.74 | I33: 0.82 | J33: 0.47 | K33: 0.19 | L33: 0.368 | M33: 13800 | N33: 59 | O33: 0.55 | P33: 0.44
A34: 823 | B34: Central Bedfordshire | C34: . | D34: 5.03 | E34: 4.04 | F34: 0.85 | G34: 0.38 | H34: 0.4 | I34: 1.01 | J34: 0.49 | K34: 0.23 | L34: 0.295 | M34: 16600 | N34: 130 | O34: 0.58 | P34: 0.42
A35: 895 | B35: Cheshire East | C35: 4.85 | D35: 4.93 | E35: 3.66 | F35: 0.76 | G35: 0.54 | H35: 0.56 | I35: 1.04 | J35: 0.56 | K35: 0.23 | L35: 0.35 | M35: 20400 | N35: 121 | O35: 0.43 | P35: 0.57
A36: 896 | B36: Cheshire West and Chester | C36: 4.85 | D36: 4.93 | E36: 3.83 | F36: 0.74 | G36: 0.5 | H36: 0.6 | I36: 1.05 | J36: 0.52 | K36: 0.25 | L36: 0.32 | M36: 18300 | N36: 121 | O36: 0.48 | P36: 0.51
A37: 801 | B37: City of Bristol | C37: 5.03 | D37: 5.07 | E37: 4.62 | F37: 0.68 | G37: 0.73 | H37: 0.78 | I37: 0.92 | J37: 0.5 | K37: 0.21 | L37: 0.386 | M37: 30700 | N37: 63 | O37: 0.64 | P37: 0.35
A38: 810 | B38: City of Kingston Upon Hull | C38: . | D38: 4.85 | E38: 3.66 | F38: 0.79 | G38: 0.11 | H38: 0.15 | I38: 0.96 | J38: 0.42 | K38: 0.1 | L38: 0.408 | M38: 17800 | N38: 10 | O38: 0.75 | P38: 0.25
A39: 201 | B39: City of London | C39: . | D39: 7.08 | E39: 5.78 | F39: 1 | G39: 0 | H39: 0 | I39: 1.15 | J39: 0.64 | K39: 0.25 | L39: 0.361 | M39: 300 | N39: 140 | O39: 0.51 | P39: 0.44
A40: 908 | B40: Cornwall | C40: 4.85 | D40: 4.85 | E40: 3.95 | F40: 0.86 | G40: 0.49 | H40: 0.53 | I40: 1.01 | J40: 0.49 | K40: 0.19 | L40: 0.346 | M40: 28300 | N40: 78 | O40: 0.47 | P40: 0.53
A41: 331 | B41: Coventry | C41: . | D41: 4.89 | E41: 3.55 | F41: 0.74 | G41: 0.21 | H41: 0.24 | I41: 0.94 | J41: 0.55 | K41: 0.17 | L41: 0.364 | M41: 23200 | N41: 42 | O41: 0.66 | P41: 0.33
A42: 306 | B42: Croydon | C42: 6 | D42: 5.28 | E42: 3.97 | F42: 0.79 | G42: 0.33 | H42: 0.36 | I42: 0.88 | J42: 0.46 | K42: 0.15 | L42: 0.391 | M42: 28600 | N42: 77 | O42: 0.6 | P42: 0.39
A43: 909 | B43: Cumbria | C43: 4.85 | D43: 4.85 | E43: 3.69 | F43: 0.86 | G43: 0.41 | H43: 0.47 | I43: 1.03 | J43: 0.5 | K43: 0.23 | L43: 0.356 | M43: 25300 | N43: 85 | O43: 0.66 | P43: 0.34
A44: 841 | B44: Darlington | C44: . | D44: 4.85 | E44: 3.82 | F44: 0.7 | G44: 0.44 | H44: 0.49 | I44: 1 | J44: 0.49 | K44: 0.18 | L44: 0.425 | M44: 6600 | N44: 60 | O44: 0.68 | P44: 0.32
A45: 831 | B45: Derby | C45: 4.85 | D45: 4.85 | E45: 4.48 | F45: 0.68 | G45: 0.35 | H45: 0.36 | I45: 0.94 | J45: 0.41 | K45: 0.17 | L45: 0.411 | M45: 18100 | N45: 67 | O45: 0.71 | P45: 0.28
A46: 830 | B46: Derbyshire | C46: 4.85 | D46: 4.85 | E46: 4.32 | F46: 0.78 | G46: 0.32 | H46: 0.36 | I46: 0.99 | J46: 0.5 | K46: 0.21 | L46: 0.374 | M46: 42100 | N46: 99 | O46: 0.64 | P46: 0.36
A47: 878 | B47: Devon | C47: 5.48 | D47: 4.85 | E47: 3.92 | F47: 0.84 | G47: 0.39 | H47: 0.46 | I47: 1.02 | J47: 0.64 | K47: 0.19 | L47: 0.26 | M47: 38300 | N47: 104 | O47: 0.48 | P47: 0.52
A48: 371 | B48: Doncaster | C48: 4.85 | D48: 4.85 | E48: 3.91 | F48: 0.69 | G48: 0.36 | H48: 0.46 | I48: 0.93 | J48: 0.43 | K48: 0.19 | L48: 0.374 | M48: 19300 | N48: 33 | O48: 0.79 | P48: 0.21
A49: 835 | B49: Dorset | C49: 6.79 | D49: 4.88 | E49: 3.7 | F49: 0.79 | G49: 0.43 | H49: 0.42 | I49: 0.99 | J49: 0.61 | K49: 0.23 | L49: 0.262 | M49: 19500 | N49: 125 | O49: 0.36 | P49: 0.63
A50: 332 | B50: Dudley | C50: 4.5 | D50: 4.89 | E50: 3.63 | F50: 0.85 | G50: 0.32 | H50: 0.3 | I50: 0.96 | J50: 0.51 | K50: 0.22 | L50: 0.399 | M50: 19100 | N50: 74 | O50: 0.66 | P50: 0.34
A51: 840 | B51: Durham | C51: 4.85 | D51: 4.85 | E51: 4.04 | F51: 0.73 | G51: 0.39 | H51: 0.35 | I51: 0.95 | J51: 0.42 | K51: 0.21 | L51: 0.428 | M51: 28900 | N51: 50 | O51: 0.77 | P51: 0.22
A52: 307 | B52: Ealing | C52: . | D52: 5.53 | E52: 4.31 | F52: 0.71 | G52: 0.52 | H52: 0.6 | I52: 0.95 | J52: 0.56 | K52: 0.09 | L52: 0.334 | M52: 26200 | N52: 64 | O52: 0.74 | P52: 0.24
A53: 811 | B53: East Riding of Yorkshire | C53: 5.21 | D53: 4.85 | E53: 3.91 | F53: 0.87 | G53: 0.39 | H53: 0.45 | I53: 1.03 | J53: 0.55 | K53: 0.25 | L53: 0.298 | M53: 16600 | N53: 122 | O53: 0.59 | P53: 0.41
A54: 845 | B54: East Sussex | C54: 5.21 | D54: 4.85 | E54: 3.66 | F54: 0.77 | G54: 0.37 | H54: 0.38 | I54: 0.97 | J54: 0.44 | K54: 0.2 | L54: 0.372 | M54: 28100 | N54: 90 | O54: 0.39 | P54: 0.61
A55: 308 | B55: Enfield | C55: 6 | D55: 5.28 | E55: 3.99 | F55: 0.71 | G55: 0.49 | H55: 0.47 | I55: 0.87 | J55: 0.49 | K55: 0.11 | L55: 0.398 | M55: 25000 | N55: 51 | O55: 0.63 | P55: 0.36
A56: 881 | B56: Essex | C56: 5 | D56: 5.02 | E56: 4.08 | F56: 0.8 | G56: 0.29 | H56: 0.36 | I56: 0.98 | J56: 0.53 | K56: 0.21 | L56: 0.332 | M56: 83600 | N56: 119 | O56: 0.42 | P56: 0.58
A57: 390 | B57: Gateshead | C57: 4.85 | D57: 4.85 | E57: 4.14 | F57: 0.79 | G57: 0.52 | H57: 0.56 | I57: 0.96 | J57: 0.34 | K57: 0.19 | L57: 0.34 | M57: 11900 | N57: 37 | O57: 0.71 | P57: 0.28
A58: 916 | B58: Gloucestershire | C58: 5.22 | D58: 4.93 | E58: 3.39 | F58: 0.78 | G58: 0 | H58: 0 | I58: 0.99 | J58: 0.52 | K58: 0.21 | L58: 0.337 | M58: 34100 | N58: 126 | O58: 0.33 | P58: 0.66
A59: 203 | B59: Greenwich | C59: 6 | D59: 6.07 | E59: 4.61 | F59: 0.77 | G59: 0.41 | H59: 0.43 | I59: 0.89 | J59: 0.69 | K59: 0.12 | L59: 0.293 | M59: 21500 | N59: 26 | O59: 0.79 | P59: 0.21
A60: 204 | B60: Hackney | C60: 6.08 | D60: 6.07 | E60: 5.43 | F60: 0.79 | G60: 0.3 | H60: 0.29 | I60: 0.96 | J60: 0.57 | K60: 0.03 | L60: 0.326 | M60: 19600 | N60: 2 | O60: 0.61 | P60: 0.39
A61: 876 | B61: Halton | C61: 4.95 | D61: 4.93 | E61: 3.69 | F61: 0.69 | G61: 0.14 | H61: 0.17 | I61: 0.9 | J61: 0.37 | K61: 0.18 | L61: 0.362 | M61: 8300 | N61: 25 | O61: 0.53 | P61: 0.43
A62: 205 | B62: Hammersmith and Fulham | C62: . | D62: 6.07 | E62: . | F62: 0.66 | G62: 0.48 | H62: 0.59 | I62: 0.93 | J62: 0.53 | K62: 0.18 | L62: 0.325 | M62: 11900 | N62: 46 | O62: 0.6 | P62: 0.39
A63: 850 | B63: Hampshire | C63: 5.56 | D63: 5.07 | E63: 4.44 | F63: 0.81 | G63: 0.39 | H63: 0.42 | I63: 0.96 | J63: 0.59 | K63: 0.24 | L63: 0.289 | M63: 78700 | N63: 139 | O63: 0.35 | P63: 0.64
A64: 309 | B64: Haringey | C64: 5.39 | D64: 5.28 | E64: 4.68 | F64: 0.62 | G64: 0.48 | H64: 0.43 | I64: 0.9 | J64: 0.5 | K64: 0.13 | L64: 0.366 | M64: 18300 | N64: 12 | O64: 0.78 | P64: 0.21
A65: 310 | B65: Harrow | C65: 5.53 | D65: 5.53 | E65: 4.14 | F65: 0.69 | G65: 0.38 | H65: 0.39 | I65: 0.87 | J65: 0.45 | K65: 0.16 | L65: 0.379 | M65: 16600 | N65: 117 | O65: 0.56 | P65: 0.43
A66: 805 | B66: Hartlepool | C66: 4.85 | D66: 4.85 | E66: 3.49 | F66: 0.77 | G66: 0.17 | H66: 0.1 | I66: 1 | J66: 0.48 | K66: 0.26 | L66: 0.399 | M66: 5800 | N66: 22 | O66: 0.94 | P66: 0.05
A67: 311 | B67: Havering | C67: . | D67: 5.28 | E67: 4.14 | F67: 0.72 | G67: 0.38 | H67: 0.36 | I67: 1.01 | J67: 0.59 | K67: 0.23 | L67: 0.273 | M67: 14300 | N67: 107 | O67: 0.49 | P67: 0.5
A68: 884 | B68: Herefordshire | C68: 4.85 | D68: 4.85 | E68: 3.48 | F68: 0.78 | G68: 0.56 | H68: 0.63 | I68: 0.96 | J68: 0.55 | K68: 0.23 | L68: 0.351 | M68: 9800 | N68: 100 | O68: 0.44 | P68: 0.55
A69: 919 | B69: Hertfordshire | C69: . | D69: 5.24 | E69: 4.72 | F69: 0.84 | G69: 0.46 | H69: 0.54 | I69: 0.96 | J69: 0.61 | K69: 0.23 | L69: 0.288 | M69: 76600 | N69: 138 | O69: 0.69 | P69: 0.31
A70: 312 | B70: Hillingdon | C70: 6 | D70: 5.53 | E70: 4.65 | F70: 0.69 | G70: 0.4 | H70: 0.47 | I70: 0.98 | J70: 0.41 | K70: 0.16 | L70: 0.366 | M70: 21000 | N70: 92 | O70: 0.75 | P70: 0.23
A71: 313 | B71: Hounslow | C71: . | D71: 5.53 | E71: 4.58 | F71: 0.72 | G71: 0.45 | H71: 0.51 | I71: 0.87 | J71: 0.4 | K71: 0.14 | L71: 0.372 | M71: 20800 | N71: 82 | O71: 0.71 | P71: 0.27
A72: 921 | B72: Isle of Wight | C72: 4.89 | D72: 5.07 | E72: 3.87 | F72: 0.82 | G72: 0.24 | H72: 0.31 | I72: 0.97 | J72: 0.45 | K72: 0.14 | L72: 0.392 | M72: 6600 | N72: 86 | O72: 0.36 | P72: 0.63
A73: 420 | B73: Isles of Scilly | C73: 5.09 | D73: 4.85 | E73: 4.7 | F73: 1 | G73: 0 | H73: 0 | I73: 1 | J73: 1 | K73: ** | L73: 0.105 | M73: 100 | N73: 78 | O73: 0.78 | P73: 0.2
A74: 206 | B74: Islington | C74: 9.99 | D74: 6.07 | E74: 4.62 | F74: 0.76 | G74: 0.65 | H74: 0.81 | I74: 0.98 | J74: 0.44 | K74: 0.14 | L74: 0.342 | M74: 12700 | N74: 13 | O74: 0.71 | P74: 0.28
A75: 207 | B75: Kensington and Chelsea | C75: . | D75: 6.07 | E75: 5.89 | F75: 0.77 | G75: 0.65 | H75: 0.81 | I75: 0.79 | J75: 0.48 | K75: 0.12 | L75: 0.369 | M75: 9100 | N75: 73 | O75: 0.57 | P75: 0.43
A76: 886 | B76: Kent | C76: 4.85 | D76: 4.93 | E76: 4.25 | F76: 0.83 | G76: 0.39 | H76: 0.43 | I76: 0.96 | J76: 0.63 | K76: 0.19 | L76: 0.252 | M76: 90800 | N76: 101 | O76: 0.41 | P76: 0.58
A77: 314 | B77: Kingston upon Thames | C77: 6.2 | D77: 5.53 | E77: 3.87 | F77: 0.84 | G77: 0.51 | H77: 0.58 | I77: 0.94 | J77: 0.57 | K77: 0.22 | L77: 0.283 | M77: 11500 | N77: 137 | O77: 0.66 | P77: 0.34
A78: 382 | B78: Kirklees | C78: 4.85 | D78: 4.85 | E78: 4.37 | F78: 0.73 | G78: 0.32 | H78: 0.38 | I78: 0.97 | J78: 0.53 | K78: 0.23 | L78: 0.35 | M78: 28700 | N78: 62 | O78: 0.66 | P78: 0.34
A79: 340 | B79: Knowsley | C79: 4.7 | D79: 4.87 | E79: 4.31 | F79: 0.77 | G79: 0.59 | H79: 0.72 | I79: 0.99 | J79: 0.55 | K79: 0.17 | L79: 0.319 | M79: 9300 | N79: 5 | O79: 0.88 | P79: 0.11
A80: 208 | B80: Lambeth | C80: . | D80: 6.07 | E80: 5.88 | F80: 0.7 | G80: 0.52 | H80: 0.54 | I80: 0.91 | J80: 0.46 | K80: 0.14 | L80: 0.396 | M80: 21100 | N80: 27 | O80: 0.69 | P80: 0.31
A81: 888 | B81: Lancashire | C81: 4.78 | D81: 4.85 | E81: 4.47 | F81: 0.76 | G81: 0.53 | H81: 0.56 | I81: 0.98 | J81: 0.59 | K81: 0.24 | L81: 0.336 | M81: 69200 | N81: 79 | O81: 0.53 | P81: 0.46
A82: 383 | B82: Leeds | C82: 4.85 | D82: 4.85 | E82: 4.15 | F82: 0.73 | G82: 0.5 | H82: 0.58 | I82: 0.99 | J82: 0.51 | K82: 0.23 | L82: 0.446 | M82: 49500 | N82: 55 | O82: 0.7 | P82: 0.29
A83: 856 | B83: Leicester | C83: 4.9 | D83: 4.85 | E83: 3.56 | F83: 0.63 | G83: 0.32 | H83: 0.4 | I83: 0.93 | J83: 0.28 | K83: 0.09 | L83: 0.37 | M83: 25000 | N83: 23 | O83: 0.65 | P83: 0.34
A84: 855 | B84: Leicestershire | C84: 4.85 | D84: 4.85 | E84: 3.56 | F84: 0.73 | G84: 0.34 | H84: 0.37 | I84: 0.98 | J84: 0.46 | K84: 0.24 | L84: 0.335 | M84: 36500 | N84: 136 | O84: 0.35 | P84: 0.65
A85: 209 | B85: Lewisham | C85: 6 | D85: 6.07 | E85: 5.41 | F85: 0.71 | G85: 0.42 | H85: 0.43 | I85: 0.86 | J85: 0.68 | K85: 0.11 | L85: 0.25 | M85: 22500 | N85: 29 | O85: 0.71 | P85: 0.26
A86: 925 | B86: Lincolnshire | C86: 6.61 | D86: 4.85 | E86: 3.81 | F86: 0.76 | G86: 0.37 | H86: 0.41 | I86: 1.01 | J86: 0.65 | K86: 0.21 | L86: 0.296 | M86: 38800 | N86: 95 | O86: 0.47 | P86: 0.51
A87: 341 | B87: Liverpool | C87: 4.9 | D87: 4.87 | E87: 5.03 | F87: 0.74 | G87: 0.44 | H87: 0.53 | I87: 0.98 | J87: 0.51 | K87: 0.2 | L87: 0.349 | M87: 27200 | N87: 1 | O87: 0.75 | P87: 0.25
A88: 821 | B88: Luton | C88: 5.09 | D88: 5.03 | E88: 4.76 | F88: 0.79 | G88: 0.3 | H88: 0.35 | I88: 0.96 | J88: 0.47 | K88: 0.09 | L88: 0.389 | M88: 17000 | N88: 56 | O88: 0.53 | P88: 0.46
A89: 352 | B89: Manchester | C89: 4.85 | D89: 4.95 | E89: 5.68 | F89: 0.59 | G89: 0.34 | H89: 0.39 | I89: 0.92 | J89: 0.47 | K89: 0.11 | L89: 0.411 | M89: 37500 | N89: 4 | O89: 0.8 | P89: 0.19
A90: 887 | B90: Medway | C90: 4.8 | D90: 4.88 | E90: 3.91 | F90: 0.69 | G90: 0.29 | H90: 0.37 | I90: 0.97 | J90: 0.57 | K90: 0.19 | L90: 0.337 | M90: 17800 | N90: 88 | O90: 0.54 | P90: 0.45
A91: 315 | B91: Merton | C91: 5.71 | D91: 5.53 | E91: 4.6 | F91: 0.77 | G91: 0.45 | H91: 0.56 | I91: 0.99 | J91: 0.46 | K91: 0.15 | L91: 0.389 | M91: 15500 | N91: 127 | O91: 0.8 | P91: 0.19
A92: 806 | B92: Middlesbrough | C92: . | D92: 4.85 | E92: 3.63 | F92: 0.76 | G92: 0.5 | H92: 0.63 | I92: 1.01 | J92: 0.38 | K92: 0.16 | L92: 0.437 | M92: 9700 | N92: 8 | O92: 0.92 | P92: 0.07
A93: 826 | B93: Milton Keynes | C93: 5.09 | D93: 5.34 | E93: 4.1 | F93: 0.77 | G93: 0.22 | H93: 0.25 | I93: 0.92 | J93: 0.49 | K93: 0.2 | L93: 0.362 | M93: 20300 | N93: 116 | O93: 0.5 | P93: 0.5
A94: 391 | B94: Newcastle upon Tyne | C94: 4.85 | D94: 4.85 | E94: 4.57 | F94: 0.82 | G94: 0.38 | H94: 0.49 | I94: 0.95 | J94: 0.44 | K94: 0.21 | L94: 0.371 | M94: 16900 | N94: 34 | O94: 0.7 | P94: 0.28
A95: 316 | B95: Newham | C95: 5.28 | D95: 5.28 | E95: 4.51 | F95: 0.6 | G95: 0.29 | H95: 0.23 | I95: 1 | J95: 0.55 | K95: 0.02 | L95: 0.371 | M95: 26700 | N95: 3 | O95: 0.83 | P95: 0.16
A96: 926 | B96: Norfolk | C96: . | D96: 4.85 | E96: 3.63 | F96: 0.78 | G96: 0.31 | H96: 0.35 | I96: 0.97 | J96: 0.46 | K96: 0.17 | L96: 0.364 | M96: 47600 | N96: 97 | O96: 0.51 | P96: 0.48
A97: 812 | B97: North East Lincolnshire | C97: 4.89 | D97: 4.85 | E97: 3.21 | F97: 0.7 | G97: 0.44 | H97: 0.43 | I97: 0.97 | J97: 0.51 | K97: 0.12 | L97: 0.349 | M97: 10100 | N97: 39 | O97: 0.69 | P97: 0.31
A98: 813 | B98: North Lincolnshire | C98: 4.85 | D98: 4.85 | E98: 4.53 | F98: 0.66 | G98: 0.26 | H98: 0.3 | I98: 0.9 | J98: 0.53 | K98: 0.22 | L98: 0.355 | M98: 10200 | N98: 83 | O98: 0.65 | P98: 0.34
A99: 802 | B99: North Somerset | C99: 5.56 | D99: 5.07 | E99: 3.99 | F99: 0.77 | G99: 0.5 | H99: 0.5 | I99: 0.98 | J99: 0.64 | K99: 0.28 | L99: 0.23 | M99: 12000 | N99: 120 | O99: 0.42 | P99: 0.58
A100: 392 | B100: North Tyneside | C100: . | D100: 4.85 | E100: 3.55 | F100: 0.86 | G100: 0.46 | H100: 0.5 | I100: 1 | J100: 0.48 | K100: 0.22 | L100: 0.365 | M100: 11800 | N100: 80 | O100: 0.84 | P100: 0.14
A101: 815 | B101: North Yorkshire | C101: 5.14 | D101: 4.85 | E101: 4.16 | F101: 0.85 | G101: 0.42 | H101: 0.44 | I101: 1 | J101: 0.44 | K101: 0.22 | L101: 0.333 | M101: 31200 | N101: 129 | O101: 0.54 | P101: 0.45
A102: 928 | B102: Northamptonshire | C102: 4.74 | D102: 4.9 | E102: 4.1 | F102: 0.76 | G102: 0.38 | H102: 0.42 | I102: 0.97 | J102: 0.5 | K102: 0.19 | L102: 0.351 | M102: 47100 | N102: 102 | O102: 0.51 | P102: 0.48
A103: 929 | B103: Northumberland | C103: 5.2 | D103: 4.85 | E103: 3.83 | F103: 0.75 | G103: 0.48 | H103: 0.55 | I103: 1 | J103: 0.49 | K103: 0.24 | L103: 0.355 | M103: 16200 | N103: 91 | O103: 0.67 | P103: 0.24
A104: 892 | B104: Nottingham | C104: 5 | D104: 4.88 | E104: 4.13 | F104: 0.63 | G104: 0.38 | H104: 0.4 | I104: 0.96 | J104: 0.4 | K104: 0.18 | L104: 0.387 | M104: 20400 | N104: 18 | O104: 0.77 | P104: 0.2
A105: 891 | B105: Nottinghamshire | C105: . | D105: 4.88 | E105: 3.77 | F105: 0.72 | G105: 0.36 | H105: 0.4 | I105: 0.98 | J105: 0.57 | K105: 0.23 | L105: 0.351 | M105: 46100 | N105: 93 | O105: 0.69 | P105: 0.3
A106: 353 | B106: Oldham | C106: 4.85 | D106: 4.95 | E106: 4.02 | F106: 0.68 | G106: 0.27 | H106: 0.31 | I106: 0.97 | J106: 0.41 | K106: 0.18 | L106: 0.429 | M106: 16500 | N106: 32 | O106: 0.73 | P106: 0.27
A107: 931 | B107: Oxfordshire | C107: 5.11 | D107: 5.15 | E107: 4.03 | F107: 0.76 | G107: 0.41 | H107: 0.45 | I107: 0.96 | J107: 0.48 | K107: 0.24 | L107: 0.33 | M107: 41700 | N107: 133 | O107: 0.53 | P107: 0.46
A108: 874 | B108: Peterborough | C108: 5.05 | D108: 5.05 | E108: 4.33 | F108: 0.73 | G108: 0.24 | H108: 0.24 | I108: 1 | J108: 0.47 | K108: 0.16 | L108: 0.427 | M108: 14700 | N108: 57 | O108: 0.4 | P108: 0.59
A109: 879 | B109: Plymouth | C109: 5.09 | D109: 4.85 | E109: 4.33 | F109: 0.82 | G109: 0.61 | H109: 0.72 | I109: 0.99 | J109: 0.57 | K109: 0.19 | L109: 0.331 | M109: 15700 | N109: 58 | O109: 0.48 | P109: 0.51
A110: 836 | B110: Poole | C110: 4.88 | D110: 4.88 | E110: 3.8 | F110: 0.81 | G110: 0.48 | H110: 0.52 | I110: 0.9 | J110: 0.48 | K110: 0.21 | L110: 0.307 | M110: 8700 | N110: 114 | O110: 0.4 | P110: 0.6
A111: 851 | B111: Portsmouth | C111: 4.85 | D111: 5.07 | E111: 4.21 | F111: 0.75 | G111: 0.28 | H111: 0.31 | I111: 0.94 | J111: 0.55 | K111: 0.11 | L111: 0.301 | M111: 13600 | N111: 61 | O111: 0.44 | P111: 0.54
A112: 870 | B112: Reading | C112: 5 | D112: 5.36 | E112: 4.36 | F112: 0.86 | G112: 0.51 | H112: 0.47 | I112: 0.92 | J112: 0.51 | K112: 0.13 | L112: 0.333 | M112: 12300 | N112: 87 | O112: 0.66 | P112: 0.34
A113: 317 | B113: Redbridge | C113: 6 | D113: 5.28 | E113: 3.76 | F113: 0.8 | G113: 0.35 | H113: 0.39 | I113: 0.94 | J113: 0.6 | K113: 0.14 | L113: 0.32 | M113: 22200 | N113: 89 | O113: 0.63 | P113: 0.35
A114: 807 | B114: Redcar and Cleveland | C114: 9.68 | D114: 4.85 | E114: 3.71 | F114: 0.64 | G114: 0.33 | H114: 0.31 | I114: 1.04 | J114: 0.51 | K114: 0.24 | L114: 0.399 | M114: 7700 | N114: 41 | O114: 0.97 | P114: 0.03
A115: 318 | B115: Richmond upon Thames | C115: 6.1 | D115: 5.53 | E115: 3.68 | F115: 0.84 | G115: 0.67 | H115: 0.72 | I115: 0.97 | J115: 0.43 | K115: 0.24 | L115: 0.296 | M115: 14500 | N115: 143 | O115: 0.48 | P115: 0.52
A116: 354 | B116: Rochdale | C116: 4.95 | D116: 4.95 | E116: 4.19 | F116: 0.72 | G116: 0.27 | H116: 0.28 | I116: 0.96 | J116: 0.42 | K116: 0.18 | L116: 0.41 | M116: 15000 | N116: 21 | O116: 0.66 | P116: 0.34
A117: 372 | B117: Rotherham | C117: 4.85 | D117: 4.85 | E117: 4.16 | F117: 0.73 | G117: 0.38 | H117: 0.41 | I117: 0.97 | J117: 0.56 | K117: 0.2 | L117: 0.357 | M117: 16000 | N117: 45 | O117: 0.74 | P117: 0.25
A118: 857 | B118: Rutland | C118: 4.85 | D118: 4.85 | E118: 4.01 | F118: 0.78 | G118: 0.17 | H118: 0.17 | I118: 1.07 | J118: 0.57 | K118: 0.34 | L118: 0.241 | M118: 1700 | N118: 148 | O118: 0.41 | P118: 0.59
A119: 355 | B119: Salford | C119: 4.85 | D119: 4.95 | E119: 4.88 | F119: 0.65 | G119: 0.35 | H119: 0.53 | I119: 1 | J119: 0.53 | K119: 0.16 | L119: 0.352 | M119: 16800 | N119: 17 | O119: 0.72 | P119: 0.27
A120: 333 | B120: Sandwell | C120: 4.85 | D120: 4.89 | E120: 3.57 | F120: 0.68 | G120: 0.22 | H120: 0.25 | I120: 0.94 | J120: 0.46 | K120: 0.14 | L120: 0.397 | M120: 23600 | N120: 11 | O120: 0.82 | P120: 0.18
A121: 343 | B121: Sefton | C121: 4.55 | D121: 4.87 | E121: 4.1 | F121: 0.8 | G121: 0.42 | H121: 0.46 | I121: 1 | J121: 0.51 | K121: 0.24 | L121: 0.317 | M121: 14700 | N121: 68 | O121: 0.71 | P121: 0.28
A122: 373 | B122: Sheffield | C122: 5.05 | D122: 4.85 | E122: 3.95 | F122: 0.7 | G122: 0.46 | H122: 0.52 | I122: 0.93 | J122: 0.51 | K122: 0.18 | L122: 0.413 | M122: 34300 | N122: 47 | O122: 0.64 | P122: 0.35
A123: 893 | B123: Shropshire | C123: 4.96 | D123: 4.85 | E123: 3.48 | F123: 0.82 | G123: 0.21 | H123: 0.22 | I123: 0.98 | J123: 0.52 | K123: 0.19 | L123: 0.303 | M123: 15700 | N123: 113 | O123: 0.51 | P123: 0.47
A124: 871 | B124: Slough | C124: . | D124: 5.49 | E124: 5.12 | F124: 0.7 | G124: 0.43 | H124: 0.54 | I124: 0.92 | J124: 0.5 | K124: 0.14 | L124: 0.371 | M124: 13100 | N124: 69 | O124: 0.8 | P124: 0.2
A125: 334 | B125: Solihull | C125: 5 | D125: 4.89 | E125: 2.99 | F125: 0.76 | G125: 0.35 | H125: 0.44 | I125: 1.1 | J125: 0.56 | K125: 0.29 | L125: 0.389 | M125: 11900 | N125: 111 | O125: 0.76 | P125: 0.24
A126: 933 | B126: Somerset | C126: 4.85 | D126: 4.85 | E126: 4 | F126: 0.79 | G126: 0.43 | H126: 0.5 | I126: 0.98 | J126: 0.53 | K126: 0.26 | L126: 0.336 | M126: 29400 | N126: 108 | O126: 0.39 | P126: 0.6
A127: 803 | B127: South Gloucestershire | C127: 6.17 | D127: 5.07 | E127: 3.55 | F127: 0.74 | G127: 0.48 | H127: 0.51 | I127: 0.99 | J127: 0.67 | K127: 0.22 | L127: 0.275 | M127: 16200 | N127: 141 | O127: 0.35 | P127: 0.64
A128: 393 | B128: South Tyneside | C128: 5.51 | D128: 4.85 | E128: 3.94 | F128: 0.63 | G128: 0.5 | H128: 0.45 | I128: 0.93 | J128: 0.5 | K128: 0.23 | L128: 0.364 | M128: 8300 | N128: 44 | O128: 0.89 | P128: 0.11
A129: 852 | B129: Southampton | C129: 4.85 | D129: 5.07 | E129: 4.47 | F129: 0.77 | G129: 0.4 | H129: 0.43 | I129: 0.96 | J129: 0.51 | K129: 0.17 | L129: 0.359 | M129: 15900 | N129: 65 | O129: 0.45 | P129: 0.55
A130: 882 | B130: Southend-on-Sea | C130: 5.1 | D130: 4.89 | E130: 4.3 | F130: 0.85 | G130: 0.37 | H130: 0.3 | I130: 0.95 | J130: 0.45 | K130: 0.24 | L130: 0.373 | M130: 11400 | N130: 76 | O130: 0.51 | P130: 0.48
A131: 210 | B131: Southwark | C131: 8.36 | D131: 6.07 | E131: 5.8 | F131: 0.72 | G131: 0.56 | H131: 0.59 | I131: 0.88 | J131: 0.6 | K131: 0.1 | L131: 0.332 | M131: 21500 | N131: 35 | O131: 0.76 | P131: 0.22
A132: 342 | B132: St. Helens | C132: 4.85 | D132: 4.87 | E132: 3.24 | F132: 0.8 | G132: 0.37 | H132: 0.43 | I132: 0.96 | J132: 0.57 | K132: 0.19 | L132: 0.386 | M132: 10600 | N132: 43 | O132: 0.68 | P132: 0.32
A133: 860 | B133: Staffordshire | C133: 4.85 | D133: 4.85 | E133: 3.34 | F133: 0.84 | G133: 0.38 | H133: 0.37 | I133: 0.97 | J133: 0.54 | K133: 0.21 | L133: 0.357 | M133: 46200 | N133: 112 | O133: 0.56 | P133: 0.44
A134: 356 | B134: Stockport | C134: . | D134: 4.95 | E134: 4.61 | F134: 0.75 | G134: 0.48 | H134: 0.56 | I134: 0.99 | J134: 0.54 | K134: 0.24 | L134: 0.343 | M134: 17500 | N134: 96 | O134: 0.68 | P134: 0.32
A135: 808 | B135: Stockton-on-Tees | C135: . | D135: 4.85 | E135: 3.88 | F135: 0.73 | G135: 0.32 | H135: 0.49 | I135: 0.98 | J135: 0.41 | K135: 0.24 | L135: 0.413 | M135: 12500 | N135: 71 | O135: 0.9 | P135: 0.09
A136: 861 | B136: Stoke-on-Trent | C136: . | D136: 4.85 | E136: 4.68 | F136: 0.83 | G136: 0.18 | H136: 0.2 | I136: 0.94 | J136: 0.52 | K136: 0.15 | L136: 0.415 | M136: 17500 | N136: 15 | O136: 0.81 | P136: 0.18
A137: 935 | B137: Suffolk | C137: . | D137: 4.85 | E137: 3.74 | F137: 0.84 | G137: 0.38 | H137: 0.43 | I137: 0.94 | J137: 0.49 | K137: 0.19 | L137: 0.356 | M137: 42700 | N137: 115 | O137: 0.53 | P137: 0.46
A138: 394 | B138: Sunderland | C138: 4.84 | D138: 4.85 | E138: 4.67 | F138: 0.78 | G138: 0.71 | H138: 0.81 | I138: 1.02 | J138: 0.53 | K138: 0.26 | L138: 0.394 | M138: 15700 | N138: 38 | O138: 0.87 | P138: 0.11
A139: 936 | B139: Surrey | C139: 6 | D139: 5.49 | E139: 4.26 | F139: 0.84 | G139: 0.44 | H139: 0.5 | I139: 0.95 | J139: 0.52 | K139: 0.26 | L139: 0.312 | M139: 73200 | N139: 147 | O139: 0.43 | P139: 0.57
A140: 319 | B140: Sutton | C140: 5.34 | D140: 5.53 | E140: 4.34 | F140: 0.83 | G140: 0.27 | H140: 0.29 | I140: 0.92 | J140: 0.41 | K140: 0.17 | L140: 0.346 | M140: 13400 | N140: 118 | O140: 0.68 | P140: 0.32
A141: 866 | B141: Swindon | C141: 4.95 | D141: 4.97 | E141: 3.85 | F141: 0.72 | G141: 0.28 | H141: 0.29 | I141: 0.96 | J141: 0.55 | K141: 0.21 | L141: 0.304 | M141: 14700 | N141: 109 | O141: 0.46 | P141: 0.51
A142: 357 | B142: Tameside | C142: 4.85 | D142: 4.95 | E142: 3.31 | F142: 0.65 | G142: 0.39 | H142: 0.43 | I142: 0.97 | J142: 0.42 | K142: 0.18 | L142: 0.357 | M142: 14800 | N142: 36 | O142: 0.72 | P142: 0.27
A143: 894 | B143: Telford & Wrekin | C143: 4.85 | D143: 4.85 | E143: 4.06 | F143: 0.79 | G143: 0.38 | H143: 0.41 | I143: 0.96 | J143: 0.45 | K143: 0.18 | L143: 0.373 | M143: 11500 | N143: 70 | O143: 0.6 | P143: 0.38
A144: 883 | B144: Thurrock | C144: 4.85 | D144: 5.28 | E144: 3.86 | F144: 0.7 | G144: 0.17 | H144: 0.18 | I144: 0.92 | J144: 0.53 | K144: 0.14 | L144: 0.32 | M144: 12200 | N144: 94 | O144: 0.61 | P144: 0.39
A145: 880 | B145: Torbay | C145: . | D145: 4.85 | E145: 3.99 | F145: 0.92 | G145: 0.41 | H145: 0.47 | I145: 1.05 | J145: 0.51 | K145: X | L145: 0.376 | M145: 6900 | N145: 49 | O145: 0.61 | P145: 0.38
A146: 211 | B146: Tower Hamlets | C146: 6 | D146: 6.07 | E146: 5.47 | F146: 0.72 | G146: 0.28 | H146: 0.43 | I146: 0.93 | J146: 0.46 | K146: 0.05 | L146: 0.377 | M146: 19900 | N146: 7 | O146: 0.82 | P146: 0.18
A147: 358 | B147: Trafford | C147: . | D147: 4.95 | E147: 3.55 | F147: 0.79 | G147: 0.49 | H147: 0.59 | I147: 0.97 | J147: 0.61 | K147: 0.25 | L147: 0.302 | M147: 15100 | N147: 103 | O147: 0.7 | P147: 0.29
A148: 384 | B148: Wakefield | C148: 4.85 | D148: 4.85 | E148: 4.08 | F148: 0.68 | G148: 0.44 | H148: 0.51 | I148: 1.01 | J148: 0.57 | K148: 0.22 | L148: 0.383 | M148: 20000 | N148: 54 | O148: 0.85 | P148: 0.15
A149: 335 | B149: Walsall | C149: . | D149: 4.89 | E149: 4.06 | F149: 0.81 | G149: 0.42 | H149: 0.56 | I149: 0.96 | J149: 0.46 | K149: 0.19 | L149: 0.408 | M149: 18600 | N149: 28 | O149: 0.85 | P149: 0.14
A150: 320 | B150: Waltham Forest | C150: 6 | D150: 5.28 | E150: 4.45 | F150: 0.69 | G150: 0.45 | H150: 0.48 | I150: 0.91 | J150: 0.56 | K150: 0.05 | L150: 0.363 | M150: 21500 | N150: 14 | O150: 0.72 | P150: 0.24
A151: 212 | B151: Wandsworth | C151: . | D151: 6.07 | E151: 5.52 | F151: 0.75 | G151: 0.62 | H151: 0.78 | I151: 0.93 | J151: 0.54 | K151: 0.18 | L151: 0.336 | M151: 22200 | N151: 84 | O151: 0.58 | P151: 0.41
A152: 877 | B152: Warrington | C152: . | D152: 4.93 | E152: 3.85 | F152: 0.73 | G152: 0.38 | H152: 0.41 | I152: 1 | J152: 0.45 | K152: 0.32 | L152: 0.375 | M152: 12500 | N152: 98 | O152: 0.57 | P152: 0.43
A153: 937 | B153: Warwickshire | C153: 4.95 | D153: 4.94 | E153: 3.99 | F153: 0.79 | G153: 0.39 | H153: 0.42 | I153: 0.98 | J153: 0.45 | K153: 0.21 | L153: 0.381 | M153: 31500 | N153: 124 | O153: 0.49 | P153: 0.5
A154: 869 | B154: West Berkshire | C154: 5.26 | D154: 5.36 | E154: 4.5 | F154: 0.85 | G154: 0.36 | H154: 0.38 | I154: 0.96 | J154: 0.61 | K154: 0.22 | L154: 0.265 | M154: 10100 | N154: 144 | O154: 0.52 | P154: 0.48
A155: 938 | B155: West Sussex | C155: 4.85 | D155: 4.95 | E155: 4.05 | F155: 0.82 | G155: 0.42 | H155: 0.46 | I155: 0.97 | J155: 0.52 | K155: 0.21 | L155: 0.304 | M155: 47700 | N155: 128 | O155: 0.39 | P155: 0.61
A156: 213 | B156: Westminster | C156: . | D156: 6.07 | E156: 6.81 | F156: 0.74 | G156: 0.35 | H156: 0.39 | I156: 0.79 | J156: 0.5 | K156: 0.12 | L156: 0.387 | M156: 13400 | N156: 66 | O156: 0.62 | P156: 0.35
A157: 359 | B157: Wigan | C157: 4.9 | D157: 4.95 | E157: 3.69 | F157: 0.75 | G157: 0.05 | H157: 0.04 | I157: 0.92 | J157: 0.38 | K157: 0.23 | L157: 0.413 | M157: 19600 | N157: 52 | O157: 0.6 | P157: 0.39
A158: 865 | B158: Wiltshire | C158: 5.67 | D158: 4.97 | E158: 3.88 | F158: 0.75 | G158: 0.48 | H158: 0.49 | I158: 0.93 | J158: 0.52 | K158: 0.25 | L158: 0.317 | M158: 28800 | N158: 134 | O158: 0.36 | P158: 0.64
A159: 868 | B159: Windsor and Maidenhead | C159: 5 | D159: 5.49 | E159: 4.36 | F159: 0.82 | G159: 0.45 | H159: 0.5 | I159: 1 | J159: 0.55 | K159: 0.22 | L159: 0.269 | M159: 9400 | N159: 146 | O159: 0.48 | P159: 0.51
A160: 344 | B160: Wirral | C160: 4.85 | D160: 4.87 | E160: 3.79 | F160: 0.72 | G160: 0.53 | H160: 0.56 | I160: 1 | J160: 0.47 | K160: 0.25 | L160: 0.395 | M160: 18900 | N160: 48 | O160: 0.56 | P160: 0.43
A161: 872 | B161: Wokingham | C161: 5 | D161: 5.36 | E161: 3.74 | F161: 0.88 | G161: 0.57 | H161: 0.68 | I161: 1 | J161: 0.47 | K161: 0.23 | L161: 0.272 | M161: 10300 | N161: 149 | O161: 0.5 | P161: 0.5
A162: 336 | B162: Wolverhampton | C162: . | D162: 4.89 | E162: 4.95 | F162: 0.69 | G162: 0.44 | H162: 0.45 | I162: 0.9 | J162: 0.44 | K162: 0.13 | L162: 0.408 | M162: 17400 | N162: 19 | O162: 0.89 | P162: 0.1
A163: 885 | B163: Worcestershire | C163: . | D163: 4.85 | E163: 3.43 | F163: 0.85 | G163: 0.46 | H163: 0.54 | I163: 1.02 | J163: 0.49 | K163: 0.26 | L163: 0.349 | M163: 31500 | N163: 110 | O163: 0.46 | P163: 0.53
A164: 816 | B164: York | C164: . | D164: 4.85 | E164: 3.6 | F164: 0.83 | G164: 0.4 | H164: 0.44 | I164: 1.03 | J164: 0.56 | K164: 0.29 | L164: 0.313 | M164: 10700 | N164: 131 | O164: 0.53 | P164: 0.46
A167: A. Note: Some caution should be exercised when comparing take-up rates at local authority level.
A168: Please see technical notes for further information on population estimates and rates which exceed 100%
A170: 1. Funding information is as reported by local authorities in the section 251 budget statements 2013-14
A171: 2. Some local authorities have included planned spend on two year olds within central spending and therefore specific figures for two year olds are not available
A172: 3. The average hourly two-year-old rates for Wigan and Shropshire are different to those in their original s251 returns. They have confirmed since the return was submitted that the correct rates are £4.90 per hour and £4.96 per hour respectively. The England average rate has been recalculated accordingly
A173: 4. The Department for Education provides LAs with an average funding rate of £5.09 per hour for statutory two-year-old entitlement places. This is adjusted for local area cost, within a range of £4.85-£7.08 per hour. In addition, trajectory building and capital funding has been provided to support roll-out of the new two-year-old programme.
A174: Further information about two year old allocations for 2013-14 is here:
A175: http://webarchive.nationalarchives.gov.uk/20130903192841/http://www.education.gov.uk/childrenandyoungpeople/earlylearningandchildcare/delivery/free entitlement to early education/b0070114/eefortwoyearolds/la-funding-allocations
A176: and for 2014-15 is here:
A177: https://www.gov.uk/government/publications/la-allocations-for-early-learning-for-2-year-olds-2014-to-2015
A178: https://www.gov.uk/government/publications/funding-for-learning-for-2-year-olds-letter-from-elizabeth-truss
A179: 5. Hammersmith and Fulham's return shows an average rate of £604.77. This has been removed as an extreme outlier.
A180: 6. A small proportion of early years registered providers are inspected as part of a school inspection and are not included in these figures.
A181: 7. Based on inspections carried out since the introduction of the Early Years Foundation Stage in September 2008.
A182: 8. Private, Voluntary and Independent.
A183: 9. Qualified teacher status (QTS) is the accreditation that enables you to teach in state-maintained and special schools in England and Wales.
A184: 10. Early Years Professional Status (EYPS) is a professional accreditation endorsed by the government for graduate practitioners who have demonstrated a set of professional standards.
A185: 11. Count of children aged three or four at 31st December in the previous calendar year.
A186: 12. All children are eligible for a funded part-time place from 1 September, 1 January or 1 April following their third birthday for up to two years before they reach compulsory school age.
A187: A funded place currently consists of a minimum of 15 hours of early education per week for 38 weeks of the year.
A188: 13. Any child attending more than one provider will have only been counted once.
A189: 14. Early Years Foundation Stage Profile - outcomes at age five.
A190: 15. Percentage of children achieving a good level of development – those children achieving at least the expected level within the three prime areas of learning: communication and language, physical development and personal, social and emotional development
A191: and the early learning goals within the literacy and mathematics areas of learning.
A192: 16. Only includes pupils with a valid result for every achievement scale.
A193: 17. The percentage gap between those eligible for Free School Meals and the rest (including unclassified) in achieving a good level of development.
A194: 18. The percentage gap in achieving a good level of development between the lowest 20 per cent of achieving children in a local authority (mean score), and the score of the median
A195: child in the same authority expressed as a percentage of the same median score.
A196: 19. Population estimates for UK, England, Wales, Scotland and Northern Ireland, Mid-2012.
A197: 20. English Indices of Deprivation 2010 (where 1 is the most deprived).
A198: 21. Figures for Isles of Scilly and Cornwall, Cheshire East and Cheshire West and Chester, Bedford Borough and Central Bedfordshire have been set to the rank of the old counties from which they were formed: Cornwall and Isles of Scilly, Cheshire and Bedfordshire.
A199: 22. Maintained settings refers to maintained nursery and state-funded primary schools. It does not include secondary schools or special schools.
A200: . Not applicable
A201: .. Not available
A202: x Value suppressed to protect confidentiality
A203: Figures are rounded to the level of the source data on which they are based
A205: Sources
... 21 more rows

Sheet 3YO Take up (hidden)
A1: Early Years Benchmarking - Take Up1 | O1: Return to contents
A2: Three year olds2,3 benefiting from funded early education | O2: Return to instructions
A3: ='Early Years Table'!A2 -> All LAs
C4: Number | F4: Percentage
C5: =Data!R3 -> 2011 | D5: =Data!S3 -> 2012 | E5: =Data!T3 -> 2013 | F5: =Data!U3 -> 2011 | G5: =Data!V3 -> 2012 | H5: =Data!W3 -> 2013
A6: England - Average (mean) or Total | C6: =Data!R157 -> 604320 | D6: =Data!S157 -> 625440 | E6: =Data!T157 -> 625310 | F6: =Data!U157 -> 0.92 | G6: =Data!V157 -> 0.93 | H6: =Data!W157 -> 0.94
A7: England - Average (median) | C7: =Data!R158 -> 3080 | D7: =Data!S158 -> 3165 | E7: =Data!T158 -> 3185 | F7: =Data!U158 -> 0.93 | G7: =Data!V158 -> 0.94 | H7: =Data!W158 -> 0.95
A8: England - Minimum | C8: =Data!R159 -> 30 | D8: =Data!S159 -> 20 | E8: =Data!T159 -> 20 | F8: =Data!U159 -> 0.69 | G8: =Data!V159 -> 0.74 | H8: =Data!W159 -> 0.76
A9: England - Maximum | C9: =Data!R160 -> 16250 | D9: =Data!S160 -> 16860 | E9: =Data!T160 -> 17090 | F9: =Data!U160 -> 1.65 | G9: =Data!V160 -> 1.3 | H9: =Data!W160 -> 1.4
A10: Selection - Average (median) | C10: =MEDIAN(C13:C164) -> 3080 | D10: 3165 | E10: 3185 | F10: 0.93 | G10: 0.94 | H10: 0.95
A11: Selection - Minimum | C11: =MIN(C13:C164) -> 30 | D11: 20 | E11: 20 | F11: 0.69 | G11: 0.74 | H11: 0.76
A12: Selection - Maximum | C12: =MAX(C13:C164) -> 16250 | D12: 16860 | E12: 17090 | F12: 1.65 | G12: 1.3 | H12: 1.4
A13: =IF('Early Years Table'!A13="","",IF(ISBLANK('Early Years Table'!A13),"",'Early Years Table'!A13)) -> 301 | B13: =IF($A13="","",IF(ISBLANK($A13),"",INDEX('LEA Nos codes'!$A$3:$A$154,MATCH($A13,'LEA Nos codes'!$B$3:$B$154,0)))) -> Barking and Dagenham | C13: =IF($A13="","",IF(ISBLANK($A13),"",VLOOKUP($A13,Data!$A$4:$AI$155,18,FALSE))) -> 2580 | D13: =IF($A13="","",IF(ISBLANK($A13),"",VLOOKUP($A13,Data!$A$4:$AI$155,19,FALSE))) -> 2980 | E13: =IF($A13="","",IF(ISBLANK($A13),"",VLOOKUP($A13,Data!$A$4:$AI$155,20,FALSE))) -> 3100 | F13: =IF($A13="","",IF(ISBLANK($A13),"",VLOOKUP($A13,Data!$A$4:$AI$155,21,FALSE))) -> 0.69 | G13: =IF($A13="","",IF(ISBLANK($A13),"",VLOOKUP($A13,Data!$A$4:$AI$155,22,FALSE))) -> 0.78 | H13: =IF($A13="","",IF(ISBLANK($A13),"",VLOOKUP($A13,Data!$A$4:$AI$155,23,FALSE))) -> 0.82
A14: =IF('Early Years Table'!A14="","",IF(ISBLANK('Early Years Table'!A14),"",'Early Years Table'!A14)) -> 302 | B14: =IF($A14="","",IF(ISBLANK($A14),"",INDEX('LEA Nos codes'!$A$3:$A$154,MATCH($A14,'LEA Nos codes'!$B$3:$B$154,0)))) -> Barnet | C14: =IF($A14="","",IF(ISBLANK($A14),"",VLOOKUP($A14,Data!$A$4:$AI$155,18,FALSE))) -> 4100 | D14: =IF($A14="","",IF(ISBLANK($A14),"",VLOOKUP($A14,Data!$A$4:$AI$155,19,FALSE))) -> 4340 | E14: =IF($A14="","",IF(ISBLANK($A14),"",VLOOKUP($A14,Data!$A$4:$AI$155,20,FALSE))) -> 4320 | F14: =IF($A14="","",IF(ISBLANK($A14),"",VLOOKUP($A14,Data!$A$4:$AI$155,21,FALSE))) -> 0.8 | G14: =IF($A14="","",IF(ISBLANK($A14),"",VLOOKUP($A14,Data!$A$4:$AI$155,22,FALSE))) -> 0.82 | H14: =IF($A14="","",IF(ISBLANK($A14),"",VLOOKUP($A14,Data!$A$4:$AI$155,23,FALSE))) -> 0.82
A15: =IF('Early Years Table'!A15="","",IF(ISBLANK('Early Years Table'!A15),"",'Early Years Table'!A15)) -> 370 | B15: =IF($A15="","",IF(ISBLANK($A15),"",INDEX('LEA Nos codes'!$A$3:$A$154,MATCH($A15,'LEA Nos codes'!$B$3:$B$154,0)))) -> Barnsley | C15: =IF($A15="","",IF(ISBLANK($A15),"",VLOOKUP($A15,Data!$A$4:$AI$155,18,FALSE))) -> 2650 | D15: =IF($A15="","",IF(ISBLANK($A15),"",VLOOKUP($A15,Data!$A$4:$AI$155,19,FALSE))) -> 2710 | E15: =IF($A15="","",IF(ISBLANK($A15),"",VLOOKUP($A15,Data!$A$4:$AI$155,20,FALSE))) -> 2720 | F15: =IF($A15="","",IF(ISBLANK($A15),"",VLOOKUP($A15,Data!$A$4:$AI$155,21,FALSE))) -> 0.96 | G15: =IF($A15="","",IF(ISBLANK($A15),"",VLOOKUP($A15,Data!$A$4:$AI$155,22,FALSE))) -> 0.97 | H15: =IF($A15="","",IF(ISBLANK($A15),"",VLOOKUP($A15,Data!$A$4:$AI$155,23,FALSE))) -> 0.97
A16: =IF('Early Years Table'!A16="","",IF(ISBLANK('Early Years Table'!A16),"",'Early Years Table'!A16)) -> 800 | B16: =IF($A16="","",IF(ISBLANK($A16),"",INDEX('LEA Nos codes'!$A$3:$A$154,MATCH($A16,'LEA Nos codes'!$B$3:$B$154,0)))) -> Bath & North East Somerset | C16: =IF($A16="","",IF(ISBLANK($A16),"",VLOOKUP($A16,Data!$A$4:$AI$155,18,FALSE))) -> 1920 | D16: =IF($A16="","",IF(ISBLANK($A16),"",VLOOKUP($A16,Data!$A$4:$AI$155,19,FALSE))) -> 1910 | E16: =IF($A16="","",IF(ISBLANK($A16),"",VLOOKUP($A16,Data!$A$4:$AI$155,20,FALSE))) -> 1850 | F16: =IF($A16="","",IF(ISBLANK($A16),"",VLOOKUP($A16,Data!$A$4:$AI$155,21,FALSE))) -> 1.03 | G16: =IF($A16="","",IF(ISBLANK($A16),"",VLOOKUP($A16,Data!$A$4:$AI$155,22,FALSE))) -> 1.04 | H16: =IF($A16="","",IF(ISBLANK($A16),"",VLOOKUP($A16,Data!$A$4:$AI$155,23,FALSE))) -> 1.02
A17: =IF('Early Years Table'!A17="","",IF(ISBLANK('Early Years Table'!A17),"",'Early Years Table'!A17)) -> 822 | B17: =IF($A17="","",IF(ISBLANK($A17),"",INDEX('LEA Nos codes'!$A$3:$A$154,MATCH($A17,'LEA Nos codes'!$B$3:$B$154,0)))) -> Bedford Borough | C17: =IF($A17="","",IF(ISBLANK($A17),"",VLOOKUP($A17,Data!$A$4:$AI$155,18,FALSE))) -> 1880 | D17: =IF($A17="","",IF(ISBLANK($A17),"",VLOOKUP($A17,Data!$A$4:$AI$155,19,FALSE))) -> 2090 | E17: =IF($A17="","",IF(ISBLANK($A17),"",VLOOKUP($A17,Data!$A$4:$AI$155,20,FALSE))) -> 2210 | F17: =IF($A17="","",IF(ISBLANK($A17),"",VLOOKUP($A17,Data!$A$4:$AI$155,21,FALSE))) -> 0.97 | G17: =IF($A17="","",IF(ISBLANK($A17),"",VLOOKUP($A17,Data!$A$4:$AI$155,22,FALSE))) -> 1.01 | H17: =IF($A17="","",IF(ISBLANK($A17),"",VLOOKUP($A17,Data!$A$4:$AI$155,23,FALSE))) -> 1.05
A18: =IF('Early Years Table'!A18="","",IF(ISBLANK('Early Years Table'!A18),"",'Early Years Table'!A18)) -> 303 | B18: =IF($A18="","",IF(ISBLANK($A18),"",INDEX('LEA Nos codes'!$A$3:$A$154,MATCH($A18,'LEA Nos codes'!$B$3:$B$154,0)))) -> Bexley | C18: =IF($A18="","",IF(ISBLANK($A18),"",VLOOKUP($A18,Data!$A$4:$AI$155,18,FALSE))) -> 2770 | D18: =IF($A18="","",IF(ISBLANK($A18),"",VLOOKUP($A18,Data!$A$4:$AI$155,19,FALSE))) -> 2810 | E18: =IF($A18="","",IF(ISBLANK($A18),"",VLOOKUP($A18,Data!$A$4:$AI$155,20,FALSE))) -> 2870 | F18: =IF($A18="","",IF(ISBLANK($A18),"",VLOOKUP($A18,Data!$A$4:$AI$155,21,FALSE))) -> 0.9 | G18: =IF($A18="","",IF(ISBLANK($A18),"",VLOOKUP($A18,Data!$A$4:$AI$155,22,FALSE))) -> 0.9 | H18: =IF($A18="","",IF(ISBLANK($A18),"",VLOOKUP($A18,Data!$A$4:$AI$155,23,FALSE))) -> 0.94
A19: =IF('Early Years Table'!A19="","",IF(ISBLANK('Early Years Table'!A19),"",'Early Years Table'!A19)) -> 330 | B19: =IF($A19="","",IF(ISBLANK($A19),"",INDEX('LEA Nos codes'!$A$3:$A$154,MATCH($A19,'LEA Nos codes'!$B$3:$B$154,0)))) -> Birmingham | C19: =IF($A19="","",IF(ISBLANK($A19),"",VLOOKUP($A19,Data!$A$4:$AI$155,18,FALSE))) -> 13350 | D19: =IF($A19="","",IF(ISBLANK($A19),"",VLOOKUP($A19,Data!$A$4:$AI$155,19,FALSE))) -> 14060 | E19: =IF($A19="","",IF(ISBLANK($A19),"",VLOOKUP($A19,Data!$A$4:$AI$155,20,FALSE))) -> 14280 | F19: =IF($A19="","",IF(ISBLANK($A19),"",VLOOKUP($A19,Data!$A$4:$AI$155,21,FALSE))) -> 0.82 | G19: =IF($A19="","",IF(ISBLANK($A19),"",VLOOKUP($A19,Data!$A$4:$AI$155,22,FALSE))) -> 0.84 | H19: =IF($A19="","",IF(ISBLANK($A19),"",VLOOKUP($A19,Data!$A$4:$AI$155,23,FALSE))) -> 0.87
A20: =IF('Early Years Table'!A20="","",IF(ISBLANK('Early Years Table'!A20),"",'Early Years Table'!A20)) -> 889 | B20: =IF($A20="","",IF(ISBLANK($A20),"",INDEX('LEA Nos codes'!$A$3:$A$154,MATCH($A20,'LEA Nos codes'!$B$3:$B$154,0)))) -> Blackburn with Darwen | C20: =IF($A20="","",IF(ISBLANK($A20),"",VLOOKUP($A20,Data!$A$4:$AI$155,18,FALSE))) -> 2020 | D20: =IF($A20="","",IF(ISBLANK($A20),"",VLOOKUP($A20,Data!$A$4:$AI$155,19,FALSE))) -> 2020 | E20: =IF($A20="","",IF(ISBLANK($A20),"",VLOOKUP($A20,Data!$A$4:$AI$155,20,FALSE))) -> 2090 | F20: =IF($A20="","",IF(ISBLANK($A20),"",VLOOKUP($A20,Data!$A$4:$AI$155,21,FALSE))) -> 0.89 | G20: =IF($A20="","",IF(ISBLANK($A20),"",VLOOKUP($A20,Data!$A$4:$AI$155,22,FALSE))) -> 0.88 | H20: =IF($A20="","",IF(ISBLANK($A20),"",VLOOKUP($A20,Data!$A$4:$AI$155,23,FALSE))) -> 0.93
A21: =IF('Early Years Table'!A21="","",IF(ISBLANK('Early Years Table'!A21),"",'Early Years Table'!A21)) -> 890 | B21: =IF($A21="","",IF(ISBLANK($A21),"",INDEX('LEA Nos codes'!$A$3:$A$154,MATCH($A21,'LEA Nos codes'!$B$3:$B$154,0)))) -> Blackpool | C21: =IF($A21="","",IF(ISBLANK($A21),"",VLOOKUP($A21,Data!$A$4:$AI$155,18,FALSE))) -> 1570 | D21: =IF($A21="","",IF(ISBLANK($A21),"",VLOOKUP($A21,Data!$A$4:$AI$155,19,FALSE))) -> 1660 | E21: =IF($A21="","",IF(ISBLANK($A21),"",VLOOKUP($A21,Data!$A$4:$AI$155,20,FALSE))) -> 1490 | F21: =IF($A21="","",IF(ISBLANK($A21),"",VLOOKUP($A21,Data!$A$4:$AI$155,21,FALSE))) -> 0.96 | G21: =IF($A21="","",IF(ISBLANK($A21),"",VLOOKUP($A21,Data!$A$4:$AI$155,22,FALSE))) -> 0.99 | H21: =IF($A21="","",IF(ISBLANK($A21),"",VLOOKUP($A21,Data!$A$4:$AI$155,23,FALSE))) -> 0.89
A22: =IF('Early Years Table'!A22="","",IF(ISBLANK('Early Years Table'!A22),"",'Early Years Table'!A22)) -> 350 | B22: =IF($A22="","",IF(ISBLANK($A22),"",INDEX('LEA Nos codes'!$A$3:$A$154,MATCH($A22,'LEA Nos codes'!$B$3:$B$154,0)))) -> Bolton | C22: =IF($A22="","",IF(ISBLANK($A22),"",VLOOKUP($A22,Data!$A$4:$AI$155,18,FALSE))) -> 3470 | D22: =IF($A22="","",IF(ISBLANK($A22),"",VLOOKUP($A22,Data!$A$4:$AI$155,19,FALSE))) -> 3710 | E22: =IF($A22="","",IF(ISBLANK($A22),"",VLOOKUP($A22,Data!$A$4:$AI$155,20,FALSE))) -> 3670 | F22: =IF($A22="","",IF(ISBLANK($A22),"",VLOOKUP($A22,Data!$A$4:$AI$155,21,FALSE))) -> 0.93 | G22: =IF($A22="","",IF(ISBLANK($A22),"",VLOOKUP($A22,Data!$A$4:$AI$155,22,FALSE))) -> 0.99 | H22: =IF($A22="","",IF(ISBLANK($A22),"",VLOOKUP($A22,Data!$A$4:$AI$155,23,FALSE))) -> 0.96
A23: =IF('Early Years Table'!A23="","",IF(ISBLANK('Early Years Table'!A23),"",'Early Years Table'!A23)) -> 837 | B23: =IF($A23="","",IF(ISBLANK($A23),"",INDEX('LEA Nos codes'!$A$3:$A$154,MATCH($A23,'LEA Nos codes'!$B$3:$B$154,0)))) -> Bournemouth | C23: =IF($A23="","",IF(ISBLANK($A23),"",VLOOKUP($A23,Data!$A$4:$AI$155,18,FALSE))) -> 1870 | D23: =IF($A23="","",IF(ISBLANK($A23),"",VLOOKUP($A23,Data!$A$4:$AI$155,19,FALSE))) -> 1990 | E23: =IF($A23="","",IF(ISBLANK($A23),"",VLOOKUP($A23,Data!$A$4:$AI$155,20,FALSE))) -> 2020 | F23: =IF($A23="","",IF(ISBLANK($A23),"",VLOOKUP($A23,Data!$A$4:$AI$155,21,FALSE))) -> 0.97 | G23: =IF($A23="","",IF(ISBLANK($A23),"",VLOOKUP($A23,Data!$A$4:$AI$155,22,FALSE))) -> 0.96 | H23: =IF($A23="","",IF(ISBLANK($A23),"",VLOOKUP($A23,Data!$A$4:$AI$155,23,FALSE))) -> 0.99
A24: =IF('Early Years Table'!A24="","",IF(ISBLANK('Early Years Table'!A24),"",'Early Years Table'!A24)) -> 867 | B24: =IF($A24="","",IF(ISBLANK($A24),"",INDEX('LEA Nos codes'!$A$3:$A$154,MATCH($A24,'LEA Nos codes'!$B$3:$B$154,0)))) -> Bracknell Forest | C24: =IF($A24="","",IF(ISBLANK($A24),"",VLOOKUP($A24,Data!$A$4:$AI$155,18,FALSE))) -> 1420 | D24: =IF($A24="","",IF(ISBLANK($A24),"",VLOOKUP($A24,Data!$A$4:$AI$155,19,FALSE))) -> 1510 | E24: =IF($A24="","",IF(ISBLANK($A24),"",VLOOKUP($A24,Data!$A$4:$AI$155,20,FALSE))) -> 1440 | F24: =IF($A24="","",IF(ISBLANK($A24),"",VLOOKUP($A24,Data!$A$4:$AI$155,21,FALSE))) -> 0.91 | G24: =IF($A24="","",IF(ISBLANK($A24),"",VLOOKUP($A24,Data!$A$4:$AI$155,22,FALSE))) -> 0.92 | H24: =IF($A24="","",IF(ISBLANK($A24),"",VLOOKUP($A24,Data!$A$4:$AI$155,23,FALSE))) -> 0.87
A25: =IF('Early Years Table'!A25="","",IF(ISBLANK('Early Years Table'!A25),"",'Early Years Table'!A25)) -> 380 | B25: =IF($A25="","",IF(ISBLANK($A25),"",INDEX('LEA Nos codes'!$A$3:$A$154,MATCH($A25,'LEA Nos codes'!$B$3:$B$154,0)))) -> Bradford | C25: =IF($A25="","",IF(ISBLANK($A25),"",VLOOKUP($A25,Data!$A$4:$AI$155,18,FALSE))) -> 7330 | D25: =IF($A25="","",IF(ISBLANK($A25),"",VLOOKUP($A25,Data!$A$4:$AI$155,19,FALSE))) -> 7770 | E25: =IF($A25="","",IF(ISBLANK($A25),"",VLOOKUP($A25,Data!$A$4:$AI$155,20,FALSE))) -> 7700 | F25: =IF($A25="","",IF(ISBLANK($A25),"",VLOOKUP($A25,Data!$A$4:$AI$155,21,FALSE))) -> 0.89 | G25: =IF($A25="","",IF(ISBLANK($A25),"",VLOOKUP($A25,Data!$A$4:$AI$155,22,FALSE))) -> 0.93 | H25: =IF($A25="","",IF(ISBLANK($A25),"",VLOOKUP($A25,Data!$A$4:$AI$155,23,FALSE))) -> 0.93
A26: =IF('Early Years Table'!A26="","",IF(ISBLANK('Early Years Table'!A26),"",'Early Years Table'!A26)) -> 304 | B26: =IF($A26="","",IF(ISBLANK($A26),"",INDEX('LEA Nos codes'!$A$3:$A$154,MATCH($A26,'LEA Nos codes'!$B$3:$B$154,0)))) -> Brent | C26: =IF($A26="","",IF(ISBLANK($A26),"",VLOOKUP($A26,Data!$A$4:$AI$155,18,FALSE))) -> 3310 | D26: =IF($A26="","",IF(ISBLANK($A26),"",VLOOKUP($A26,Data!$A$4:$AI$155,19,FALSE))) -> 3510 | E26: =IF($A26="","",IF(ISBLANK($A26),"",VLOOKUP($A26,Data!$A$4:$AI$155,20,FALSE))) -> 3690 | F26: =IF($A26="","",IF(ISBLANK($A26),"",VLOOKUP($A26,Data!$A$4:$AI$155,21,FALSE))) -> 0.76 | G26: =IF($A26="","",IF(ISBLANK($A26),"",VLOOKUP($A26,Data!$A$4:$AI$155,22,FALSE))) -> 0.79 | H26: =IF($A26="","",IF(ISBLANK($A26),"",VLOOKUP($A26,Data!$A$4:$AI$155,23,FALSE))) -> 0.84
A27: =IF('Early Years Table'!A27="","",IF(ISBLANK('Early Years Table'!A27),"",'Early Years Table'!A27)) -> 846 | B27: =IF($A27="","",IF(ISBLANK($A27),"",INDEX('LEA Nos codes'!$A$3:$A$154,MATCH($A27,'LEA Nos codes'!$B$3:$B$154,0)))) -> Brighton and Hove | C27: =IF($A27="","",IF(ISBLANK($A27),"",VLOOKUP($A27,Data!$A$4:$AI$155,18,FALSE))) -> 2990 | D27: =IF($A27="","",IF(ISBLANK($A27),"",VLOOKUP($A27,Data!$A$4:$AI$155,19,FALSE))) -> 3040 | E27: =IF($A27="","",IF(ISBLANK($A27),"",VLOOKUP($A27,Data!$A$4:$AI$155,20,FALSE))) -> 3050 | F27: =IF($A27="","",IF(ISBLANK($A27),"",VLOOKUP($A27,Data!$A$4:$AI$155,21,FALSE))) -> 1 | G27: =IF($A27="","",IF(ISBLANK($A27),"",VLOOKUP($A27,Data!$A$4:$AI$155,22,FALSE))) -> 1.01 | H27: =IF($A27="","",IF(ISBLANK($A27),"",VLOOKUP($A27,Data!$A$4:$AI$155,23,FALSE))) -> 1.04
A28: =IF('Early Years Table'!A28="","",IF(ISBLANK('Early Years Table'!A28),"",'Early Years Table'!A28)) -> 305 | B28: =IF($A28="","",IF(ISBLANK($A28),"",INDEX('LEA Nos codes'!$A$3:$A$154,MATCH($A28,'LEA Nos codes'!$B$3:$B$154,0)))) -> Bromley | C28: =IF($A28="","",IF(ISBLANK($A28),"",VLOOKUP($A28,Data!$A$4:$AI$155,18,FALSE))) -> 3760 | D28: =IF($A28="","",IF(ISBLANK($A28),"",VLOOKUP($A28,Data!$A$4:$AI$155,19,FALSE))) -> 3920 | E28: =IF($A28="","",IF(ISBLANK($A28),"",VLOOKUP($A28,Data!$A$4:$AI$155,20,FALSE))) -> 4010 | F28: =IF($A28="","",IF(ISBLANK($A28),"",VLOOKUP($A28,Data!$A$4:$AI$155,21,FALSE))) -> 0.94 | G28: =IF($A28="","",IF(ISBLANK($A28),"",VLOOKUP($A28,Data!$A$4:$AI$155,22,FALSE))) -> 0.97 | H28: =IF($A28="","",IF(ISBLANK($A28),"",VLOOKUP($A28,Data!$A$4:$AI$155,23,FALSE))) -> 0.97
A29: =IF('Early Years Table'!A29="","",IF(ISBLANK('Early Years Table'!A29),"",'Early Years Table'!A29)) -> 825 | B29: =IF($A29="","",IF(ISBLANK($A29),"",INDEX('LEA Nos codes'!$A$3:$A$154,MATCH($A29,'LEA Nos codes'!$B$3:$B$154,0)))) -> Buckinghamshire | C29: =IF($A29="","",IF(ISBLANK($A29),"",VLOOKUP($A29,Data!$A$4:$AI$155,18,FALSE))) -> 5890 | D29: =IF($A29="","",IF(ISBLANK($A29),"",VLOOKUP($A29,Data!$A$4:$AI$155,19,FALSE))) -> 6160 | E29: =IF($A29="","",IF(ISBLANK($A29),"",VLOOKUP($A29,Data!$A$4:$AI$155,20,FALSE))) -> 6160 | F29: =IF($A29="","",IF(ISBLANK($A29),"",VLOOKUP($A29,Data!$A$4:$AI$155,21,FALSE))) -> 0.92 | G29: =IF($A29="","",IF(ISBLANK($A29),"",VLOOKUP($A29,Data!$A$4:$AI$155,22,FALSE))) -> 0.94 | H29: =IF($A29="","",IF(ISBLANK($A29),"",VLOOKUP($A29,Data!$A$4:$AI$155,23,FALSE))) -> 0.96
A30: =IF('Early Years Table'!A30="","",IF(ISBLANK('Early Years Table'!A30),"",'Early Years Table'!A30)) -> 351 | B30: =IF($A30="","",IF(ISBLANK($A30),"",INDEX('LEA Nos codes'!$A$3:$A$154,MATCH($A30,'LEA Nos codes'!$B$3:$B$154,0)))) -> Bury | C30: =IF($A30="","",IF(ISBLANK($A30),"",VLOOKUP($A30,Data!$A$4:$AI$155,18,FALSE))) -> 2220 | D30: =IF($A30="","",IF(ISBLANK($A30),"",VLOOKUP($A30,Data!$A$4:$AI$155,19,FALSE))) -> 2300 | E30: =IF($A30="","",IF(ISBLANK($A30),"",VLOOKUP($A30,Data!$A$4:$AI$155,20,FALSE))) -> 2310 | F30: =IF($A30="","",IF(ISBLANK($A30),"",VLOOKUP($A30,Data!$A$4:$AI$155,21,FALSE))) -> 0.92 | G30: =IF($A30="","",IF(ISBLANK($A30),"",VLOOKUP($A30,Data!$A$4:$AI$155,22,FALSE))) -> 0.93 | H30: =IF($A30="","",IF(ISBLANK($A30),"",VLOOKUP($A30,Data!$A$4:$AI$155,23,FALSE))) -> 0.95
A31: =IF('Early Years Table'!A31="","",IF(ISBLANK('Early Years Table'!A31),"",'Early Years Table'!A31)) -> 381 | B31: =IF($A31="","",IF(ISBLANK($A31),"",INDEX('LEA Nos codes'!$A$3:$A$154,MATCH($A31,'LEA Nos codes'!$B$3:$B$154,0)))) -> Calderdale | C31: =IF($A31="","",IF(ISBLANK($A31),"",VLOOKUP($A31,Data!$A$4:$AI$155,18,FALSE))) -> 2500 | D31: =IF($A31="","",IF(ISBLANK($A31),"",VLOOKUP($A31,Data!$A$4:$AI$155,19,FALSE))) -> 2720 | E31: =IF($A31="","",IF(ISBLANK($A31),"",VLOOKUP($A31,Data!$A$4:$AI$155,20,FALSE))) -> 2640 | F31: =IF($A31="","",IF(ISBLANK($A31),"",VLOOKUP($A31,Data!$A$4:$AI$155,21,FALSE))) -> 0.97 | G31: =IF($A31="","",IF(ISBLANK($A31),"",VLOOKUP($A31,Data!$A$4:$AI$155,22,FALSE))) -> 1.04 | H31: =IF($A31="","",IF(ISBLANK($A31),"",VLOOKUP($A31,Data!$A$4:$AI$155,23,FALSE))) -> 1.01
A32: =IF('Early Years Table'!A32="","",IF(ISBLANK('Early Years Table'!A32),"",'Early Years Table'!A32)) -> 873 | B32: =IF($A32="","",IF(ISBLANK($A32),"",INDEX('LEA Nos codes'!$A$3:$A$154,MATCH($A32,'LEA Nos codes'!$B$3:$B$154,0)))) -> Cambridgeshire | C32: =IF($A32="","",IF(ISBLANK($A32),"",VLOOKUP($A32,Data!$A$4:$AI$155,18,FALSE))) -> 6880 | D32: =IF($A32="","",IF(ISBLANK($A32),"",VLOOKUP($A32,Data!$A$4:$AI$155,19,FALSE))) -> 7200 | E32: =IF($A32="","",IF(ISBLANK($A32),"",VLOOKUP($A32,Data!$A$4:$AI$155,20,FALSE))) -> 7090 | F32: =IF($A32="","",IF(ISBLANK($A32),"",VLOOKUP($A32,Data!$A$4:$AI$155,21,FALSE))) -> 0.95 | G32: =IF($A32="","",IF(ISBLANK($A32),"",VLOOKUP($A32,Data!$A$4:$AI$155,22,FALSE))) -> 0.96 | H32: =IF($A32="","",IF(ISBLANK($A32),"",VLOOKUP($A32,Data!$A$4:$AI$155,23,FALSE))) -> 0.95
A33: =IF('Early Years Table'!A33="","",IF(ISBLANK('Early Years Table'!A33),"",'Early Years Table'!A33)) -> 202 | B33: =IF($A33="","",IF(ISBLANK($A33),"",INDEX('LEA Nos codes'!$A$3:$A$154,MATCH($A33,'LEA Nos codes'!$B$3:$B$154,0)))) -> Camden | C33: =IF($A33="","",IF(ISBLANK($A33),"",VLOOKUP($A33,Data!$A$4:$AI$155,18,FALSE))) -> 2110 | D33: =IF($A33="","",IF(ISBLANK($A33),"",VLOOKUP($A33,Data!$A$4:$AI$155,19,FALSE))) -> 1910 | E33: =IF($A33="","",IF(ISBLANK($A33),"",VLOOKUP($A33,Data!$A$4:$AI$155,20,FALSE))) -> 2060 | F33: =IF($A33="","",IF(ISBLANK($A33),"",VLOOKUP($A33,Data!$A$4:$AI$155,21,FALSE))) -> 0.83 | G33: =IF($A33="","",IF(ISBLANK($A33),"",VLOOKUP($A33,Data!$A$4:$AI$155,22,FALSE))) -> 0.74 | H33: =IF($A33="","",IF(ISBLANK($A33),"",VLOOKUP($A33,Data!$A$4:$AI$155,23,FALSE))) -> 0.82
A34: =IF('Early Years Table'!A34="","",IF(ISBLANK('Early Years Table'!A34),"",'Early Years Table'!A34)) -> 823 | B34: =IF($A34="","",IF(ISBLANK($A34),"",INDEX('LEA Nos codes'!$A$3:$A$154,MATCH($A34,'LEA Nos codes'!$B$3:$B$154,0)))) -> Central Bedfordshire | C34: =IF($A34="","",IF(ISBLANK($A34),"",VLOOKUP($A34,Data!$A$4:$AI$155,18,FALSE))) -> 3050 | D34: =IF($A34="","",IF(ISBLANK($A34),"",VLOOKUP($A34,Data!$A$4:$AI$155,19,FALSE))) -> 3300 | E34: =IF($A34="","",IF(ISBLANK($A34),"",VLOOKUP($A34,Data!$A$4:$AI$155,20,FALSE))) -> 3140 | F34: =IF($A34="","",IF(ISBLANK($A34),"",VLOOKUP($A34,Data!$A$4:$AI$155,21,FALSE))) -> 0.95 | G34: =IF($A34="","",IF(ISBLANK($A34),"",VLOOKUP($A34,Data!$A$4:$AI$155,22,FALSE))) -> 1.01 | H34: =IF($A34="","",IF(ISBLANK($A34),"",VLOOKUP($A34,Data!$A$4:$AI$155,23,FALSE))) -> 0.98
A35: =IF('Early Years Table'!A35="","",IF(ISBLANK('Early Years Table'!A35),"",'Early Years Table'!A35)) -> 895 | B35: =IF($A35="","",IF(ISBLANK($A35),"",INDEX('LEA Nos codes'!$A$3:$A$154,MATCH($A35,'LEA Nos codes'!$B$3:$B$154,0)))) -> Cheshire East | C35: =IF($A35="","",IF(ISBLANK($A35),"",VLOOKUP($A35,Data!$A$4:$AI$155,18,FALSE))) -> 3970 | D35: =IF($A35="","",IF(ISBLANK($A35),"",VLOOKUP($A35,Data!$A$4:$AI$155,19,FALSE))) -> 4230 | E35: =IF($A35="","",IF(ISBLANK($A35),"",VLOOKUP($A35,Data!$A$4:$AI$155,20,FALSE))) -> 4180 | F35: =IF($A35="","",IF(ISBLANK($A35),"",VLOOKUP($A35,Data!$A$4:$AI$155,21,FALSE))) -> 0.97 | G35: =IF($A35="","",IF(ISBLANK($A35),"",VLOOKUP($A35,Data!$A$4:$AI$155,22,FALSE))) -> 1.02 | H35: =IF($A35="","",IF(ISBLANK($A35),"",VLOOKUP($A35,Data!$A$4:$AI$155,23,FALSE))) -> 1.06
A36: =IF('Early Years Table'!A36="","",IF(ISBLANK('Early Years Table'!A36),"",'Early Years Table'!A36)) -> 896 | B36: =IF($A36="","",IF(ISBLANK($A36),"",INDEX('LEA Nos codes'!$A$3:$A$154,MATCH($A36,'LEA Nos codes'!$B$3:$B$154,0)))) -> Cheshire West and Chester | C36: =IF($A36="","",IF(ISBLANK($A36),"",VLOOKUP($A36,Data!$A$4:$AI$155,18,FALSE))) -> 3780 | D36: =IF($A36="","",IF(ISBLANK($A36),"",VLOOKUP($A36,Data!$A$4:$AI$155,19,FALSE))) -> 3780 | E36: =IF($A36="","",IF(ISBLANK($A36),"",VLOOKUP($A36,Data!$A$4:$AI$155,20,FALSE))) -> 3710 | F36: =IF($A36="","",IF(ISBLANK($A36),"",VLOOKUP($A36,Data!$A$4:$AI$155,21,FALSE))) -> 1.01 | G36: =IF($A36="","",IF(ISBLANK($A36),"",VLOOKUP($A36,Data!$A$4:$AI$155,22,FALSE))) -> 1.03 | H36: =IF($A36="","",IF(ISBLANK($A36),"",VLOOKUP($A36,Data!$A$4:$AI$155,23,FALSE))) -> 1.04
A37: =IF('Early Years Table'!A37="","",IF(ISBLANK('Early Years Table'!A37),"",'Early Years Table'!A37)) -> 801 | B37: =IF($A37="","",IF(ISBLANK($A37),"",INDEX('LEA Nos codes'!$A$3:$A$154,MATCH($A37,'LEA Nos codes'!$B$3:$B$154,0)))) -> City of Bristol | C37: =IF($A37="","",IF(ISBLANK($A37),"",VLOOKUP($A37,Data!$A$4:$AI$155,18,FALSE))) -> 4890 | D37: =IF($A37="","",IF(ISBLANK($A37),"",VLOOKUP($A37,Data!$A$4:$AI$155,19,FALSE))) -> 5270 | E37: =IF($A37="","",IF(ISBLANK($A37),"",VLOOKUP($A37,Data!$A$4:$AI$155,20,FALSE))) -> 5210 | F37: =IF($A37="","",IF(ISBLANK($A37),"",VLOOKUP($A37,Data!$A$4:$AI$155,21,FALSE))) -> 0.87 | G37: =IF($A37="","",IF(ISBLANK($A37),"",VLOOKUP($A37,Data!$A$4:$AI$155,22,FALSE))) -> 0.9 | H37: =IF($A37="","",IF(ISBLANK($A37),"",VLOOKUP($A37,Data!$A$4:$AI$155,23,FALSE))) -> 0.89
A38: =IF('Early Years Table'!A38="","",IF(ISBLANK('Early Years Table'!A38),"",'Early Years Table'!A38)) -> 810 | B38: =IF($A38="","",IF(ISBLANK($A38),"",INDEX('LEA Nos codes'!$A$3:$A$154,MATCH($A38,'LEA Nos codes'!$B$3:$B$154,0)))) -> City of Kingston Upon Hull | C38: =IF($A38="","",IF(ISBLANK($A38),"",VLOOKUP($A38,Data!$A$4:$AI$155,18,FALSE))) -> 3170 | D38: =IF($A38="","",IF(ISBLANK($A38),"",VLOOKUP($A38,Data!$A$4:$AI$155,19,FALSE))) -> 3270 | E38: =IF($A38="","",IF(ISBLANK($A38),"",VLOOKUP($A38,Data!$A$4:$AI$155,20,FALSE))) -> 3270 | F38: =IF($A38="","",IF(ISBLANK($A38),"",VLOOKUP($A38,Data!$A$4:$AI$155,21,FALSE))) -> 0.95 | G38: =IF($A38="","",IF(ISBLANK($A38),"",VLOOKUP($A38,Data!$A$4:$AI$155,22,FALSE))) -> 0.94 | H38: =IF($A38="","",IF(ISBLANK($A38),"",VLOOKUP($A38,Data!$A$4:$AI$155,23,FALSE))) -> 0.95
A39: =IF('Early Years Table'!A39="","",IF(ISBLANK('Early Years Table'!A39),"",'Early Years Table'!A39)) -> 201 | B39: =IF($A39="","",IF(ISBLANK($A39),"",INDEX('LEA Nos codes'!$A$3:$A$154,MATCH($A39,'LEA Nos codes'!$B$3:$B$154,0)))) -> City of London | C39: =IF($A39="","",IF(ISBLANK($A39),"",VLOOKUP($A39,Data!$A$4:$AI$155,18,FALSE))) -> 30 | D39: =IF($A39="","",IF(ISBLANK($A39),"",VLOOKUP($A39,Data!$A$4:$AI$155,19,FALSE))) -> 50 | E39: =IF($A39="","",IF(ISBLANK($A39),"",VLOOKUP($A39,Data!$A$4:$AI$155,20,FALSE))) -> 50 | F39: =IF($A39="","",IF(ISBLANK($A39),"",VLOOKUP($A39,Data!$A$4:$AI$155,21,FALSE))) -> 0.73 | G39: =IF($A39="","",IF(ISBLANK($A39),"",VLOOKUP($A39,Data!$A$4:$AI$155,22,FALSE))) -> 1.3 | H39: =IF($A39="","",IF(ISBLANK($A39),"",VLOOKUP($A39,Data!$A$4:$AI$155,23,FALSE))) -> 1.14
A40: =IF('Early Years Table'!A40="","",IF(ISBLANK('Early Years Table'!A40),"",'Early Years Table'!A40)) -> 908 | B40: =IF($A40="","",IF(ISBLANK($A40),"",INDEX('LEA Nos codes'!$A$3:$A$154,MATCH($A40,'LEA Nos codes'!$B$3:$B$154,0)))) -> Cornwall | C40: =IF($A40="","",IF(ISBLANK($A40),"",VLOOKUP($A40,Data!$A$4:$AI$155,18,FALSE))) -> 5180 | D40: =IF($A40="","",IF(ISBLANK($A40),"",VLOOKUP($A40,Data!$A$4:$AI$155,19,FALSE))) -> 5510 | E40: =IF($A40="","",IF(ISBLANK($A40),"",VLOOKUP($A40,Data!$A$4:$AI$155,20,FALSE))) -> 5510 | F40: =IF($A40="","",IF(ISBLANK($A40),"",VLOOKUP($A40,Data!$A$4:$AI$155,21,FALSE))) -> 0.96 | G40: =IF($A40="","",IF(ISBLANK($A40),"",VLOOKUP($A40,Data!$A$4:$AI$155,22,FALSE))) -> 1 | H40: =IF($A40="","",IF(ISBLANK($A40),"",VLOOKUP($A40,Data!$A$4:$AI$155,23,FALSE))) -> 0.99
A41: =IF('Early Years Table'!A41="","",IF(ISBLANK('Early Years Table'!A41),"",'Early Years Table'!A41)) -> 331 | B41: =IF($A41="","",IF(ISBLANK($A41),"",INDEX('LEA Nos codes'!$A$3:$A$154,MATCH($A41,'LEA Nos codes'!$B$3:$B$154,0)))) -> Coventry | C41: =IF($A41="","",IF(ISBLANK($A41),"",VLOOKUP($A41,Data!$A$4:$AI$155,18,FALSE))) -> 3800 | D41: =IF($A41="","",IF(ISBLANK($A41),"",VLOOKUP($A41,Data!$A$4:$AI$155,19,FALSE))) -> 3990 | E41: =IF($A41="","",IF(ISBLANK($A41),"",VLOOKUP($A41,Data!$A$4:$AI$155,20,FALSE))) -> 3970 | F41: =IF($A41="","",IF(ISBLANK($A41),"",VLOOKUP($A41,Data!$A$4:$AI$155,21,FALSE))) -> 0.87 | G41: =IF($A41="","",IF(ISBLANK($A41),"",VLOOKUP($A41,Data!$A$4:$AI$155,22,FALSE))) -> 0.89 | H41: =IF($A41="","",IF(ISBLANK($A41),"",VLOOKUP($A41,Data!$A$4:$AI$155,23,FALSE))) -> 0.88
A42: =IF('Early Years Table'!A42="","",IF(ISBLANK('Early Years Table'!A42),"",'Early Years Table'!A42)) -> 306 | B42: =IF($A42="","",IF(ISBLANK($A42),"",INDEX('LEA Nos codes'!$A$3:$A$154,MATCH($A42,'LEA Nos codes'!$B$3:$B$154,0)))) -> Croydon | C42: =IF($A42="","",IF(ISBLANK($A42),"",VLOOKUP($A42,Data!$A$4:$AI$155,18,FALSE))) -> 4500 | D42: =IF($A42="","",IF(ISBLANK($A42),"",VLOOKUP($A42,Data!$A$4:$AI$155,19,FALSE))) -> 4600 | E42: =IF($A42="","",IF(ISBLANK($A42),"",VLOOKUP($A42,Data!$A$4:$AI$155,20,FALSE))) -> 4630 | F42: =IF($A42="","",IF(ISBLANK($A42),"",VLOOKUP($A42,Data!$A$4:$AI$155,21,FALSE))) -> 0.83 | G42: =IF($A42="","",IF(ISBLANK($A42),"",VLOOKUP($A42,Data!$A$4:$AI$155,22,FALSE))) -> 0.82 | H42: =IF($A42="","",IF(ISBLANK($A42),"",VLOOKUP($A42,Data!$A$4:$AI$155,23,FALSE))) -> 0.84
A43: =IF('Early Years Table'!A43="","",IF(ISBLANK('Early Years Table'!A43),"",'Early Years Table'!A43)) -> 909 | B43: =IF($A43="","",IF(ISBLANK($A43),"",INDEX('LEA Nos codes'!$A$3:$A$154,MATCH($A43,'LEA Nos codes'!$B$3:$B$154,0)))) -> Cumbria | C43: =IF($A43="","",IF(ISBLANK($A43),"",VLOOKUP($A43,Data!$A$4:$AI$155,18,FALSE))) -> 5120 | D43: =IF($A43="","",IF(ISBLANK($A43),"",VLOOKUP($A43,Data!$A$4:$AI$155,19,FALSE))) -> 5270 | E43: =IF($A43="","",IF(ISBLANK($A43),"",VLOOKUP($A43,Data!$A$4:$AI$155,20,FALSE))) -> 5170 | F43: =IF($A43="","",IF(ISBLANK($A43),"",VLOOKUP($A43,Data!$A$4:$AI$155,21,FALSE))) -> 1 | G43: =IF($A43="","",IF(ISBLANK($A43),"",VLOOKUP($A43,Data!$A$4:$AI$155,22,FALSE))) -> 1.03 | H43: =IF($A43="","",IF(ISBLANK($A43),"",VLOOKUP($A43,Data!$A$4:$AI$155,23,FALSE))) -> 1.02
A44: =IF('Early Years Table'!A44="","",IF(ISBLANK('Early Years Table'!A44),"",'Early Years Table'!A44)) -> 841 | B44: =IF($A44="","",IF(ISBLANK($A44),"",INDEX('LEA Nos codes'!$A$3:$A$154,MATCH($A44,'LEA Nos codes'!$B$3:$B$154,0)))) -> Darlington | C44: =IF($A44="","",IF(ISBLANK($A44),"",VLOOKUP($A44,Data!$A$4:$AI$155,18,FALSE))) -> 1280 | D44: =IF($A44="","",IF(ISBLANK($A44),"",VLOOKUP($A44,Data!$A$4:$AI$155,19,FALSE))) -> 1350 | E44: =IF($A44="","",IF(ISBLANK($A44),"",VLOOKUP($A44,Data!$A$4:$AI$155,20,FALSE))) -> 1340 | F44: =IF($A44="","",IF(ISBLANK($A44),"",VLOOKUP($A44,Data!$A$4:$AI$155,21,FALSE))) -> 1 | G44: =IF($A44="","",IF(ISBLANK($A44),"",VLOOKUP($A44,Data!$A$4:$AI$155,22,FALSE))) -> 1.02 | H44: =IF($A44="","",IF(ISBLANK($A44),"",VLOOKUP($A44,Data!$A$4:$AI$155,23,FALSE))) -> 1.01
A45: =IF('Early Years Table'!A45="","",IF(ISBLANK('Early Years Table'!A45),"",'Early Years Table'!A45)) -> 831 | B45: =IF($A45="","",IF(ISBLANK($A45),"",INDEX('LEA Nos codes'!$A$3:$A$154,MATCH($A45,'LEA Nos codes'!$B$3:$B$154,0)))) -> Derby | C45: =IF($A45="","",IF(ISBLANK($A45),"",VLOOKUP($A45,Data!$A$4:$AI$155,18,FALSE))) -> 3090 | D45: =IF($A45="","",IF(ISBLANK($A45),"",VLOOKUP($A45,Data!$A$4:$AI$155,19,FALSE))) -> 3300 | E45: =IF($A45="","",IF(ISBLANK($A45),"",VLOOKUP($A45,Data!$A$4:$AI$155,20,FALSE))) -> 3370 | F45: =IF($A45="","",IF(ISBLANK($A45),"",VLOOKUP($A45,Data!$A$4:$AI$155,21,FALSE))) -> 0.88 | G45: =IF($A45="","",IF(ISBLANK($A45),"",VLOOKUP($A45,Data!$A$4:$AI$155,22,FALSE))) -> 0.91 | H45: =IF($A45="","",IF(ISBLANK($A45),"",VLOOKUP($A45,Data!$A$4:$AI$155,23,FALSE))) -> 0.94
